Workbook

Sheet Qtité Famille
A2: =[1]Narlivt!F2 -> Semaines prises en compte dans le Narlivt | D2: =[1]Narlivt!H2 -> S30 - S32
A5: Famille | B5: Activité | C5: Qtité hebdo Famille | D5: Poids hebdo | E5: plat1 | F5: plat2 | G5: plat3 | H5: plat4 | I5: plat5 | J5: plat6 | K5: plat7 | L5: plat8 | M5: plat9 | N5: plat10 | O5: VT1 | P5: VT2 | Q5: VT3 | R5: bobines | S5: tapis | T5: Contaminé | U5: Famille non affectée | X5: Familles | Y5: Code Equipement de lavage | Z5: Programme de lavage (Lav-Ess) Vide si code 1,2,3 | AA5: Temps de cycle réel | AB5: Code Equipement de séchage | AC5: Programme de séchage | AD5: Temps de cycle réel | AE5: Calandre
A6: =IF([1]Paramètres!I22="","",[1]Paramètres!I22) -> VT Immat Non Séché TF | B6: =IF([1]Paramètres!K22="","",[1]Paramètres!K22) -> VT_ | E6: =OR(EXACT($A6,('[1]PP v1000'!$A$12:$A$87))) -> FALSE | F6: =OR(EXACT($A6,([1]PP!$A$12:$A$87))) -> FALSE | G6: =OR(EXACT($A6,([1]GP!$A$12:$A$87))) -> FALSE | H6: =OR(EXACT($A6,([1]Mixte!$A$12:$A$87))) -> FALSE | I6: =OR(EXACT($A6,([1]PE!$A$12:$A$87))) -> FALSE | J6: =OR(EXACT($A6,('[1]Pliage main'!$A$12:$A$87))) -> FALSE | K6: =OR(EXACT($A6,([1]Plat7!$A$12:$A$87))) -> FALSE | L6: =OR(EXACT($A6,([1]Plat8!$A$12:$A$87))) -> FALSE | M6: =OR(EXACT($A6,([1]Plat9!$A$12:$A$87))) -> FALSE | N6: =OR(EXACT($A6,([1]Plat10!$A$12:$A$87))) -> FALSE | O6: =OR(EXACT($A6,([1]VT1!$A$11:$A$86))) -> FALSE | P6: =OR(EXACT($A6,([1]VT2!$A$11:$A$86))) -> FALSE | Q6: =OR(EXACT($A6,([1]VT3!$A$11:$A$86))) -> FALSE | R6: =OR(EXACT($A6,([1]Bobines!$A$12:$A$87))) -> FALSE | S6: =OR(EXACT($A6,([1]Tapis!$A$12:$A$87))) -> FALSE | T6: =OR(EXACT($A6,([1]Contaminé!$A$6:$A$81))) -> FALSE | U6: =IF(C6=0,"",IF(OR(E6=TRUE,F6=TRUE,G6=TRUE,H6=TRUE,I6=TRUE,J6=TRUE,K6=TRUE,L6=TRUE,M6=TRUE,N6=TRUE,O6=TRUE,P6=TRUE,Q6=TRUE,R6=TRUE,S6=TRUE,T6=TRUE),"",A6)) ->  | X6: VT Séché TF | Y6: 2 | Z6: 41 | AA6: 00:04:36.817 | AB6: 3 | AC6: 15 | AD6: 00:18:49.947 | AE6: plat6
A7: =IF([1]Paramètres!I23="","",[1]Paramètres!I23) -> VT Presse | B7: =IF([1]Paramètres!K23="","",[1]Paramètres!K23) -> VT_ | E7: =OR(EXACT($A7,('[1]PP v1000'!$A$12:$A$87))) -> FALSE | F7: =OR(EXACT($A7,([1]PP!$A$12:$A$87))) -> FALSE | G7: =OR(EXACT($A7,([1]GP!$A$12:$A$87))) -> FALSE | H7: =OR(EXACT($A7,([1]Mixte!$A$12:$A$87))) -> FALSE | I7: =OR(EXACT($A7,([1]PE!$A$12:$A$87))) -> FALSE | J7: =OR(EXACT($A7,('[1]Pliage main'!$A$12:$A$87))) -> FALSE | K7: =OR(EXACT($A7,([1]Plat7!$A$12:$A$87))) -> FALSE | L7: =OR(EXACT($A7,([1]Plat8!$A$12:$A$87))) -> FALSE | M7: =OR(EXACT($A7,([1]Plat9!$A$12:$A$87))) -> FALSE | N7: =OR(EXACT($A7,([1]Plat10!$A$12:$A$87))) -> FALSE | O7: =OR(EXACT($A7,([1]VT1!$A$11:$A$86))) -> FALSE | P7: =OR(EXACT($A7,([1]VT2!$A$11:$A$86))) -> FALSE | Q7: =OR(EXACT($A7,([1]VT3!$A$11:$A$86))) -> FALSE | R7: =OR(EXACT($A7,([1]Bobines!$A$12:$A$87))) -> FALSE | S7: =OR(EXACT($A7,([1]Tapis!$A$12:$A$87))) -> FALSE | T7: =OR(EXACT($A7,([1]Contaminé!$A$6:$A$81))) -> FALSE | X7: Blanchissage plat1 | Y7: 2 | AA7: 00:04:36.817 | AB7: 2 | AC7: 23 | AD7: 00:22:38.495 | AE7: plat6
A8: =IF([1]Paramètres!I24="","",[1]Paramètres!I24) -> VT Séché TF | B8: =IF([1]Paramètres!K24="","",[1]Paramètres!K24) -> VT_ | E8: =OR(EXACT($A8,('[1]PP v1000'!$A$12:$A$87))) -> FALSE | F8: =OR(EXACT($A8,([1]PP!$A$12:$A$87))) -> FALSE | G8: =OR(EXACT($A8,([1]GP!$A$12:$A$87))) -> FALSE | H8: =OR(EXACT($A8,([1]Mixte!$A$12:$A$87))) -> FALSE | I8: =OR(EXACT($A8,([1]PE!$A$12:$A$87))) -> FALSE | J8: =OR(EXACT($A8,('[1]Pliage main'!$A$12:$A$87))) -> TRUE | K8: =OR(EXACT($A8,([1]Plat7!$A$12:$A$87))) -> FALSE | L8: =OR(EXACT($A8,([1]Plat8!$A$12:$A$87))) -> FALSE | M8: =OR(EXACT($A8,([1]Plat9!$A$12:$A$87))) -> FALSE | N8: =OR(EXACT($A8,([1]Plat10!$A$12:$A$87))) -> FALSE | O8: =OR(EXACT($A8,([1]VT1!$A$11:$A$86))) -> FALSE | P8: =OR(EXACT($A8,([1]VT2!$A$11:$A$86))) -> FALSE | Q8: =OR(EXACT($A8,([1]VT3!$A$11:$A$86))) -> FALSE | R8: =OR(EXACT($A8,([1]Bobines!$A$12:$A$87))) -> FALSE | S8: =OR(EXACT($A8,([1]Tapis!$A$12:$A$87))) -> FALSE | T8: =OR(EXACT($A8,([1]Contaminé!$A$6:$A$81))) ->  | X8: alése abs | Y8: 2 | AA8: 00:04:36.817 | AB8: 2 | AC8: 23 | AD8: 00:22:38.495 | AE8: plat5 plat6
A9: =IF([1]Paramètres!I25="","",[1]Paramètres!I25) -> VT Coton Calandré | B9: =IF([1]Paramètres!K25="","",[1]Paramètres!K25) -> VT_ | E9: =OR(EXACT($A9,('[1]PP v1000'!$A$12:$A$87))) -> FALSE | F9: =OR(EXACT($A9,([1]PP!$A$12:$A$87))) -> FALSE | G9: =OR(EXACT($A9,([1]GP!$A$12:$A$87))) -> FALSE | H9: =OR(EXACT($A9,([1]Mixte!$A$12:$A$87))) -> FALSE | I9: =OR(EXACT($A9,([1]PE!$A$12:$A$87))) -> FALSE | J9: =OR(EXACT($A9,('[1]Pliage main'!$A$12:$A$87))) -> FALSE | K9: =OR(EXACT($A9,([1]Plat7!$A$12:$A$87))) -> FALSE | L9: =OR(EXACT($A9,([1]Plat8!$A$12:$A$87))) -> FALSE | M9: =OR(EXACT($A9,([1]Plat9!$A$12:$A$87))) -> FALSE | N9: =OR(EXACT($A9,([1]Plat10!$A$12:$A$87))) -> FALSE | O9: =OR(EXACT($A9,([1]VT1!$A$11:$A$86))) -> FALSE | P9: =OR(EXACT($A9,([1]VT2!$A$11:$A$86))) -> FALSE | Q9: =OR(EXACT($A9,([1]VT3!$A$11:$A$86))) -> FALSE | R9: =OR(EXACT($A9,([1]Bobines!$A$12:$A$87))) -> FALSE | S9: =OR(EXACT($A9,([1]Tapis!$A$12:$A$87))) -> FALSE | T9: =OR(EXACT($A9,([1]Contaminé!$A$6:$A$81))) -> FALSE | X9: bavoir | Y9: 2 | AA9: 00:04:36.817 | AB9: 2 | AC9: 23 | AD9: 00:22:38.495 | AE9: plat5
A10: =IF([1]Paramètres!I26="","",[1]Paramètres!I26) -> VT Non Immat et Non séché TF | B10: =IF([1]Paramètres!K26="","",[1]Paramètres!K26) -> VT_ | E10: =OR(EXACT($A10,('[1]PP v1000'!$A$12:$A$87))) -> FALSE | F10: =OR(EXACT($A10,([1]PP!$A$12:$A$87))) -> FALSE | G10: =OR(EXACT($A10,([1]GP!$A$12:$A$87))) -> FALSE | H10: =OR(EXACT($A10,([1]Mixte!$A$12:$A$87))) -> FALSE | I10: =OR(EXACT($A10,([1]PE!$A$12:$A$87))) -> FALSE | J10: =OR(EXACT($A10,('[1]Pliage main'!$A$12:$A$87))) -> FALSE | K10: =OR(EXACT($A10,([1]Plat7!$A$12:$A$87))) -> FALSE | L10: =OR(EXACT($A10,([1]Plat8!$A$12:$A$87))) -> FALSE | M10: =OR(EXACT($A10,([1]Plat9!$A$12:$A$87))) -> FALSE | N10: =OR(EXACT($A10,([1]Plat10!$A$12:$A$87))) -> FALSE | O10: =OR(EXACT($A10,([1]VT1!$A$11:$A$86))) -> FALSE | P10: =OR(EXACT($A10,([1]VT2!$A$11:$A$86))) -> FALSE | Q10: =OR(EXACT($A10,([1]VT3!$A$11:$A$86))) -> FALSE | R10: =OR(EXACT($A10,([1]Bobines!$A$12:$A$87))) -> FALSE | S10: =OR(EXACT($A10,([1]Tapis!$A$12:$A$87))) -> FALSE | T10: =OR(EXACT($A10,([1]Contaminé!$A$6:$A$81))) -> FALSE | X10: carré/gant | Y10: 4 | Z10: 46 | AA10: 01:12:03.140 | AB10: 2 | AC10: 24 | AD10: 00:22:38.495 | AE10: plat6
A11: =IF([1]Paramètres!I27="","",[1]Paramètres!I27) -> 0 | B11: =IF([1]Paramètres!K27="","",[1]Paramètres!K27) -> VT_ | E11: =OR(EXACT($A11,('[1]PP v1000'!$A$12:$A$87))) -> TRUE | F11: =OR(EXACT($A11,([1]PP!$A$12:$A$87))) -> TRUE | G11: =OR(EXACT($A11,([1]GP!$A$12:$A$87))) -> TRUE | H11: =OR(EXACT($A11,([1]Mixte!$A$12:$A$87))) -> TRUE | I11: =OR(EXACT($A11,([1]PE!$A$12:$A$87))) -> TRUE | J11: =OR(EXACT($A11,('[1]Pliage main'!$A$12:$A$87))) -> TRUE | K11: =OR(EXACT($A11,([1]Plat7!$A$12:$A$87))) -> TRUE | L11: =OR(EXACT($A11,([1]Plat8!$A$12:$A$87))) -> TRUE | M11: =OR(EXACT($A11,([1]Plat9!$A$12:$A$87))) -> TRUE | N11: =OR(EXACT($A11,([1]Plat10!$A$12:$A$87))) -> TRUE | O11: =OR(EXACT($A11,([1]VT1!$A$11:$A$86))) -> TRUE | P11: =OR(EXACT($A11,([1]VT2!$A$11:$A$86))) -> TRUE | Q11: =OR(EXACT($A11,([1]VT3!$A$11:$A$86))) -> TRUE | R11: =OR(EXACT($A11,([1]Bobines!$A$12:$A$87))) -> TRUE | S11: =OR(EXACT($A11,([1]Tapis!$A$12:$A$87))) -> TRUE | T11: =OR(EXACT($A11,([1]Contaminé!$A$6:$A$81))) -> TRUE | X11: ch tab | Y11: 5 | Z11: 54 | AA11: 01:06:21.565 | AD11: h | AE11: plat4
A12: =IF([1]Paramètres!I28="","",[1]Paramètres!I28) -> Bobines bleues | B12: =IF([1]Paramètres!K28="","",[1]Paramètres!K28) -> Bobines_ | C12: =10947*0.35 -> 3831.45 | D12: =C12*2.2 -> 8429.19 | E12: =OR(EXACT($A12,('[1]PP v1000'!$A$12:$A$87))) -> FALSE | F12: =OR(EXACT($A12,([1]PP!$A$12:$A$87))) -> FALSE | G12: =OR(EXACT($A12,([1]GP!$A$12:$A$87))) -> FALSE | H12: =OR(EXACT($A12,([1]Mixte!$A$12:$A$87))) -> FALSE | I12: =OR(EXACT($A12,([1]PE!$A$12:$A$87))) -> FALSE | J12: =OR(EXACT($A12,('[1]Pliage main'!$A$12:$A$87))) -> FALSE | K12: =OR(EXACT($A12,([1]Plat7!$A$12:$A$87))) -> FALSE | L12: =OR(EXACT($A12,([1]Plat8!$A$12:$A$87))) -> FALSE | M12: =OR(EXACT($A12,([1]Plat9!$A$12:$A$87))) -> FALSE | N12: =OR(EXACT($A12,([1]Plat10!$A$12:$A$87))) -> FALSE | O12: =OR(EXACT($A12,([1]VT1!$A$11:$A$86))) -> FALSE | P12: =OR(EXACT($A12,([1]VT2!$A$11:$A$86))) -> FALSE | Q12: =OR(EXACT($A12,([1]VT3!$A$11:$A$86))) -> FALSE | R12: =OR(EXACT($A12,([1]Bobines!$A$12:$A$87))) -> TRUE | S12: =OR(EXACT($A12,([1]Tapis!$A$12:$A$87))) -> FALSE | T12: =OR(EXACT($A12,([1]Contaminé!$A$6:$A$81))) -> FALSE | X12: chmal | Y12: 2 | AA12: 00:04:36.817 | AB12: 2 | AC12: 23 | AD12: 00:22:38.495 | AE12: plat5 plat6
A13: =IF([1]Paramètres!I29="","",[1]Paramètres!I29) -> Bobines blanches | B13: =IF([1]Paramètres!K29="","",[1]Paramètres!K29) -> Bobines_ | C13: =10947*0.65 -> 7115.55 | D13: =C13*2.2 -> 15654.21 | E13: =OR(EXACT($A13,('[1]PP v1000'!$A$12:$A$87))) -> FALSE | F13: =OR(EXACT($A13,([1]PP!$A$12:$A$87))) -> FALSE | G13: =OR(EXACT($A13,([1]GP!$A$12:$A$87))) -> FALSE | H13: =OR(EXACT($A13,([1]Mixte!$A$12:$A$87))) -> FALSE | I13: =OR(EXACT($A13,([1]PE!$A$12:$A$87))) -> FALSE | J13: =OR(EXACT($A13,('[1]Pliage main'!$A$12:$A$87))) -> FALSE | K13: =OR(EXACT($A13,([1]Plat7!$A$12:$A$87))) -> FALSE | L13: =OR(EXACT($A13,([1]Plat8!$A$12:$A$87))) -> FALSE | M13: =OR(EXACT($A13,([1]Plat9!$A$12:$A$87))) -> FALSE | N13: =OR(EXACT($A13,([1]Plat10!$A$12:$A$87))) -> FALSE | O13: =OR(EXACT($A13,([1]VT1!$A$11:$A$86))) -> FALSE | P13: =OR(EXACT($A13,([1]VT2!$A$11:$A$86))) -> FALSE | Q13: =OR(EXACT($A13,([1]VT3!$A$11:$A$86))) -> FALSE | R13: =OR(EXACT($A13,([1]Bobines!$A$12:$A$87))) -> TRUE | S13: =OR(EXACT($A13,([1]Tapis!$A$12:$A$87))) -> FALSE | T13: =OR(EXACT($A13,([1]Contaminé!$A$6:$A$81))) -> FALSE | X13: chp grd | Y13: 2 | AA13: 00:04:36.817 | AD13: h | AE13: plat4
A14: =IF([1]Paramètres!I30="","",[1]Paramètres!I30) -> Tapis | B14: =IF([1]Paramètres!K30="","",[1]Paramètres!K30) -> Tapis_ | C14: =D14/5.5 -> 6654.545455 | D14: 36600 | E14: =OR(EXACT($A14,('[1]PP v1000'!$A$12:$A$87))) -> FALSE | F14: =OR(EXACT($A14,([1]PP!$A$12:$A$87))) -> FALSE | G14: =OR(EXACT($A14,([1]GP!$A$12:$A$87))) -> FALSE | H14: =OR(EXACT($A14,([1]Mixte!$A$12:$A$87))) -> FALSE | I14: =OR(EXACT($A14,([1]PE!$A$12:$A$87))) -> FALSE | J14: =OR(EXACT($A14,('[1]Pliage main'!$A$12:$A$87))) -> FALSE | K14: =OR(EXACT($A14,([1]Plat7!$A$12:$A$87))) -> FALSE | L14: =OR(EXACT($A14,([1]Plat8!$A$12:$A$87))) -> FALSE | M14: =OR(EXACT($A14,([1]Plat9!$A$12:$A$87))) -> FALSE | N14: =OR(EXACT($A14,([1]Plat10!$A$12:$A$87))) -> FALSE | O14: =OR(EXACT($A14,([1]VT1!$A$11:$A$86))) -> FALSE | P14: =OR(EXACT($A14,([1]VT2!$A$11:$A$86))) -> FALSE | Q14: =OR(EXACT($A14,([1]VT3!$A$11:$A$86))) -> FALSE | R14: =OR(EXACT($A14,([1]Bobines!$A$12:$A$87))) -> FALSE | S14: =OR(EXACT($A14,([1]Tapis!$A$12:$A$87))) -> TRUE | T14: =OR(EXACT($A14,([1]Contaminé!$A$6:$A$81))) -> FALSE | X14: chp petit | Y14: 2 | AA14: 00:04:36.817 | AD14: h | AE14: plat4
A15: =IF([1]Paramètres!I31="","",[1]Paramètres!I31) -> UP | B15: =IF([1]Paramètres!K31="","",[1]Paramètres!K31) -> UP_ | E15: =OR(EXACT($A15,('[1]PP v1000'!$A$12:$A$87))) -> FALSE | F15: =OR(EXACT($A15,([1]PP!$A$12:$A$87))) -> FALSE | G15: =OR(EXACT($A15,([1]GP!$A$12:$A$87))) -> FALSE | H15: =OR(EXACT($A15,([1]Mixte!$A$12:$A$87))) -> FALSE | I15: =OR(EXACT($A15,([1]PE!$A$12:$A$87))) -> FALSE | J15: =OR(EXACT($A15,('[1]Pliage main'!$A$12:$A$87))) -> FALSE | K15: =OR(EXACT($A15,([1]Plat7!$A$12:$A$87))) -> FALSE | L15: =OR(EXACT($A15,([1]Plat8!$A$12:$A$87))) -> FALSE | M15: =OR(EXACT($A15,([1]Plat9!$A$12:$A$87))) -> FALSE | N15: =OR(EXACT($A15,([1]Plat10!$A$12:$A$87))) -> FALSE | O15: =OR(EXACT($A15,([1]VT1!$A$11:$A$86))) -> FALSE | P15: =OR(EXACT($A15,([1]VT2!$A$11:$A$86))) -> FALSE | Q15: =OR(EXACT($A15,([1]VT3!$A$11:$A$86))) -> FALSE | R15: =OR(EXACT($A15,([1]Bobines!$A$12:$A$87))) -> FALSE | S15: =OR(EXACT($A15,([1]Tapis!$A$12:$A$87))) -> FALSE | T15: =OR(EXACT($A15,([1]Contaminé!$A$6:$A$81))) -> FALSE | X15: couette/couv | Y15: 4 | Z15: 45 | AA15: 01:12:03.140 | AB15: 3 | AC15: 32 | AD15: 00:18:49.947 | AE15: plat6
A16: =IF([1]Paramètres!I32="","",[1]Paramètres!I32) -> Stérélis | B16: =IF([1]Paramètres!K32="","",[1]Paramètres!K32) -> Stérélis_ | E16: =OR(EXACT($A16,('[1]PP v1000'!$A$12:$A$87))) -> FALSE | F16: =OR(EXACT($A16,([1]PP!$A$12:$A$87))) -> FALSE | G16: =OR(EXACT($A16,([1]GP!$A$12:$A$87))) -> FALSE | H16: =OR(EXACT($A16,([1]Mixte!$A$12:$A$87))) -> FALSE | I16: =OR(EXACT($A16,([1]PE!$A$12:$A$87))) -> FALSE | J16: =OR(EXACT($A16,('[1]Pliage main'!$A$12:$A$87))) -> FALSE | K16: =OR(EXACT($A16,([1]Plat7!$A$12:$A$87))) -> FALSE | L16: =OR(EXACT($A16,([1]Plat8!$A$12:$A$87))) -> FALSE | M16: =OR(EXACT($A16,([1]Plat9!$A$12:$A$87))) -> FALSE | N16: =OR(EXACT($A16,([1]Plat10!$A$12:$A$87))) -> FALSE | O16: =OR(EXACT($A16,([1]VT1!$A$11:$A$86))) -> FALSE | P16: =OR(EXACT($A16,([1]VT2!$A$11:$A$86))) -> FALSE | Q16: =OR(EXACT($A16,([1]VT3!$A$11:$A$86))) -> FALSE | R16: =OR(EXACT($A16,([1]Bobines!$A$12:$A$87))) -> FALSE | S16: =OR(EXACT($A16,([1]Tapis!$A$12:$A$87))) -> FALSE | T16: =OR(EXACT($A16,([1]Contaminé!$A$6:$A$81))) -> FALSE | X16: des lit | Y16: 4 | Z16: 43 | AA16: 01:12:03.140 | AD16: h | AE16: plat4
A17: =IF([1]Paramètres!I33="","",[1]Paramètres!I33) -> Contaminé | B17: =IF([1]Paramètres!K33="","",[1]Paramètres!K33) -> HCALGP_Drap | E17: =OR(EXACT($A17,('[1]PP v1000'!$A$12:$A$87))) -> FALSE | F17: =OR(EXACT($A17,([1]PP!$A$12:$A$87))) -> FALSE | G17: =OR(EXACT($A17,([1]GP!$A$12:$A$87))) -> FALSE | H17: =OR(EXACT($A17,([1]Mixte!$A$12:$A$87))) -> FALSE | I17: =OR(EXACT($A17,([1]PE!$A$12:$A$87))) -> FALSE | J17: =OR(EXACT($A17,('[1]Pliage main'!$A$12:$A$87))) -> FALSE | K17: =OR(EXACT($A17,([1]Plat7!$A$12:$A$87))) -> FALSE | L17: =OR(EXACT($A17,([1]Plat8!$A$12:$A$87))) -> FALSE | M17: =OR(EXACT($A17,([1]Plat9!$A$12:$A$87))) -> FALSE | N17: =OR(EXACT($A17,([1]Plat10!$A$12:$A$87))) -> FALSE | O17: =OR(EXACT($A17,([1]VT1!$A$11:$A$86))) -> FALSE | P17: =OR(EXACT($A17,([1]VT2!$A$11:$A$86))) -> FALSE | Q17: =OR(EXACT($A17,([1]VT3!$A$11:$A$86))) -> FALSE | R17: =OR(EXACT($A17,([1]Bobines!$A$12:$A$87))) -> FALSE | S17: =OR(EXACT($A17,([1]Tapis!$A$12:$A$87))) -> FALSE | T17: =OR(EXACT($A17,([1]Contaminé!$A$6:$A$81))) -> FALSE | X17: drap petit | Y17: 1 | AA17: 00:02:17.681 | AD17: h | AE17: plat3 plat4
A18: =IF([1]Paramètres!I34="","",[1]Paramètres!I34) -> Blanchissage plat1 | B18: =IF([1]Paramètres!K34="","",[1]Paramètres!K34) -> 0 | C18: =D18/0.8 -> 5000 | D18: 4000 | E18: =OR(EXACT($A18,('[1]PP v1000'!$A$12:$A$87))) -> FALSE | F18: =OR(EXACT($A18,([1]PP!$A$12:$A$87))) -> FALSE | G18: =OR(EXACT($A18,([1]GP!$A$12:$A$87))) -> FALSE | H18: =OR(EXACT($A18,([1]Mixte!$A$12:$A$87))) -> FALSE | I18: =OR(EXACT($A18,([1]PE!$A$12:$A$87))) -> FALSE | J18: =OR(EXACT($A18,('[1]Pliage main'!$A$12:$A$87))) -> TRUE | K18: =OR(EXACT($A18,([1]Plat7!$A$12:$A$87))) -> FALSE | L18: =OR(EXACT($A18,([1]Plat8!$A$12:$A$87))) -> FALSE | M18: =OR(EXACT($A18,([1]Plat9!$A$12:$A$87))) -> FALSE | N18: =OR(EXACT($A18,([1]Plat10!$A$12:$A$87))) -> FALSE | O18: =OR(EXACT($A18,([1]VT1!$A$11:$A$86))) -> FALSE | P18: =OR(EXACT($A18,([1]VT2!$A$11:$A$86))) -> FALSE | Q18: =OR(EXACT($A18,([1]VT3!$A$11:$A$86))) -> FALSE | R18: =OR(EXACT($A18,([1]Bobines!$A$12:$A$87))) -> FALSE | S18: =OR(EXACT($A18,([1]Tapis!$A$12:$A$87))) -> FALSE | T18: =OR(EXACT($A18,([1]Contaminé!$A$6:$A$81))) -> FALSE | X18: drap grand | Y18: 1 | AA18: 00:02:17.681 | AD18: h | AE18: plat3 plat4
A19: =IF([1]Paramètres!I35="","",[1]Paramètres!I35) -> Blanchissage plat2 | B19: =IF([1]Paramètres!K35="","",[1]Paramètres!K35) -> 0 | C19: =SUM(IF(('[1]Qtité art'!$E$9:$E$900=A19),('[1]Qtité art'!$D$9:$D$900))) -> 0 | E19: =OR(EXACT($A19,('[1]PP v1000'!$A$12:$A$87))) -> FALSE | F19: =OR(EXACT($A19,([1]PP!$A$12:$A$87))) -> FALSE | G19: =OR(EXACT($A19,([1]GP!$A$12:$A$87))) -> FALSE | H19: =OR(EXACT($A19,([1]Mixte!$A$12:$A$87))) -> FALSE | I19: =OR(EXACT($A19,([1]PE!$A$12:$A$87))) -> FALSE | J19: =OR(EXACT($A19,('[1]Pliage main'!$A$12:$A$87))) -> FALSE | K19: =OR(EXACT($A19,([1]Plat7!$A$12:$A$87))) -> FALSE | L19: =OR(EXACT($A19,([1]Plat8!$A$12:$A$87))) -> FALSE | M19: =OR(EXACT($A19,([1]Plat9!$A$12:$A$87))) -> FALSE | N19: =OR(EXACT($A19,([1]Plat10!$A$12:$A$87))) -> FALSE | O19: =OR(EXACT($A19,([1]VT1!$A$11:$A$86))) -> FALSE | P19: =OR(EXACT($A19,([1]VT2!$A$11:$A$86))) -> FALSE | Q19: =OR(EXACT($A19,([1]VT3!$A$11:$A$86))) -> FALSE | R19: =OR(EXACT($A19,([1]Bobines!$A$12:$A$87))) -> FALSE | S19: =OR(EXACT($A19,([1]Tapis!$A$12:$A$87))) -> FALSE | T19: =OR(EXACT($A19,([1]Contaminé!$A$6:$A$81))) -> FALSE | X19: drap 1/2 | Y19: 2 | AA19: 00:04:36.817 | AD19: h | AE19: plat4
A20: =IF([1]Paramètres!I36="","",[1]Paramètres!I36) -> Blanchissage plat3 | B20: =IF([1]Paramètres!K36="","",[1]Paramètres!K36) -> 0 | C20: =SUM(IF(('[1]Qtité art'!$E$9:$E$900=A20),('[1]Qtité art'!$D$9:$D$900))) -> 0 | E20: =OR(EXACT($A20,('[1]PP v1000'!$A$12:$A$87))) -> FALSE | F20: =OR(EXACT($A20,([1]PP!$A$12:$A$87))) -> FALSE | G20: =OR(EXACT($A20,([1]GP!$A$12:$A$87))) -> FALSE | H20: =OR(EXACT($A20,([1]Mixte!$A$12:$A$87))) -> FALSE | I20: =OR(EXACT($A20,([1]PE!$A$12:$A$87))) -> FALSE | J20: =OR(EXACT($A20,('[1]Pliage main'!$A$12:$A$87))) -> FALSE | K20: =OR(EXACT($A20,([1]Plat7!$A$12:$A$87))) -> FALSE | L20: =OR(EXACT($A20,([1]Plat8!$A$12:$A$87))) -> FALSE | M20: =OR(EXACT($A20,([1]Plat9!$A$12:$A$87))) -> FALSE | N20: =OR(EXACT($A20,([1]Plat10!$A$12:$A$87))) -> FALSE | O20: =OR(EXACT($A20,([1]VT1!$A$11:$A$86))) -> FALSE | P20: =OR(EXACT($A20,([1]VT2!$A$11:$A$86))) -> FALSE | Q20: =OR(EXACT($A20,([1]VT3!$A$11:$A$86))) -> FALSE | R20: =OR(EXACT($A20,([1]Bobines!$A$12:$A$87))) -> FALSE | S20: =OR(EXACT($A20,([1]Tapis!$A$12:$A$87))) -> FALSE | T20: =OR(EXACT($A20,([1]Contaminé!$A$6:$A$81))) -> FALSE | X20: drap bain | Y20: 1 | AA20: 00:02:17.681 | AB20: 5 | AC20: 54 | AD20: 00:27:00 | AE20: plat5
A21: =IF([1]Paramètres!I37="","",[1]Paramètres!I37) -> Blanchissage plat4 | B21: =IF([1]Paramètres!K37="","",[1]Paramètres!K37) -> 0 | C21: =SUM(IF(('[1]Qtité art'!$E$9:$E$900=A21),('[1]Qtité art'!$D$9:$D$900))) -> 0 | E21: =OR(EXACT($A21,('[1]PP v1000'!$A$12:$A$87))) -> FALSE | F21: =OR(EXACT($A21,([1]PP!$A$12:$A$87))) -> FALSE | G21: =OR(EXACT($A21,([1]GP!$A$12:$A$87))) -> FALSE | H21: =OR(EXACT($A21,([1]Mixte!$A$12:$A$87))) -> FALSE | I21: =OR(EXACT($A21,([1]PE!$A$12:$A$87))) -> FALSE | J21: =OR(EXACT($A21,('[1]Pliage main'!$A$12:$A$87))) -> FALSE | K21: =OR(EXACT($A21,([1]Plat7!$A$12:$A$87))) -> FALSE | L21: =OR(EXACT($A21,([1]Plat8!$A$12:$A$87))) -> FALSE | M21: =OR(EXACT($A21,([1]Plat9!$A$12:$A$87))) -> FALSE | N21: =OR(EXACT($A21,([1]Plat10!$A$12:$A$87))) -> FALSE | O21: =OR(EXACT($A21,([1]VT1!$A$11:$A$86))) -> FALSE | P21: =OR(EXACT($A21,([1]VT2!$A$11:$A$86))) -> FALSE | Q21: =OR(EXACT($A21,([1]VT3!$A$11:$A$86))) -> FALSE | R21: =OR(EXACT($A21,([1]Bobines!$A$12:$A$87))) -> FALSE | S21: =OR(EXACT($A21,([1]Tapis!$A$12:$A$87))) -> FALSE | T21: =OR(EXACT($A21,([1]Contaminé!$A$6:$A$81))) -> FALSE | X21: drap bain luxe | Y21: 1 | AA21: 00:02:17.681 | AB21: 5 | AC21: 54 | AD21: 00:27:00 | AE21: plat5
A22: =IF([1]Paramètres!I38="","",[1]Paramètres!I38) -> Blanchissage plat5 | B22: =IF([1]Paramètres!K38="","",[1]Paramètres!K38) -> 0 | C22: =SUM(IF(('[1]Qtité art'!$E$9:$E$900=A22),('[1]Qtité art'!$D$9:$D$900))) -> 0 | E22: =OR(EXACT($A22,('[1]PP v1000'!$A$12:$A$87))) -> FALSE | F22: =OR(EXACT($A22,([1]PP!$A$12:$A$87))) -> FALSE | G22: =OR(EXACT($A22,([1]GP!$A$12:$A$87))) -> FALSE | H22: =OR(EXACT($A22,([1]Mixte!$A$12:$A$87))) -> FALSE | I22: =OR(EXACT($A22,([1]PE!$A$12:$A$87))) -> FALSE | J22: =OR(EXACT($A22,('[1]Pliage main'!$A$12:$A$87))) -> FALSE | K22: =OR(EXACT($A22,([1]Plat7!$A$12:$A$87))) -> FALSE | L22: =OR(EXACT($A22,([1]Plat8!$A$12:$A$87))) -> FALSE | M22: =OR(EXACT($A22,([1]Plat9!$A$12:$A$87))) -> FALSE | N22: =OR(EXACT($A22,([1]Plat10!$A$12:$A$87))) -> FALSE | O22: =OR(EXACT($A22,([1]VT1!$A$11:$A$86))) -> FALSE | P22: =OR(EXACT($A22,([1]VT2!$A$11:$A$86))) -> FALSE | Q22: =OR(EXACT($A22,([1]VT3!$A$11:$A$86))) -> FALSE | R22: =OR(EXACT($A22,([1]Bobines!$A$12:$A$87))) -> FALSE | S22: =OR(EXACT($A22,([1]Tapis!$A$12:$A$87))) -> FALSE | T22: =OR(EXACT($A22,([1]Contaminé!$A$6:$A$81))) -> FALSE | X22: drap housse | Y22: 1 | AA22: 00:02:17.681 | AB22: 2 | AC22: 23 | AD22: 00:22:38.495 | AE22: plat6
A23: =IF([1]Paramètres!I39="","",[1]Paramètres!I39) -> Blanchissage plat6 | B23: =IF([1]Paramètres!K39="","",[1]Paramètres!K39) -> 0 | C23: =SUM(IF(('[1]Qtité art'!$E$9:$E$900=A23),('[1]Qtité art'!$D$9:$D$900))) -> 0 | E23: =OR(EXACT($A23,('[1]PP v1000'!$A$12:$A$87))) -> FALSE | F23: =OR(EXACT($A23,([1]PP!$A$12:$A$87))) -> FALSE | G23: =OR(EXACT($A23,([1]GP!$A$12:$A$87))) -> FALSE | H23: =OR(EXACT($A23,([1]Mixte!$A$12:$A$87))) -> FALSE | I23: =OR(EXACT($A23,([1]PE!$A$12:$A$87))) -> FALSE | J23: =OR(EXACT($A23,('[1]Pliage main'!$A$12:$A$87))) -> FALSE | K23: =OR(EXACT($A23,([1]Plat7!$A$12:$A$87))) -> FALSE | L23: =OR(EXACT($A23,([1]Plat8!$A$12:$A$87))) -> FALSE | M23: =OR(EXACT($A23,([1]Plat9!$A$12:$A$87))) -> FALSE | N23: =OR(EXACT($A23,([1]Plat10!$A$12:$A$87))) -> FALSE | O23: =OR(EXACT($A23,([1]VT1!$A$11:$A$86))) -> FALSE | P23: =OR(EXACT($A23,([1]VT2!$A$11:$A$86))) -> FALSE | Q23: =OR(EXACT($A23,([1]VT3!$A$11:$A$86))) -> FALSE | R23: =OR(EXACT($A23,([1]Bobines!$A$12:$A$87))) -> FALSE | S23: =OR(EXACT($A23,([1]Tapis!$A$12:$A$87))) -> FALSE | T23: =OR(EXACT($A23,([1]Contaminé!$A$6:$A$81))) -> FALSE | X23: drap luxe | Y23: 1 | AA23: 00:02:17.681 | AD23: h | AE23: plat3
A24: =IF([1]Paramètres!I40="","",[1]Paramètres!I40) -> Blanchissage plat7 | B24: =IF([1]Paramètres!K40="","",[1]Paramètres!K40) -> 0 | C24: =SUM(IF(('[1]Qtité art'!$E$9:$E$900=A24),('[1]Qtité art'!$D$9:$D$900))) -> 0 | E24: =OR(EXACT($A24,('[1]PP v1000'!$A$12:$A$87))) -> FALSE | F24: =OR(EXACT($A24,([1]PP!$A$12:$A$87))) -> FALSE | G24: =OR(EXACT($A24,([1]GP!$A$12:$A$87))) -> FALSE | H24: =OR(EXACT($A24,([1]Mixte!$A$12:$A$87))) -> FALSE | I24: =OR(EXACT($A24,([1]PE!$A$12:$A$87))) -> FALSE | J24: =OR(EXACT($A24,('[1]Pliage main'!$A$12:$A$87))) -> FALSE | K24: =OR(EXACT($A24,([1]Plat7!$A$12:$A$87))) -> FALSE | L24: =OR(EXACT($A24,([1]Plat8!$A$12:$A$87))) -> FALSE | M24: =OR(EXACT($A24,([1]Plat9!$A$12:$A$87))) -> FALSE | N24: =OR(EXACT($A24,([1]Plat10!$A$12:$A$87))) -> FALSE | O24: =OR(EXACT($A24,([1]VT1!$A$11:$A$86))) -> FALSE | P24: =OR(EXACT($A24,([1]VT2!$A$11:$A$86))) -> FALSE | Q24: =OR(EXACT($A24,([1]VT3!$A$11:$A$86))) -> FALSE | R24: =OR(EXACT($A24,([1]Bobines!$A$12:$A$87))) -> FALSE | S24: =OR(EXACT($A24,([1]Tapis!$A$12:$A$87))) -> FALSE | T24: =OR(EXACT($A24,([1]Contaminé!$A$6:$A$81))) -> FALSE | X24: grde al | Y24: 1 | AA24: 00:02:17.681 | AD24: h | AE24: plat4
A25: =IF([1]Paramètres!I41="","",[1]Paramètres!I41) -> Blanchissage plat8 | B25: =IF([1]Paramètres!K41="","",[1]Paramètres!K41) -> 0 | C25: =SUM(IF(('[1]Qtité art'!$E$9:$E$900=A25),('[1]Qtité art'!$D$9:$D$900))) -> 0 | E25: =OR(EXACT($A25,('[1]PP v1000'!$A$12:$A$87))) -> FALSE | F25: =OR(EXACT($A25,([1]PP!$A$12:$A$87))) -> FALSE | G25: =OR(EXACT($A25,([1]GP!$A$12:$A$87))) -> FALSE | H25: =OR(EXACT($A25,([1]Mixte!$A$12:$A$87))) -> FALSE | I25: =OR(EXACT($A25,([1]PE!$A$12:$A$87))) -> FALSE | J25: =OR(EXACT($A25,('[1]Pliage main'!$A$12:$A$87))) -> FALSE | K25: =OR(EXACT($A25,([1]Plat7!$A$12:$A$87))) -> FALSE | L25: =OR(EXACT($A25,([1]Plat8!$A$12:$A$87))) -> FALSE | M25: =OR(EXACT($A25,([1]Plat9!$A$12:$A$87))) -> FALSE | N25: =OR(EXACT($A25,([1]Plat10!$A$12:$A$87))) -> FALSE | O25: =OR(EXACT($A25,([1]VT1!$A$11:$A$86))) -> FALSE | P25: =OR(EXACT($A25,([1]VT2!$A$11:$A$86))) -> FALSE | Q25: =OR(EXACT($A25,([1]VT3!$A$11:$A$86))) -> FALSE | R25: =OR(EXACT($A25,([1]Bobines!$A$12:$A$87))) -> FALSE | S25: =OR(EXACT($A25,([1]Tapis!$A$12:$A$87))) -> FALSE | T25: =OR(EXACT($A25,([1]Contaminé!$A$6:$A$81))) -> FALSE | X25: hous trav | Y25: 1 | AA25: 00:02:17.681 | AD25: h | AE25: plat4
A26: =IF([1]Paramètres!I42="","",[1]Paramètres!I42) -> Blanchissage plat9 | B26: =IF([1]Paramètres!K42="","",[1]Paramètres!K42) -> 0 | C26: =SUM(IF(('[1]Qtité art'!$E$9:$E$900=A26),('[1]Qtité art'!$D$9:$D$900))) -> 0 | E26: =OR(EXACT($A26,('[1]PP v1000'!$A$12:$A$87))) -> FALSE | F26: =OR(EXACT($A26,([1]PP!$A$12:$A$87))) -> FALSE | G26: =OR(EXACT($A26,([1]GP!$A$12:$A$87))) -> FALSE | H26: =OR(EXACT($A26,([1]Mixte!$A$12:$A$87))) -> FALSE | I26: =OR(EXACT($A26,([1]PE!$A$12:$A$87))) -> FALSE | J26: =OR(EXACT($A26,('[1]Pliage main'!$A$12:$A$87))) -> FALSE | K26: =OR(EXACT($A26,([1]Plat7!$A$12:$A$87))) -> FALSE | L26: =OR(EXACT($A26,([1]Plat8!$A$12:$A$87))) -> FALSE | M26: =OR(EXACT($A26,([1]Plat9!$A$12:$A$87))) -> FALSE | N26: =OR(EXACT($A26,([1]Plat10!$A$12:$A$87))) -> FALSE | O26: =OR(EXACT($A26,([1]VT1!$A$11:$A$86))) -> FALSE | P26: =OR(EXACT($A26,([1]VT2!$A$11:$A$86))) -> FALSE | Q26: =OR(EXACT($A26,([1]VT3!$A$11:$A$86))) -> FALSE | R26: =OR(EXACT($A26,([1]Bobines!$A$12:$A$87))) -> FALSE | S26: =OR(EXACT($A26,([1]Tapis!$A$12:$A$87))) -> FALSE | T26: =OR(EXACT($A26,([1]Contaminé!$A$6:$A$81))) -> FALSE | X26: housse couette | Y26: 1 | AA26: 00:02:17.681 | AD26: h | AE26: plat3 plat4
A27: =IF([1]Paramètres!I43="","",[1]Paramètres!I43) -> Blanchissage plat10 | B27: =IF([1]Paramètres!K43="","",[1]Paramètres!K43) -> 0 | C27: =SUM(IF(('[1]Qtité art'!$E$9:$E$900=A27),('[1]Qtité art'!$D$9:$D$900))) -> 0 | E27: =OR(EXACT($A27,('[1]PP v1000'!$A$12:$A$87))) -> FALSE | F27: =OR(EXACT($A27,([1]PP!$A$12:$A$87))) -> FALSE | G27: =OR(EXACT($A27,([1]GP!$A$12:$A$87))) -> FALSE | H27: =OR(EXACT($A27,([1]Mixte!$A$12:$A$87))) -> FALSE | I27: =OR(EXACT($A27,([1]PE!$A$12:$A$87))) -> FALSE | J27: =OR(EXACT($A27,('[1]Pliage main'!$A$12:$A$87))) -> FALSE | K27: =OR(EXACT($A27,([1]Plat7!$A$12:$A$87))) -> FALSE | L27: =OR(EXACT($A27,([1]Plat8!$A$12:$A$87))) -> FALSE | M27: =OR(EXACT($A27,([1]Plat9!$A$12:$A$87))) -> FALSE | N27: =OR(EXACT($A27,([1]Plat10!$A$12:$A$87))) -> FALSE | O27: =OR(EXACT($A27,([1]VT1!$A$11:$A$86))) -> FALSE | P27: =OR(EXACT($A27,([1]VT2!$A$11:$A$86))) -> FALSE | Q27: =OR(EXACT($A27,([1]VT3!$A$11:$A$86))) -> FALSE | R27: =OR(EXACT($A27,([1]Bobines!$A$12:$A$87))) -> FALSE | S27: =OR(EXACT($A27,([1]Tapis!$A$12:$A$87))) -> FALSE | T27: =OR(EXACT($A27,([1]Contaminé!$A$6:$A$81))) -> FALSE | X27: nap .30 | Y27: 5 | Z27: 52 | AA27: 01:06:21.565 | AD27: h | AE27: plat4
A28: =IF([1]Paramètres!I44="","",[1]Paramètres!I44) -> Blanchissage VT1 | B28: =IF([1]Paramètres!K44="","",[1]Paramètres!K44) -> 0 | C28: =SUM(IF(('[1]Qtité art'!$E$9:$E$900=A28),('[1]Qtité art'!$D$9:$D$900))) -> 0 | E28: =OR(EXACT($A28,('[1]PP v1000'!$A$12:$A$87))) -> FALSE | F28: =OR(EXACT($A28,([1]PP!$A$12:$A$87))) -> FALSE | G28: =OR(EXACT($A28,([1]GP!$A$12:$A$87))) -> FALSE | H28: =OR(EXACT($A28,([1]Mixte!$A$12:$A$87))) -> FALSE | I28: =OR(EXACT($A28,([1]PE!$A$12:$A$87))) -> FALSE | J28: =OR(EXACT($A28,('[1]Pliage main'!$A$12:$A$87))) -> FALSE | K28: =OR(EXACT($A28,([1]Plat7!$A$12:$A$87))) -> FALSE | L28: =OR(EXACT($A28,([1]Plat8!$A$12:$A$87))) -> FALSE | M28: =OR(EXACT($A28,([1]Plat9!$A$12:$A$87))) -> FALSE | N28: =OR(EXACT($A28,([1]Plat10!$A$12:$A$87))) -> FALSE | O28: =OR(EXACT($A28,([1]VT1!$A$11:$A$86))) -> FALSE | P28: =OR(EXACT($A28,([1]VT2!$A$11:$A$86))) -> FALSE | Q28: =OR(EXACT($A28,([1]VT3!$A$11:$A$86))) -> FALSE | R28: =OR(EXACT($A28,([1]Bobines!$A$12:$A$87))) -> FALSE | S28: =OR(EXACT($A28,([1]Tapis!$A$12:$A$87))) -> FALSE | T28: =OR(EXACT($A28,([1]Contaminé!$A$6:$A$81))) -> FALSE | X28: nap 12 | Y28: 5 | Z28: 52 | AA28: 01:06:21.565 | AD28: h | AE28: plat4
A29: =IF([1]Paramètres!I45="","",[1]Paramètres!I45) -> Blanchissage VT2 | B29: =IF([1]Paramètres!K45="","",[1]Paramètres!K45) -> 0 | C29: =SUM(IF(('[1]Qtité art'!$E$9:$E$900=A29),('[1]Qtité art'!$D$9:$D$900))) -> 0 | E29: =OR(EXACT($A29,('[1]PP v1000'!$A$12:$A$87))) -> FALSE | F29: =OR(EXACT($A29,([1]PP!$A$12:$A$87))) -> FALSE | G29: =OR(EXACT($A29,([1]GP!$A$12:$A$87))) -> FALSE | H29: =OR(EXACT($A29,([1]Mixte!$A$12:$A$87))) -> FALSE | I29: =OR(EXACT($A29,([1]PE!$A$12:$A$87))) -> FALSE | J29: =OR(EXACT($A29,('[1]Pliage main'!$A$12:$A$87))) -> FALSE | K29: =OR(EXACT($A29,([1]Plat7!$A$12:$A$87))) -> FALSE | L29: =OR(EXACT($A29,([1]Plat8!$A$12:$A$87))) -> FALSE | M29: =OR(EXACT($A29,([1]Plat9!$A$12:$A$87))) -> FALSE | N29: =OR(EXACT($A29,([1]Plat10!$A$12:$A$87))) -> FALSE | O29: =OR(EXACT($A29,([1]VT1!$A$11:$A$86))) -> FALSE | P29: =OR(EXACT($A29,([1]VT2!$A$11:$A$86))) -> FALSE | Q29: =OR(EXACT($A29,([1]VT3!$A$11:$A$86))) -> FALSE | R29: =OR(EXACT($A29,([1]Bobines!$A$12:$A$87))) -> FALSE | S29: =OR(EXACT($A29,([1]Tapis!$A$12:$A$87))) -> FALSE | T29: =OR(EXACT($A29,([1]Contaminé!$A$6:$A$81))) -> FALSE | X29: nap 15 + 18 | Y29: 5 | Z29: 52 | AA29: 01:06:21.565 | AD29: h | AE29: plat4
A30: =IF([1]Paramètres!I46="","",[1]Paramètres!I46) -> Blanchissage VT3 | B30: =IF([1]Paramètres!K46="","",[1]Paramètres!K46) -> 0 | C30: =SUM(IF(('[1]Qtité art'!$E$9:$E$900=A30),('[1]Qtité art'!$D$9:$D$900))) -> 0 | E30: =OR(EXACT($A30,('[1]PP v1000'!$A$12:$A$87))) -> FALSE | F30: =OR(EXACT($A30,([1]PP!$A$12:$A$87))) -> FALSE | G30: =OR(EXACT($A30,([1]GP!$A$12:$A$87))) -> FALSE | H30: =OR(EXACT($A30,([1]Mixte!$A$12:$A$87))) -> FALSE | I30: =OR(EXACT($A30,([1]PE!$A$12:$A$87))) -> FALSE | J30: =OR(EXACT($A30,('[1]Pliage main'!$A$12:$A$87))) -> FALSE | K30: =OR(EXACT($A30,([1]Plat7!$A$12:$A$87))) -> FALSE | L30: =OR(EXACT($A30,([1]Plat8!$A$12:$A$87))) -> FALSE | M30: =OR(EXACT($A30,([1]Plat9!$A$12:$A$87))) -> FALSE | N30: =OR(EXACT($A30,([1]Plat10!$A$12:$A$87))) -> FALSE | O30: =OR(EXACT($A30,([1]VT1!$A$11:$A$86))) -> FALSE | P30: =OR(EXACT($A30,([1]VT2!$A$11:$A$86))) -> FALSE | Q30: =OR(EXACT($A30,([1]VT3!$A$11:$A$86))) -> FALSE | R30: =OR(EXACT($A30,([1]Bobines!$A$12:$A$87))) -> FALSE | S30: =OR(EXACT($A30,([1]Tapis!$A$12:$A$87))) -> FALSE | T30: =OR(EXACT($A30,([1]Contaminé!$A$6:$A$81))) -> FALSE | X30: nap 20 | Y30: 5 | Z30: 52 | AA30: 01:06:21.565 | AD30: h | AE30: plat4
A31: =IF([1]Paramètres!I47="","",[1]Paramètres!I47) -> Blanchissage Bobines | B31: =IF([1]Paramètres!K47="","",[1]Paramètres!K47) -> 0 | C31: =SUM(IF(('[1]Qtité art'!$E$9:$E$900=A31),('[1]Qtité art'!$D$9:$D$900))) -> 0 | E31: =OR(EXACT($A31,('[1]PP v1000'!$A$12:$A$87))) -> FALSE | F31: =OR(EXACT($A31,([1]PP!$A$12:$A$87))) -> FALSE | G31: =OR(EXACT($A31,([1]GP!$A$12:$A$87))) -> FALSE | H31: =OR(EXACT($A31,([1]Mixte!$A$12:$A$87))) -> FALSE | I31: =OR(EXACT($A31,([1]PE!$A$12:$A$87))) -> FALSE | J31: =OR(EXACT($A31,('[1]Pliage main'!$A$12:$A$87))) -> FALSE | K31: =OR(EXACT($A31,([1]Plat7!$A$12:$A$87))) -> FALSE | L31: =OR(EXACT($A31,([1]Plat8!$A$12:$A$87))) -> FALSE | M31: =OR(EXACT($A31,([1]Plat9!$A$12:$A$87))) -> FALSE | N31: =OR(EXACT($A31,([1]Plat10!$A$12:$A$87))) -> FALSE | O31: =OR(EXACT($A31,([1]VT1!$A$11:$A$86))) -> FALSE | P31: =OR(EXACT($A31,([1]VT2!$A$11:$A$86))) -> FALSE | Q31: =OR(EXACT($A31,([1]VT3!$A$11:$A$86))) -> FALSE | R31: =OR(EXACT($A31,([1]Bobines!$A$12:$A$87))) -> FALSE | S31: =OR(EXACT($A31,([1]Tapis!$A$12:$A$87))) -> FALSE | T31: =OR(EXACT($A31,([1]Contaminé!$A$6:$A$81))) -> FALSE | X31: nap 24 | Y31: 5 | Z31: 52 | AA31: 01:06:21.565 | AD31: h | AE31: plat4
A32: =IF([1]Paramètres!I48="","",[1]Paramètres!I48) -> Blanchissage Tapis | B32: =IF([1]Paramètres!K48="","",[1]Paramètres!K48) -> 0 | C32: =SUM(IF(('[1]Qtité art'!$E$9:$E$900=A32),('[1]Qtité art'!$D$9:$D$900))) -> 0 | E32: =OR(EXACT($A32,('[1]PP v1000'!$A$12:$A$87))) -> FALSE | F32: =OR(EXACT($A32,([1]PP!$A$12:$A$87))) -> FALSE | G32: =OR(EXACT($A32,([1]GP!$A$12:$A$87))) -> FALSE | H32: =OR(EXACT($A32,([1]Mixte!$A$12:$A$87))) -> FALSE | I32: =OR(EXACT($A32,([1]PE!$A$12:$A$87))) -> FALSE | J32: =OR(EXACT($A32,('[1]Pliage main'!$A$12:$A$87))) -> FALSE | K32: =OR(EXACT($A32,([1]Plat7!$A$12:$A$87))) -> FALSE | L32: =OR(EXACT($A32,([1]Plat8!$A$12:$A$87))) -> FALSE | M32: =OR(EXACT($A32,([1]Plat9!$A$12:$A$87))) -> FALSE | N32: =OR(EXACT($A32,([1]Plat10!$A$12:$A$87))) -> FALSE | O32: =OR(EXACT($A32,([1]VT1!$A$11:$A$86))) -> FALSE | P32: =OR(EXACT($A32,([1]VT2!$A$11:$A$86))) -> FALSE | Q32: =OR(EXACT($A32,([1]VT3!$A$11:$A$86))) -> FALSE | R32: =OR(EXACT($A32,([1]Bobines!$A$12:$A$87))) -> FALSE | S32: =OR(EXACT($A32,([1]Tapis!$A$12:$A$87))) -> FALSE | T32: =OR(EXACT($A32,([1]Contaminé!$A$6:$A$81))) -> FALSE | X32: npr | Y32: 5 | Z32: 52 | AA32: 01:06:21.565 | AD32: h | AE32: plat4
A33: =IF([1]Paramètres!I49="","",[1]Paramètres!I49) -> alése abs | B33: =IF([1]Paramètres!K49="","",[1]Paramètres!K49) -> HSECPA_Eponge | C33: =SUM(IF(('[1]Qtité art'!$E$9:$E$900=A33),('[1]Qtité art'!$D$9:$D$900))) -> 2696 | E33: =OR(EXACT($A33,('[1]PP v1000'!$A$12:$A$87))) -> FALSE | F33: =OR(EXACT($A33,([1]PP!$A$12:$A$87))) -> FALSE | G33: =OR(EXACT($A33,([1]GP!$A$12:$A$87))) -> FALSE | H33: =OR(EXACT($A33,([1]Mixte!$A$12:$A$87))) -> FALSE | I33: =OR(EXACT($A33,([1]PE!$A$12:$A$87))) -> TRUE | J33: =OR(EXACT($A33,('[1]Pliage main'!$A$12:$A$87))) -> TRUE | K33: =OR(EXACT($A33,([1]Plat7!$A$12:$A$87))) -> FALSE | L33: =OR(EXACT($A33,([1]Plat8!$A$12:$A$87))) -> FALSE | M33: =OR(EXACT($A33,([1]Plat9!$A$12:$A$87))) -> FALSE | N33: =OR(EXACT($A33,([1]Plat10!$A$12:$A$87))) -> FALSE | O33: =OR(EXACT($A33,([1]VT1!$A$11:$A$86))) -> FALSE | P33: =OR(EXACT($A33,([1]VT2!$A$11:$A$86))) -> FALSE | Q33: =OR(EXACT($A33,([1]VT3!$A$11:$A$86))) -> FALSE | R33: =OR(EXACT($A33,([1]Bobines!$A$12:$A$87))) -> FALSE | S33: =OR(EXACT($A33,([1]Tapis!$A$12:$A$87))) -> FALSE | T33: =OR(EXACT($A33,([1]Contaminé!$A$6:$A$81))) -> FALSE | X33: npr 10 | Y33: 5 | Z33: 52 | AA33: 01:06:21.565 | AD33: h | AE33: plat4
A34: =IF([1]Paramètres!I50="","",[1]Paramètres!I50) -> bavoir | B34: =IF([1]Paramètres!K50="","",[1]Paramètres!K50) -> HSECPM_Santé | C34: =SUM(IF(('[1]Qtité art'!$E$9:$E$900=A34),('[1]Qtité art'!$D$9:$D$900))) -> 2823.333333 | E34: =OR(EXACT($A34,('[1]PP v1000'!$A$12:$A$87))) -> FALSE | F34: =OR(EXACT($A34,([1]PP!$A$12:$A$87))) -> FALSE | G34: =OR(EXACT($A34,([1]GP!$A$12:$A$87))) -> FALSE | H34: =OR(EXACT($A34,([1]Mixte!$A$12:$A$87))) -> FALSE | I34: =OR(EXACT($A34,([1]PE!$A$12:$A$87))) -> TRUE | J34: =OR(EXACT($A34,('[1]Pliage main'!$A$12:$A$87))) -> FALSE | K34: =OR(EXACT($A34,([1]Plat7!$A$12:$A$87))) -> FALSE | L34: =OR(EXACT($A34,([1]Plat8!$A$12:$A$87))) -> FALSE | M34: =OR(EXACT($A34,([1]Plat9!$A$12:$A$87))) -> FALSE | N34: =OR(EXACT($A34,([1]Plat10!$A$12:$A$87))) -> FALSE | O34: =OR(EXACT($A34,([1]VT1!$A$11:$A$86))) -> FALSE | P34: =OR(EXACT($A34,([1]VT2!$A$11:$A$86))) -> FALSE | Q34: =OR(EXACT($A34,([1]VT3!$A$11:$A$86))) -> FALSE | R34: =OR(EXACT($A34,([1]Bobines!$A$12:$A$87))) -> FALSE | S34: =OR(EXACT($A34,([1]Tapis!$A$12:$A$87))) -> FALSE | T34: =OR(EXACT($A34,([1]Contaminé!$A$6:$A$81))) -> FALSE | X34: peignoir/cas | Y34: 4 | Z34: 45 | AA34: 01:12:03.140 | AB34: 2 | AC34: 24 | AD34: 00:22:38.495 | AE34: plat6
A35: =IF([1]Paramètres!I51="","",[1]Paramètres!I51) -> carré/gant | B35: =IF([1]Paramètres!K51="","",[1]Paramètres!K51) -> HSECPM_Gant | C35: =SUM(IF(('[1]Qtité art'!$E$9:$E$900=A35),('[1]Qtité art'!$D$9:$D$900))) -> 31169.33333 | E35: =OR(EXACT($A35,('[1]PP v1000'!$A$12:$A$87))) -> FALSE | F35: =OR(EXACT($A35,([1]PP!$A$12:$A$87))) -> FALSE | G35: =OR(EXACT($A35,([1]GP!$A$12:$A$87))) -> FALSE | H35: =OR(EXACT($A35,([1]Mixte!$A$12:$A$87))) -> FALSE | I35: =OR(EXACT($A35,([1]PE!$A$12:$A$87))) -> FALSE | J35: =OR(EXACT($A35,('[1]Pliage main'!$A$12:$A$87))) -> TRUE | K35: =OR(EXACT($A35,([1]Plat7!$A$12:$A$87))) -> FALSE | L35: =OR(EXACT($A35,([1]Plat8!$A$12:$A$87))) -> FALSE | M35: =OR(EXACT($A35,([1]Plat9!$A$12:$A$87))) -> FALSE | N35: =OR(EXACT($A35,([1]Plat10!$A$12:$A$87))) -> FALSE | O35: =OR(EXACT($A35,([1]VT1!$A$11:$A$86))) -> FALSE | P35: =OR(EXACT($A35,([1]VT2!$A$11:$A$86))) -> FALSE | Q35: =OR(EXACT($A35,([1]VT3!$A$11:$A$86))) -> FALSE | R35: =OR(EXACT($A35,([1]Bobines!$A$12:$A$87))) -> FALSE | S35: =OR(EXACT($A35,([1]Tapis!$A$12:$A$87))) -> FALSE | T35: =OR(EXACT($A35,([1]Contaminé!$A$6:$A$81))) -> FALSE | X35: pte al | Y35: 2 | AA35: 00:04:36.817 | AD35: h | AE35: plat4
A36: =IF([1]Paramètres!I52="","",[1]Paramètres!I52) -> ch tab | B36: =IF([1]Paramètres!K52="","",[1]Paramètres!K52) -> RCALPP_sup_8 | C36: =SUM(IF(('[1]Qtité art'!$E$9:$E$900=A36),('[1]Qtité art'!$D$9:$D$900))) -> 763.6666667 | E36: =OR(EXACT($A36,('[1]PP v1000'!$A$12:$A$87))) -> FALSE | F36: =OR(EXACT($A36,([1]PP!$A$12:$A$87))) -> FALSE | G36: =OR(EXACT($A36,([1]GP!$A$12:$A$87))) -> FALSE | H36: =OR(EXACT($A36,([1]Mixte!$A$12:$A$87))) -> TRUE | I36: =OR(EXACT($A36,([1]PE!$A$12:$A$87))) -> FALSE | J36: =OR(EXACT($A36,('[1]Pliage main'!$A$12:$A$87))) -> FALSE | K36: =OR(EXACT($A36,([1]Plat7!$A$12:$A$87))) -> FALSE | L36: =OR(EXACT($A36,([1]Plat8!$A$12:$A$87))) -> FALSE | M36: =OR(EXACT($A36,([1]Plat9!$A$12:$A$87))) -> FALSE | N36: =OR(EXACT($A36,([1]Plat10!$A$12:$A$87))) -> FALSE | O36: =OR(EXACT($A36,([1]VT1!$A$11:$A$86))) -> FALSE | P36: =OR(EXACT($A36,([1]VT2!$A$11:$A$86))) -> FALSE | Q36: =OR(EXACT($A36,([1]VT3!$A$11:$A$86))) -> FALSE | R36: =OR(EXACT($A36,([1]Bobines!$A$12:$A$87))) -> FALSE | S36: =OR(EXACT($A36,([1]Tapis!$A$12:$A$87))) -> FALSE | T36: =OR(EXACT($A36,([1]Contaminé!$A$6:$A$81))) -> FALSE | X36: sac | Y36: 5 | Z36: 56 | AA36: 01:06:21.565 | AD36: h | AE36: plat6
A37: =IF([1]Paramètres!I53="","",[1]Paramètres!I53) -> chmal | B37: =IF([1]Paramètres!K53="","",[1]Paramètres!K53) -> HSECPM_Chem_mal | C37: =SUM(IF(('[1]Qtité art'!$E$9:$E$900=A37),('[1]Qtité art'!$D$9:$D$900))) -> 5453 | E37: =OR(EXACT($A37,('[1]PP v1000'!$A$12:$A$87))) -> FALSE | F37: =OR(EXACT($A37,([1]PP!$A$12:$A$87))) -> FALSE | G37: =OR(EXACT($A37,([1]GP!$A$12:$A$87))) -> FALSE | H37: =OR(EXACT($A37,([1]Mixte!$A$12:$A$87))) -> FALSE | I37: =OR(EXACT($A37,([1]PE!$A$12:$A$87))) -> TRUE | J37: =OR(EXACT($A37,('[1]Pliage main'!$A$12:$A$87))) -> TRUE | K37: =OR(EXACT($A37,([1]Plat7!$A$12:$A$87))) -> FALSE | L37: =OR(EXACT($A37,([1]Plat8!$A$12:$A$87))) -> FALSE | M37: =OR(EXACT($A37,([1]Plat9!$A$12:$A$87))) -> FALSE | N37: =OR(EXACT($A37,([1]Plat10!$A$12:$A$87))) -> FALSE | O37: =OR(EXACT($A37,([1]VT1!$A$11:$A$86))) -> FALSE | P37: =OR(EXACT($A37,([1]VT2!$A$11:$A$86))) -> FALSE | Q37: =OR(EXACT($A37,([1]VT3!$A$11:$A$86))) -> FALSE | R37: =OR(EXACT($A37,([1]Bobines!$A$12:$A$87))) -> FALSE | S37: =OR(EXACT($A37,([1]Tapis!$A$12:$A$87))) -> FALSE | T37: =OR(EXACT($A37,([1]Contaminé!$A$6:$A$81))) -> FALSE | X37: serv éponge | Y37: 1 | AA37: 00:02:17.681 | AB37: 5 | AC37: 54 | AD37: 00:27:00 | AE37: plat5
A38: =IF([1]Paramètres!I54="","",[1]Paramètres!I54) -> chp grd | B38: =IF([1]Paramètres!K54="","",[1]Paramètres!K54) -> HCALGP_Alèse | C38: =SUM(IF(('[1]Qtité art'!$E$9:$E$900=A38),('[1]Qtité art'!$D$9:$D$900))) -> 68.66666667 | E38: =OR(EXACT($A38,('[1]PP v1000'!$A$12:$A$87))) -> FALSE | F38: =OR(EXACT($A38,([1]PP!$A$12:$A$87))) -> FALSE | G38: =OR(EXACT($A38,([1]GP!$A$12:$A$87))) -> FALSE | H38: =OR(EXACT($A38,([1]Mixte!$A$12:$A$87))) -> TRUE | I38: =OR(EXACT($A38,([1]PE!$A$12:$A$87))) -> FALSE | J38: =OR(EXACT($A38,('[1]Pliage main'!$A$12:$A$87))) -> FALSE | K38: =OR(EXACT($A38,([1]Plat7!$A$12:$A$87))) -> FALSE | L38: =OR(EXACT($A38,([1]Plat8!$A$12:$A$87))) -> FALSE | M38: =OR(EXACT($A38,([1]Plat9!$A$12:$A$87))) -> FALSE | N38: =OR(EXACT($A38,([1]Plat10!$A$12:$A$87))) -> FALSE | O38: =OR(EXACT($A38,([1]VT1!$A$11:$A$86))) -> FALSE | P38: =OR(EXACT($A38,([1]VT2!$A$11:$A$86))) -> FALSE | Q38: =OR(EXACT($A38,([1]VT3!$A$11:$A$86))) -> FALSE | R38: =OR(EXACT($A38,([1]Bobines!$A$12:$A$87))) -> FALSE | S38: =OR(EXACT($A38,([1]Tapis!$A$12:$A$87))) -> FALSE | T38: =OR(EXACT($A38,([1]Contaminé!$A$6:$A$81))) -> FALSE | X38: serv éponge luxe | Y38: 1 | AA38: 00:02:17.681 | AB38: 5 | AC38: 54 | AD38: 00:27:00 | AE38: plat5
A39: =IF([1]Paramètres!I55="","",[1]Paramètres!I55) -> chp petit | B39: =IF([1]Paramètres!K55="","",[1]Paramètres!K55) -> HCALPP_Alèse | C39: =SUM(IF(('[1]Qtité art'!$E$9:$E$900=A39),('[1]Qtité art'!$D$9:$D$900))) -> 246 | E39: =OR(EXACT($A39,('[1]PP v1000'!$A$12:$A$87))) -> FALSE | F39: =OR(EXACT($A39,([1]PP!$A$12:$A$87))) -> FALSE | G39: =OR(EXACT($A39,([1]GP!$A$12:$A$87))) -> FALSE | H39: =OR(EXACT($A39,([1]Mixte!$A$12:$A$87))) -> TRUE | I39: =OR(EXACT($A39,([1]PE!$A$12:$A$87))) -> FALSE | J39: =OR(EXACT($A39,('[1]Pliage main'!$A$12:$A$87))) -> FALSE | K39: =OR(EXACT($A39,([1]Plat7!$A$12:$A$87))) -> FALSE | L39: =OR(EXACT($A39,([1]Plat8!$A$12:$A$87))) -> FALSE | M39: =OR(EXACT($A39,([1]Plat9!$A$12:$A$87))) -> FALSE | N39: =OR(EXACT($A39,([1]Plat10!$A$12:$A$87))) -> FALSE | O39: =OR(EXACT($A39,([1]VT1!$A$11:$A$86))) -> FALSE | P39: =OR(EXACT($A39,([1]VT2!$A$11:$A$86))) -> FALSE | Q39: =OR(EXACT($A39,([1]VT3!$A$11:$A$86))) -> FALSE | R39: =OR(EXACT($A39,([1]Bobines!$A$12:$A$87))) -> FALSE | S39: =OR(EXACT($A39,([1]Tapis!$A$12:$A$87))) -> FALSE | T39: =OR(EXACT($A39,([1]Contaminé!$A$6:$A$81))) -> FALSE | X39: serv œil | Y39: 1 | AA39: 00:02:17.681 | AD39: h | AE39: plat2
A40: =IF([1]Paramètres!I56="","",[1]Paramètres!I56) -> couette/couv | B40: =IF([1]Paramètres!K56="","",[1]Paramètres!K56) -> HSECPM_Couv | C40: =SUM(IF(('[1]Qtité art'!$E$9:$E$900=A40),('[1]Qtité art'!$D$9:$D$900))) -> 2766 | E40: =OR(EXACT($A40,('[1]PP v1000'!$A$12:$A$87))) -> FALSE | F40: =OR(EXACT($A40,([1]PP!$A$12:$A$87))) -> FALSE | G40: =OR(EXACT($A40,([1]GP!$A$12:$A$87))) -> FALSE | H40: =OR(EXACT($A40,([1]Mixte!$A$12:$A$87))) -> FALSE | I40: =OR(EXACT($A40,([1]PE!$A$12:$A$87))) -> FALSE | J40: =OR(EXACT($A40,('[1]Pliage main'!$A$12:$A$87))) -> TRUE | K40: =OR(EXACT($A40,([1]Plat7!$A$12:$A$87))) -> FALSE | L40: =OR(EXACT($A40,([1]Plat8!$A$12:$A$87))) -> FALSE | M40: =OR(EXACT($A40,([1]Plat9!$A$12:$A$87))) -> FALSE | N40: =OR(EXACT($A40,([1]Plat10!$A$12:$A$87))) -> FALSE | O40: =OR(EXACT($A40,([1]VT1!$A$11:$A$86))) -> FALSE | P40: =OR(EXACT($A40,([1]VT2!$A$11:$A$86))) -> FALSE | Q40: =OR(EXACT($A40,([1]VT3!$A$11:$A$86))) -> FALSE | R40: =OR(EXACT($A40,([1]Bobines!$A$12:$A$87))) -> FALSE | S40: =OR(EXACT($A40,([1]Tapis!$A$12:$A$87))) -> FALSE | T40: =OR(EXACT($A40,([1]Contaminé!$A$6:$A$81))) -> FALSE | X40: serv tab gde | Y40: 5 | Z40: 52 | AA40: 01:06:21.565 | AD40: h | AE40: plat2
A41: =IF([1]Paramètres!I57="","",[1]Paramètres!I57) -> Taie Sheraton | B41: =IF([1]Paramètres!K57="","",[1]Paramètres!K57) -> HCALPP_Taie | C41: =SUM(IF(('[1]Qtité art'!$E$9:$E$900=A41),('[1]Qtité art'!$D$9:$D$900))) -> 0 | E41: =OR(EXACT($A41,('[1]PP v1000'!$A$12:$A$87))) -> FALSE | F41: =OR(EXACT($A41,([1]PP!$A$12:$A$87))) -> FALSE | G41: =OR(EXACT($A41,([1]GP!$A$12:$A$87))) -> FALSE | H41: =OR(EXACT($A41,([1]Mixte!$A$12:$A$87))) -> FALSE | I41: =OR(EXACT($A41,([1]PE!$A$12:$A$87))) -> FALSE | J41: =OR(EXACT($A41,('[1]Pliage main'!$A$12:$A$87))) -> FALSE | K41: =OR(EXACT($A41,([1]Plat7!$A$12:$A$87))) -> FALSE | L41: =OR(EXACT($A41,([1]Plat8!$A$12:$A$87))) -> FALSE | M41: =OR(EXACT($A41,([1]Plat9!$A$12:$A$87))) -> FALSE | N41: =OR(EXACT($A41,([1]Plat10!$A$12:$A$87))) -> FALSE | O41: =OR(EXACT($A41,([1]VT1!$A$11:$A$86))) -> FALSE | P41: =OR(EXACT($A41,([1]VT2!$A$11:$A$86))) -> FALSE | Q41: =OR(EXACT($A41,([1]VT3!$A$11:$A$86))) -> FALSE | R41: =OR(EXACT($A41,([1]Bobines!$A$12:$A$87))) -> FALSE | S41: =OR(EXACT($A41,([1]Tapis!$A$12:$A$87))) -> FALSE | T41: =OR(EXACT($A41,([1]Contaminé!$A$6:$A$81))) -> FALSE | X41: serv tab pte | Y41: 5 | Z41: 52 | AA41: 01:06:21.565 | AD41: h | AE41: plat2
A42: =IF([1]Paramètres!I58="","",[1]Paramètres!I58) -> des lit | B42: =IF([1]Paramètres!K58="","",[1]Paramètres!K58) -> HCALGP_HC | C42: =SUM(IF(('[1]Qtité art'!$E$9:$E$900=A42),('[1]Qtité art'!$D$9:$D$900))) -> 600.6666667 | E42: =OR(EXACT($A42,('[1]PP v1000'!$A$12:$A$87))) -> FALSE | F42: =OR(EXACT($A42,([1]PP!$A$12:$A$87))) -> FALSE | G42: =OR(EXACT($A42,([1]GP!$A$12:$A$87))) -> FALSE | H42: =OR(EXACT($A42,([1]Mixte!$A$12:$A$87))) -> TRUE | I42: =OR(EXACT($A42,([1]PE!$A$12:$A$87))) -> FALSE | J42: =OR(EXACT($A42,('[1]Pliage main'!$A$12:$A$87))) -> FALSE | K42: =OR(EXACT($A42,([1]Plat7!$A$12:$A$87))) -> FALSE | L42: =OR(EXACT($A42,([1]Plat8!$A$12:$A$87))) -> FALSE | M42: =OR(EXACT($A42,([1]Plat9!$A$12:$A$87))) -> FALSE | N42: =OR(EXACT($A42,([1]Plat10!$A$12:$A$87))) -> FALSE | O42: =OR(EXACT($A42,([1]VT1!$A$11:$A$86))) -> FALSE | P42: =OR(EXACT($A42,([1]VT2!$A$11:$A$86))) -> FALSE | Q42: =OR(EXACT($A42,([1]VT3!$A$11:$A$86))) -> FALSE | R42: =OR(EXACT($A42,([1]Bobines!$A$12:$A$87))) -> FALSE | S42: =OR(EXACT($A42,([1]Tapis!$A$12:$A$87))) -> FALSE | T42: =OR(EXACT($A42,([1]Contaminé!$A$6:$A$81))) -> FALSE | X42: tablier bleu | Y42: 1 | AA42: 00:02:17.681 | AB42: 2 | AC42: 21 | AD42: 00:22:38.495 | AE42: plat2
A43: =IF([1]Paramètres!I59="","",[1]Paramètres!I59) -> Taie Fouquet's | B43: =IF([1]Paramètres!K59="","",[1]Paramètres!K59) -> HCALPP_Taie | C43: =SUM(IF(('[1]Qtité art'!$E$9:$E$900=A43),('[1]Qtité art'!$D$9:$D$900))) -> 0 | E43: =OR(EXACT($A43,('[1]PP v1000'!$A$12:$A$87))) -> FALSE | F43: =OR(EXACT($A43,([1]PP!$A$12:$A$87))) -> FALSE | G43: =OR(EXACT($A43,([1]GP!$A$12:$A$87))) -> FALSE | H43: =OR(EXACT($A43,([1]Mixte!$A$12:$A$87))) -> FALSE | I43: =OR(EXACT($A43,([1]PE!$A$12:$A$87))) -> FALSE | J43: =OR(EXACT($A43,('[1]Pliage main'!$A$12:$A$87))) -> FALSE | K43: =OR(EXACT($A43,([1]Plat7!$A$12:$A$87))) -> FALSE | L43: =OR(EXACT($A43,([1]Plat8!$A$12:$A$87))) -> FALSE | M43: =OR(EXACT($A43,([1]Plat9!$A$12:$A$87))) -> FALSE | N43: =OR(EXACT($A43,([1]Plat10!$A$12:$A$87))) -> FALSE | O43: =OR(EXACT($A43,([1]VT1!$A$11:$A$86))) -> FALSE | P43: =OR(EXACT($A43,([1]VT2!$A$11:$A$86))) -> FALSE | Q43: =OR(EXACT($A43,([1]VT3!$A$11:$A$86))) -> FALSE | R43: =OR(EXACT($A43,([1]Bobines!$A$12:$A$87))) -> FALSE | S43: =OR(EXACT($A43,([1]Tapis!$A$12:$A$87))) -> FALSE | T43: =OR(EXACT($A43,([1]Contaminé!$A$6:$A$81))) -> FALSE | X43: tablier blanc | Y43: 1 | AA43: 00:02:17.681 | AB43: 2 | AC43: 21 | AD43: 00:22:38.495 | AE43: plat2
A44: =IF([1]Paramètres!I60="","",[1]Paramètres!I60) -> drap petit | B44: =IF([1]Paramètres!K60="","",[1]Paramètres!K60) -> HCALGP_Drap | C44: =SUM(IF(('[1]Qtité art'!$E$9:$E$900=A44),('[1]Qtité art'!$D$9:$D$900))) -> 66460.66667 | E44: =OR(EXACT($A44,('[1]PP v1000'!$A$12:$A$87))) -> FALSE | F44: =OR(EXACT($A44,([1]PP!$A$12:$A$87))) -> FALSE | G44: =OR(EXACT($A44,([1]GP!$A$12:$A$87))) -> TRUE | H44: =OR(EXACT($A44,([1]Mixte!$A$12:$A$87))) -> TRUE | I44: =OR(EXACT($A44,([1]PE!$A$12:$A$87))) -> FALSE | J44: =OR(EXACT($A44,('[1]Pliage main'!$A$12:$A$87))) -> FALSE | K44: =OR(EXACT($A44,([1]Plat7!$A$12:$A$87))) -> FALSE | L44: =OR(EXACT($A44,([1]Plat8!$A$12:$A$87))) -> FALSE | M44: =OR(EXACT($A44,([1]Plat9!$A$12:$A$87))) -> FALSE | N44: =OR(EXACT($A44,([1]Plat10!$A$12:$A$87))) -> FALSE | O44: =OR(EXACT($A44,([1]VT1!$A$11:$A$86))) -> FALSE | P44: =OR(EXACT($A44,([1]VT2!$A$11:$A$86))) -> FALSE | Q44: =OR(EXACT($A44,([1]VT3!$A$11:$A$86))) -> FALSE | R44: =OR(EXACT($A44,([1]Bobines!$A$12:$A$87))) -> FALSE | S44: =OR(EXACT($A44,([1]Tapis!$A$12:$A$87))) -> FALSE | T44: =OR(EXACT($A44,([1]Contaminé!$A$6:$A$81))) -> FALSE | X44: taie am | Y44: 1 | AA44: 00:02:17.681 | AB44: 1 | AC44: 12 | AD44: 00:04:47.238 | AE44: plat2
A45: =IF([1]Paramètres!I61="","",[1]Paramètres!I61) -> drap grand | B45: =IF([1]Paramètres!K61="","",[1]Paramètres!K61) -> HCALGP_Drap | C45: =SUM(IF(('[1]Qtité art'!$E$9:$E$900=A45),('[1]Qtité art'!$D$9:$D$900))) -> 13782.66667 | E45: =OR(EXACT($A45,('[1]PP v1000'!$A$12:$A$87))) -> FALSE | F45: =OR(EXACT($A45,([1]PP!$A$12:$A$87))) -> FALSE | G45: =OR(EXACT($A45,([1]GP!$A$12:$A$87))) -> TRUE | H45: =OR(EXACT($A45,([1]Mixte!$A$12:$A$87))) -> TRUE | I45: =OR(EXACT($A45,([1]PE!$A$12:$A$87))) -> FALSE | J45: =OR(EXACT($A45,('[1]Pliage main'!$A$12:$A$87))) -> FALSE | K45: =OR(EXACT($A45,([1]Plat7!$A$12:$A$87))) -> FALSE | L45: =OR(EXACT($A45,([1]Plat8!$A$12:$A$87))) -> FALSE | M45: =OR(EXACT($A45,([1]Plat9!$A$12:$A$87))) -> FALSE | N45: =OR(EXACT($A45,([1]Plat10!$A$12:$A$87))) -> FALSE | O45: =OR(EXACT($A45,([1]VT1!$A$11:$A$86))) -> FALSE | P45: =OR(EXACT($A45,([1]VT2!$A$11:$A$86))) -> FALSE | Q45: =OR(EXACT($A45,([1]VT3!$A$11:$A$86))) -> FALSE | R45: =OR(EXACT($A45,([1]Bobines!$A$12:$A$87))) -> FALSE | S45: =OR(EXACT($A45,([1]Tapis!$A$12:$A$87))) -> FALSE | T45: =OR(EXACT($A45,([1]Contaminé!$A$6:$A$81))) -> FALSE | X45: taie luxe | Y45: 1 | AA45: 00:02:17.681 | AB45: 1 | AC45: 12 | AD45: 00:04:47.238 | AE45: plat2
A46: =IF([1]Paramètres!I62="","",[1]Paramètres!I62) -> drap 1/2 | B46: =IF([1]Paramètres!K62="","",[1]Paramètres!K62) -> HCALGP_Drap | C46: =SUM(IF(('[1]Qtité art'!$E$9:$E$900=A46),('[1]Qtité art'!$D$9:$D$900))) -> 869 | E46: =OR(EXACT($A46,('[1]PP v1000'!$A$12:$A$87))) -> FALSE | F46: =OR(EXACT($A46,([1]PP!$A$12:$A$87))) -> FALSE | G46: =OR(EXACT($A46,([1]GP!$A$12:$A$87))) -> FALSE | H46: =OR(EXACT($A46,([1]Mixte!$A$12:$A$87))) -> TRUE | I46: =OR(EXACT($A46,([1]PE!$A$12:$A$87))) -> FALSE | J46: =OR(EXACT($A46,('[1]Pliage main'!$A$12:$A$87))) -> FALSE | K46: =OR(EXACT($A46,([1]Plat7!$A$12:$A$87))) -> FALSE | L46: =OR(EXACT($A46,([1]Plat8!$A$12:$A$87))) -> FALSE | M46: =OR(EXACT($A46,([1]Plat9!$A$12:$A$87))) -> FALSE | N46: =OR(EXACT($A46,([1]Plat10!$A$12:$A$87))) -> FALSE | O46: =OR(EXACT($A46,([1]VT1!$A$11:$A$86))) -> FALSE | P46: =OR(EXACT($A46,([1]VT2!$A$11:$A$86))) -> FALSE | Q46: =OR(EXACT($A46,([1]VT3!$A$11:$A$86))) -> FALSE | R46: =OR(EXACT($A46,([1]Bobines!$A$12:$A$87))) -> FALSE | S46: =OR(EXACT($A46,([1]Tapis!$A$12:$A$87))) -> FALSE | T46: =OR(EXACT($A46,([1]Contaminé!$A$6:$A$81))) -> FALSE | X46: tapis bain | Y46: 1 | AA46: 00:02:17.681 | AB46: 5 | AC46: 54 | AD46: 00:27:00 | AE46: plat5
A47: =IF([1]Paramètres!I63="","",[1]Paramètres!I63) -> drap bain | B47: =IF([1]Paramètres!K63="","",[1]Paramètres!K63) -> HSECPA_DB | C47: =SUM(IF(('[1]Qtité art'!$E$9:$E$900=A47),('[1]Qtité art'!$D$9:$D$900))) -> 22393.33333 | E47: =OR(EXACT($A47,('[1]PP v1000'!$A$12:$A$87))) -> FALSE | F47: =OR(EXACT($A47,([1]PP!$A$12:$A$87))) -> FALSE | G47: =OR(EXACT($A47,([1]GP!$A$12:$A$87))) -> FALSE | H47: =OR(EXACT($A47,([1]Mixte!$A$12:$A$87))) -> FALSE | I47: =OR(EXACT($A47,([1]PE!$A$12:$A$87))) -> TRUE | J47: =OR(EXACT($A47,('[1]Pliage main'!$A$12:$A$87))) -> FALSE | K47: =OR(EXACT($A47,([1]Plat7!$A$12:$A$87))) -> FALSE | L47: =OR(EXACT($A47,([1]Plat8!$A$12:$A$87))) -> FALSE | M47: =OR(EXACT($A47,([1]Plat9!$A$12:$A$87))) -> FALSE | N47: =OR(EXACT($A47,([1]Plat10!$A$12:$A$87))) -> FALSE | O47: =OR(EXACT($A47,([1]VT1!$A$11:$A$86))) -> FALSE | P47: =OR(EXACT($A47,([1]VT2!$A$11:$A$86))) -> FALSE | Q47: =OR(EXACT($A47,([1]VT3!$A$11:$A$86))) -> FALSE | R47: =OR(EXACT($A47,([1]Bobines!$A$12:$A$87))) -> FALSE | S47: =OR(EXACT($A47,([1]Tapis!$A$12:$A$87))) -> FALSE | T47: =OR(EXACT($A47,([1]Contaminé!$A$6:$A$81))) -> FALSE | X47: torchon | Y47: 1 | AA47: 00:02:17.681 | AB47: 1 | AC47: 11 | AD47: 00:04:47.238 | AE47: plat2
A48: =IF([1]Paramètres!I64="","",[1]Paramètres!I64) -> drap bain luxe | B48: =IF([1]Paramètres!K64="","",[1]Paramètres!K64) -> HSECPA_DB | C48: =SUM(IF(('[1]Qtité art'!$E$9:$E$900=A48),('[1]Qtité art'!$D$9:$D$900))) -> 1333.666667 | E48: =OR(EXACT($A48,('[1]PP v1000'!$A$12:$A$87))) -> FALSE | F48: =OR(EXACT($A48,([1]PP!$A$12:$A$87))) -> FALSE | G48: =OR(EXACT($A48,([1]GP!$A$12:$A$87))) -> FALSE | H48: =OR(EXACT($A48,([1]Mixte!$A$12:$A$87))) -> FALSE | I48: =OR(EXACT($A48,([1]PE!$A$12:$A$87))) -> TRUE | J48: =OR(EXACT($A48,('[1]Pliage main'!$A$12:$A$87))) -> FALSE | K48: =OR(EXACT($A48,([1]Plat7!$A$12:$A$87))) -> FALSE | L48: =OR(EXACT($A48,([1]Plat8!$A$12:$A$87))) -> FALSE | M48: =OR(EXACT($A48,([1]Plat9!$A$12:$A$87))) -> FALSE | N48: =OR(EXACT($A48,([1]Plat10!$A$12:$A$87))) -> FALSE | O48: =OR(EXACT($A48,([1]VT1!$A$11:$A$86))) -> FALSE | P48: =OR(EXACT($A48,([1]VT2!$A$11:$A$86))) -> FALSE | Q48: =OR(EXACT($A48,([1]VT3!$A$11:$A$86))) -> FALSE | R48: =OR(EXACT($A48,([1]Bobines!$A$12:$A$87))) -> FALSE | S48: =OR(EXACT($A48,([1]Tapis!$A$12:$A$87))) -> FALSE | T48: =OR(EXACT($A48,([1]Contaminé!$A$6:$A$81))) -> FALSE | X48: serv tab gde prestige | Y48: 5 | Z48: 52 | AA48: 01:06:21.565 | AD48: h | AE48: plat2
A49: =IF([1]Paramètres!I65="","",[1]Paramètres!I65) -> drap double | B49: =IF([1]Paramètres!K65="","",[1]Paramètres!K65) -> HCALGP_HC | C49: =SUM(IF(('[1]Qtité art'!$E$9:$E$900=A49),('[1]Qtité art'!$D$9:$D$900))) -> 0 | E49: =OR(EXACT($A49,('[1]PP v1000'!$A$12:$A$87))) -> FALSE | F49: =OR(EXACT($A49,([1]PP!$A$12:$A$87))) -> FALSE | G49: =OR(EXACT($A49,([1]GP!$A$12:$A$87))) -> FALSE | H49: =OR(EXACT($A49,([1]Mixte!$A$12:$A$87))) -> FALSE | I49: =OR(EXACT($A49,([1]PE!$A$12:$A$87))) -> FALSE | J49: =OR(EXACT($A49,('[1]Pliage main'!$A$12:$A$87))) -> FALSE | K49: =OR(EXACT($A49,([1]Plat7!$A$12:$A$87))) -> FALSE | L49: =OR(EXACT($A49,([1]Plat8!$A$12:$A$87))) -> FALSE | M49: =OR(EXACT($A49,([1]Plat9!$A$12:$A$87))) -> FALSE | N49: =OR(EXACT($A49,([1]Plat10!$A$12:$A$87))) -> FALSE | O49: =OR(EXACT($A49,([1]VT1!$A$11:$A$86))) -> FALSE | P49: =OR(EXACT($A49,([1]VT2!$A$11:$A$86))) -> FALSE | Q49: =OR(EXACT($A49,([1]VT3!$A$11:$A$86))) -> FALSE | R49: =OR(EXACT($A49,([1]Bobines!$A$12:$A$87))) -> FALSE | S49: =OR(EXACT($A49,([1]Tapis!$A$12:$A$87))) -> FALSE | T49: =OR(EXACT($A49,([1]Contaminé!$A$6:$A$81))) -> FALSE | X49: Taie Carrée | Y49: 1 | AA49: 00:02:17.681 | AB49: 1 | AC49: 12 | AD49: 00:04:47.238 | AE49: plat2
A50: =IF([1]Paramètres!I66="","",[1]Paramètres!I66) -> drap housse | B50: =IF([1]Paramètres!K66="","",[1]Paramètres!K66) -> HSECPM_Santé | C50: =SUM(IF(('[1]Qtité art'!$E$9:$E$900=A50),('[1]Qtité art'!$D$9:$D$900))) -> 15407 | E50: =OR(EXACT($A50,('[1]PP v1000'!$A$12:$A$87))) -> FALSE | F50: =OR(EXACT($A50,([1]PP!$A$12:$A$87))) -> FALSE | G50: =OR(EXACT($A50,([1]GP!$A$12:$A$87))) -> FALSE | H50: =OR(EXACT($A50,([1]Mixte!$A$12:$A$87))) -> FALSE | I50: =OR(EXACT($A50,([1]PE!$A$12:$A$87))) -> FALSE | J50: =OR(EXACT($A50,('[1]Pliage main'!$A$12:$A$87))) -> TRUE | K50: =OR(EXACT($A50,([1]Plat7!$A$12:$A$87))) -> FALSE | L50: =OR(EXACT($A50,([1]Plat8!$A$12:$A$87))) -> FALSE | M50: =OR(EXACT($A50,([1]Plat9!$A$12:$A$87))) -> FALSE | N50: =OR(EXACT($A50,([1]Plat10!$A$12:$A$87))) -> FALSE | O50: =OR(EXACT($A50,([1]VT1!$A$11:$A$86))) -> FALSE | P50: =OR(EXACT($A50,([1]VT2!$A$11:$A$86))) -> FALSE | Q50: =OR(EXACT($A50,([1]VT3!$A$11:$A$86))) -> FALSE | R50: =OR(EXACT($A50,([1]Bobines!$A$12:$A$87))) -> FALSE | S50: =OR(EXACT($A50,([1]Tapis!$A$12:$A$87))) -> FALSE | T50: =OR(EXACT($A50,([1]Contaminé!$A$6:$A$81))) -> FALSE | X50: petite housse | Y50: 1 | AA50: 00:02:17.681 | AD50: h | AE50: plat3 plat4
A51: =IF([1]Paramètres!I67="","",[1]Paramètres!I67) -> drap luxe | B51: =IF([1]Paramètres!K67="","",[1]Paramètres!K67) -> HCALGP_Drap | C51: =SUM(IF(('[1]Qtité art'!$E$9:$E$900=A51),('[1]Qtité art'!$D$9:$D$900))) -> 16.33333333 | E51: =OR(EXACT($A51,('[1]PP v1000'!$A$12:$A$87))) -> FALSE | F51: =OR(EXACT($A51,([1]PP!$A$12:$A$87))) -> FALSE | G51: =OR(EXACT($A51,([1]GP!$A$12:$A$87))) -> TRUE | H51: =OR(EXACT($A51,([1]Mixte!$A$12:$A$87))) -> FALSE | I51: =OR(EXACT($A51,([1]PE!$A$12:$A$87))) -> FALSE | J51: =OR(EXACT($A51,('[1]Pliage main'!$A$12:$A$87))) -> FALSE | K51: =OR(EXACT($A51,([1]Plat7!$A$12:$A$87))) -> FALSE | L51: =OR(EXACT($A51,([1]Plat8!$A$12:$A$87))) -> FALSE | M51: =OR(EXACT($A51,([1]Plat9!$A$12:$A$87))) -> FALSE | N51: =OR(EXACT($A51,([1]Plat10!$A$12:$A$87))) -> FALSE | O51: =OR(EXACT($A51,([1]VT1!$A$11:$A$86))) -> FALSE | P51: =OR(EXACT($A51,([1]VT2!$A$11:$A$86))) -> FALSE | Q51: =OR(EXACT($A51,([1]VT3!$A$11:$A$86))) -> FALSE | R51: =OR(EXACT($A51,([1]Bobines!$A$12:$A$87))) -> FALSE | S51: =OR(EXACT($A51,([1]Tapis!$A$12:$A$87))) -> FALSE | T51: =OR(EXACT($A51,([1]Contaminé!$A$6:$A$81))) -> FALSE | X51: serv épges coiffeur | Y51: 4 | Z51: 44 | AA51: 01:12:03.140 | AB51: 3 | AC51: 31 | AD51: 00:18:49.947 | AE51: plat5
A52: =IF([1]Paramètres!I68="","",[1]Paramètres!I68) -> grde al | B52: =IF([1]Paramètres!K68="","",[1]Paramètres!K68) -> HCALGP_Alèse | C52: =SUM(IF(('[1]Qtité art'!$E$9:$E$900=A52),('[1]Qtité art'!$D$9:$D$900))) -> 489.6666667 | E52: =OR(EXACT($A52,('[1]PP v1000'!$A$12:$A$87))) -> FALSE | F52: =OR(EXACT($A52,([1]PP!$A$12:$A$87))) -> FALSE | G52: =OR(EXACT($A52,([1]GP!$A$12:$A$87))) -> FALSE | H52: =OR(EXACT($A52,([1]Mixte!$A$12:$A$87))) -> TRUE | I52: =OR(EXACT($A52,([1]PE!$A$12:$A$87))) -> FALSE | J52: =OR(EXACT($A52,('[1]Pliage main'!$A$12:$A$87))) -> FALSE | K52: =OR(EXACT($A52,([1]Plat7!$A$12:$A$87))) -> FALSE | L52: =OR(EXACT($A52,([1]Plat8!$A$12:$A$87))) -> FALSE | M52: =OR(EXACT($A52,([1]Plat9!$A$12:$A$87))) -> FALSE | N52: =OR(EXACT($A52,([1]Plat10!$A$12:$A$87))) -> FALSE | O52: =OR(EXACT($A52,([1]VT1!$A$11:$A$86))) -> FALSE | P52: =OR(EXACT($A52,([1]VT2!$A$11:$A$86))) -> FALSE | Q52: =OR(EXACT($A52,([1]VT3!$A$11:$A$86))) -> FALSE | R52: =OR(EXACT($A52,([1]Bobines!$A$12:$A$87))) -> FALSE | S52: =OR(EXACT($A52,([1]Tapis!$A$12:$A$87))) -> FALSE | T52: =OR(EXACT($A52,([1]Contaminé!$A$6:$A$81))) -> FALSE | X52: tablier bret | Y52: 1 | AA52: 00:02:17.681 | AB52: 2 | AC52: 22 | AD52: 00:22:38.495 | AE52: plat2
A53: =IF([1]Paramètres!I69="","",[1]Paramètres!I69) -> hous trav | B53: =IF([1]Paramètres!K69="","",[1]Paramètres!K69) -> HCALPP_Taie | C53: =SUM(IF(('[1]Qtité art'!$E$9:$E$900=A53),('[1]Qtité art'!$D$9:$D$900))) -> 6511 | E53: =OR(EXACT($A53,('[1]PP v1000'!$A$12:$A$87))) -> FALSE | F53: =OR(EXACT($A53,([1]PP!$A$12:$A$87))) -> FALSE | G53: =OR(EXACT($A53,([1]GP!$A$12:$A$87))) -> FALSE | H53: =OR(EXACT($A53,([1]Mixte!$A$12:$A$87))) -> TRUE | I53: =OR(EXACT($A53,([1]PE!$A$12:$A$87))) -> FALSE | J53: =OR(EXACT($A53,('[1]Pliage main'!$A$12:$A$87))) -> FALSE | K53: =OR(EXACT($A53,([1]Plat7!$A$12:$A$87))) -> FALSE | L53: =OR(EXACT($A53,([1]Plat8!$A$12:$A$87))) -> FALSE | M53: =OR(EXACT($A53,([1]Plat9!$A$12:$A$87))) -> FALSE | N53: =OR(EXACT($A53,([1]Plat10!$A$12:$A$87))) -> FALSE | O53: =OR(EXACT($A53,([1]VT1!$A$11:$A$86))) -> FALSE | P53: =OR(EXACT($A53,([1]VT2!$A$11:$A$86))) -> FALSE | Q53: =OR(EXACT($A53,([1]VT3!$A$11:$A$86))) -> FALSE | R53: =OR(EXACT($A53,([1]Bobines!$A$12:$A$87))) -> FALSE | S53: =OR(EXACT($A53,([1]Tapis!$A$12:$A$87))) -> FALSE | T53: =OR(EXACT($A53,([1]Contaminé!$A$6:$A$81))) -> FALSE | X53: couche | Y53: 4 | Z53: 43 | AA53: 01:12:03.140 | AD53: h | AE53: plat2
A54: =IF([1]Paramètres!I70="","",[1]Paramètres!I70) -> housse couette | B54: =IF([1]Paramètres!K70="","",[1]Paramètres!K70) -> HCALGP_HC | C54: =SUM(IF(('[1]Qtité art'!$E$9:$E$900=A54),('[1]Qtité art'!$D$9:$D$900))) -> 7854.333333 | E54: =OR(EXACT($A54,('[1]PP v1000'!$A$12:$A$87))) -> FALSE | F54: =OR(EXACT($A54,([1]PP!$A$12:$A$87))) -> FALSE | G54: =OR(EXACT($A54,([1]GP!$A$12:$A$87))) -> TRUE | H54: =OR(EXACT($A54,([1]Mixte!$A$12:$A$87))) -> TRUE | I54: =OR(EXACT($A54,([1]PE!$A$12:$A$87))) -> FALSE | J54: =OR(EXACT($A54,('[1]Pliage main'!$A$12:$A$87))) -> FALSE | K54: =OR(EXACT($A54,([1]Plat7!$A$12:$A$87))) -> FALSE | L54: =OR(EXACT($A54,([1]Plat8!$A$12:$A$87))) -> FALSE | M54: =OR(EXACT($A54,([1]Plat9!$A$12:$A$87))) -> FALSE | N54: =OR(EXACT($A54,([1]Plat10!$A$12:$A$87))) -> FALSE | O54: =OR(EXACT($A54,([1]VT1!$A$11:$A$86))) -> FALSE | P54: =OR(EXACT($A54,([1]VT2!$A$11:$A$86))) -> FALSE | Q54: =OR(EXACT($A54,([1]VT3!$A$11:$A$86))) -> FALSE | R54: =OR(EXACT($A54,([1]Bobines!$A$12:$A$87))) -> FALSE | S54: =OR(EXACT($A54,([1]Tapis!$A$12:$A$87))) -> FALSE | T54: =OR(EXACT($A54,([1]Contaminé!$A$6:$A$81))) -> FALSE | X54: Protège matelas | Y54: 4 | Z54: 46 | AA54: 01:12:03.140 | AB54: 2 | AC54: 23 | AD54: 00:22:38.495 | AE54: plat6
A55: =IF([1]Paramètres!I71="","",[1]Paramètres!I71) -> molleton | B55: =IF([1]Paramètres!K71="","",[1]Paramètres!K71) -> HSECPM_Couv | C55: =SUM(IF(('[1]Qtité art'!$E$9:$E$900=A55),('[1]Qtité art'!$D$9:$D$900))) -> 0 | E55: =OR(EXACT($A55,('[1]PP v1000'!$A$12:$A$87))) -> FALSE | F55: =OR(EXACT($A55,([1]PP!$A$12:$A$87))) -> FALSE | G55: =OR(EXACT($A55,([1]GP!$A$12:$A$87))) -> FALSE | H55: =OR(EXACT($A55,([1]Mixte!$A$12:$A$87))) -> FALSE | I55: =OR(EXACT($A55,([1]PE!$A$12:$A$87))) -> FALSE | J55: =OR(EXACT($A55,('[1]Pliage main'!$A$12:$A$87))) -> FALSE | K55: =OR(EXACT($A55,([1]Plat7!$A$12:$A$87))) -> FALSE | L55: =OR(EXACT($A55,([1]Plat8!$A$12:$A$87))) -> FALSE | M55: =OR(EXACT($A55,([1]Plat9!$A$12:$A$87))) -> FALSE | N55: =OR(EXACT($A55,([1]Plat10!$A$12:$A$87))) -> FALSE | O55: =OR(EXACT($A55,([1]VT1!$A$11:$A$86))) -> FALSE | P55: =OR(EXACT($A55,([1]VT2!$A$11:$A$86))) -> FALSE | Q55: =OR(EXACT($A55,([1]VT3!$A$11:$A$86))) -> FALSE | R55: =OR(EXACT($A55,([1]Bobines!$A$12:$A$87))) -> FALSE | S55: =OR(EXACT($A55,([1]Tapis!$A$12:$A$87))) -> FALSE | T55: =OR(EXACT($A55,([1]Contaminé!$A$6:$A$81))) -> FALSE | X55: Drap ambulatoire | Y55: 2 | AA55: 00:04:36.817 | AD55: h | AE55: plat4
A56: =IF([1]Paramètres!I72="","",[1]Paramètres!I72) -> nap .30 | B56: =IF([1]Paramètres!K72="","",[1]Paramètres!K72) -> RCALGP_Très_Grde_Nappe | C56: =SUM(IF(('[1]Qtité art'!$E$9:$E$900=A56),('[1]Qtité art'!$D$9:$D$900))) -> 30.33333333 | E56: =OR(EXACT($A56,('[1]PP v1000'!$A$12:$A$87))) -> FALSE | F56: =OR(EXACT($A56,([1]PP!$A$12:$A$87))) -> FALSE | G56: =OR(EXACT($A56,([1]GP!$A$12:$A$87))) -> FALSE | H56: =OR(EXACT($A56,([1]Mixte!$A$12:$A$87))) -> TRUE | I56: =OR(EXACT($A56,([1]PE!$A$12:$A$87))) -> FALSE | J56: =OR(EXACT($A56,('[1]Pliage main'!$A$12:$A$87))) -> FALSE | K56: =OR(EXACT($A56,([1]Plat7!$A$12:$A$87))) -> FALSE | L56: =OR(EXACT($A56,([1]Plat8!$A$12:$A$87))) -> FALSE | M56: =OR(EXACT($A56,([1]Plat9!$A$12:$A$87))) -> FALSE | N56: =OR(EXACT($A56,([1]Plat10!$A$12:$A$87))) -> FALSE | O56: =OR(EXACT($A56,([1]VT1!$A$11:$A$86))) -> FALSE | P56: =OR(EXACT($A56,([1]VT2!$A$11:$A$86))) -> FALSE | Q56: =OR(EXACT($A56,([1]VT3!$A$11:$A$86))) -> FALSE | R56: =OR(EXACT($A56,([1]Bobines!$A$12:$A$87))) -> FALSE | S56: =OR(EXACT($A56,([1]Tapis!$A$12:$A$87))) -> FALSE | T56: =OR(EXACT($A56,([1]Contaminé!$A$6:$A$81))) -> FALSE | X56: Tapis Bain luxe | Y56: 1 | AA56: 00:02:17.681 | AB56: 5 | AC56: 54 | AD56: 00:27:00 | AE56: plat5
A57: =IF([1]Paramètres!I73="","",[1]Paramètres!I73) -> nap .40 | B57: =IF([1]Paramètres!K73="","",[1]Paramètres!K73) -> RCALGP_Très_Grde_Nappe | C57: =SUM(IF(('[1]Qtité art'!$E$9:$E$900=A57),('[1]Qtité art'!$D$9:$D$900))) -> 0 | E57: =OR(EXACT($A57,('[1]PP v1000'!$A$12:$A$87))) -> FALSE | F57: =OR(EXACT($A57,([1]PP!$A$12:$A$87))) -> FALSE | G57: =OR(EXACT($A57,([1]GP!$A$12:$A$87))) -> FALSE | H57: =OR(EXACT($A57,([1]Mixte!$A$12:$A$87))) -> FALSE | I57: =OR(EXACT($A57,([1]PE!$A$12:$A$87))) -> FALSE | J57: =OR(EXACT($A57,('[1]Pliage main'!$A$12:$A$87))) -> FALSE | K57: =OR(EXACT($A57,([1]Plat7!$A$12:$A$87))) -> FALSE | L57: =OR(EXACT($A57,([1]Plat8!$A$12:$A$87))) -> FALSE | M57: =OR(EXACT($A57,([1]Plat9!$A$12:$A$87))) -> FALSE | N57: =OR(EXACT($A57,([1]Plat10!$A$12:$A$87))) -> FALSE | O57: =OR(EXACT($A57,([1]VT1!$A$11:$A$86))) -> FALSE | P57: =OR(EXACT($A57,([1]VT2!$A$11:$A$86))) -> FALSE | Q57: =OR(EXACT($A57,([1]VT3!$A$11:$A$86))) -> FALSE | R57: =OR(EXACT($A57,([1]Bobines!$A$12:$A$87))) -> FALSE | S57: =OR(EXACT($A57,([1]Tapis!$A$12:$A$87))) -> FALSE | T57: =OR(EXACT($A57,([1]Contaminé!$A$6:$A$81))) -> FALSE | X57: drap bain spa | Y57: 1 | AA57: 00:02:17.681 | AB57: 5 | AC57: 54 | AD57: 00:27:00 | AE57: plat5
A58: =IF([1]Paramètres!I74="","",[1]Paramètres!I74) -> nap .50 | B58: =IF([1]Paramètres!K74="","",[1]Paramètres!K74) -> RCALGP_Très_Grde_Nappe | C58: =SUM(IF(('[1]Qtité art'!$E$9:$E$900=A58),('[1]Qtité art'!$D$9:$D$900))) -> 0 | E58: =OR(EXACT($A58,('[1]PP v1000'!$A$12:$A$87))) -> FALSE | F58: =OR(EXACT($A58,([1]PP!$A$12:$A$87))) -> FALSE | G58: =OR(EXACT($A58,([1]GP!$A$12:$A$87))) -> FALSE | H58: =OR(EXACT($A58,([1]Mixte!$A$12:$A$87))) -> FALSE | I58: =OR(EXACT($A58,([1]PE!$A$12:$A$87))) -> FALSE | J58: =OR(EXACT($A58,('[1]Pliage main'!$A$12:$A$87))) -> FALSE | K58: =OR(EXACT($A58,([1]Plat7!$A$12:$A$87))) -> FALSE | L58: =OR(EXACT($A58,([1]Plat8!$A$12:$A$87))) -> FALSE | M58: =OR(EXACT($A58,([1]Plat9!$A$12:$A$87))) -> FALSE | N58: =OR(EXACT($A58,([1]Plat10!$A$12:$A$87))) -> FALSE | O58: =OR(EXACT($A58,([1]VT1!$A$11:$A$86))) -> FALSE | P58: =OR(EXACT($A58,([1]VT2!$A$11:$A$86))) -> FALSE | Q58: =OR(EXACT($A58,([1]VT3!$A$11:$A$86))) -> FALSE | R58: =OR(EXACT($A58,([1]Bobines!$A$12:$A$87))) -> FALSE | S58: =OR(EXACT($A58,([1]Tapis!$A$12:$A$87))) -> FALSE | T58: =OR(EXACT($A58,([1]Contaminé!$A$6:$A$81))) -> FALSE | X58: franges | Y58: 4 | Z58: 46 | AA58: 01:12:03.140 | AB58: 3 | AC58: 31 | AD58: 00:18:49.947 | AE58: plat6
A59: =IF([1]Paramètres!I75="","",[1]Paramètres!I75) -> nap .60+ | B59: =IF([1]Paramètres!K75="","",[1]Paramètres!K75) -> RCALGP_Très_Grde_Nappe | C59: =SUM(IF(('[1]Qtité art'!$E$9:$E$900=A59),('[1]Qtité art'!$D$9:$D$900))) -> 0 | E59: =OR(EXACT($A59,('[1]PP v1000'!$A$12:$A$87))) -> FALSE | F59: =OR(EXACT($A59,([1]PP!$A$12:$A$87))) -> FALSE | G59: =OR(EXACT($A59,([1]GP!$A$12:$A$87))) -> FALSE | H59: =OR(EXACT($A59,([1]Mixte!$A$12:$A$87))) -> FALSE | I59: =OR(EXACT($A59,([1]PE!$A$12:$A$87))) -> FALSE | J59: =OR(EXACT($A59,('[1]Pliage main'!$A$12:$A$87))) -> FALSE | K59: =OR(EXACT($A59,([1]Plat7!$A$12:$A$87))) -> FALSE | L59: =OR(EXACT($A59,([1]Plat8!$A$12:$A$87))) -> FALSE | M59: =OR(EXACT($A59,([1]Plat9!$A$12:$A$87))) -> FALSE | N59: =OR(EXACT($A59,([1]Plat10!$A$12:$A$87))) -> FALSE | O59: =OR(EXACT($A59,([1]VT1!$A$11:$A$86))) -> FALSE | P59: =OR(EXACT($A59,([1]VT2!$A$11:$A$86))) -> FALSE | Q59: =OR(EXACT($A59,([1]VT3!$A$11:$A$86))) -> FALSE | R59: =OR(EXACT($A59,([1]Bobines!$A$12:$A$87))) -> FALSE | S59: =OR(EXACT($A59,([1]Tapis!$A$12:$A$87))) -> FALSE | T59: =OR(EXACT($A59,([1]Contaminé!$A$6:$A$81))) -> FALSE | X59: VT | Y59: 2 | AA59: 00:04:36.817 | AD59: h | AE59: plat6
A60: =IF([1]Paramètres!I76="","",[1]Paramètres!I76) -> nap 12 | B60: =IF([1]Paramètres!K76="","",[1]Paramètres!K76) -> RCALGP_Pte_Nappe | C60: =SUM(IF(('[1]Qtité art'!$E$9:$E$900=A60),('[1]Qtité art'!$D$9:$D$900))) -> 824.6666667 | E60: =OR(EXACT($A60,('[1]PP v1000'!$A$12:$A$87))) -> FALSE | F60: =OR(EXACT($A60,([1]PP!$A$12:$A$87))) -> FALSE | G60: =OR(EXACT($A60,([1]GP!$A$12:$A$87))) -> FALSE | H60: =OR(EXACT($A60,([1]Mixte!$A$12:$A$87))) -> TRUE | I60: =OR(EXACT($A60,([1]PE!$A$12:$A$87))) -> FALSE | J60: =OR(EXACT($A60,('[1]Pliage main'!$A$12:$A$87))) -> FALSE | K60: =OR(EXACT($A60,([1]Plat7!$A$12:$A$87))) -> FALSE | L60: =OR(EXACT($A60,([1]Plat8!$A$12:$A$87))) -> FALSE | M60: =OR(EXACT($A60,([1]Plat9!$A$12:$A$87))) -> FALSE | N60: =OR(EXACT($A60,([1]Plat10!$A$12:$A$87))) -> FALSE | O60: =OR(EXACT($A60,([1]VT1!$A$11:$A$86))) -> FALSE | P60: =OR(EXACT($A60,([1]VT2!$A$11:$A$86))) -> FALSE | Q60: =OR(EXACT($A60,([1]VT3!$A$11:$A$86))) -> FALSE | R60: =OR(EXACT($A60,([1]Bobines!$A$12:$A$87))) -> FALSE | S60: =OR(EXACT($A60,([1]Tapis!$A$12:$A$87))) -> FALSE | T60: =OR(EXACT($A60,([1]Contaminé!$A$6:$A$81))) -> FALSE
A61: =IF([1]Paramètres!I77="","",[1]Paramètres!I77) -> nap 15 + 18 | B61: =IF([1]Paramètres!K77="","",[1]Paramètres!K77) -> RCALGP_Grde_Nappe | C61: =SUM(IF(('[1]Qtité art'!$E$9:$E$900=A61),('[1]Qtité art'!$D$9:$D$900))) -> 1855.666667 | E61: =OR(EXACT($A61,('[1]PP v1000'!$A$12:$A$87))) -> FALSE | F61: =OR(EXACT($A61,([1]PP!$A$12:$A$87))) -> FALSE | G61: =OR(EXACT($A61,([1]GP!$A$12:$A$87))) -> FALSE | H61: =OR(EXACT($A61,([1]Mixte!$A$12:$A$87))) -> TRUE | I61: =OR(EXACT($A61,([1]PE!$A$12:$A$87))) -> FALSE | J61: =OR(EXACT($A61,('[1]Pliage main'!$A$12:$A$87))) -> FALSE | K61: =OR(EXACT($A61,([1]Plat7!$A$12:$A$87))) -> FALSE | L61: =OR(EXACT($A61,([1]Plat8!$A$12:$A$87))) -> FALSE | M61: =OR(EXACT($A61,([1]Plat9!$A$12:$A$87))) -> FALSE | N61: =OR(EXACT($A61,([1]Plat10!$A$12:$A$87))) -> FALSE | O61: =OR(EXACT($A61,([1]VT1!$A$11:$A$86))) -> FALSE | P61: =OR(EXACT($A61,([1]VT2!$A$11:$A$86))) -> FALSE | Q61: =OR(EXACT($A61,([1]VT3!$A$11:$A$86))) -> FALSE | R61: =OR(EXACT($A61,([1]Bobines!$A$12:$A$87))) -> FALSE | S61: =OR(EXACT($A61,([1]Tapis!$A$12:$A$87))) -> FALSE | T61: =OR(EXACT($A61,([1]Contaminé!$A$6:$A$81))) -> FALSE
A62: =IF([1]Paramètres!I78="","",[1]Paramètres!I78) -> nap 18 | B62: =IF([1]Paramètres!K78="","",[1]Paramètres!K78) -> RCALGP_Grde_Nappe | C62: =SUM(IF(('[1]Qtité art'!$E$9:$E$900=A62),('[1]Qtité art'!$D$9:$D$900))) -> 0 | E62: =OR(EXACT($A62,('[1]PP v1000'!$A$12:$A$87))) -> FALSE | F62: =OR(EXACT($A62,([1]PP!$A$12:$A$87))) -> FALSE | G62: =OR(EXACT($A62,([1]GP!$A$12:$A$87))) -> FALSE | H62: =OR(EXACT($A62,([1]Mixte!$A$12:$A$87))) -> FALSE | I62: =OR(EXACT($A62,([1]PE!$A$12:$A$87))) -> FALSE | J62: =OR(EXACT($A62,('[1]Pliage main'!$A$12:$A$87))) -> FALSE | K62: =OR(EXACT($A62,([1]Plat7!$A$12:$A$87))) -> FALSE | L62: =OR(EXACT($A62,([1]Plat8!$A$12:$A$87))) -> FALSE | M62: =OR(EXACT($A62,([1]Plat9!$A$12:$A$87))) -> FALSE | N62: =OR(EXACT($A62,([1]Plat10!$A$12:$A$87))) -> FALSE | O62: =OR(EXACT($A62,([1]VT1!$A$11:$A$86))) -> FALSE | P62: =OR(EXACT($A62,([1]VT2!$A$11:$A$86))) -> FALSE | Q62: =OR(EXACT($A62,([1]VT3!$A$11:$A$86))) -> FALSE | R62: =OR(EXACT($A62,([1]Bobines!$A$12:$A$87))) -> FALSE | S62: =OR(EXACT($A62,([1]Tapis!$A$12:$A$87))) -> FALSE | T62: =OR(EXACT($A62,([1]Contaminé!$A$6:$A$81))) -> FALSE
A63: =IF([1]Paramètres!I79="","",[1]Paramètres!I79) -> nap 20 | B63: =IF([1]Paramètres!K79="","",[1]Paramètres!K79) -> RCALGP_Grde_Nappe | C63: =SUM(IF(('[1]Qtité art'!$E$9:$E$900=A63),('[1]Qtité art'!$D$9:$D$900))) -> 508.3333333 | E63: =OR(EXACT($A63,('[1]PP v1000'!$A$12:$A$87))) -> FALSE | F63: =OR(EXACT($A63,([1]PP!$A$12:$A$87))) -> FALSE | G63: =OR(EXACT($A63,([1]GP!$A$12:$A$87))) -> FALSE | H63: =OR(EXACT($A63,([1]Mixte!$A$12:$A$87))) -> TRUE | I63: =OR(EXACT($A63,([1]PE!$A$12:$A$87))) -> FALSE | J63: =OR(EXACT($A63,('[1]Pliage main'!$A$12:$A$87))) -> FALSE | K63: =OR(EXACT($A63,([1]Plat7!$A$12:$A$87))) -> FALSE | L63: =OR(EXACT($A63,([1]Plat8!$A$12:$A$87))) -> FALSE | M63: =OR(EXACT($A63,([1]Plat9!$A$12:$A$87))) -> FALSE | N63: =OR(EXACT($A63,([1]Plat10!$A$12:$A$87))) -> FALSE | O63: =OR(EXACT($A63,([1]VT1!$A$11:$A$86))) -> FALSE | P63: =OR(EXACT($A63,([1]VT2!$A$11:$A$86))) -> FALSE | Q63: =OR(EXACT($A63,([1]VT3!$A$11:$A$86))) -> FALSE | R63: =OR(EXACT($A63,([1]Bobines!$A$12:$A$87))) -> FALSE | S63: =OR(EXACT($A63,([1]Tapis!$A$12:$A$87))) -> FALSE | T63: =OR(EXACT($A63,([1]Contaminé!$A$6:$A$81))) -> FALSE
A64: =IF([1]Paramètres!I80="","",[1]Paramètres!I80) -> nap 22 | B64: =IF([1]Paramètres!K80="","",[1]Paramètres!K80) -> RCALGP_Grde_Nappe | C64: =SUM(IF(('[1]Qtité art'!$E$9:$E$900=A64),('[1]Qtité art'!$D$9:$D$900))) -> 0 | E64: =OR(EXACT($A64,('[1]PP v1000'!$A$12:$A$87))) -> FALSE | F64: =OR(EXACT($A64,([1]PP!$A$12:$A$87))) -> FALSE | G64: =OR(EXACT($A64,([1]GP!$A$12:$A$87))) -> FALSE | H64: =OR(EXACT($A64,([1]Mixte!$A$12:$A$87))) -> FALSE | I64: =OR(EXACT($A64,([1]PE!$A$12:$A$87))) -> FALSE | J64: =OR(EXACT($A64,('[1]Pliage main'!$A$12:$A$87))) -> FALSE | K64: =OR(EXACT($A64,([1]Plat7!$A$12:$A$87))) -> FALSE | L64: =OR(EXACT($A64,([1]Plat8!$A$12:$A$87))) -> FALSE | M64: =OR(EXACT($A64,([1]Plat9!$A$12:$A$87))) -> FALSE | N64: =OR(EXACT($A64,([1]Plat10!$A$12:$A$87))) -> FALSE | O64: =OR(EXACT($A64,([1]VT1!$A$11:$A$86))) -> FALSE | P64: =OR(EXACT($A64,([1]VT2!$A$11:$A$86))) -> FALSE | Q64: =OR(EXACT($A64,([1]VT3!$A$11:$A$86))) -> FALSE | R64: =OR(EXACT($A64,([1]Bobines!$A$12:$A$87))) -> FALSE | S64: =OR(EXACT($A64,([1]Tapis!$A$12:$A$87))) -> FALSE | T64: =OR(EXACT($A64,([1]Contaminé!$A$6:$A$81))) -> FALSE
A65: =IF([1]Paramètres!I81="","",[1]Paramètres!I81) -> nap 24 | B65: =IF([1]Paramètres!K81="","",[1]Paramètres!K81) -> RCALGP_Grde_Nappe | C65: =SUM(IF(('[1]Qtité art'!$E$9:$E$900=A65),('[1]Qtité art'!$D$9:$D$900))) -> 99 | E65: =OR(EXACT($A65,('[1]PP v1000'!$A$12:$A$87))) -> FALSE | F65: =OR(EXACT($A65,([1]PP!$A$12:$A$87))) -> FALSE | G65: =OR(EXACT($A65,([1]GP!$A$12:$A$87))) -> FALSE | H65: =OR(EXACT($A65,([1]Mixte!$A$12:$A$87))) -> TRUE | I65: =OR(EXACT($A65,([1]PE!$A$12:$A$87))) -> FALSE | J65: =OR(EXACT($A65,('[1]Pliage main'!$A$12:$A$87))) -> FALSE | K65: =OR(EXACT($A65,([1]Plat7!$A$12:$A$87))) -> FALSE | L65: =OR(EXACT($A65,([1]Plat8!$A$12:$A$87))) -> FALSE | M65: =OR(EXACT($A65,([1]Plat9!$A$12:$A$87))) -> FALSE | N65: =OR(EXACT($A65,([1]Plat10!$A$12:$A$87))) -> FALSE | O65: =OR(EXACT($A65,([1]VT1!$A$11:$A$86))) -> FALSE | P65: =OR(EXACT($A65,([1]VT2!$A$11:$A$86))) -> FALSE | Q65: =OR(EXACT($A65,([1]VT3!$A$11:$A$86))) -> FALSE | R65: =OR(EXACT($A65,([1]Bobines!$A$12:$A$87))) -> FALSE | S65: =OR(EXACT($A65,([1]Tapis!$A$12:$A$87))) -> FALSE | T65: =OR(EXACT($A65,([1]Contaminé!$A$6:$A$81))) -> FALSE
A66: =IF([1]Paramètres!I82="","",[1]Paramètres!I82) -> npr | B66: =IF([1]Paramètres!K82="","",[1]Paramètres!K82) -> RCALPP_sup_8 | C66: =SUM(IF(('[1]Qtité art'!$E$9:$E$900=A66),('[1]Qtité art'!$D$9:$D$900))) -> 329 | E66: =OR(EXACT($A66,('[1]PP v1000'!$A$12:$A$87))) -> FALSE | F66: =OR(EXACT($A66,([1]PP!$A$12:$A$87))) -> FALSE | G66: =OR(EXACT($A66,([1]GP!$A$12:$A$87))) -> FALSE | H66: =OR(EXACT($A66,([1]Mixte!$A$12:$A$87))) -> TRUE | I66: =OR(EXACT($A66,([1]PE!$A$12:$A$87))) -> FALSE | J66: =OR(EXACT($A66,('[1]Pliage main'!$A$12:$A$87))) -> FALSE | K66: =OR(EXACT($A66,([1]Plat7!$A$12:$A$87))) -> FALSE | L66: =OR(EXACT($A66,([1]Plat8!$A$12:$A$87))) -> FALSE | M66: =OR(EXACT($A66,([1]Plat9!$A$12:$A$87))) -> FALSE | N66: =OR(EXACT($A66,([1]Plat10!$A$12:$A$87))) -> FALSE | O66: =OR(EXACT($A66,([1]VT1!$A$11:$A$86))) -> FALSE | P66: =OR(EXACT($A66,([1]VT2!$A$11:$A$86))) -> FALSE | Q66: =OR(EXACT($A66,([1]VT3!$A$11:$A$86))) -> FALSE | R66: =OR(EXACT($A66,([1]Bobines!$A$12:$A$87))) -> FALSE | S66: =OR(EXACT($A66,([1]Tapis!$A$12:$A$87))) -> FALSE | T66: =OR(EXACT($A66,([1]Contaminé!$A$6:$A$81))) -> FALSE
A67: =IF([1]Paramètres!I83="","",[1]Paramètres!I83) -> npr 10 | B67: =IF([1]Paramètres!K83="","",[1]Paramètres!K83) -> RCALPP_sup_8 | C67: =SUM(IF(('[1]Qtité art'!$E$9:$E$900=A67),('[1]Qtité art'!$D$9:$D$900))) -> 171.6666667 | E67: =OR(EXACT($A67,('[1]PP v1000'!$A$12:$A$87))) -> FALSE | F67: =OR(EXACT($A67,([1]PP!$A$12:$A$87))) -> FALSE | G67: =OR(EXACT($A67,([1]GP!$A$12:$A$87))) -> FALSE | H67: =OR(EXACT($A67,([1]Mixte!$A$12:$A$87))) -> TRUE | I67: =OR(EXACT($A67,([1]PE!$A$12:$A$87))) -> FALSE | J67: =OR(EXACT($A67,('[1]Pliage main'!$A$12:$A$87))) -> FALSE | K67: =OR(EXACT($A67,([1]Plat7!$A$12:$A$87))) -> FALSE | L67: =OR(EXACT($A67,([1]Plat8!$A$12:$A$87))) -> FALSE | M67: =OR(EXACT($A67,([1]Plat9!$A$12:$A$87))) -> FALSE | N67: =OR(EXACT($A67,([1]Plat10!$A$12:$A$87))) -> FALSE | O67: =OR(EXACT($A67,([1]VT1!$A$11:$A$86))) -> FALSE | P67: =OR(EXACT($A67,([1]VT2!$A$11:$A$86))) -> FALSE | Q67: =OR(EXACT($A67,([1]VT3!$A$11:$A$86))) -> FALSE | R67: =OR(EXACT($A67,([1]Bobines!$A$12:$A$87))) -> FALSE | S67: =OR(EXACT($A67,([1]Tapis!$A$12:$A$87))) -> FALSE | T67: =OR(EXACT($A67,([1]Contaminé!$A$6:$A$81))) -> FALSE
A68: =IF([1]Paramètres!I84="","",[1]Paramètres!I84) -> peignoir/cas | B68: =IF([1]Paramètres!K84="","",[1]Paramètres!K84) -> HSECPM_Peignoir | C68: =SUM(IF(('[1]Qtité art'!$E$9:$E$900=A68),('[1]Qtité art'!$D$9:$D$900))) -> 299 | E68: =OR(EXACT($A68,('[1]PP v1000'!$A$12:$A$87))) -> FALSE | F68: =OR(EXACT($A68,([1]PP!$A$12:$A$87))) -> FALSE | G68: =OR(EXACT($A68,([1]GP!$A$12:$A$87))) -> FALSE | H68: =OR(EXACT($A68,([1]Mixte!$A$12:$A$87))) -> FALSE | I68: =OR(EXACT($A68,([1]PE!$A$12:$A$87))) -> FALSE | J68: =OR(EXACT($A68,('[1]Pliage main'!$A$12:$A$87))) -> TRUE | K68: =OR(EXACT($A68,([1]Plat7!$A$12:$A$87))) -> FALSE | L68: =OR(EXACT($A68,([1]Plat8!$A$12:$A$87))) -> FALSE | M68: =OR(EXACT($A68,([1]Plat9!$A$12:$A$87))) -> FALSE | N68: =OR(EXACT($A68,([1]Plat10!$A$12:$A$87))) -> FALSE | O68: =OR(EXACT($A68,([1]VT1!$A$11:$A$86))) -> FALSE | P68: =OR(EXACT($A68,([1]VT2!$A$11:$A$86))) -> FALSE | Q68: =OR(EXACT($A68,([1]VT3!$A$11:$A$86))) -> FALSE | R68: =OR(EXACT($A68,([1]Bobines!$A$12:$A$87))) -> FALSE | S68: =OR(EXACT($A68,([1]Tapis!$A$12:$A$87))) -> FALSE | T68: =OR(EXACT($A68,([1]Contaminé!$A$6:$A$81))) -> FALSE
A69: =IF([1]Paramètres!I85="","",[1]Paramètres!I85) -> pte al | B69: =IF([1]Paramètres!K85="","",[1]Paramètres!K85) -> HCALPP_Alèse | C69: =SUM(IF(('[1]Qtité art'!$E$9:$E$900=A69),('[1]Qtité art'!$D$9:$D$900))) -> 5546.666667 | E69: =OR(EXACT($A69,('[1]PP v1000'!$A$12:$A$87))) -> FALSE | F69: =OR(EXACT($A69,([1]PP!$A$12:$A$87))) -> FALSE | G69: =OR(EXACT($A69,([1]GP!$A$12:$A$87))) -> FALSE | H69: =OR(EXACT($A69,([1]Mixte!$A$12:$A$87))) -> TRUE | I69: =OR(EXACT($A69,([1]PE!$A$12:$A$87))) -> FALSE | J69: =OR(EXACT($A69,('[1]Pliage main'!$A$12:$A$87))) -> FALSE | K69: =OR(EXACT($A69,([1]Plat7!$A$12:$A$87))) -> FALSE | L69: =OR(EXACT($A69,([1]Plat8!$A$12:$A$87))) -> FALSE | M69: =OR(EXACT($A69,([1]Plat9!$A$12:$A$87))) -> FALSE | N69: =OR(EXACT($A69,([1]Plat10!$A$12:$A$87))) -> FALSE | O69: =OR(EXACT($A69,([1]VT1!$A$11:$A$86))) -> FALSE | P69: =OR(EXACT($A69,([1]VT2!$A$11:$A$86))) -> FALSE | Q69: =OR(EXACT($A69,([1]VT3!$A$11:$A$86))) -> FALSE | R69: =OR(EXACT($A69,([1]Bobines!$A$12:$A$87))) -> FALSE | S69: =OR(EXACT($A69,([1]Tapis!$A$12:$A$87))) -> FALSE | T69: =OR(EXACT($A69,([1]Contaminé!$A$6:$A$81))) -> FALSE
A70: =IF([1]Paramètres!I86="","",[1]Paramètres!I86) -> sac | B70: =IF([1]Paramètres!K86="","",[1]Paramètres!K86) -> HSECPM_Gant | C70: =SUM(IF(('[1]Qtité art'!$E$9:$E$900=A70),('[1]Qtité art'!$D$9:$D$900))) -> 17487.66667 | E70: =OR(EXACT($A70,('[1]PP v1000'!$A$12:$A$87))) -> FALSE | F70: =OR(EXACT($A70,([1]PP!$A$12:$A$87))) -> FALSE | G70: =OR(EXACT($A70,([1]GP!$A$12:$A$87))) -> FALSE | H70: =OR(EXACT($A70,([1]Mixte!$A$12:$A$87))) -> FALSE | I70: =OR(EXACT($A70,([1]PE!$A$12:$A$87))) -> FALSE | J70: =OR(EXACT($A70,('[1]Pliage main'!$A$12:$A$87))) -> TRUE | K70: =OR(EXACT($A70,([1]Plat7!$A$12:$A$87))) -> FALSE | L70: =OR(EXACT($A70,([1]Plat8!$A$12:$A$87))) -> FALSE | M70: =OR(EXACT($A70,([1]Plat9!$A$12:$A$87))) -> FALSE | N70: =OR(EXACT($A70,([1]Plat10!$A$12:$A$87))) -> FALSE | O70: =OR(EXACT($A70,([1]VT1!$A$11:$A$86))) -> FALSE | P70: =OR(EXACT($A70,([1]VT2!$A$11:$A$86))) -> FALSE | Q70: =OR(EXACT($A70,([1]VT3!$A$11:$A$86))) -> FALSE | R70: =OR(EXACT($A70,([1]Bobines!$A$12:$A$87))) -> FALSE | S70: =OR(EXACT($A70,([1]Tapis!$A$12:$A$87))) -> FALSE | T70: =OR(EXACT($A70,([1]Contaminé!$A$6:$A$81))) -> FALSE | U70: =IF(C70=0,"",IF(OR(E70=TRUE,F70=TRUE,G70=TRUE,H70=TRUE,I70=TRUE,J70=TRUE,K70=TRUE,L70=TRUE,M70=TRUE,N70=TRUE,O70=TRUE,P70=TRUE,Q70=TRUE,R70=TRUE,S70=TRUE,T70=TRUE),"",A70)) -> 
A71: =IF([1]Paramètres!I87="","",[1]Paramètres!I87) -> serv éponge | B71: =IF([1]Paramètres!K87="","",[1]Paramètres!K87) -> HSECPA_Eponge | C71: =SUM(IF(('[1]Qtité art'!$E$9:$E$900=A71),('[1]Qtité art'!$D$9:$D$900))) -> 41043.66667 | E71: =OR(EXACT($A71,('[1]PP v1000'!$A$12:$A$87))) -> FALSE | F71: =OR(EXACT($A71,([1]PP!$A$12:$A$87))) -> FALSE | G71: =OR(EXACT($A71,([1]GP!$A$12:$A$87))) -> FALSE | H71: =OR(EXACT($A71,([1]Mixte!$A$12:$A$87))) -> FALSE | I71: =OR(EXACT($A71,([1]PE!$A$12:$A$87))) -> TRUE | J71: =OR(EXACT($A71,('[1]Pliage main'!$A$12:$A$87))) -> FALSE | K71: =OR(EXACT($A71,([1]Plat7!$A$12:$A$87))) -> FALSE | L71: =OR(EXACT($A71,([1]Plat8!$A$12:$A$87))) -> FALSE | M71: =OR(EXACT($A71,([1]Plat9!$A$12:$A$87))) -> FALSE | N71: =OR(EXACT($A71,([1]Plat10!$A$12:$A$87))) -> FALSE | O71: =OR(EXACT($A71,([1]VT1!$A$11:$A$86))) -> FALSE | P71: =OR(EXACT($A71,([1]VT2!$A$11:$A$86))) -> FALSE | Q71: =OR(EXACT($A71,([1]VT3!$A$11:$A$86))) -> FALSE | R71: =OR(EXACT($A71,([1]Bobines!$A$12:$A$87))) -> FALSE | S71: =OR(EXACT($A71,([1]Tapis!$A$12:$A$87))) -> FALSE | T71: =OR(EXACT($A71,([1]Contaminé!$A$6:$A$81))) -> FALSE
A72: =IF([1]Paramètres!I88="","",[1]Paramètres!I88) -> serv éponge luxe | B72: =IF([1]Paramètres!K88="","",[1]Paramètres!K88) -> HSECPA_Eponge | C72: =SUM(IF(('[1]Qtité art'!$E$9:$E$900=A72),('[1]Qtité art'!$D$9:$D$900))) -> 499.6666667 | E72: =OR(EXACT($A72,('[1]PP v1000'!$A$12:$A$87))) -> FALSE | F72: =OR(EXACT($A72,([1]PP!$A$12:$A$87))) -> FALSE | G72: =OR(EXACT($A72,([1]GP!$A$12:$A$87))) -> FALSE | H72: =OR(EXACT($A72,([1]Mixte!$A$12:$A$87))) -> FALSE | I72: =OR(EXACT($A72,([1]PE!$A$12:$A$87))) -> TRUE | J72: =OR(EXACT($A72,('[1]Pliage main'!$A$12:$A$87))) -> FALSE | K72: =OR(EXACT($A72,([1]Plat7!$A$12:$A$87))) -> FALSE | L72: =OR(EXACT($A72,([1]Plat8!$A$12:$A$87))) -> FALSE | M72: =OR(EXACT($A72,([1]Plat9!$A$12:$A$87))) -> FALSE | N72: =OR(EXACT($A72,([1]Plat10!$A$12:$A$87))) -> FALSE | O72: =OR(EXACT($A72,([1]VT1!$A$11:$A$86))) -> FALSE | P72: =OR(EXACT($A72,([1]VT2!$A$11:$A$86))) -> FALSE | Q72: =OR(EXACT($A72,([1]VT3!$A$11:$A$86))) -> FALSE | R72: =OR(EXACT($A72,([1]Bobines!$A$12:$A$87))) -> FALSE | S72: =OR(EXACT($A72,([1]Tapis!$A$12:$A$87))) -> FALSE | T72: =OR(EXACT($A72,([1]Contaminé!$A$6:$A$81))) -> FALSE
A73: =IF([1]Paramètres!I89="","",[1]Paramètres!I89) -> serv œil | B73: =IF([1]Paramètres!K89="","",[1]Paramètres!K89) -> RCALPP_inf_8 | C73: =SUM(IF(('[1]Qtité art'!$E$9:$E$900=A73),('[1]Qtité art'!$D$9:$D$900))) -> 287 | E73: =OR(EXACT($A73,('[1]PP v1000'!$A$12:$A$87))) -> FALSE | F73: =OR(EXACT($A73,([1]PP!$A$12:$A$87))) -> TRUE | G73: =OR(EXACT($A73,([1]GP!$A$12:$A$87))) -> FALSE | H73: =OR(EXACT($A73,([1]Mixte!$A$12:$A$87))) -> FALSE | I73: =OR(EXACT($A73,([1]PE!$A$12:$A$87))) -> FALSE | J73: =OR(EXACT($A73,('[1]Pliage main'!$A$12:$A$87))) -> FALSE | K73: =OR(EXACT($A73,([1]Plat7!$A$12:$A$87))) -> FALSE | L73: =OR(EXACT($A73,([1]Plat8!$A$12:$A$87))) -> FALSE | M73: =OR(EXACT($A73,([1]Plat9!$A$12:$A$87))) -> FALSE | N73: =OR(EXACT($A73,([1]Plat10!$A$12:$A$87))) -> FALSE | O73: =OR(EXACT($A73,([1]VT1!$A$11:$A$86))) -> FALSE | P73: =OR(EXACT($A73,([1]VT2!$A$11:$A$86))) -> FALSE | Q73: =OR(EXACT($A73,([1]VT3!$A$11:$A$86))) -> FALSE | R73: =OR(EXACT($A73,([1]Bobines!$A$12:$A$87))) -> FALSE | S73: =OR(EXACT($A73,([1]Tapis!$A$12:$A$87))) -> FALSE | T73: =OR(EXACT($A73,([1]Contaminé!$A$6:$A$81))) -> FALSE
A74: =IF([1]Paramètres!I90="","",[1]Paramètres!I90) -> serv tab gde | B74: =IF([1]Paramètres!K90="","",[1]Paramètres!K90) -> RCALPP_inf_8 | C74: =SUM(IF(('[1]Qtité art'!$E$9:$E$900=A74),('[1]Qtité art'!$D$9:$D$900))) -> 264.6666667 | E74: =OR(EXACT($A74,('[1]PP v1000'!$A$12:$A$87))) -> FALSE | F74: =OR(EXACT($A74,([1]PP!$A$12:$A$87))) -> TRUE | G74: =OR(EXACT($A74,([1]GP!$A$12:$A$87))) -> FALSE | H74: =OR(EXACT($A74,([1]Mixte!$A$12:$A$87))) -> FALSE | I74: =OR(EXACT($A74,([1]PE!$A$12:$A$87))) -> FALSE | J74: =OR(EXACT($A74,('[1]Pliage main'!$A$12:$A$87))) -> FALSE | K74: =OR(EXACT($A74,([1]Plat7!$A$12:$A$87))) -> FALSE | L74: =OR(EXACT($A74,([1]Plat8!$A$12:$A$87))) -> FALSE | M74: =OR(EXACT($A74,([1]Plat9!$A$12:$A$87))) -> FALSE | N74: =OR(EXACT($A74,([1]Plat10!$A$12:$A$87))) -> FALSE | O74: =OR(EXACT($A74,([1]VT1!$A$11:$A$86))) -> FALSE | P74: =OR(EXACT($A74,([1]VT2!$A$11:$A$86))) -> FALSE | Q74: =OR(EXACT($A74,([1]VT3!$A$11:$A$86))) -> FALSE | R74: =OR(EXACT($A74,([1]Bobines!$A$12:$A$87))) -> FALSE | S74: =OR(EXACT($A74,([1]Tapis!$A$12:$A$87))) -> FALSE | T74: =OR(EXACT($A74,([1]Contaminé!$A$6:$A$81))) -> FALSE
A75: =IF([1]Paramètres!I91="","",[1]Paramètres!I91) -> serv tab pte | B75: =IF([1]Paramètres!K91="","",[1]Paramètres!K91) -> RCALPP_inf_8 | C75: =SUM(IF(('[1]Qtité art'!$E$9:$E$900=A75),('[1]Qtité art'!$D$9:$D$900))) -> 33386.66667 | E75: =OR(EXACT($A75,('[1]PP v1000'!$A$12:$A$87))) -> FALSE | F75: =OR(EXACT($A75,([1]PP!$A$12:$A$87))) -> TRUE | G75: =OR(EXACT($A75,([1]GP!$A$12:$A$87))) -> FALSE | H75: =OR(EXACT($A75,([1]Mixte!$A$12:$A$87))) -> FALSE | I75: =OR(EXACT($A75,([1]PE!$A$12:$A$87))) -> FALSE | J75: =OR(EXACT($A75,('[1]Pliage main'!$A$12:$A$87))) -> FALSE | K75: =OR(EXACT($A75,([1]Plat7!$A$12:$A$87))) -> FALSE | L75: =OR(EXACT($A75,([1]Plat8!$A$12:$A$87))) -> FALSE | M75: =OR(EXACT($A75,([1]Plat9!$A$12:$A$87))) -> FALSE | N75: =OR(EXACT($A75,([1]Plat10!$A$12:$A$87))) -> FALSE | O75: =OR(EXACT($A75,([1]VT1!$A$11:$A$86))) -> FALSE | P75: =OR(EXACT($A75,([1]VT2!$A$11:$A$86))) -> FALSE | Q75: =OR(EXACT($A75,([1]VT3!$A$11:$A$86))) -> FALSE | R75: =OR(EXACT($A75,([1]Bobines!$A$12:$A$87))) -> FALSE | S75: =OR(EXACT($A75,([1]Tapis!$A$12:$A$87))) -> FALSE | T75: =OR(EXACT($A75,([1]Contaminé!$A$6:$A$81))) -> FALSE
A76: =IF([1]Paramètres!I92="","",[1]Paramètres!I92) -> tablier bleu | B76: =IF([1]Paramètres!K92="","",[1]Paramètres!K92) -> RCALPP_inf_8 | C76: =SUM(IF(('[1]Qtité art'!$E$9:$E$900=A76),('[1]Qtité art'!$D$9:$D$900))) -> 304 | E76: =OR(EXACT($A76,('[1]PP v1000'!$A$12:$A$87))) -> FALSE | F76: =OR(EXACT($A76,([1]PP!$A$12:$A$87))) -> TRUE | G76: =OR(EXACT($A76,([1]GP!$A$12:$A$87))) -> FALSE | H76: =OR(EXACT($A76,([1]Mixte!$A$12:$A$87))) -> FALSE | I76: =OR(EXACT($A76,([1]PE!$A$12:$A$87))) -> FALSE | J76: =OR(EXACT($A76,('[1]Pliage main'!$A$12:$A$87))) -> FALSE | K76: =OR(EXACT($A76,([1]Plat7!$A$12:$A$87))) -> FALSE | L76: =OR(EXACT($A76,([1]Plat8!$A$12:$A$87))) -> FALSE | M76: =OR(EXACT($A76,([1]Plat9!$A$12:$A$87))) -> FALSE | N76: =OR(EXACT($A76,([1]Plat10!$A$12:$A$87))) -> FALSE | O76: =OR(EXACT($A76,([1]VT1!$A$11:$A$86))) -> FALSE | P76: =OR(EXACT($A76,([1]VT2!$A$11:$A$86))) -> FALSE | Q76: =OR(EXACT($A76,([1]VT3!$A$11:$A$86))) -> FALSE | R76: =OR(EXACT($A76,([1]Bobines!$A$12:$A$87))) -> FALSE | S76: =OR(EXACT($A76,([1]Tapis!$A$12:$A$87))) -> FALSE | T76: =OR(EXACT($A76,([1]Contaminé!$A$6:$A$81))) -> FALSE
A77: =IF([1]Paramètres!I93="","",[1]Paramètres!I93) -> tablier blanc | B77: =IF([1]Paramètres!K93="","",[1]Paramètres!K93) -> RCALPP_inf_8 | C77: =SUM(IF(('[1]Qtité art'!$E$9:$E$900=A77),('[1]Qtité art'!$D$9:$D$900))) -> 5531.333333 | E77: =OR(EXACT($A77,('[1]PP v1000'!$A$12:$A$87))) -> FALSE | F77: =OR(EXACT($A77,([1]PP!$A$12:$A$87))) -> TRUE | G77: =OR(EXACT($A77,([1]GP!$A$12:$A$87))) -> FALSE | H77: =OR(EXACT($A77,([1]Mixte!$A$12:$A$87))) -> FALSE | I77: =OR(EXACT($A77,([1]PE!$A$12:$A$87))) -> FALSE | J77: =OR(EXACT($A77,('[1]Pliage main'!$A$12:$A$87))) -> FALSE | K77: =OR(EXACT($A77,([1]Plat7!$A$12:$A$87))) -> FALSE | L77: =OR(EXACT($A77,([1]Plat8!$A$12:$A$87))) -> FALSE | M77: =OR(EXACT($A77,([1]Plat9!$A$12:$A$87))) -> FALSE | N77: =OR(EXACT($A77,([1]Plat10!$A$12:$A$87))) -> FALSE | O77: =OR(EXACT($A77,([1]VT1!$A$11:$A$86))) -> FALSE | P77: =OR(EXACT($A77,([1]VT2!$A$11:$A$86))) -> FALSE | Q77: =OR(EXACT($A77,([1]VT3!$A$11:$A$86))) -> FALSE | R77: =OR(EXACT($A77,([1]Bobines!$A$12:$A$87))) -> FALSE | S77: =OR(EXACT($A77,([1]Tapis!$A$12:$A$87))) -> FALSE | T77: =OR(EXACT($A77,([1]Contaminé!$A$6:$A$81))) -> FALSE
A78: =IF([1]Paramètres!I94="","",[1]Paramètres!I94) -> taie am | B78: =IF([1]Paramètres!K94="","",[1]Paramètres!K94) -> HCALPP_Taie | C78: =SUM(IF(('[1]Qtité art'!$E$9:$E$900=A78),('[1]Qtité art'!$D$9:$D$900))) -> 14252.66667 | E78: =OR(EXACT($A78,('[1]PP v1000'!$A$12:$A$87))) -> FALSE | F78: =OR(EXACT($A78,([1]PP!$A$12:$A$87))) -> TRUE | G78: =OR(EXACT($A78,([1]GP!$A$12:$A$87))) -> FALSE | H78: =OR(EXACT($A78,([1]Mixte!$A$12:$A$87))) -> FALSE | I78: =OR(EXACT($A78,([1]PE!$A$12:$A$87))) -> FALSE | J78: =OR(EXACT($A78,('[1]Pliage main'!$A$12:$A$87))) -> FALSE | K78: =OR(EXACT($A78,([1]Plat7!$A$12:$A$87))) -> FALSE | L78: =OR(EXACT($A78,([1]Plat8!$A$12:$A$87))) -> FALSE | M78: =OR(EXACT($A78,([1]Plat9!$A$12:$A$87))) -> FALSE | N78: =OR(EXACT($A78,([1]Plat10!$A$12:$A$87))) -> FALSE | O78: =OR(EXACT($A78,([1]VT1!$A$11:$A$86))) -> FALSE | P78: =OR(EXACT($A78,([1]VT2!$A$11:$A$86))) -> FALSE | Q78: =OR(EXACT($A78,([1]VT3!$A$11:$A$86))) -> FALSE | R78: =OR(EXACT($A78,([1]Bobines!$A$12:$A$87))) -> FALSE | S78: =OR(EXACT($A78,([1]Tapis!$A$12:$A$87))) -> FALSE | T78: =OR(EXACT($A78,([1]Contaminé!$A$6:$A$81))) -> FALSE
A79: =IF([1]Paramètres!I95="","",[1]Paramètres!I95) -> taie luxe | B79: =IF([1]Paramètres!K95="","",[1]Paramètres!K95) -> HCALPP_Taie | C79: =SUM(IF(('[1]Qtité art'!$E$9:$E$900=A79),('[1]Qtité art'!$D$9:$D$900))) -> 2212.666667 | E79: =OR(EXACT($A79,('[1]PP v1000'!$A$12:$A$87))) -> FALSE | F79: =OR(EXACT($A79,([1]PP!$A$12:$A$87))) -> TRUE | G79: =OR(EXACT($A79,([1]GP!$A$12:$A$87))) -> FALSE | H79: =OR(EXACT($A79,([1]Mixte!$A$12:$A$87))) -> FALSE | I79: =OR(EXACT($A79,([1]PE!$A$12:$A$87))) -> FALSE | J79: =OR(EXACT($A79,('[1]Pliage main'!$A$12:$A$87))) -> FALSE | K79: =OR(EXACT($A79,([1]Plat7!$A$12:$A$87))) -> FALSE | L79: =OR(EXACT($A79,([1]Plat8!$A$12:$A$87))) -> FALSE | M79: =OR(EXACT($A79,([1]Plat9!$A$12:$A$87))) -> FALSE | N79: =OR(EXACT($A79,([1]Plat10!$A$12:$A$87))) -> FALSE | O79: =OR(EXACT($A79,([1]VT1!$A$11:$A$86))) -> FALSE | P79: =OR(EXACT($A79,([1]VT2!$A$11:$A$86))) -> FALSE | Q79: =OR(EXACT($A79,([1]VT3!$A$11:$A$86))) -> FALSE | R79: =OR(EXACT($A79,([1]Bobines!$A$12:$A$87))) -> FALSE | S79: =OR(EXACT($A79,([1]Tapis!$A$12:$A$87))) -> FALSE | T79: =OR(EXACT($A79,([1]Contaminé!$A$6:$A$81))) -> FALSE
A80: =IF([1]Paramètres!I96="","",[1]Paramètres!I96) -> tapis bain | B80: =IF([1]Paramètres!K96="","",[1]Paramètres!K96) -> HSECPA_Eponge | C80: =SUM(IF(('[1]Qtité art'!$E$9:$E$900=A80),('[1]Qtité art'!$D$9:$D$900))) -> 11203.66667 | E80: =OR(EXACT($A80,('[1]PP v1000'!$A$12:$A$87))) -> FALSE | F80: =OR(EXACT($A80,([1]PP!$A$12:$A$87))) -> FALSE | G80: =OR(EXACT($A80,([1]GP!$A$12:$A$87))) -> FALSE | H80: =OR(EXACT($A80,([1]Mixte!$A$12:$A$87))) -> FALSE | I80: =OR(EXACT($A80,([1]PE!$A$12:$A$87))) -> TRUE | J80: =OR(EXACT($A80,('[1]Pliage main'!$A$12:$A$87))) -> FALSE | K80: =OR(EXACT($A80,([1]Plat7!$A$12:$A$87))) -> FALSE | L80: =OR(EXACT($A80,([1]Plat8!$A$12:$A$87))) -> FALSE | M80: =OR(EXACT($A80,([1]Plat9!$A$12:$A$87))) -> FALSE | N80: =OR(EXACT($A80,([1]Plat10!$A$12:$A$87))) -> FALSE | O80: =OR(EXACT($A80,([1]VT1!$A$11:$A$86))) -> FALSE | P80: =OR(EXACT($A80,([1]VT2!$A$11:$A$86))) -> FALSE | Q80: =OR(EXACT($A80,([1]VT3!$A$11:$A$86))) -> FALSE | R80: =OR(EXACT($A80,([1]Bobines!$A$12:$A$87))) -> FALSE | S80: =OR(EXACT($A80,([1]Tapis!$A$12:$A$87))) -> FALSE | T80: =OR(EXACT($A80,([1]Contaminé!$A$6:$A$81))) -> FALSE
A81: =IF([1]Paramètres!I97="","",[1]Paramètres!I97) -> torchon | B81: =IF([1]Paramètres!K97="","",[1]Paramètres!K97) -> RCALPP_inf_8 | C81: =SUM(IF(('[1]Qtité art'!$E$9:$E$900=A81),('[1]Qtité art'!$D$9:$D$900))) -> 16502 | E81: =OR(EXACT($A81,('[1]PP v1000'!$A$12:$A$87))) -> FALSE | F81: =OR(EXACT($A81,([1]PP!$A$12:$A$87))) -> TRUE | G81: =OR(EXACT($A81,([1]GP!$A$12:$A$87))) -> FALSE | H81: =OR(EXACT($A81,([1]Mixte!$A$12:$A$87))) -> FALSE | I81: =OR(EXACT($A81,([1]PE!$A$12:$A$87))) -> FALSE | J81: =OR(EXACT($A81,('[1]Pliage main'!$A$12:$A$87))) -> FALSE | K81: =OR(EXACT($A81,([1]Plat7!$A$12:$A$87))) -> FALSE | L81: =OR(EXACT($A81,([1]Plat8!$A$12:$A$87))) -> FALSE | M81: =OR(EXACT($A81,([1]Plat9!$A$12:$A$87))) -> FALSE | N81: =OR(EXACT($A81,([1]Plat10!$A$12:$A$87))) -> FALSE | O81: =OR(EXACT($A81,([1]VT1!$A$11:$A$86))) -> FALSE | P81: =OR(EXACT($A81,([1]VT2!$A$11:$A$86))) -> FALSE | Q81: =OR(EXACT($A81,([1]VT3!$A$11:$A$86))) -> FALSE | R81: =OR(EXACT($A81,([1]Bobines!$A$12:$A$87))) -> FALSE | S81: =OR(EXACT($A81,([1]Tapis!$A$12:$A$87))) -> FALSE | T81: =OR(EXACT($A81,([1]Contaminé!$A$6:$A$81))) -> FALSE
A82: =IF([1]Paramètres!I98="","",[1]Paramètres!I98) -> serv tab gde prestige | B82: =IF([1]Paramètres!K98="","",[1]Paramètres!K98) -> RCALPP_inf_8 | C82: =SUM(IF(('[1]Qtité art'!$E$9:$E$900=A82),('[1]Qtité art'!$D$9:$D$900))) -> 23.33333333 | E82: =OR(EXACT($A82,('[1]PP v1000'!$A$12:$A$87))) -> FALSE | F82: =OR(EXACT($A82,([1]PP!$A$12:$A$87))) -> TRUE | G82: =OR(EXACT($A82,([1]GP!$A$12:$A$87))) -> FALSE | H82: =OR(EXACT($A82,([1]Mixte!$A$12:$A$87))) -> FALSE | I82: =OR(EXACT($A82,([1]PE!$A$12:$A$87))) -> FALSE | J82: =OR(EXACT($A82,('[1]Pliage main'!$A$12:$A$87))) -> FALSE | K82: =OR(EXACT($A82,([1]Plat7!$A$12:$A$87))) -> FALSE | L82: =OR(EXACT($A82,([1]Plat8!$A$12:$A$87))) -> FALSE | M82: =OR(EXACT($A82,([1]Plat9!$A$12:$A$87))) -> FALSE | N82: =OR(EXACT($A82,([1]Plat10!$A$12:$A$87))) -> FALSE | O82: =OR(EXACT($A82,([1]VT1!$A$11:$A$86))) -> FALSE | P82: =OR(EXACT($A82,([1]VT2!$A$11:$A$86))) -> FALSE | Q82: =OR(EXACT($A82,([1]VT3!$A$11:$A$86))) -> FALSE | R82: =OR(EXACT($A82,([1]Bobines!$A$12:$A$87))) -> FALSE | S82: =OR(EXACT($A82,([1]Tapis!$A$12:$A$87))) -> FALSE | T82: =OR(EXACT($A82,([1]Contaminé!$A$6:$A$81))) -> FALSE
A83: =IF([1]Paramètres!I99="","",[1]Paramètres!I99) -> serv tab pte prestige | B83: =IF([1]Paramètres!K99="","",[1]Paramètres!K99) -> RCALPP_inf_8 | C83: =SUM(IF(('[1]Qtité art'!$E$9:$E$900=A83),('[1]Qtité art'!$D$9:$D$900))) -> 0 | E83: =OR(EXACT($A83,('[1]PP v1000'!$A$12:$A$87))) -> FALSE | F83: =OR(EXACT($A83,([1]PP!$A$12:$A$87))) -> FALSE | G83: =OR(EXACT($A83,([1]GP!$A$12:$A$87))) -> FALSE | H83: =OR(EXACT($A83,([1]Mixte!$A$12:$A$87))) -> FALSE | I83: =OR(EXACT($A83,([1]PE!$A$12:$A$87))) -> FALSE | J83: =OR(EXACT($A83,('[1]Pliage main'!$A$12:$A$87))) -> FALSE | K83: =OR(EXACT($A83,([1]Plat7!$A$12:$A$87))) -> FALSE | L83: =OR(EXACT($A83,([1]Plat8!$A$12:$A$87))) -> FALSE | M83: =OR(EXACT($A83,([1]Plat9!$A$12:$A$87))) -> FALSE | N83: =OR(EXACT($A83,([1]Plat10!$A$12:$A$87))) -> FALSE | O83: =OR(EXACT($A83,([1]VT1!$A$11:$A$86))) -> FALSE | P83: =OR(EXACT($A83,([1]VT2!$A$11:$A$86))) -> FALSE | Q83: =OR(EXACT($A83,([1]VT3!$A$11:$A$86))) -> FALSE | R83: =OR(EXACT($A83,([1]Bobines!$A$12:$A$87))) -> FALSE | S83: =OR(EXACT($A83,([1]Tapis!$A$12:$A$87))) -> FALSE | T83: =OR(EXACT($A83,([1]Contaminé!$A$6:$A$81))) -> FALSE
A84: =IF([1]Paramètres!I100="","",[1]Paramètres!I100) -> set | B84: =IF([1]Paramètres!K100="","",[1]Paramètres!K100) -> RCALPP_inf_8 | C84: =SUM(IF(('[1]Qtité art'!$E$9:$E$900=A84),('[1]Qtité art'!$D$9:$D$900))) -> 0 | E84: =OR(EXACT($A84,('[1]PP v1000'!$A$12:$A$87))) -> FALSE | F84: =OR(EXACT($A84,([1]PP!$A$12:$A$87))) -> FALSE | G84: =OR(EXACT($A84,([1]GP!$A$12:$A$87))) -> FALSE | H84: =OR(EXACT($A84,([1]Mixte!$A$12:$A$87))) -> FALSE | I84: =OR(EXACT($A84,([1]PE!$A$12:$A$87))) -> FALSE | J84: =OR(EXACT($A84,('[1]Pliage main'!$A$12:$A$87))) -> FALSE | K84: =OR(EXACT($A84,([1]Plat7!$A$12:$A$87))) -> FALSE | L84: =OR(EXACT($A84,([1]Plat8!$A$12:$A$87))) -> FALSE | M84: =OR(EXACT($A84,([1]Plat9!$A$12:$A$87))) -> FALSE | N84: =OR(EXACT($A84,([1]Plat10!$A$12:$A$87))) -> FALSE | O84: =OR(EXACT($A84,([1]VT1!$A$11:$A$86))) -> FALSE | P84: =OR(EXACT($A84,([1]VT2!$A$11:$A$86))) -> FALSE | Q84: =OR(EXACT($A84,([1]VT3!$A$11:$A$86))) -> FALSE | R84: =OR(EXACT($A84,([1]Bobines!$A$12:$A$87))) -> FALSE | S84: =OR(EXACT($A84,([1]Tapis!$A$12:$A$87))) -> FALSE | T84: =OR(EXACT($A84,([1]Contaminé!$A$6:$A$81))) -> FALSE
A85: =IF([1]Paramètres!I101="","",[1]Paramètres!I101) -> descente de lit | B85: =IF([1]Paramètres!K101="","",[1]Paramètres!K101) -> HSECPA_Eponge | C85: =SUM(IF(('[1]Qtité art'!$E$9:$E$900=A85),('[1]Qtité art'!$D$9:$D$900))) -> 0 | E85: =OR(EXACT($A85,('[1]PP v1000'!$A$12:$A$87))) -> FALSE | F85: =OR(EXACT($A85,([1]PP!$A$12:$A$87))) -> FALSE | G85: =OR(EXACT($A85,([1]GP!$A$12:$A$87))) -> FALSE | H85: =OR(EXACT($A85,([1]Mixte!$A$12:$A$87))) -> FALSE | I85: =OR(EXACT($A85,([1]PE!$A$12:$A$87))) -> FALSE | J85: =OR(EXACT($A85,('[1]Pliage main'!$A$12:$A$87))) -> FALSE | K85: =OR(EXACT($A85,([1]Plat7!$A$12:$A$87))) -> FALSE | L85: =OR(EXACT($A85,([1]Plat8!$A$12:$A$87))) -> FALSE | M85: =OR(EXACT($A85,([1]Plat9!$A$12:$A$87))) -> FALSE | N85: =OR(EXACT($A85,([1]Plat10!$A$12:$A$87))) -> FALSE | O85: =OR(EXACT($A85,([1]VT1!$A$11:$A$86))) -> FALSE | P85: =OR(EXACT($A85,([1]VT2!$A$11:$A$86))) -> FALSE | Q85: =OR(EXACT($A85,([1]VT3!$A$11:$A$86))) -> FALSE | R85: =OR(EXACT($A85,([1]Bobines!$A$12:$A$87))) -> FALSE | S85: =OR(EXACT($A85,([1]Tapis!$A$12:$A$87))) -> FALSE | T85: =OR(EXACT($A85,([1]Contaminé!$A$6:$A$81))) -> FALSE
A86: =IF([1]Paramètres!I102="","",[1]Paramètres!I102) -> nap prestige | B86: =IF([1]Paramètres!K102="","",[1]Paramètres!K102) -> RCALGP_Grde_Nappe | C86: =SUM(IF(('[1]Qtité art'!$E$9:$E$900=A86),('[1]Qtité art'!$D$9:$D$900))) -> 0 | E86: =OR(EXACT($A86,('[1]PP v1000'!$A$12:$A$87))) -> FALSE | F86: =OR(EXACT($A86,([1]PP!$A$12:$A$87))) -> FALSE | G86: =OR(EXACT($A86,([1]GP!$A$12:$A$87))) -> FALSE | H86: =OR(EXACT($A86,([1]Mixte!$A$12:$A$87))) -> FALSE | I86: =OR(EXACT($A86,([1]PE!$A$12:$A$87))) -> FALSE | J86: =OR(EXACT($A86,('[1]Pliage main'!$A$12:$A$87))) -> FALSE | K86: =OR(EXACT($A86,([1]Plat7!$A$12:$A$87))) -> FALSE | L86: =OR(EXACT($A86,([1]Plat8!$A$12:$A$87))) -> FALSE | M86: =OR(EXACT($A86,([1]Plat9!$A$12:$A$87))) -> FALSE | N86: =OR(EXACT($A86,([1]Plat10!$A$12:$A$87))) -> FALSE | O86: =OR(EXACT($A86,([1]VT1!$A$11:$A$86))) -> FALSE | P86: =OR(EXACT($A86,([1]VT2!$A$11:$A$86))) -> FALSE | Q86: =OR(EXACT($A86,([1]VT3!$A$11:$A$86))) -> FALSE | R86: =OR(EXACT($A86,([1]Bobines!$A$12:$A$87))) -> FALSE | S86: =OR(EXACT($A86,([1]Tapis!$A$12:$A$87))) -> FALSE | T86: =OR(EXACT($A86,([1]Contaminé!$A$6:$A$81))) -> FALSE
A87: =IF([1]Paramètres!I103="","",[1]Paramètres!I103) -> drap 280 | B87: =IF([1]Paramètres!K103="","",[1]Paramètres!K103) -> HCALGP_Drap | C87: =SUM(IF(('[1]Qtité art'!$E$9:$E$900=A87),('[1]Qtité art'!$D$9:$D$900))) -> 0 | E87: =OR(EXACT($A87,('[1]PP v1000'!$A$12:$A$87))) -> FALSE | F87: =OR(EXACT($A87,([1]PP!$A$12:$A$87))) -> FALSE | G87: =OR(EXACT($A87,([1]GP!$A$12:$A$87))) -> FALSE | H87: =OR(EXACT($A87,([1]Mixte!$A$12:$A$87))) -> FALSE | I87: =OR(EXACT($A87,([1]PE!$A$12:$A$87))) -> FALSE | J87: =OR(EXACT($A87,('[1]Pliage main'!$A$12:$A$87))) -> FALSE | K87: =OR(EXACT($A87,([1]Plat7!$A$12:$A$87))) -> FALSE | L87: =OR(EXACT($A87,([1]Plat8!$A$12:$A$87))) -> FALSE | M87: =OR(EXACT($A87,([1]Plat9!$A$12:$A$87))) -> FALSE | N87: =OR(EXACT($A87,([1]Plat10!$A$12:$A$87))) -> FALSE | O87: =OR(EXACT($A87,([1]VT1!$A$11:$A$86))) -> FALSE | P87: =OR(EXACT($A87,([1]VT2!$A$11:$A$86))) -> FALSE | Q87: =OR(EXACT($A87,([1]VT3!$A$11:$A$86))) -> FALSE | R87: =OR(EXACT($A87,([1]Bobines!$A$12:$A$87))) -> FALSE | S87: =OR(EXACT($A87,([1]Tapis!$A$12:$A$87))) -> FALSE | T87: =OR(EXACT($A87,([1]Contaminé!$A$6:$A$81))) -> FALSE
A88: =IF([1]Paramètres!I104="","",[1]Paramètres!I104) -> drap bain clas | B88: =IF([1]Paramètres!K104="","",[1]Paramètres!K104) -> HSECPA_Eponge | C88: =SUM(IF(('[1]Qtité art'!$E$9:$E$900=A88),('[1]Qtité art'!$D$9:$D$900))) -> 0 | E88: =OR(EXACT($A88,('[1]PP v1000'!$A$12:$A$87))) -> FALSE | F88: =OR(EXACT($A88,([1]PP!$A$12:$A$87))) -> FALSE | G88: =OR(EXACT($A88,([1]GP!$A$12:$A$87))) -> FALSE | H88: =OR(EXACT($A88,([1]Mixte!$A$12:$A$87))) -> FALSE | I88: =OR(EXACT($A88,([1]PE!$A$12:$A$87))) -> FALSE | J88: =OR(EXACT($A88,('[1]Pliage main'!$A$12:$A$87))) -> FALSE | K88: =OR(EXACT($A88,([1]Plat7!$A$12:$A$87))) -> FALSE | L88: =OR(EXACT($A88,([1]Plat8!$A$12:$A$87))) -> FALSE | M88: =OR(EXACT($A88,([1]Plat9!$A$12:$A$87))) -> FALSE | N88: =OR(EXACT($A88,([1]Plat10!$A$12:$A$87))) -> FALSE | O88: =OR(EXACT($A88,([1]VT1!$A$11:$A$86))) -> FALSE | P88: =OR(EXACT($A88,([1]VT2!$A$11:$A$86))) -> FALSE | Q88: =OR(EXACT($A88,([1]VT3!$A$11:$A$86))) -> FALSE | R88: =OR(EXACT($A88,([1]Bobines!$A$12:$A$87))) -> FALSE | S88: =OR(EXACT($A88,([1]Tapis!$A$12:$A$87))) -> FALSE | T88: =OR(EXACT($A88,([1]Contaminé!$A$6:$A$81))) -> FALSE
A89: =IF([1]Paramètres!I105="","",[1]Paramètres!I105) -> Drap Coton 180 & 240 | B89: =IF([1]Paramètres!K105="","",[1]Paramètres!K105) -> HCALGP_Drap | C89: =SUM(IF(('[1]Qtité art'!$E$9:$E$900=A89),('[1]Qtité art'!$D$9:$D$900))) -> 0 | E89: =OR(EXACT($A89,('[1]PP v1000'!$A$12:$A$87))) -> FALSE | F89: =OR(EXACT($A89,([1]PP!$A$12:$A$87))) -> FALSE | G89: =OR(EXACT($A89,([1]GP!$A$12:$A$87))) -> FALSE | H89: =OR(EXACT($A89,([1]Mixte!$A$12:$A$87))) -> FALSE | I89: =OR(EXACT($A89,([1]PE!$A$12:$A$87))) -> FALSE | J89: =OR(EXACT($A89,('[1]Pliage main'!$A$12:$A$87))) -> FALSE | K89: =OR(EXACT($A89,([1]Plat7!$A$12:$A$87))) -> FALSE | L89: =OR(EXACT($A89,([1]Plat8!$A$12:$A$87))) -> FALSE | M89: =OR(EXACT($A89,([1]Plat9!$A$12:$A$87))) -> FALSE | N89: =OR(EXACT($A89,([1]Plat10!$A$12:$A$87))) -> FALSE | O89: =OR(EXACT($A89,([1]VT1!$A$11:$A$86))) -> FALSE | P89: =OR(EXACT($A89,([1]VT2!$A$11:$A$86))) -> FALSE | Q89: =OR(EXACT($A89,([1]VT3!$A$11:$A$86))) -> FALSE | R89: =OR(EXACT($A89,([1]Bobines!$A$12:$A$87))) -> FALSE | S89: =OR(EXACT($A89,([1]Tapis!$A$12:$A$87))) -> FALSE | T89: =OR(EXACT($A89,([1]Contaminé!$A$6:$A$81))) -> FALSE
A90: =IF([1]Paramètres!I106="","",[1]Paramètres!I106) -> Drap Coton 280 | B90: =IF([1]Paramètres!K106="","",[1]Paramètres!K106) -> HCALGP_Drap | C90: =SUM(IF(('[1]Qtité art'!$E$9:$E$900=A90),('[1]Qtité art'!$D$9:$D$900))) -> 0 | E90: =OR(EXACT($A90,('[1]PP v1000'!$A$12:$A$87))) -> FALSE | F90: =OR(EXACT($A90,([1]PP!$A$12:$A$87))) -> FALSE | G90: =OR(EXACT($A90,([1]GP!$A$12:$A$87))) -> FALSE | H90: =OR(EXACT($A90,([1]Mixte!$A$12:$A$87))) -> FALSE | I90: =OR(EXACT($A90,([1]PE!$A$12:$A$87))) -> FALSE | J90: =OR(EXACT($A90,('[1]Pliage main'!$A$12:$A$87))) -> FALSE | K90: =OR(EXACT($A90,([1]Plat7!$A$12:$A$87))) -> FALSE | L90: =OR(EXACT($A90,([1]Plat8!$A$12:$A$87))) -> FALSE | M90: =OR(EXACT($A90,([1]Plat9!$A$12:$A$87))) -> FALSE | N90: =OR(EXACT($A90,([1]Plat10!$A$12:$A$87))) -> FALSE | O90: =OR(EXACT($A90,([1]VT1!$A$11:$A$86))) -> FALSE | P90: =OR(EXACT($A90,([1]VT2!$A$11:$A$86))) -> FALSE | Q90: =OR(EXACT($A90,([1]VT3!$A$11:$A$86))) -> FALSE | R90: =OR(EXACT($A90,([1]Bobines!$A$12:$A$87))) -> FALSE | S90: =OR(EXACT($A90,([1]Tapis!$A$12:$A$87))) -> FALSE | T90: =OR(EXACT($A90,([1]Contaminé!$A$6:$A$81))) -> FALSE
A91: =IF([1]Paramètres!I107="","",[1]Paramètres!I107) -> Drap bain PM | B91: =IF([1]Paramètres!K107="","",[1]Paramètres!K107) -> HSECPA_Eponge | C91: =SUM(IF(('[1]Qtité art'!$E$9:$E$900=A91),('[1]Qtité art'!$D$9:$D$900))) -> 0 | E91: =OR(EXACT($A91,('[1]PP v1000'!$A$12:$A$87))) -> FALSE | F91: =OR(EXACT($A91,([1]PP!$A$12:$A$87))) -> FALSE | G91: =OR(EXACT($A91,([1]GP!$A$12:$A$87))) -> FALSE | H91: =OR(EXACT($A91,([1]Mixte!$A$12:$A$87))) -> FALSE | I91: =OR(EXACT($A91,([1]PE!$A$12:$A$87))) -> FALSE | J91: =OR(EXACT($A91,('[1]Pliage main'!$A$12:$A$87))) -> FALSE | K91: =OR(EXACT($A91,([1]Plat7!$A$12:$A$87))) -> FALSE | L91: =OR(EXACT($A91,([1]Plat8!$A$12:$A$87))) -> FALSE | M91: =OR(EXACT($A91,([1]Plat9!$A$12:$A$87))) -> FALSE | N91: =OR(EXACT($A91,([1]Plat10!$A$12:$A$87))) -> FALSE | O91: =OR(EXACT($A91,([1]VT1!$A$11:$A$86))) -> FALSE | P91: =OR(EXACT($A91,([1]VT2!$A$11:$A$86))) -> FALSE | Q91: =OR(EXACT($A91,([1]VT3!$A$11:$A$86))) -> FALSE | R91: =OR(EXACT($A91,([1]Bobines!$A$12:$A$87))) -> FALSE | S91: =OR(EXACT($A91,([1]Tapis!$A$12:$A$87))) -> FALSE | T91: =OR(EXACT($A91,([1]Contaminé!$A$6:$A$81))) -> FALSE
A92: =IF([1]Paramètres!I108="","",[1]Paramètres!I108) -> Nap à plat | B92: =IF([1]Paramètres!K108="","",[1]Paramètres!K108) -> RCALGP_Grde_Nappe | C92: =SUM(IF(('[1]Qtité art'!$E$9:$E$900=A92),('[1]Qtité art'!$D$9:$D$900))) -> 0 | E92: =OR(EXACT($A92,('[1]PP v1000'!$A$12:$A$87))) -> FALSE | F92: =OR(EXACT($A92,([1]PP!$A$12:$A$87))) -> FALSE | G92: =OR(EXACT($A92,([1]GP!$A$12:$A$87))) -> FALSE | H92: =OR(EXACT($A92,([1]Mixte!$A$12:$A$87))) -> FALSE | I92: =OR(EXACT($A92,([1]PE!$A$12:$A$87))) -> FALSE | J92: =OR(EXACT($A92,('[1]Pliage main'!$A$12:$A$87))) -> FALSE | K92: =OR(EXACT($A92,([1]Plat7!$A$12:$A$87))) -> FALSE | L92: =OR(EXACT($A92,([1]Plat8!$A$12:$A$87))) -> FALSE | M92: =OR(EXACT($A92,([1]Plat9!$A$12:$A$87))) -> FALSE | N92: =OR(EXACT($A92,([1]Plat10!$A$12:$A$87))) -> FALSE | O92: =OR(EXACT($A92,([1]VT1!$A$11:$A$86))) -> FALSE | P92: =OR(EXACT($A92,([1]VT2!$A$11:$A$86))) -> FALSE | Q92: =OR(EXACT($A92,([1]VT3!$A$11:$A$86))) -> FALSE | R92: =OR(EXACT($A92,([1]Bobines!$A$12:$A$87))) -> FALSE | S92: =OR(EXACT($A92,([1]Tapis!$A$12:$A$87))) -> FALSE | T92: =OR(EXACT($A92,([1]Contaminé!$A$6:$A$81))) -> FALSE
A93: =IF([1]Paramètres!I109="","",[1]Paramètres!I109) -> nap ronde | B93: =IF([1]Paramètres!K109="","",[1]Paramètres!K109) -> RCALGP_Grde_Nappe | C93: =SUM(IF(('[1]Qtité art'!$E$9:$E$900=A93),('[1]Qtité art'!$D$9:$D$900))) -> 0 | E93: =OR(EXACT($A93,('[1]PP v1000'!$A$12:$A$87))) -> FALSE | F93: =OR(EXACT($A93,([1]PP!$A$12:$A$87))) -> FALSE | G93: =OR(EXACT($A93,([1]GP!$A$12:$A$87))) -> FALSE | H93: =OR(EXACT($A93,([1]Mixte!$A$12:$A$87))) -> FALSE | I93: =OR(EXACT($A93,([1]PE!$A$12:$A$87))) -> FALSE | J93: =OR(EXACT($A93,('[1]Pliage main'!$A$12:$A$87))) -> FALSE | K93: =OR(EXACT($A93,([1]Plat7!$A$12:$A$87))) -> FALSE | L93: =OR(EXACT($A93,([1]Plat8!$A$12:$A$87))) -> FALSE | M93: =OR(EXACT($A93,([1]Plat9!$A$12:$A$87))) -> FALSE | N93: =OR(EXACT($A93,([1]Plat10!$A$12:$A$87))) -> FALSE | O93: =OR(EXACT($A93,([1]VT1!$A$11:$A$86))) -> FALSE | P93: =OR(EXACT($A93,([1]VT2!$A$11:$A$86))) -> FALSE | Q93: =OR(EXACT($A93,([1]VT3!$A$11:$A$86))) -> FALSE | R93: =OR(EXACT($A93,([1]Bobines!$A$12:$A$87))) -> FALSE | S93: =OR(EXACT($A93,([1]Tapis!$A$12:$A$87))) -> FALSE | T93: =OR(EXACT($A93,([1]Contaminé!$A$6:$A$81))) -> FALSE
A94: =IF([1]Paramètres!I110="","",[1]Paramètres!I110) -> npr prestige | B94: =IF([1]Paramètres!K110="","",[1]Paramètres!K110) -> RCALGP_Grde_Nappe | C94: =SUM(IF(('[1]Qtité art'!$E$9:$E$900=A94),('[1]Qtité art'!$D$9:$D$900))) -> 0 | E94: =OR(EXACT($A94,('[1]PP v1000'!$A$12:$A$87))) -> FALSE | F94: =OR(EXACT($A94,([1]PP!$A$12:$A$87))) -> FALSE | G94: =OR(EXACT($A94,([1]GP!$A$12:$A$87))) -> FALSE | H94: =OR(EXACT($A94,([1]Mixte!$A$12:$A$87))) -> FALSE | I94: =OR(EXACT($A94,([1]PE!$A$12:$A$87))) -> FALSE | J94: =OR(EXACT($A94,('[1]Pliage main'!$A$12:$A$87))) -> FALSE | K94: =OR(EXACT($A94,([1]Plat7!$A$12:$A$87))) -> FALSE | L94: =OR(EXACT($A94,([1]Plat8!$A$12:$A$87))) -> FALSE | M94: =OR(EXACT($A94,([1]Plat9!$A$12:$A$87))) -> FALSE | N94: =OR(EXACT($A94,([1]Plat10!$A$12:$A$87))) -> FALSE | O94: =OR(EXACT($A94,([1]VT1!$A$11:$A$86))) -> FALSE | P94: =OR(EXACT($A94,([1]VT2!$A$11:$A$86))) -> FALSE | Q94: =OR(EXACT($A94,([1]VT3!$A$11:$A$86))) -> FALSE | R94: =OR(EXACT($A94,([1]Bobines!$A$12:$A$87))) -> FALSE | S94: =OR(EXACT($A94,([1]Tapis!$A$12:$A$87))) -> FALSE | T94: =OR(EXACT($A94,([1]Contaminé!$A$6:$A$81))) -> FALSE
A95: =IF([1]Paramètres!I111="","",[1]Paramètres!I111) -> Poubelle | B95: =IF([1]Paramètres!K111="","",[1]Paramètres!K111) -> HSECPM_Santé | C95: =SUM(IF(('[1]Qtité art'!$E$9:$E$900=A95),('[1]Qtité art'!$D$9:$D$900))) -> 1069 | E95: =OR(EXACT($A95,('[1]PP v1000'!$A$12:$A$87))) -> FALSE | F95: =OR(EXACT($A95,([1]PP!$A$12:$A$87))) -> FALSE | G95: =OR(EXACT($A95,([1]GP!$A$12:$A$87))) -> FALSE | H95: =OR(EXACT($A95,([1]Mixte!$A$12:$A$87))) -> FALSE | I95: =OR(EXACT($A95,([1]PE!$A$12:$A$87))) -> FALSE | J95: =OR(EXACT($A95,('[1]Pliage main'!$A$12:$A$87))) -> FALSE | K95: =OR(EXACT($A95,([1]Plat7!$A$12:$A$87))) -> FALSE | L95: =OR(EXACT($A95,([1]Plat8!$A$12:$A$87))) -> FALSE | M95: =OR(EXACT($A95,([1]Plat9!$A$12:$A$87))) -> FALSE | N95: =OR(EXACT($A95,([1]Plat10!$A$12:$A$87))) -> FALSE | O95: =OR(EXACT($A95,([1]VT1!$A$11:$A$86))) -> FALSE | P95: =OR(EXACT($A95,([1]VT2!$A$11:$A$86))) -> FALSE | Q95: =OR(EXACT($A95,([1]VT3!$A$11:$A$86))) -> FALSE | R95: =OR(EXACT($A95,([1]Bobines!$A$12:$A$87))) -> FALSE | S95: =OR(EXACT($A95,([1]Tapis!$A$12:$A$87))) -> FALSE | T95: =OR(EXACT($A95,([1]Contaminé!$A$6:$A$81))) -> FALSE | U95: Poubelle
A96: =IF([1]Paramètres!I112="","",[1]Paramètres!I112) -> Presse | B96: =IF([1]Paramètres!K112="","",[1]Paramètres!K112) -> RCALPP_inf_8 | C96: =SUM(IF(('[1]Qtité art'!$E$9:$E$900=A96),('[1]Qtité art'!$D$9:$D$900))) -> 0 | E96: =OR(EXACT($A96,('[1]PP v1000'!$A$12:$A$87))) -> FALSE | F96: =OR(EXACT($A96,([1]PP!$A$12:$A$87))) -> FALSE | G96: =OR(EXACT($A96,([1]GP!$A$12:$A$87))) -> FALSE | H96: =OR(EXACT($A96,([1]Mixte!$A$12:$A$87))) -> FALSE | I96: =OR(EXACT($A96,([1]PE!$A$12:$A$87))) -> FALSE | J96: =OR(EXACT($A96,('[1]Pliage main'!$A$12:$A$87))) -> FALSE | K96: =OR(EXACT($A96,([1]Plat7!$A$12:$A$87))) -> FALSE | L96: =OR(EXACT($A96,([1]Plat8!$A$12:$A$87))) -> FALSE | M96: =OR(EXACT($A96,([1]Plat9!$A$12:$A$87))) -> FALSE | N96: =OR(EXACT($A96,([1]Plat10!$A$12:$A$87))) -> FALSE | O96: =OR(EXACT($A96,([1]VT1!$A$11:$A$86))) -> FALSE | P96: =OR(EXACT($A96,([1]VT2!$A$11:$A$86))) -> FALSE | Q96: =OR(EXACT($A96,([1]VT3!$A$11:$A$86))) -> FALSE | R96: =OR(EXACT($A96,([1]Bobines!$A$12:$A$87))) -> FALSE | S96: =OR(EXACT($A96,([1]Tapis!$A$12:$A$87))) -> FALSE | T96: =OR(EXACT($A96,([1]Contaminé!$A$6:$A$81))) -> FALSE
A97: =IF([1]Paramètres!I113="","",[1]Paramètres!I113) -> serv_alim | B97: =IF([1]Paramètres!K113="","",[1]Paramètres!K113) -> RCALPP_inf_8 | C97: =SUM(IF(('[1]Qtité art'!$E$9:$E$900=A97),('[1]Qtité art'!$D$9:$D$900))) -> 0 | E97: =OR(EXACT($A97,('[1]PP v1000'!$A$12:$A$87))) -> FALSE | F97: =OR(EXACT($A97,([1]PP!$A$12:$A$87))) -> FALSE | G97: =OR(EXACT($A97,([1]GP!$A$12:$A$87))) -> FALSE | H97: =OR(EXACT($A97,([1]Mixte!$A$12:$A$87))) -> FALSE | I97: =OR(EXACT($A97,([1]PE!$A$12:$A$87))) -> FALSE | J97: =OR(EXACT($A97,('[1]Pliage main'!$A$12:$A$87))) -> FALSE | K97: =OR(EXACT($A97,([1]Plat7!$A$12:$A$87))) -> FALSE | L97: =OR(EXACT($A97,([1]Plat8!$A$12:$A$87))) -> FALSE | M97: =OR(EXACT($A97,([1]Plat9!$A$12:$A$87))) -> FALSE | N97: =OR(EXACT($A97,([1]Plat10!$A$12:$A$87))) -> FALSE | O97: =OR(EXACT($A97,([1]VT1!$A$11:$A$86))) -> FALSE | P97: =OR(EXACT($A97,([1]VT2!$A$11:$A$86))) -> FALSE | Q97: =OR(EXACT($A97,([1]VT3!$A$11:$A$86))) -> FALSE | R97: =OR(EXACT($A97,([1]Bobines!$A$12:$A$87))) -> FALSE | S97: =OR(EXACT($A97,([1]Tapis!$A$12:$A$87))) -> FALSE | T97: =OR(EXACT($A97,([1]Contaminé!$A$6:$A$81))) -> FALSE
A98: =IF([1]Paramètres!I114="","",[1]Paramètres!I114) -> Taie Carrée | B98: =IF([1]Paramètres!K114="","",[1]Paramètres!K114) -> HCALPP_Taie | C98: =SUM(IF(('[1]Qtité art'!$E$9:$E$900=A98),('[1]Qtité art'!$D$9:$D$900))) -> 26379.66667 | E98: =OR(EXACT($A98,('[1]PP v1000'!$A$12:$A$87))) -> FALSE | F98: =OR(EXACT($A98,([1]PP!$A$12:$A$87))) -> TRUE | G98: =OR(EXACT($A98,([1]GP!$A$12:$A$87))) -> FALSE | H98: =OR(EXACT($A98,([1]Mixte!$A$12:$A$87))) -> FALSE | I98: =OR(EXACT($A98,([1]PE!$A$12:$A$87))) -> FALSE | J98: =OR(EXACT($A98,('[1]Pliage main'!$A$12:$A$87))) -> FALSE | K98: =OR(EXACT($A98,([1]Plat7!$A$12:$A$87))) -> FALSE | L98: =OR(EXACT($A98,([1]Plat8!$A$12:$A$87))) -> FALSE | M98: =OR(EXACT($A98,([1]Plat9!$A$12:$A$87))) -> FALSE | N98: =OR(EXACT($A98,([1]Plat10!$A$12:$A$87))) -> FALSE | O98: =OR(EXACT($A98,([1]VT1!$A$11:$A$86))) -> FALSE | P98: =OR(EXACT($A98,([1]VT2!$A$11:$A$86))) -> FALSE | Q98: =OR(EXACT($A98,([1]VT3!$A$11:$A$86))) -> FALSE | R98: =OR(EXACT($A98,([1]Bobines!$A$12:$A$87))) -> FALSE | S98: =OR(EXACT($A98,([1]Tapis!$A$12:$A$87))) -> FALSE | T98: =OR(EXACT($A98,([1]Contaminé!$A$6:$A$81))) -> FALSE
A99: =IF([1]Paramètres!I115="","",[1]Paramètres!I115) -> HC stripes | B99: =IF([1]Paramètres!K115="","",[1]Paramètres!K115) -> HCALGP_HC | C99: =SUM(IF(('[1]Qtité art'!$E$9:$E$900=A99),('[1]Qtité art'!$D$9:$D$900))) -> 0 | E99: =OR(EXACT($A99,('[1]PP v1000'!$A$12:$A$87))) -> FALSE | F99: =OR(EXACT($A99,([1]PP!$A$12:$A$87))) -> FALSE | G99: =OR(EXACT($A99,([1]GP!$A$12:$A$87))) -> FALSE | H99: =OR(EXACT($A99,([1]Mixte!$A$12:$A$87))) -> FALSE | I99: =OR(EXACT($A99,([1]PE!$A$12:$A$87))) -> FALSE | J99: =OR(EXACT($A99,('[1]Pliage main'!$A$12:$A$87))) -> FALSE | K99: =OR(EXACT($A99,([1]Plat7!$A$12:$A$87))) -> FALSE | L99: =OR(EXACT($A99,([1]Plat8!$A$12:$A$87))) -> FALSE | M99: =OR(EXACT($A99,([1]Plat9!$A$12:$A$87))) -> FALSE | N99: =OR(EXACT($A99,([1]Plat10!$A$12:$A$87))) -> FALSE | O99: =OR(EXACT($A99,([1]VT1!$A$11:$A$86))) -> FALSE | P99: =OR(EXACT($A99,([1]VT2!$A$11:$A$86))) -> FALSE | Q99: =OR(EXACT($A99,([1]VT3!$A$11:$A$86))) -> FALSE | R99: =OR(EXACT($A99,([1]Bobines!$A$12:$A$87))) -> FALSE | S99: =OR(EXACT($A99,([1]Tapis!$A$12:$A$87))) -> FALSE | T99: =OR(EXACT($A99,([1]Contaminé!$A$6:$A$81))) -> FALSE
A100: =IF([1]Paramètres!I116="","",[1]Paramètres!I116) -> HC Paysage | B100: =IF([1]Paramètres!K116="","",[1]Paramètres!K116) -> HCALGP_HC | C100: =SUM(IF(('[1]Qtité art'!$E$9:$E$900=A100),('[1]Qtité art'!$D$9:$D$900))) -> 0 | E100: =OR(EXACT($A100,('[1]PP v1000'!$A$12:$A$87))) -> FALSE | F100: =OR(EXACT($A100,([1]PP!$A$12:$A$87))) -> FALSE | G100: =OR(EXACT($A100,([1]GP!$A$12:$A$87))) -> FALSE | H100: =OR(EXACT($A100,([1]Mixte!$A$12:$A$87))) -> FALSE | I100: =OR(EXACT($A100,([1]PE!$A$12:$A$87))) -> FALSE | J100: =OR(EXACT($A100,('[1]Pliage main'!$A$12:$A$87))) -> FALSE | K100: =OR(EXACT($A100,([1]Plat7!$A$12:$A$87))) -> FALSE | L100: =OR(EXACT($A100,([1]Plat8!$A$12:$A$87))) -> FALSE | M100: =OR(EXACT($A100,([1]Plat9!$A$12:$A$87))) -> FALSE | N100: =OR(EXACT($A100,([1]Plat10!$A$12:$A$87))) -> FALSE | O100: =OR(EXACT($A100,([1]VT1!$A$11:$A$86))) -> FALSE | P100: =OR(EXACT($A100,([1]VT2!$A$11:$A$86))) -> FALSE | Q100: =OR(EXACT($A100,([1]VT3!$A$11:$A$86))) -> FALSE | R100: =OR(EXACT($A100,([1]Bobines!$A$12:$A$87))) -> FALSE | S100: =OR(EXACT($A100,([1]Tapis!$A$12:$A$87))) -> FALSE | T100: =OR(EXACT($A100,([1]Contaminé!$A$6:$A$81))) -> FALSE
A101: =IF([1]Paramètres!I117="","",[1]Paramètres!I117) -> serviette manu | B101: =IF([1]Paramètres!K117="","",[1]Paramètres!K117) -> RCALPP_inf_8 | C101: =SUM(IF(('[1]Qtité art'!$E$9:$E$900=A101),('[1]Qtité art'!$D$9:$D$900))) -> 0 | E101: =OR(EXACT($A101,('[1]PP v1000'!$A$12:$A$87))) -> FALSE | F101: =OR(EXACT($A101,([1]PP!$A$12:$A$87))) -> FALSE | G101: =OR(EXACT($A101,([1]GP!$A$12:$A$87))) -> FALSE | H101: =OR(EXACT($A101,([1]Mixte!$A$12:$A$87))) -> FALSE | I101: =OR(EXACT($A101,([1]PE!$A$12:$A$87))) -> FALSE | J101: =OR(EXACT($A101,('[1]Pliage main'!$A$12:$A$87))) -> FALSE | K101: =OR(EXACT($A101,([1]Plat7!$A$12:$A$87))) -> FALSE | L101: =OR(EXACT($A101,([1]Plat8!$A$12:$A$87))) -> FALSE | M101: =OR(EXACT($A101,([1]Plat9!$A$12:$A$87))) -> FALSE | N101: =OR(EXACT($A101,([1]Plat10!$A$12:$A$87))) -> FALSE | O101: =OR(EXACT($A101,([1]VT1!$A$11:$A$86))) -> FALSE | P101: =OR(EXACT($A101,([1]VT2!$A$11:$A$86))) -> FALSE | Q101: =OR(EXACT($A101,([1]VT3!$A$11:$A$86))) -> FALSE | R101: =OR(EXACT($A101,([1]Bobines!$A$12:$A$87))) -> FALSE | S101: =OR(EXACT($A101,([1]Tapis!$A$12:$A$87))) -> FALSE | T101: =OR(EXACT($A101,([1]Contaminé!$A$6:$A$81))) -> FALSE
A102: =IF([1]Paramètres!I118="","",[1]Paramètres!I118) -> HC GD portrait | B102: =IF([1]Paramètres!K118="","",[1]Paramètres!K118) -> HCALGP_HC | C102: =SUM(IF(('[1]Qtité art'!$E$9:$E$900=A102),('[1]Qtité art'!$D$9:$D$900))) -> 0 | E102: =OR(EXACT($A102,('[1]PP v1000'!$A$12:$A$87))) -> FALSE | F102: =OR(EXACT($A102,([1]PP!$A$12:$A$87))) -> FALSE | G102: =OR(EXACT($A102,([1]GP!$A$12:$A$87))) -> FALSE | H102: =OR(EXACT($A102,([1]Mixte!$A$12:$A$87))) -> FALSE | I102: =OR(EXACT($A102,([1]PE!$A$12:$A$87))) -> FALSE | J102: =OR(EXACT($A102,('[1]Pliage main'!$A$12:$A$87))) -> FALSE | K102: =OR(EXACT($A102,([1]Plat7!$A$12:$A$87))) -> FALSE | L102: =OR(EXACT($A102,([1]Plat8!$A$12:$A$87))) -> FALSE | M102: =OR(EXACT($A102,([1]Plat9!$A$12:$A$87))) -> FALSE | N102: =OR(EXACT($A102,([1]Plat10!$A$12:$A$87))) -> FALSE | O102: =OR(EXACT($A102,([1]VT1!$A$11:$A$86))) -> FALSE | P102: =OR(EXACT($A102,([1]VT2!$A$11:$A$86))) -> FALSE | Q102: =OR(EXACT($A102,([1]VT3!$A$11:$A$86))) -> FALSE | R102: =OR(EXACT($A102,([1]Bobines!$A$12:$A$87))) -> FALSE | S102: =OR(EXACT($A102,([1]Tapis!$A$12:$A$87))) -> FALSE | T102: =OR(EXACT($A102,([1]Contaminé!$A$6:$A$81))) -> FALSE | U102: =IF(C102=0,"",IF(OR(E102=TRUE,F102=TRUE,G102=TRUE,H102=TRUE,I102=TRUE,J102=TRUE,K102=TRUE,L102=TRUE,M102=TRUE,N102=TRUE,O102=TRUE,P102=TRUE,Q102=TRUE,R102=TRUE,S102=TRUE,T102=TRUE),"",A102)) ->  | V102: x
A103: =IF([1]Paramètres!I119="","",[1]Paramètres!I119) -> petite housse | B103: =IF([1]Paramètres!K119="","",[1]Paramètres!K119) -> HCALGP_HC | C103: =SUM(IF(('[1]Qtité art'!$E$9:$E$900=A103),('[1]Qtité art'!$D$9:$D$900))) -> 5408.666667 | E103: =OR(EXACT($A103,('[1]PP v1000'!$A$12:$A$87))) -> FALSE | F103: =OR(EXACT($A103,([1]PP!$A$12:$A$87))) -> FALSE | G103: =OR(EXACT($A103,([1]GP!$A$12:$A$87))) -> TRUE | H103: =OR(EXACT($A103,([1]Mixte!$A$12:$A$87))) -> TRUE | I103: =OR(EXACT($A103,([1]PE!$A$12:$A$87))) -> FALSE | J103: =OR(EXACT($A103,('[1]Pliage main'!$A$12:$A$87))) -> FALSE | K103: =OR(EXACT($A103,([1]Plat7!$A$12:$A$87))) -> FALSE | L103: =OR(EXACT($A103,([1]Plat8!$A$12:$A$87))) -> FALSE | M103: =OR(EXACT($A103,([1]Plat9!$A$12:$A$87))) -> FALSE | N103: =OR(EXACT($A103,([1]Plat10!$A$12:$A$87))) -> FALSE | O103: =OR(EXACT($A103,([1]VT1!$A$11:$A$86))) -> FALSE | P103: =OR(EXACT($A103,([1]VT2!$A$11:$A$86))) -> FALSE | Q103: =OR(EXACT($A103,([1]VT3!$A$11:$A$86))) -> FALSE | R103: =OR(EXACT($A103,([1]Bobines!$A$12:$A$87))) -> FALSE | S103: =OR(EXACT($A103,([1]Tapis!$A$12:$A$87))) -> FALSE | T103: =OR(EXACT($A103,([1]Contaminé!$A$6:$A$81))) -> FALSE | U103: =IF(C103=0,"",IF(OR(E103=TRUE,F103=TRUE,G103=TRUE,H103=TRUE,I103=TRUE,J103=TRUE,K103=TRUE,L103=TRUE,M103=TRUE,N103=TRUE,O103=TRUE,P103=TRUE,Q103=TRUE,R103=TRUE,S103=TRUE,T103=TRUE),"",A103)) -> 
A104: =IF([1]Paramètres!I120="","",[1]Paramètres!I120) -> HC MOY portrait | B104: =IF([1]Paramètres!K120="","",[1]Paramètres!K120) -> HCALGP_HC | C104: =SUM(IF(('[1]Qtité art'!$E$9:$E$900=A104),('[1]Qtité art'!$D$9:$D$900))) -> 0 | E104: =OR(EXACT($A104,('[1]PP v1000'!$A$12:$A$87))) -> FALSE | F104: =OR(EXACT($A104,([1]PP!$A$12:$A$87))) -> FALSE | G104: =OR(EXACT($A104,([1]GP!$A$12:$A$87))) -> FALSE | H104: =OR(EXACT($A104,([1]Mixte!$A$12:$A$87))) -> FALSE | I104: =OR(EXACT($A104,([1]PE!$A$12:$A$87))) -> FALSE | J104: =OR(EXACT($A104,('[1]Pliage main'!$A$12:$A$87))) -> FALSE | K104: =OR(EXACT($A104,([1]Plat7!$A$12:$A$87))) -> FALSE | L104: =OR(EXACT($A104,([1]Plat8!$A$12:$A$87))) -> FALSE | M104: =OR(EXACT($A104,([1]Plat9!$A$12:$A$87))) -> FALSE | N104: =OR(EXACT($A104,([1]Plat10!$A$12:$A$87))) -> FALSE | O104: =OR(EXACT($A104,([1]VT1!$A$11:$A$86))) -> FALSE | P104: =OR(EXACT($A104,([1]VT2!$A$11:$A$86))) -> FALSE | Q104: =OR(EXACT($A104,([1]VT3!$A$11:$A$86))) -> FALSE | R104: =OR(EXACT($A104,([1]Bobines!$A$12:$A$87))) -> FALSE | S104: =OR(EXACT($A104,([1]Tapis!$A$12:$A$87))) -> FALSE | T104: =OR(EXACT($A104,([1]Contaminé!$A$6:$A$81))) -> FALSE | U104: =IF(C104=0,"",IF(OR(E104=TRUE,F104=TRUE,G104=TRUE,H104=TRUE,I104=TRUE,J104=TRUE,K104=TRUE,L104=TRUE,M104=TRUE,N104=TRUE,O104=TRUE,P104=TRUE,Q104=TRUE,R104=TRUE,S104=TRUE,T104=TRUE),"",A104)) -> 
A105: =IF([1]Paramètres!I121="","",[1]Paramètres!I121) -> alèse chariot | B105: =IF([1]Paramètres!K121="","",[1]Paramètres!K121) -> HCALGP_Alèse | C105: =SUM(IF(('[1]Qtité art'!$E$9:$E$900=A105),('[1]Qtité art'!$D$9:$D$900))) -> 0 | E105: =OR(EXACT($A105,('[1]PP v1000'!$A$12:$A$87))) -> FALSE | F105: =OR(EXACT($A105,([1]PP!$A$12:$A$87))) -> FALSE | G105: =OR(EXACT($A105,([1]GP!$A$12:$A$87))) -> FALSE | H105: =OR(EXACT($A105,([1]Mixte!$A$12:$A$87))) -> FALSE | I105: =OR(EXACT($A105,([1]PE!$A$12:$A$87))) -> FALSE | J105: =OR(EXACT($A105,('[1]Pliage main'!$A$12:$A$87))) -> FALSE | K105: =OR(EXACT($A105,([1]Plat7!$A$12:$A$87))) -> FALSE | L105: =OR(EXACT($A105,([1]Plat8!$A$12:$A$87))) -> FALSE | M105: =OR(EXACT($A105,([1]Plat9!$A$12:$A$87))) -> FALSE | N105: =OR(EXACT($A105,([1]Plat10!$A$12:$A$87))) -> FALSE | O105: =OR(EXACT($A105,([1]VT1!$A$11:$A$86))) -> FALSE | P105: =OR(EXACT($A105,([1]VT2!$A$11:$A$86))) -> FALSE | Q105: =OR(EXACT($A105,([1]VT3!$A$11:$A$86))) -> FALSE | R105: =OR(EXACT($A105,([1]Bobines!$A$12:$A$87))) -> FALSE | S105: =OR(EXACT($A105,([1]Tapis!$A$12:$A$87))) -> FALSE | T105: =OR(EXACT($A105,([1]Contaminé!$A$6:$A$81))) -> FALSE | U105: =IF(C105=0,"",IF(OR(E105=TRUE,F105=TRUE,G105=TRUE,H105=TRUE,I105=TRUE,J105=TRUE,K105=TRUE,L105=TRUE,M105=TRUE,N105=TRUE,O105=TRUE,P105=TRUE,Q105=TRUE,R105=TRUE,S105=TRUE,T105=TRUE),"",A105)) -> 
A106: =IF([1]Paramètres!I122="","",[1]Paramètres!I122) -> serv épges bleues | B106: =IF([1]Paramètres!K122="","",[1]Paramètres!K122) -> HSECPA_Eponge | C106: =SUM(IF(('[1]Qtité art'!$E$9:$E$900=A106),('[1]Qtité art'!$D$9:$D$900))) -> 0 | E106: =OR(EXACT($A106,('[1]PP v1000'!$A$12:$A$87))) -> FALSE | F106: =OR(EXACT($A106,([1]PP!$A$12:$A$87))) -> FALSE | G106: =OR(EXACT($A106,([1]GP!$A$12:$A$87))) -> FALSE | H106: =OR(EXACT($A106,([1]Mixte!$A$12:$A$87))) -> FALSE | I106: =OR(EXACT($A106,([1]PE!$A$12:$A$87))) -> FALSE | J106: =OR(EXACT($A106,('[1]Pliage main'!$A$12:$A$87))) -> FALSE | K106: =OR(EXACT($A106,([1]Plat7!$A$12:$A$87))) -> FALSE | L106: =OR(EXACT($A106,([1]Plat8!$A$12:$A$87))) -> FALSE | M106: =OR(EXACT($A106,([1]Plat9!$A$12:$A$87))) -> FALSE | N106: =OR(EXACT($A106,([1]Plat10!$A$12:$A$87))) -> FALSE | O106: =OR(EXACT($A106,([1]VT1!$A$11:$A$86))) -> FALSE | P106: =OR(EXACT($A106,([1]VT2!$A$11:$A$86))) -> FALSE | Q106: =OR(EXACT($A106,([1]VT3!$A$11:$A$86))) -> FALSE | R106: =OR(EXACT($A106,([1]Bobines!$A$12:$A$87))) -> FALSE | S106: =OR(EXACT($A106,([1]Tapis!$A$12:$A$87))) -> FALSE | T106: =OR(EXACT($A106,([1]Contaminé!$A$6:$A$81))) -> FALSE
A107: =IF([1]Paramètres!I123="","",[1]Paramètres!I123) -> serv épges coiffeur | B107: =IF([1]Paramètres!K123="","",[1]Paramètres!K123) -> HSECPA_Eponge | C107: =SUM(IF(('[1]Qtité art'!$E$9:$E$900=A107),('[1]Qtité art'!$D$9:$D$900))) -> 272.6666667 | E107: =OR(EXACT($A107,('[1]PP v1000'!$A$12:$A$87))) -> FALSE | F107: =OR(EXACT($A107,([1]PP!$A$12:$A$87))) -> FALSE | G107: =OR(EXACT($A107,([1]GP!$A$12:$A$87))) -> FALSE | H107: =OR(EXACT($A107,([1]Mixte!$A$12:$A$87))) -> FALSE | I107: =OR(EXACT($A107,([1]PE!$A$12:$A$87))) -> TRUE | J107: =OR(EXACT($A107,('[1]Pliage main'!$A$12:$A$87))) -> FALSE | K107: =OR(EXACT($A107,([1]Plat7!$A$12:$A$87))) -> FALSE | L107: =OR(EXACT($A107,([1]Plat8!$A$12:$A$87))) -> FALSE | M107: =OR(EXACT($A107,([1]Plat9!$A$12:$A$87))) -> FALSE | N107: =OR(EXACT($A107,([1]Plat10!$A$12:$A$87))) -> FALSE | O107: =OR(EXACT($A107,([1]VT1!$A$11:$A$86))) -> FALSE | P107: =OR(EXACT($A107,([1]VT2!$A$11:$A$86))) -> FALSE | Q107: =OR(EXACT($A107,([1]VT3!$A$11:$A$86))) -> FALSE | R107: =OR(EXACT($A107,([1]Bobines!$A$12:$A$87))) -> FALSE | S107: =OR(EXACT($A107,([1]Tapis!$A$12:$A$87))) -> FALSE | T107: =OR(EXACT($A107,([1]Contaminé!$A$6:$A$81))) -> FALSE
A108: =IF([1]Paramètres!I124="","",[1]Paramètres!I124) -> Taie | B108: =IF([1]Paramètres!K124="","",[1]Paramètres!K124) -> HCALPP_Taie | C108: =SUM(IF(('[1]Qtité art'!$E$9:$E$900=A108),('[1]Qtité art'!$D$9:$D$900))) -> 0 | E108: =OR(EXACT($A108,('[1]PP v1000'!$A$12:$A$87))) -> FALSE | F108: =OR(EXACT($A108,([1]PP!$A$12:$A$87))) -> FALSE | G108: =OR(EXACT($A108,([1]GP!$A$12:$A$87))) -> FALSE | H108: =OR(EXACT($A108,([1]Mixte!$A$12:$A$87))) -> FALSE | I108: =OR(EXACT($A108,([1]PE!$A$12:$A$87))) -> FALSE | J108: =OR(EXACT($A108,('[1]Pliage main'!$A$12:$A$87))) -> FALSE | K108: =OR(EXACT($A108,([1]Plat7!$A$12:$A$87))) -> FALSE | L108: =OR(EXACT($A108,([1]Plat8!$A$12:$A$87))) -> FALSE | M108: =OR(EXACT($A108,([1]Plat9!$A$12:$A$87))) -> FALSE | N108: =OR(EXACT($A108,([1]Plat10!$A$12:$A$87))) -> FALSE | O108: =OR(EXACT($A108,([1]VT1!$A$11:$A$86))) -> FALSE | P108: =OR(EXACT($A108,([1]VT2!$A$11:$A$86))) -> FALSE | Q108: =OR(EXACT($A108,([1]VT3!$A$11:$A$86))) -> FALSE | R108: =OR(EXACT($A108,([1]Bobines!$A$12:$A$87))) -> FALSE | S108: =OR(EXACT($A108,([1]Tapis!$A$12:$A$87))) -> FALSE | T108: =OR(EXACT($A108,([1]Contaminé!$A$6:$A$81))) -> FALSE
A109: =IF([1]Paramètres!I125="","",[1]Paramètres!I125) -> Tour de cou | B109: =IF([1]Paramètres!K125="","",[1]Paramètres!K125) -> RCALPP_inf_8 | C109: =SUM(IF(('[1]Qtité art'!$E$9:$E$900=A109),('[1]Qtité art'!$D$9:$D$900))) -> 0 | E109: =OR(EXACT($A109,('[1]PP v1000'!$A$12:$A$87))) -> FALSE | F109: =OR(EXACT($A109,([1]PP!$A$12:$A$87))) -> FALSE | G109: =OR(EXACT($A109,([1]GP!$A$12:$A$87))) -> FALSE | H109: =OR(EXACT($A109,([1]Mixte!$A$12:$A$87))) -> FALSE | I109: =OR(EXACT($A109,([1]PE!$A$12:$A$87))) -> FALSE | J109: =OR(EXACT($A109,('[1]Pliage main'!$A$12:$A$87))) -> FALSE | K109: =OR(EXACT($A109,([1]Plat7!$A$12:$A$87))) -> FALSE | L109: =OR(EXACT($A109,([1]Plat8!$A$12:$A$87))) -> FALSE | M109: =OR(EXACT($A109,([1]Plat9!$A$12:$A$87))) -> FALSE | N109: =OR(EXACT($A109,([1]Plat10!$A$12:$A$87))) -> FALSE | O109: =OR(EXACT($A109,([1]VT1!$A$11:$A$86))) -> FALSE | P109: =OR(EXACT($A109,([1]VT2!$A$11:$A$86))) -> FALSE | Q109: =OR(EXACT($A109,([1]VT3!$A$11:$A$86))) -> FALSE | R109: =OR(EXACT($A109,([1]Bobines!$A$12:$A$87))) -> FALSE | S109: =OR(EXACT($A109,([1]Tapis!$A$12:$A$87))) -> FALSE | T109: =OR(EXACT($A109,([1]Contaminé!$A$6:$A$81))) -> FALSE | V109: x
A110: =IF([1]Paramètres!I126="","",[1]Paramètres!I126) -> Draps SNCF | B110: =IF([1]Paramètres!K126="","",[1]Paramètres!K126) -> HCALGP_Drap | C110: =SUM(IF(('[1]Qtité art'!$E$9:$E$900=A110),('[1]Qtité art'!$D$9:$D$900))) -> 0 | E110: =OR(EXACT($A110,('[1]PP v1000'!$A$12:$A$87))) -> FALSE | F110: =OR(EXACT($A110,([1]PP!$A$12:$A$87))) -> FALSE | G110: =OR(EXACT($A110,([1]GP!$A$12:$A$87))) -> FALSE | H110: =OR(EXACT($A110,([1]Mixte!$A$12:$A$87))) -> FALSE | I110: =OR(EXACT($A110,([1]PE!$A$12:$A$87))) -> FALSE | J110: =OR(EXACT($A110,('[1]Pliage main'!$A$12:$A$87))) -> FALSE | K110: =OR(EXACT($A110,([1]Plat7!$A$12:$A$87))) -> FALSE | L110: =OR(EXACT($A110,([1]Plat8!$A$12:$A$87))) -> FALSE | M110: =OR(EXACT($A110,([1]Plat9!$A$12:$A$87))) -> FALSE | N110: =OR(EXACT($A110,([1]Plat10!$A$12:$A$87))) -> FALSE | O110: =OR(EXACT($A110,([1]VT1!$A$11:$A$86))) -> FALSE | P110: =OR(EXACT($A110,([1]VT2!$A$11:$A$86))) -> FALSE | Q110: =OR(EXACT($A110,([1]VT3!$A$11:$A$86))) -> FALSE | R110: =OR(EXACT($A110,([1]Bobines!$A$12:$A$87))) -> FALSE | S110: =OR(EXACT($A110,([1]Tapis!$A$12:$A$87))) -> FALSE | T110: =OR(EXACT($A110,([1]Contaminé!$A$6:$A$81))) -> FALSE
A111: =IF([1]Paramètres!I127="","",[1]Paramètres!I127) -> Couette SNCF | B111: =IF([1]Paramètres!K127="","",[1]Paramètres!K127) -> HSECPM_Couv | C111: =SUM(IF(('[1]Qtité art'!$E$9:$E$900=A111),('[1]Qtité art'!$D$9:$D$900))) -> 0 | E111: =OR(EXACT($A111,('[1]PP v1000'!$A$12:$A$87))) -> FALSE | F111: =OR(EXACT($A111,([1]PP!$A$12:$A$87))) -> FALSE | G111: =OR(EXACT($A111,([1]GP!$A$12:$A$87))) -> FALSE | H111: =OR(EXACT($A111,([1]Mixte!$A$12:$A$87))) -> FALSE | I111: =OR(EXACT($A111,([1]PE!$A$12:$A$87))) -> FALSE | J111: =OR(EXACT($A111,('[1]Pliage main'!$A$12:$A$87))) -> FALSE | K111: =OR(EXACT($A111,([1]Plat7!$A$12:$A$87))) -> FALSE | L111: =OR(EXACT($A111,([1]Plat8!$A$12:$A$87))) -> FALSE | M111: =OR(EXACT($A111,([1]Plat9!$A$12:$A$87))) -> FALSE | N111: =OR(EXACT($A111,([1]Plat10!$A$12:$A$87))) -> FALSE | O111: =OR(EXACT($A111,([1]VT1!$A$11:$A$86))) -> FALSE | P111: =OR(EXACT($A111,([1]VT2!$A$11:$A$86))) -> FALSE | Q111: =OR(EXACT($A111,([1]VT3!$A$11:$A$86))) -> FALSE | R111: =OR(EXACT($A111,([1]Bobines!$A$12:$A$87))) -> FALSE | S111: =OR(EXACT($A111,([1]Tapis!$A$12:$A$87))) -> FALSE | T111: =OR(EXACT($A111,([1]Contaminé!$A$6:$A$81))) -> FALSE
A112: =IF([1]Paramètres!I128="","",[1]Paramètres!I128) -> Taies SNCF PM | B112: =IF([1]Paramètres!K128="","",[1]Paramètres!K128) -> HCALPP_Taie | C112: =SUM(IF(('[1]Qtité art'!$E$9:$E$900=A112),('[1]Qtité art'!$D$9:$D$900))) -> 0 | E112: =OR(EXACT($A112,('[1]PP v1000'!$A$12:$A$87))) -> FALSE | F112: =OR(EXACT($A112,([1]PP!$A$12:$A$87))) -> FALSE | G112: =OR(EXACT($A112,([1]GP!$A$12:$A$87))) -> FALSE | H112: =OR(EXACT($A112,([1]Mixte!$A$12:$A$87))) -> FALSE | I112: =OR(EXACT($A112,([1]PE!$A$12:$A$87))) -> FALSE | J112: =OR(EXACT($A112,('[1]Pliage main'!$A$12:$A$87))) -> FALSE | K112: =OR(EXACT($A112,([1]Plat7!$A$12:$A$87))) -> FALSE | L112: =OR(EXACT($A112,([1]Plat8!$A$12:$A$87))) -> FALSE | M112: =OR(EXACT($A112,([1]Plat9!$A$12:$A$87))) -> FALSE | N112: =OR(EXACT($A112,([1]Plat10!$A$12:$A$87))) -> FALSE | O112: =OR(EXACT($A112,([1]VT1!$A$11:$A$86))) -> FALSE | P112: =OR(EXACT($A112,([1]VT2!$A$11:$A$86))) -> FALSE | Q112: =OR(EXACT($A112,([1]VT3!$A$11:$A$86))) -> FALSE | R112: =OR(EXACT($A112,([1]Bobines!$A$12:$A$87))) -> FALSE | S112: =OR(EXACT($A112,([1]Tapis!$A$12:$A$87))) -> FALSE | T112: =OR(EXACT($A112,([1]Contaminé!$A$6:$A$81))) -> FALSE
A113: =IF([1]Paramètres!I129="","",[1]Paramètres!I129) -> Taies SNCF GM | B113: =IF([1]Paramètres!K129="","",[1]Paramètres!K129) -> HCALPP_Taie | C113: =SUM(IF(('[1]Qtité art'!$E$9:$E$900=A113),('[1]Qtité art'!$D$9:$D$900))) -> 0 | E113: =OR(EXACT($A113,('[1]PP v1000'!$A$12:$A$87))) -> FALSE | F113: =OR(EXACT($A113,([1]PP!$A$12:$A$87))) -> FALSE | G113: =OR(EXACT($A113,([1]GP!$A$12:$A$87))) -> FALSE | H113: =OR(EXACT($A113,([1]Mixte!$A$12:$A$87))) -> FALSE | I113: =OR(EXACT($A113,([1]PE!$A$12:$A$87))) -> FALSE | J113: =OR(EXACT($A113,('[1]Pliage main'!$A$12:$A$87))) -> FALSE | K113: =OR(EXACT($A113,([1]Plat7!$A$12:$A$87))) -> FALSE | L113: =OR(EXACT($A113,([1]Plat8!$A$12:$A$87))) -> FALSE | M113: =OR(EXACT($A113,([1]Plat9!$A$12:$A$87))) -> FALSE | N113: =OR(EXACT($A113,([1]Plat10!$A$12:$A$87))) -> FALSE | O113: =OR(EXACT($A113,([1]VT1!$A$11:$A$86))) -> FALSE | P113: =OR(EXACT($A113,([1]VT2!$A$11:$A$86))) -> FALSE | Q113: =OR(EXACT($A113,([1]VT3!$A$11:$A$86))) -> FALSE | R113: =OR(EXACT($A113,([1]Bobines!$A$12:$A$87))) -> FALSE | S113: =OR(EXACT($A113,([1]Tapis!$A$12:$A$87))) -> FALSE | T113: =OR(EXACT($A113,([1]Contaminé!$A$6:$A$81))) -> FALSE
A114: =IF([1]Paramètres!I130="","",[1]Paramètres!I130) -> tablier bret | B114: =IF([1]Paramètres!K130="","",[1]Paramètres!K130) -> RCALPP_inf_8 | C114: =SUM(IF(('[1]Qtité art'!$E$9:$E$900=A114),('[1]Qtité art'!$D$9:$D$900))) -> 1413.666667 | E114: =OR(EXACT($A114,('[1]PP v1000'!$A$12:$A$87))) -> FALSE | F114: =OR(EXACT($A114,([1]PP!$A$12:$A$87))) -> TRUE | G114: =OR(EXACT($A114,([1]GP!$A$12:$A$87))) -> FALSE | H114: =OR(EXACT($A114,([1]Mixte!$A$12:$A$87))) -> FALSE | I114: =OR(EXACT($A114,([1]PE!$A$12:$A$87))) -> FALSE | J114: =OR(EXACT($A114,('[1]Pliage main'!$A$12:$A$87))) -> FALSE | K114: =OR(EXACT($A114,([1]Plat7!$A$12:$A$87))) -> FALSE | L114: =OR(EXACT($A114,([1]Plat8!$A$12:$A$87))) -> FALSE | M114: =OR(EXACT($A114,([1]Plat9!$A$12:$A$87))) -> FALSE | N114: =OR(EXACT($A114,([1]Plat10!$A$12:$A$87))) -> FALSE | O114: =OR(EXACT($A114,([1]VT1!$A$11:$A$86))) -> FALSE | P114: =OR(EXACT($A114,([1]VT2!$A$11:$A$86))) -> FALSE | Q114: =OR(EXACT($A114,([1]VT3!$A$11:$A$86))) -> FALSE | R114: =OR(EXACT($A114,([1]Bobines!$A$12:$A$87))) -> FALSE | S114: =OR(EXACT($A114,([1]Tapis!$A$12:$A$87))) -> FALSE | T114: =OR(EXACT($A114,([1]Contaminé!$A$6:$A$81))) -> FALSE
A115: =IF([1]Paramètres!I131="","",[1]Paramètres!I131) -> couche | B115: =IF([1]Paramètres!K131="","",[1]Paramètres!K131) -> HSECPM_Santé | C115: =SUM(IF(('[1]Qtité art'!$E$9:$E$900=A115),('[1]Qtité art'!$D$9:$D$900))) -> 605 | E115: =OR(EXACT($A115,('[1]PP v1000'!$A$12:$A$87))) -> FALSE | F115: =OR(EXACT($A115,([1]PP!$A$12:$A$87))) -> TRUE | G115: =OR(EXACT($A115,([1]GP!$A$12:$A$87))) -> FALSE | H115: =OR(EXACT($A115,([1]Mixte!$A$12:$A$87))) -> FALSE | I115: =OR(EXACT($A115,([1]PE!$A$12:$A$87))) -> FALSE | J115: =OR(EXACT($A115,('[1]Pliage main'!$A$12:$A$87))) -> FALSE | K115: =OR(EXACT($A115,([1]Plat7!$A$12:$A$87))) -> FALSE | L115: =OR(EXACT($A115,([1]Plat8!$A$12:$A$87))) -> FALSE | M115: =OR(EXACT($A115,([1]Plat9!$A$12:$A$87))) -> FALSE | N115: =OR(EXACT($A115,([1]Plat10!$A$12:$A$87))) -> FALSE | O115: =OR(EXACT($A115,([1]VT1!$A$11:$A$86))) -> FALSE | P115: =OR(EXACT($A115,([1]VT2!$A$11:$A$86))) -> FALSE | Q115: =OR(EXACT($A115,([1]VT3!$A$11:$A$86))) -> FALSE | R115: =OR(EXACT($A115,([1]Bobines!$A$12:$A$87))) -> FALSE | S115: =OR(EXACT($A115,([1]Tapis!$A$12:$A$87))) -> FALSE | T115: =OR(EXACT($A115,([1]Contaminé!$A$6:$A$81))) -> FALSE
A116: =IF([1]Paramètres!I132="","",[1]Paramètres!I132) -> Protège matelas | B116: =IF([1]Paramètres!K132="","",[1]Paramètres!K132) -> HSECPM_Santé | C116: =SUM(IF(('[1]Qtité art'!$E$9:$E$900=A116),('[1]Qtité art'!$D$9:$D$900))) -> 30.66666667 | E116: =OR(EXACT($A116,('[1]PP v1000'!$A$12:$A$87))) -> FALSE | F116: =OR(EXACT($A116,([1]PP!$A$12:$A$87))) -> FALSE | G116: =OR(EXACT($A116,([1]GP!$A$12:$A$87))) -> FALSE | H116: =OR(EXACT($A116,([1]Mixte!$A$12:$A$87))) -> FALSE | I116: =OR(EXACT($A116,([1]PE!$A$12:$A$87))) -> FALSE | J116: =OR(EXACT($A116,('[1]Pliage main'!$A$12:$A$87))) -> TRUE | K116: =OR(EXACT($A116,([1]Plat7!$A$12:$A$87))) -> FALSE | L116: =OR(EXACT($A116,([1]Plat8!$A$12:$A$87))) -> FALSE | M116: =OR(EXACT($A116,([1]Plat9!$A$12:$A$87))) -> FALSE | N116: =OR(EXACT($A116,([1]Plat10!$A$12:$A$87))) -> FALSE | O116: =OR(EXACT($A116,([1]VT1!$A$11:$A$86))) -> FALSE | P116: =OR(EXACT($A116,([1]VT2!$A$11:$A$86))) -> FALSE | Q116: =OR(EXACT($A116,([1]VT3!$A$11:$A$86))) -> FALSE | R116: =OR(EXACT($A116,([1]Bobines!$A$12:$A$87))) -> FALSE | S116: =OR(EXACT($A116,([1]Tapis!$A$12:$A$87))) -> FALSE | T116: =OR(EXACT($A116,([1]Contaminé!$A$6:$A$81))) -> FALSE
A117: =IF([1]Paramètres!I133="","",[1]Paramètres!I133) -> Drap ambulatoire | B117: =IF([1]Paramètres!K133="","",[1]Paramètres!K133) -> HCALGP_Drap | C117: =SUM(IF(('[1]Qtité art'!$E$9:$E$900=A117),('[1]Qtité art'!$D$9:$D$900))) -> 1838.666667 | E117: =OR(EXACT($A117,('[1]PP v1000'!$A$12:$A$87))) -> FALSE | F117: =OR(EXACT($A117,([1]PP!$A$12:$A$87))) -> FALSE | G117: =OR(EXACT($A117,([1]GP!$A$12:$A$87))) -> FALSE | H117: =OR(EXACT($A117,([1]Mixte!$A$12:$A$87))) -> TRUE | I117: =OR(EXACT($A117,([1]PE!$A$12:$A$87))) -> FALSE | J117: =OR(EXACT($A117,('[1]Pliage main'!$A$12:$A$87))) -> FALSE | K117: =OR(EXACT($A117,([1]Plat7!$A$12:$A$87))) -> FALSE | L117: =OR(EXACT($A117,([1]Plat8!$A$12:$A$87))) -> FALSE | M117: =OR(EXACT($A117,([1]Plat9!$A$12:$A$87))) -> FALSE | N117: =OR(EXACT($A117,([1]Plat10!$A$12:$A$87))) -> FALSE | O117: =OR(EXACT($A117,([1]VT1!$A$11:$A$86))) -> FALSE | P117: =OR(EXACT($A117,([1]VT2!$A$11:$A$86))) -> FALSE | Q117: =OR(EXACT($A117,([1]VT3!$A$11:$A$86))) -> FALSE | R117: =OR(EXACT($A117,([1]Bobines!$A$12:$A$87))) -> FALSE | S117: =OR(EXACT($A117,([1]Tapis!$A$12:$A$87))) -> FALSE | T117: =OR(EXACT($A117,([1]Contaminé!$A$6:$A$81))) -> FALSE
A118: =IF([1]Paramètres!I134="","",[1]Paramètres!I134) -> Tapis Bain luxe | B118: =IF([1]Paramètres!K134="","",[1]Paramètres!K134) -> HSECPA_Eponge | C118: =SUM(IF(('[1]Qtité art'!$E$9:$E$900=A118),('[1]Qtité art'!$D$9:$D$900))) -> 366.3333333 | E118: =OR(EXACT($A118,('[1]PP v1000'!$A$12:$A$87))) -> FALSE | F118: =OR(EXACT($A118,([1]PP!$A$12:$A$87))) -> FALSE | G118: =OR(EXACT($A118,([1]GP!$A$12:$A$87))) -> FALSE | H118: =OR(EXACT($A118,([1]Mixte!$A$12:$A$87))) -> FALSE | I118: =OR(EXACT($A118,([1]PE!$A$12:$A$87))) -> TRUE | J118: =OR(EXACT($A118,('[1]Pliage main'!$A$12:$A$87))) -> FALSE | K118: =OR(EXACT($A118,([1]Plat7!$A$12:$A$87))) -> FALSE | L118: =OR(EXACT($A118,([1]Plat8!$A$12:$A$87))) -> FALSE | M118: =OR(EXACT($A118,([1]Plat9!$A$12:$A$87))) -> FALSE | N118: =OR(EXACT($A118,([1]Plat10!$A$12:$A$87))) -> FALSE | O118: =OR(EXACT($A118,([1]VT1!$A$11:$A$86))) -> FALSE | P118: =OR(EXACT($A118,([1]VT2!$A$11:$A$86))) -> FALSE | Q118: =OR(EXACT($A118,([1]VT3!$A$11:$A$86))) -> FALSE | R118: =OR(EXACT($A118,([1]Bobines!$A$12:$A$87))) -> FALSE | S118: =OR(EXACT($A118,([1]Tapis!$A$12:$A$87))) -> FALSE | T118: =OR(EXACT($A118,([1]Contaminé!$A$6:$A$81))) -> FALSE
A119: =IF([1]Paramètres!I135="","",[1]Paramètres!I135) -> drap bain spa | B119: =IF([1]Paramètres!K135="","",[1]Paramètres!K135) -> HSECPA_Eponge | C119: =SUM(IF(('[1]Qtité art'!$E$9:$E$900=A119),('[1]Qtité art'!$D$9:$D$900))) -> 412 | E119: =OR(EXACT($A119,('[1]PP v1000'!$A$12:$A$87))) -> FALSE | F119: =OR(EXACT($A119,([1]PP!$A$12:$A$87))) -> FALSE | G119: =OR(EXACT($A119,([1]GP!$A$12:$A$87))) -> FALSE | H119: =OR(EXACT($A119,([1]Mixte!$A$12:$A$87))) -> FALSE | I119: =OR(EXACT($A119,([1]PE!$A$12:$A$87))) -> TRUE | J119: =OR(EXACT($A119,('[1]Pliage main'!$A$12:$A$87))) -> FALSE | K119: =OR(EXACT($A119,([1]Plat7!$A$12:$A$87))) -> FALSE | L119: =OR(EXACT($A119,([1]Plat8!$A$12:$A$87))) -> FALSE | M119: =OR(EXACT($A119,([1]Plat9!$A$12:$A$87))) -> FALSE | N119: =OR(EXACT($A119,([1]Plat10!$A$12:$A$87))) -> FALSE | O119: =OR(EXACT($A119,([1]VT1!$A$11:$A$86))) -> FALSE | P119: =OR(EXACT($A119,([1]VT2!$A$11:$A$86))) -> FALSE | Q119: =OR(EXACT($A119,([1]VT3!$A$11:$A$86))) -> FALSE | R119: =OR(EXACT($A119,([1]Bobines!$A$12:$A$87))) -> FALSE | S119: =OR(EXACT($A119,([1]Tapis!$A$12:$A$87))) -> FALSE | T119: =OR(EXACT($A119,([1]Contaminé!$A$6:$A$81))) -> FALSE
A120: =IF([1]Paramètres!I136="","",[1]Paramètres!I136) -> franges | B120: =IF([1]Paramètres!K136="","",[1]Paramètres!K136) -> Tapis_ | C120: =SUM(IF(('[1]Qtité art'!$E$9:$E$900=A120),('[1]Qtité art'!$D$9:$D$900))) -> 29091.33333 | E120: =OR(EXACT($A120,('[1]PP v1000'!$A$12:$A$87))) -> FALSE | F120: =OR(EXACT($A120,([1]PP!$A$12:$A$87))) -> FALSE | G120: =OR(EXACT($A120,([1]GP!$A$12:$A$87))) -> FALSE | H120: =OR(EXACT($A120,([1]Mixte!$A$12:$A$87))) -> FALSE | I120: =OR(EXACT($A120,([1]PE!$A$12:$A$87))) -> FALSE | J120: =OR(EXACT($A120,('[1]Pliage main'!$A$12:$A$87))) -> TRUE | K120: =OR(EXACT($A120,([1]Plat7!$A$12:$A$87))) -> FALSE | L120: =OR(EXACT($A120,([1]Plat8!$A$12:$A$87))) -> FALSE | M120: =OR(EXACT($A120,([1]Plat9!$A$12:$A$87))) -> FALSE | N120: =OR(EXACT($A120,([1]Plat10!$A$12:$A$87))) -> FALSE | O120: =OR(EXACT($A120,([1]VT1!$A$11:$A$86))) -> FALSE | P120: =OR(EXACT($A120,([1]VT2!$A$11:$A$86))) -> FALSE | Q120: =OR(EXACT($A120,([1]VT3!$A$11:$A$86))) -> FALSE | R120: =OR(EXACT($A120,([1]Bobines!$A$12:$A$87))) -> FALSE | S120: =OR(EXACT($A120,([1]Tapis!$A$12:$A$87))) -> FALSE | T120: =OR(EXACT($A120,([1]Contaminé!$A$6:$A$81))) -> FALSE
A121: =IF([1]Paramètres!I137="","",[1]Paramètres!I137) -> VT | B121: =IF([1]Paramètres!K137="","",[1]Paramètres!K137) -> 0 | C121: =SUM(IF(('[1]Qtité art'!$E$9:$E$900=A121),('[1]Qtité art'!$D$9:$D$900))) -> 30000 | E121: =OR(EXACT($A121,('[1]PP v1000'!$A$12:$A$87))) -> FALSE | F121: =OR(EXACT($A121,([1]PP!$A$12:$A$87))) -> FALSE | G121: =OR(EXACT($A121,([1]GP!$A$12:$A$87))) -> FALSE | H121: =OR(EXACT($A121,([1]Mixte!$A$12:$A$87))) -> FALSE | I121: =OR(EXACT($A121,([1]PE!$A$12:$A$87))) -> FALSE | J121: =OR(EXACT($A121,('[1]Pliage main'!$A$12:$A$87))) -> TRUE | K121: =OR(EXACT($A121,([1]Plat7!$A$12:$A$87))) -> FALSE | L121: =OR(EXACT($A121,([1]Plat8!$A$12:$A$87))) -> FALSE | M121: =OR(EXACT($A121,([1]Plat9!$A$12:$A$87))) -> FALSE | N121: =OR(EXACT($A121,([1]Plat10!$A$12:$A$87))) -> FALSE | O121: =OR(EXACT($A121,([1]VT1!$A$11:$A$86))) -> FALSE | P121: =OR(EXACT($A121,([1]VT2!$A$11:$A$86))) -> FALSE | Q121: =OR(EXACT($A121,([1]VT3!$A$11:$A$86))) -> FALSE | R121: =OR(EXACT($A121,([1]Bobines!$A$12:$A$87))) -> FALSE | S121: =OR(EXACT($A121,([1]Tapis!$A$12:$A$87))) -> FALSE | T121: =OR(EXACT($A121,([1]Contaminé!$A$6:$A$81))) -> FALSE | U121: =IF(C121=0,"",IF(OR(E121=TRUE,F121=TRUE,G121=TRUE,H121=TRUE,I121=TRUE,J121=TRUE,K121=TRUE,L121=TRUE,M121=TRUE,N121=TRUE,O121=TRUE,P121=TRUE,Q121=TRUE,R121=TRUE,S121=TRUE,T121=TRUE),"",A121)) -> 

Sheet Séchage
BO1: SYNTHESE DES PERFORMANCES | BX1: CODE EQUIPEMENT
E2: Ouverture USINE hebdo (yc pause) | L2: =[1]Paramètres!J4 -> 113.6 | M2: h | O2: Disponibilité équipement
E3: Ouverture USINE hebdo (ss pause) | L3: =[1]Paramètres!J6 -> 105 | M3: h | O3: =IF(L2=0,"",(L2-L5)/L2) -> 0
BO4: Séch Passat 100 kg x 3 | BX4: =VLOOKUP(BO4,A75:B84,2,FALSE) -> 
E5: Ouverture EQUIPEMENT hebdo (ss pause) | L5: =L2 -> 113.6 | M5: h
BQ6: Temps disponible (h)
E7: Nbre de jours | G7: =[1]Lavage!G7 -> 5 | J7: Ouverture quotidienne Equipement | O7: =IF(G7=0,0,L5/G7) -> 22.72 | P7: h | R7: 1 heure | T7: 01:00:00 | BS7: Temps liés aux aléas programmés (h)
D8: Attention: l'ajout/suppression de colonnes avant la colonne M => modification manuelle des formules des colonnes BS à BV, des onglets de finition | BQ8: =VLOOKUP(BX4,BB12:BM69,4,FALSE) -> 
B9: INFO SECHOIR | D9: CAPACITE NOMINALE | I9: CAPACITE REELLE | S9: BESOIN (en unité de séchage) | AM9: BESOIN (heures) | BE9: Temps de disponibilité de l'équipement (h) | BG9: Temps de non production (h) | BJ9: Temps de production conforme (h) | BL9: Taux de disponibilité | BM9: TRG | BS9: =VLOOKUP(BX4,BB12:BM69,6,FALSE) ->  | BT9: Temps liés aux aléas non programmés (h)
I10: Aléas | M10: Temps de cycle réel | N10: Unité séchage (kg) | O10: Unité séchage /heure | P10: Unité séchage /jour | Q10: Proportion d'heures | BG10: lié aux aléas programmés | BH10: lié aux aléas non programmés (yc avec transfert)
B11: Code Equipemt de séchage | C11: Code Programme | D11: Temps de cycle nominal XX:XX:XX | E11: Unité séchage (kg) | F11: Unité séchage /heure | G11: Unité séchage /jour | I11: Programmés (%) | J11: Pannes (%) | K11: Organisation (%) | L11: Total | S11: ='[1]Qtité Famille'!E5 -> plat1 | T11: ='[1]Qtité Famille'!F5 -> plat2 | U11: ='[1]Qtité Famille'!G5 -> plat3 | V11: ='[1]Qtité Famille'!H5 -> plat4 | W11: ='[1]Qtité Famille'!I5 -> plat5 | X11: ='[1]Qtité Famille'!J5 -> plat6 | Y11: ='[1]Qtité Famille'!K5 -> plat7 | Z11: ='[1]Qtité Famille'!L5 -> plat8 | AA11: ='[1]Qtité Famille'!M5 -> plat9 | AB11: ='[1]Qtité Famille'!N5 -> plat10 | AC11: ='[1]Qtité Famille'!O5 -> VT1 | AD11: ='[1]Qtité Famille'!P5 -> VT2 | AE11: ='[1]Qtité Famille'!Q5 -> VT3 | AF11: ='[1]Qtité Famille'!R5 -> bobines | AG11: ='[1]Qtité Famille'!S5 -> tapis | AH11: Besoin total | AJ11: Unité séchage /heure | AK11: Unité séchage /jour | AM11: ='[1]Qtité Famille'!$E$5 -> plat1 | AN11: ='[1]Qtité Famille'!$F$5 -> plat2 | AO11: ='[1]Qtité Famille'!$G$5 -> plat3 | AP11: ='[1]Qtité Famille'!$H$5 -> plat4 | AQ11: ='[1]Qtité Famille'!$I$5 -> plat5 | AR11: ='[1]Qtité Famille'!$J$5 -> plat6 | AS11: ='[1]Qtité Famille'!$K$5 -> plat7 | AT11: ='[1]Qtité Famille'!$L$5 -> plat8 | AU11: ='[1]Qtité Famille'!$M$5 -> plat9 | AV11: ='[1]Qtité Famille'!$N$5 -> plat10 | AW11: ='[1]Qtité Famille'!$O$5 -> VT1 | AX11: ='[1]Qtité Famille'!$P$5 -> VT2 | AY11: ='[1]Qtité Famille'!$Q$5 -> VT3 | AZ11: ='[1]Qtité Famille'!$R$5 -> bobines | BA11: ='[1]Qtité Famille'!$S$5 -> tapis | BB11: Rappel code equpmt | BC11: Besoin total | BT11: =VLOOKUP(BX4,BB12:BM69,7,FALSE) -> 
A12: Séchoir 2 | B12: 1 | D12: =SUMPRODUCT(D13:D17,Q13:Q17) -> 00:04:47.238 | E12: =SUMPRODUCT(E13:E17,Q13:Q17) -> 50 | F12: =SUMPRODUCT(F13:F17,Q13:Q17) -> 12.85077167 | G12: =SUMPRODUCT(G13:G17,Q13:Q17) -> 291.9695324 | L12: =(1-I12)*(1-J12)*(1-K12) -> 1 | M12: =SUMPRODUCT(M13:M17,Q13:Q17) -> 00:04:47.238 | N12: =SUMPRODUCT(N13:N17,Q13:Q17) -> 50 | O12: =SUMPRODUCT(O13:O17,Q13:Q17) -> 12.85077167 | P12: =SUMPRODUCT(P13:P17,Q13:Q17) -> 291.9695324 | Q12: =SUM(Q13:Q17) -> 1 | S12: ='[1]PP v1000'!$BW$99 -> 0 | T12: =[1]PP!$BW$99 -> 0.1382260742 | U12: =[1]GP!$BW$99 -> 0 | V12: =[1]Mixte!$BW$99 -> 0 | W12: =[1]PE!$BW$99 -> 0 | X12: ='[1]Pliage main'!$BW$99 -> 0 | Y12: =[1]Plat7!$BW$99 -> 0 | Z12: =[1]Plat8!$BW$99 -> 0 | AA12: =[1]Plat9!$BW$99 -> 0 | AB12: =[1]Plat10!$BW$99 -> 0 | AC12: =[1]VT1!$BS$98 -> 0 | AD12: =[1]VT2!$BS$98 -> 0 | AE12: =[1]VT3!$BS$98 -> 0 | AF12: =[1]Bobines!$BW$99 -> 0 | AG12: =[1]Tapis!$BW$99 -> 0 | AH12: =SUM(S12:AG12) -> 0.1382260742 | AJ12: =O12*AH12 -> 1.776311719 | AK12: =P12*AH12 -> 40.35780225 | BB12: =B12 -> 1 | BC12: =SUM(BC13:BC17) -> 15.70248203 | BE12: =IF(BC12=0,0,$L$2-BC12) -> 97.89751797 | BG12: =BC12*I12 -> 0 | BH12: =(BC12-BG12)*(1-(1-J12)*(1-K12)) -> 0 | BJ12: =BC12-SUM(BG12:BH12) -> 15.70248203 | BL12: =IF($L$2=0,"",($L$2-BC12)/$L$2) -> 0.8617739258 | BM12: =IF(O12=0,"",O12/F12) -> 1
A13: Vapeur | B13: torchons | C13: 11 | D13: 00:03:00 | E13: 50 | F13: =IF(D13=0,0,$T$7/D13) -> 20 | G13: =F13*$O$7 -> 454.4 | M13: =IF($L$12=0,0,D13/$L$12) -> 00:03:00 | N13: =E13 -> 50 | O13: =IF(M13=0,0,$T$7/M13) -> 20 | P13: =O13*$O$7 -> 454.4 | Q13: =IF($BC$13=0,0,BC13/$BC$12) -> 0.1063464592 | AM13: ='[1]PP v1000'!$BW112 -> 0 | AN13: =[1]PP!$BW112 -> 1.669903365 | AO13: =[1]GP!$BW112 -> 0 | AP13: =[1]Mixte!$BW112 -> 0 | AQ13: =[1]PE!$BW112 -> 0 | AR13: ='[1]Pliage main'!$BW112 -> 0 | AS13: =[1]Plat7!$BW112 -> 0 | AT13: =[1]Plat8!$BW112 -> 0 | AU13: =[1]Plat9!$BW112 -> 0 | AV13: =[1]Plat10!$BW112 -> 0 | AW13: =[1]VT1!$BS111 -> 0 | AX13: =[1]VT2!$BS111 -> 0 | AY13: =[1]VT3!$BS111 -> 0 | AZ13: =[1]Bobines!$BW112 -> 0 | BA13: =[1]Tapis!$BW112 -> 0 | BC13: =SUM(AM13:BA13) -> 1.669903365
A14: Surtout demellage | B14: taies | C14: 12 | D14: 00:05:00 | E14: 50 | F14: =IF(D14=0,0,$T$7/D14) -> 12 | G14: =F14*$O$7 -> 272.64 | M14: =IF($L$12=0,0,D14/$L$12) -> 00:05:00 | N14: =E14 -> 50 | O14: =IF(M14=0,0,$T$7/M14) -> 12 | P14: =O14*$O$7 -> 272.64 | Q14: =IF($BC$13=0,0,BC14/$BC$12) -> 0.8936535408 | AM14: ='[1]PP v1000'!$BW113 -> 0 | AN14: =[1]PP!$BW113 -> 14.03257867 | AO14: =[1]GP!$BW113 -> 0 | AP14: =[1]Mixte!$BW113 -> 0 | AQ14: =[1]PE!$BW113 -> 0 | AR14: ='[1]Pliage main'!$BW113 -> 0 | AS14: =[1]Plat7!$BW113 -> 0 | AT14: =[1]Plat8!$BW113 -> 0 | AU14: =[1]Plat9!$BW113 -> 0 | AV14: =[1]Plat10!$BW113 -> 0 | AW14: =[1]VT1!$BS112 -> 0 | AX14: =[1]VT2!$BS112 -> 0 | AY14: =[1]VT3!$BS112 -> 0 | AZ14: =[1]Bobines!$BW113 -> 0 | BA14: =[1]Tapis!$BW113 -> 0 | BC14: =SUM(AM14:BA14) -> 14.03257867 | BQ14: =#REF!-$CJ$86-$CK$86-AZ86 -> 
C15: 13 | F15: =IF(D15=0,0,$T$7/D15) -> 0 | G15: =F15*$O$7 -> 0 | M15: =IF($L$12=0,0,D15/$L$12) -> 00:00:00 | N15: =E15 -> 0 | O15: =IF(M15=0,0,$T$7/M15) -> 0 | P15: =O15*$O$7 -> 0 | Q15: =IF($BC$13=0,0,BC15/$BC$12) -> 0 | AJ15: ='[1]PP v1000'!$BW114 -> 0 | AK15: =[1]PP!$BW114 -> 0 | AL15: =[1]GP!$BW114 -> 0 | AM15: =[1]Mixte!$BW114 -> 0 | AN15: =[1]PE!$BW114 -> 0 | AO15: ='[1]Pliage main'!$BW114 -> 0 | AP15: =[1]Plat7!$BW114 -> 0 | AQ15: =[1]Plat8!$BW114 -> 0 | AU15: =[1]Plat9!$BW114 -> 0 | AV15: =[1]Plat10!$BW114 -> 0 | AW15: =[1]VT1!$BS113 -> 0 | AX15: =[1]VT2!$BS113 -> 0 | AY15: =[1]VT3!$BS113 -> 0 | AZ15: =[1]Bobines!$BW114 -> 0 | BA15: =[1]Tapis!$BW114 -> 0 | BC15: =SUM(AJ15:BA15) -> 0 | BP15: Temps d'ouverture usine | BQ15: =L5 -> 113.6
C16: 14 | F16: =IF(D16=0,0,$T$7/D16) -> 0 | G16: =F16*$O$7 -> 0 | M16: =IF($L$12=0,0,D16/$L$12) -> 00:00:00 | N16: =E16 -> 0 | O16: =IF(M16=0,0,$T$7/M16) -> 0 | P16: =O16*$O$7 -> 0 | Q16: =IF($BC$13=0,0,BC16/$BC$12) -> 0 | AM16: ='[1]PP v1000'!$BW115 -> 0 | AN16: =[1]PP!$BW115 -> 0 | AO16: =[1]GP!$BW115 -> 0 | AP16: =[1]Mixte!$BW115 -> 0 | AQ16: =[1]PE!$BW115 -> 0 | AR16: ='[1]Pliage main'!$BW115 -> 0 | AS16: =[1]Plat7!$BW115 -> 0 | AT16: =[1]Plat8!$BW115 -> 0 | AU16: =[1]Plat9!$BW115 -> 0 | AV16: =[1]Plat10!$BW115 -> 0 | AW16: =[1]VT1!$BS114 -> 0 | AX16: =[1]VT2!$BS114 -> 0 | AY16: =[1]VT3!$BS114 -> 0 | AZ16: =[1]Bobines!$BW115 -> 0 | BA16: =[1]Tapis!$BW115 -> 0 | BC16: =SUM(AM16:BA16) -> 0 | BP16: Temps d'ouverture machine | BQ16: =VLOOKUP($BX$4,$BB$12:$BM$66,2,FALSE) -> 
C17: 15 | F17: =IF(D17=0,0,$T$7/D17) -> 0 | G17: =F17*$O$7 -> 0 | M17: =IF($L$12=0,0,D17/$L$12) -> 00:00:00 | N17: =E17 -> 0 | O17: =IF(M17=0,0,$T$7/M17) -> 0 | P17: =O17*$O$7 -> 0 | Q17: =IF($BC$13=0,0,BC17/$BC$12) -> 0 | AM17: ='[1]PP v1000'!$BW116 -> 0 | AN17: =[1]PP!$BW116 -> 0 | AO17: =[1]GP!$BW116 -> 0 | AP17: =[1]Mixte!$BW116 -> 0 | AQ17: =[1]PE!$BW116 -> 0 | AR17: ='[1]Pliage main'!$BW116 -> 0 | AS17: =[1]Plat7!$BW116 -> 0 | AT17: =[1]Plat8!$BW116 -> 0 | AU17: =[1]Plat9!$BW116 -> 0 | AV17: =[1]Plat10!$BW116 -> 0 | AW17: =[1]VT1!$BS115 -> 0 | AX17: =[1]VT2!$BS115 -> 0 | AY17: =[1]VT3!$BS115 -> 0 | AZ17: =[1]Bobines!$BW116 -> 0 | BA17: =[1]Tapis!$BW116 -> 0 | BC17: =SUM(AM17:BA17) -> 0 | BP17: Temps d'utilisation | BQ17: =BQ16-VLOOKUP($BX$4,$BB$12:$BM$66,6,FALSE) -> 
A18: Séchoir 3 & 4 | B18: 2 | D18: =SUMPRODUCT(D19:D23,Q19:Q23) -> 00:22:38.495 | E18: =SUMPRODUCT(E19:E23,Q19:Q23) -> 100 | F18: =SUMPRODUCT(F19:F23,Q19:Q23) -> 2.740891415 | G18: =SUMPRODUCT(G19:G23,Q19:Q23) -> 62.27305294 | L18: =(1-I18)*(1-J18)*(1-K18) -> 1 | M18: =SUMPRODUCT(M19:M23,Q19:Q23) -> 00:22:38.495 | N18: =SUMPRODUCT(N19:N23,Q19:Q23) -> 100 | O18: =SUMPRODUCT(O19:O23,Q19:Q23) -> 2.740891415 | P18: =SUMPRODUCT(P19:P23,Q19:Q23) -> 62.27305294 | Q18: =SUM(Q19:Q23) -> 1 | S18: ='[1]PP v1000'!$BW$100 -> 0 | T18: =[1]PP!$BW$100 -> 0.05535675651 | U18: =[1]GP!$BW$100 -> 0 | V18: =[1]Mixte!$BW$100 -> 0 | W18: =[1]PE!$BW$100 -> 0.07308601682 | X18: ='[1]Pliage main'!$BW$100 -> 0.6043527688 | Y18: =[1]Plat7!$BW$100 -> 0 | Z18: =[1]Plat8!$BW$100 -> 0 | AA18: =[1]Plat9!$BW$100 -> 0 | AB18: =[1]Plat10!$BW$100 -> 0 | AC18: =[1]VT1!$BS$99 -> 0 | AD18: =[1]VT2!$BS$99 -> 0 | AE18: =[1]VT3!$BS$99 -> 0 | AF18: =[1]Bobines!$BW$100 -> 0 | AG18: =[1]Tapis!$BW$100 -> 0 | AH18: =SUM(S18:AG18) -> 0.7327955421 | AJ18: =O18*AH18 -> 2.00851301 | AK18: =P18*AH18 -> 45.63341559 | BB18: =B18 -> 2 | BC18: =SUM(BC19:BC23) -> 83.24557358 | BE18: =IF(BC18=0,0,$L$2-BC18) -> 30.35442642 | BG18: =BC18*I18 -> 0 | BH18: =(BC18-BG18)*(1-(1-J18)*(1-K18)) -> 0 | BJ18: =BC18-SUM(BG18:BH18) -> 83.24557358 | BL18: =IF($L$2=0,"",($L$2-BC18)/$L$2) -> 0.2672044579 | BM18: =IF(O18=0,"",O18/F18) -> 1 | BP18: Temps de marche | BQ18: =BQ17-VLOOKUP($BX$4,$BB$12:$BM$66,7,FALSE) -> 
A19: Gaz | B19: tabliers | C19: 21 | D19: 00:12:00 | E19: 100 | F19: =IF(D19=0,0,$T$7/D19) -> 5 | G19: =F19*$O$7 -> 113.6 | M19: =IF($L$18=0,0,D19/$L$18) -> 00:12:00 | N19: =E19 -> 100 | O19: =IF(M19=0,0,$T$7/M19) -> 5 | P19: =O19*$O$7 -> 113.6 | Q19: =IF($BC$19=0,0,BC19/$BC$18) -> 0.06037078353 | AM19: ='[1]PP v1000'!$BW118 -> 0 | AN19: =[1]PP!$BW118 -> 5.025600503 | AO19: =[1]GP!$BW118 -> 0 | AP19: =[1]Mixte!$BW118 -> 0 | AQ19: =[1]PE!$BW118 -> 0 | AR19: ='[1]Pliage main'!$BW118 -> 0 | AX19: =[1]VT2!$BS117 -> 0 | AY19: =[1]VT3!$BS117 -> 0 | AZ19: =[1]Bobines!$BW118 -> 0 | BA19: =[1]Tapis!$BW118 -> 0 | BC19: =SUM(AM19:BA19) -> 5.025600503 | BK19: =[1]Plat7!$BW118 -> 0 | BL19: =[1]Plat8!$BW118 -> 0 | BM19: =[1]Plat9!$BW118 -> 0 | BN19: =[1]Plat10!$BW118 -> 0 | BO19: =[1]VT1!$BS117 -> 0
B20: plonge lourd | C20: 22 | D20: 00:13:00 | E20: 100 | F20: =IF(D20=0,0,$T$7/D20) -> 4.615384615 | G20: =F20*$O$7 -> 104.8615385 | M20: =IF($L$18=0,0,D20/$L$18) -> 00:13:00 | N20: =E20 -> 100 | O20: =IF(M20=0,0,$T$7/M20) -> 4.615384615 | P20: =O20*$O$7 -> 104.8615385 | Q20: =IF($BC$19=0,0,BC20/$BC$18) -> 0.01517110138 | AM20: ='[1]PP v1000'!$BW119 -> 0 | AN20: =[1]PP!$BW119 -> 1.262927037 | AO20: =[1]GP!$BW119 -> 0 | AP20: =[1]Mixte!$BW119 -> 0 | AQ20: =[1]PE!$BW119 -> 0 | AR20: ='[1]Pliage main'!$BW119 -> 0 | AS20: =[1]Plat7!$BW119 -> 0 | AT20: =[1]Plat8!$BW119 -> 0 | AU20: =[1]Plat9!$BW119 -> 0 | AV20: =[1]Plat10!$BW119 -> 0 | AW20: =[1]VT1!$BS118 -> 0 | AX20: =[1]VT2!$BS118 -> 0 | AY20: =[1]VT3!$BS118 -> 0 | AZ20: =[1]Bobines!$BW119 -> 0 | BA20: =[1]Tapis!$BW119 -> 0 | BC20: =SUM(AM20:BA20) -> 1.262927037
B21: DH | C21: 23 | D21: 00:23:00 | E21: 100 | F21: =IF(D21=0,0,$T$7/D21) -> 2.608695652 | G21: =F21*$O$7 -> 59.26956522 | M21: =IF($L$18=0,0,D21/$L$18) -> 00:23:00 | N21: =E21 -> 100 | O21: =IF(M21=0,0,$T$7/M21) -> 2.608695652 | P21: =O21*$O$7 -> 59.26956522 | Q21: =IF($BC$19=0,0,BC21/$BC$18) -> 0.8329825598 | AM21: ='[1]PP v1000'!$BW120 -> 0 | AN21: =[1]PP!$BW120 -> 0 | AO21: =[1]GP!$BW120 -> 0 | AP21: =[1]Mixte!$BW120 -> 0 | AQ21: =[1]PE!$BW120 -> 8.30257151 | AR21: ='[1]Pliage main'!$BW120 -> 61.03953947 | AS21: =[1]Plat7!$BW120 -> 0 | AT21: =[1]Plat8!$BW120 -> 0 | AU21: =[1]Plat9!$BW120 -> 0 | AV21: =[1]Plat10!$BW120 -> 0 | AW21: =[1]VT1!$BS119 -> 0 | AX21: =[1]VT2!$BS119 -> 0 | AY21: =[1]VT3!$BS119 -> 0 | AZ21: =[1]Bobines!$BW120 -> 0 | BA21: =[1]Tapis!$BW120 -> 0 | BC21: =SUM(AM21:BA21) -> 69.34211098
B22: eponges | C22: 24 | D22: 00:28:00 | E22: 100 | F22: =IF(D22=0,0,$T$7/D22) -> 2.142857143 | G22: =F22*$O$7 -> 48.68571429 | M22: =IF($L$18=0,0,D22/$L$18) -> 00:28:00 | N22: =E22 -> 100 | O22: =IF(M22=0,0,$T$7/M22) -> 2.142857143 | P22: =O22*$O$7 -> 48.68571429 | Q22: =IF($BC$19=0,0,BC22/$BC$18) -> 0.09147555526 | AM22: ='[1]PP v1000'!$BW121 -> 0 | AN22: =[1]PP!$BW121 -> 0 | AO22: =[1]GP!$BW121 -> 0 | AP22: =[1]Mixte!$BW121 -> 0 | AQ22: =[1]PE!$BW121 -> 0 | AR22: ='[1]Pliage main'!$BW121 -> 7.614935067 | AS22: =[1]Plat7!$BW121 -> 0 | AT22: =[1]Plat8!$BW121 -> 0 | AU22: =[1]Plat9!$BW121 -> 0 | AV22: =[1]Plat10!$BW121 -> 0 | AW22: =[1]VT1!$BS120 -> 0 | AX22: =[1]VT2!$BS120 -> 0 | AY22: =[1]VT3!$BS120 -> 0 | AZ22: =[1]Bobines!$BW121 -> 0 | BA22: =[1]Tapis!$BW121 -> 0 | BC22: =SUM(AM22:BA22) -> 7.614935067
C23: 25 | D23: 00:25:00 | E23: 100 | F23: =IF(D23=0,0,$T$7/D23) -> 2.4 | G23: =F23*$O$7 -> 54.528 | M23: =IF($L$18=0,0,D23/$L$18) -> 00:25:00 | N23: =E23 -> 100 | O23: =IF(M23=0,0,$T$7/M23) -> 2.4 | P23: =O23*$O$7 -> 54.528 | Q23: =IF($BC$19=0,0,BC23/$BC$18) -> 0 | AM23: ='[1]PP v1000'!$BW122 -> 0 | AN23: =[1]PP!$BW122 -> 0 | AO23: =[1]GP!$BW122 -> 0 | AP23: =[1]Mixte!$BW122 -> 0 | AQ23: =[1]PE!$BW122 -> 0 | AR23: ='[1]Pliage main'!$BW122 -> 0 | AS23: =[1]Plat7!$BW122 -> 0 | AT23: =[1]Plat8!$BW122 -> 0 | AU23: =[1]Plat9!$BW122 -> 0 | AV23: =[1]Plat10!$BW122 -> 0 | AW23: =[1]VT1!$BS121 -> 0 | AX23: =[1]VT2!$BS121 -> 0 | AY23: =[1]VT3!$BS121 -> 0 | AZ23: =[1]Bobines!$BW122 -> 0 | BA23: =[1]Tapis!$BW122 -> 0 | BC23: =SUM(AM23:BA23) -> 0
A24: Séchoir 5 | B24: 3 | D24: =SUMPRODUCT(D25:D29,Q25:Q29) -> 00:18:49.947 | E24: =SUMPRODUCT(E25:E29,Q25:Q29) -> 63.58430214 | F24: =SUMPRODUCT(F25:F29,Q25:Q29) -> 3.452507272 | G24: =SUMPRODUCT(G25:G29,Q25:Q29) -> 78.44096521 | L24: =(1-I24)*(1-J24)*(1-K24) -> 1 | M24: =SUMPRODUCT(M25:M29,Q25:Q29) -> 00:18:49.947 | N24: =SUMPRODUCT(N25:N29,Q25:Q29) -> 63.58430214 | O24: =SUMPRODUCT(O25:O29,Q25:Q29) -> 3.452507272 | P24: =SUMPRODUCT(P25:P29,Q25:Q29) -> 78.44096521 | Q24: =SUM(Q25:Q29) -> 1 | S24: ='[1]PP v1000'!$BW$101 -> 0 | T24: =[1]PP!$BW$101 -> 0 | U24: =[1]GP!$BW$101 -> 0 | V24: =[1]Mixte!$BW$101 -> 0 | W24: =[1]PE!$BW$101 -> 0.002035507405 | X24: ='[1]Pliage main'!$BW$101 -> 0.3757187392 | Y24: =[1]Plat7!$BW$101 -> 0 | Z24: =[1]Plat8!$BW$101 -> 0 | AA24: =[1]Plat9!$BW$101 -> 0 | AB24: =[1]Plat10!$BW$101 -> 0 | AC24: =[1]VT1!$BS$100 -> 0 | AD24: =[1]VT2!$BS$100 -> 0 | AE24: =[1]VT3!$BS$100 -> 0 | AF24: =[1]Bobines!$BW$101 -> 0 | AG24: =[1]Tapis!$BW$101 -> 0 | AH24: =SUM(S24:AG24) -> 0.3777542466 | AJ24: =O24*AH24 -> 1.304199283 | AK24: =P24*AH24 -> 29.63140772 | BB24: =B24 -> 3 | BC24: =SUM(BC25:BC29) -> 42.91288241 | BE24: =IF(BC24=0,0,$L$2-BC24) -> 70.68711759 | BG24: =BC24*I24 -> 0 | BH24: =(BC24-BG24)*(1-(1-J24)*(1-K24)) -> 0 | BJ24: =BC24-SUM(BG24:BH24) -> 42.91288241 | BL24: =IF($L$2=0,"",($L$2-BC24)/$L$2) -> 0.6222457534 | BM24: =IF(O24=0,"",O24/F24) -> 1
A25: Gaz | B25: mops | C25: 31 | D25: 00:28:00 | E25: 120 | F25: =IF(D25=0,0,$T$7/D25) -> 2.142857143 | G25: =F25*$O$7 -> 48.68571429 | M25: =IF($L$24=0,0,D25/$L$24) -> 00:28:00 | N25: =E25 -> 120 | O25: =IF(M25=0,0,$T$7/M25) -> 2.142857143 | P25: =O25*$O$7 -> 48.68571429 | Q25: =IF($BC$25=0,0,BC25/$BC$24) -> 0.2948037768 | AM25: ='[1]PP v1000'!$BW124 -> 0 | AN25: =[1]PP!$BW124 -> 0 | AO25: =[1]GP!$BW124 -> 0 | AP25: =[1]Mixte!$BW124 -> 0 | AQ25: =[1]PE!$BW124 -> 0.2312336412 | AR25: ='[1]Pliage main'!$BW124 -> 12.41964617 | AS25: =[1]Plat7!$BW124 -> 0 | AT25: =[1]Plat8!$BW124 -> 0 | AU25: =[1]Plat9!$BW124 -> 0 | AV25: =[1]Plat10!$BW124 -> 0 | AW25: =[1]VT1!$BS123 -> 0 | AX25: =[1]VT2!$BS123 -> 0 | AY25: =[1]VT3!$BS123 -> 0 | AZ25: =[1]Bobines!$BW124 -> 0 | BA25: =[1]Tapis!$BW124 -> 0 | BC25: =SUM(AM25:BA25) -> 12.65087981
A26: sanitaire IR, manuel | B26: Couettes | C26: 32 | D26: 00:15:00 | E26: 40 | F26: =IF(D26=0,0,$T$7/D26) -> 4 | G26: =F26*$O$7 -> 90.88 | M26: =IF($L$24=0,0,D26/$L$24) -> 00:15:00 | N26: =E26 -> 40 | O26: =IF(M26=0,0,$T$7/M26) -> 4 | P26: =O26*$O$7 -> 90.88 | Q26: =IF($BC$25=0,0,BC26/$BC$24) -> 0.7051962232 | AM26: ='[1]PP v1000'!$BW125 -> 0 | AN26: =[1]PP!$BW125 -> 0 | AO26: =[1]GP!$BW125 -> 0 | AP26: =[1]Mixte!$BW125 -> 0 | AQ26: =[1]PE!$BW125 -> 0 | AR26: ='[1]Pliage main'!$BW125 -> 30.2620026 | AS26: =[1]Plat7!$BW125 -> 0 | AT26: =[1]Plat8!$BW125 -> 0 | AU26: =[1]Plat9!$BW125 -> 0 | AV26: =[1]Plat10!$BW125 -> 0 | AW26: =[1]VT1!$BS124 -> 0 | AX26: =[1]VT2!$BS124 -> 0 | AY26: =[1]VT3!$BS124 -> 0 | AZ26: =[1]Bobines!$BW125 -> 0 | BA26: =[1]Tapis!$BW125 -> 0 | BC26: =SUM(AM26:BA26) -> 30.2620026
C27: 33 | F27: =IF(D27=0,0,$T$7/D27) -> 0 | G27: =F27*$O$7 -> 0 | M27: =IF($L$24=0,0,D27/$L$24) -> 00:00:00 | N27: =E27 -> 0 | O27: =IF(M27=0,0,$T$7/M27) -> 0 | P27: =O27*$O$7 -> 0 | Q27: =IF($BC$25=0,0,BC27/$BC$24) -> 0 | AM27: ='[1]PP v1000'!$BW126 -> 0 | AN27: =[1]PP!$BW126 -> 0 | AO27: =[1]GP!$BW126 -> 0 | AP27: =[1]Mixte!$BW126 -> 0 | AQ27: =[1]PE!$BW126 -> 0 | AR27: ='[1]Pliage main'!$BW126 -> 0 | AS27: =[1]Plat7!$BW126 -> 0 | AT27: =[1]Plat8!$BW126 -> 0 | AU27: =[1]Plat9!$BW126 -> 0 | AV27: =[1]Plat10!$BW126 -> 0 | AW27: =[1]VT1!$BS125 -> 0 | AX27: =[1]VT2!$BS125 -> 0 | AY27: =[1]VT3!$BS125 -> 0 | AZ27: =[1]Bobines!$BW126 -> 0 | BA27: =[1]Tapis!$BW126 -> 0 | BC27: =SUM(AM27:BA27) -> 0
C28: 34 | F28: =IF(D28=0,0,$T$7/D28) -> 0 | G28: =F28*$O$7 -> 0 | M28: =IF($L$24=0,0,D28/$L$24) -> 00:00:00 | N28: =E28 -> 0 | O28: =IF(M28=0,0,$T$7/M28) -> 0 | P28: =O28*$O$7 -> 0 | Q28: =IF($BC$25=0,0,BC28/$BC$24) -> 0 | AM28: ='[1]PP v1000'!$BW127 -> 0 | AN28: =[1]PP!$BW127 -> 0 | AO28: =[1]GP!$BW127 -> 0 | AP28: =[1]Mixte!$BW127 -> 0 | AQ28: =[1]PE!$BW127 -> 0 | AR28: ='[1]Pliage main'!$BW127 -> 0 | AS28: =[1]Plat7!$BW127 -> 0 | AT28: =[1]Plat8!$BW127 -> 0 | AU28: =[1]Plat9!$BW127 -> 0 | AV28: =[1]Plat10!$BW127 -> 0 | AW28: =[1]VT1!$BS126 -> 0 | AX28: =[1]VT2!$BS126 -> 0 | AY28: =[1]VT3!$BS126 -> 0 | AZ28: =[1]Bobines!$BW127 -> 0 | BA28: =[1]Tapis!$BW127 -> 0 | BC28: =SUM(AM28:BA28) -> 0
C29: 35 | F29: =IF(D29=0,0,$T$7/D29) -> 0 | G29: =F29*$O$7 -> 0 | M29: =IF($L$24=0,0,D29/$L$24) -> 00:00:00 | N29: =E29 -> 0 | O29: =IF(M29=0,0,$T$7/M29) -> 0 | P29: =O29*$O$7 -> 0 | Q29: =IF($BC$25=0,0,BC29/$BC$24) -> 0 | AM29: ='[1]PP v1000'!$BW128 -> 0 | AN29: =[1]PP!$BW128 -> 0 | AO29: =[1]GP!$BW128 -> 0 | AP29: =[1]Mixte!$BW128 -> 0 | AQ29: =[1]PE!$BW128 -> 0 | AR29: ='[1]Pliage main'!$BW128 -> 0 | AS29: =[1]Plat7!$BW128 -> 0 | AT29: =[1]Plat8!$BW128 -> 0 | AU29: =[1]Plat9!$BW128 -> 0 | AV29: =[1]Plat10!$BW128 -> 0 | AW29: =[1]VT1!$BS127 -> 0 | AX29: =[1]VT2!$BS127 -> 0 | AY29: =[1]VT3!$BS127 -> 0 | AZ29: =[1]Bobines!$BW128 -> 0 | BA29: =[1]Tapis!$BW128 -> 0 | BC29: =SUM(AM29:BA29) -> 0
A30: Séchoir 6 | B30: 4 | D30: =SUMPRODUCT(D31:D35,Q31:Q35) -> 00:00:00 | E30: =SUMPRODUCT(E31:E35,$Q$31:$Q$35) -> 0 | F30: =SUMPRODUCT(F31:F35,$Q$31:$Q$35) -> 0 | G30: =SUMPRODUCT(G31:G35,$Q$31:$Q$35) -> 0 | L30: =(1-I30)*(1-J30)*(1-K30) -> 1 | M30: =SUMPRODUCT(M31:M35,$Q$31:$Q$35) -> 00:00:00 | N30: =SUMPRODUCT(N31:N35,$Q$31:$Q$35) -> 00:00:00 | O30: =SUMPRODUCT(O31:O35,$Q$31:$Q$35) -> 00:00:00 | P30: =SUMPRODUCT(P31:P35,$Q$31:$Q$35) -> 0 | Q30: =SUM(Q31:Q35) -> 0 | S30: ='[1]PP v1000'!$BW$102 -> 0 | T30: =[1]PP!$BW$102 -> 0 | U30: =[1]GP!$BW$102 -> 0 | V30: =[1]Mixte!$BW$102 -> 0 | W30: =[1]PE!$BW$102 -> 0 | X30: ='[1]Pliage main'!$BW$102 -> 0 | Y30: =[1]Plat7!$BW$102 -> 0 | Z30: =[1]Plat8!$BW$102 -> 0 | AA30: =[1]Plat9!$BW$102 -> 0 | AB30: =[1]Plat10!$BW$102 -> 0 | AC30: =[1]VT1!$BS$101 -> 0 | AD30: =[1]VT2!$BS$101 -> 0 | AE30: =[1]VT3!$BS$101 -> 0 | AF30: =[1]Bobines!$BW$102 -> 0 | AG30: =[1]Tapis!$BW$102 -> 0 | AH30: =SUM(S30:AG30) -> 0 | AJ30: =O30*AH30 -> 0 | AK30: =P30*AH30 -> 0 | BB30: =B30 -> 4 | BC30: =SUM(BC31:BC35) -> 0 | BE30: =IF(BC30=0,0,$L$2-BC30) -> 0 | BG30: =BC30*I30 -> 0 | BH30: =(BC30-BG30)*(1-(1-J30)*(1-K30)) -> 0 | BJ30: =BC30-SUM(BG30:BH30) -> 0 | BL30: =IF($L$2=0,"",($L$2-BC30)/$L$2) -> 1 | BM30: =IF(O30=0,"",O30/F30) -> 
A31: Gaz | B31: tabliers | C31: 41 | D31: 00:12:00 | E31: 50 | F31: =IF(D31=0,0,$T$7/D31) -> 5 | G31: =F31*$O$7 -> 113.6 | M31: =IF($L$30=0,0,D31/$L$30) -> 00:12:00 | N31: =E31 -> 50 | O31: =IF(M31=0,0,$T$7/M31) -> 5 | P31: =O31*$O$7 -> 113.6 | Q31: =IF($BC$30=0,0,BC31/$BC$30) -> 0 | AM31: ='[1]PP v1000'!$BW130 -> 0 | AN31: =[1]PP!$BW130 -> 0 | AO31: =[1]GP!$BW130 -> 0 | AP31: =[1]Mixte!$BW130 -> 0 | AQ31: =[1]PE!$BW130 -> 0 | AR31: ='[1]Pliage main'!$BW130 -> 0 | AS31: =[1]Plat7!$BW130 -> 0 | AT31: =[1]Plat8!$BW130 -> 0 | AU31: =[1]Plat9!$BW130 -> 0 | AV31: =[1]Plat10!$BW130 -> 0 | AW31: =[1]VT1!$BS129 -> 0 | AX31: =[1]VT2!$BS129 -> 0 | AY31: =[1]VT3!$BS129 -> 0 | AZ31: =[1]Bobines!$BW130 -> 0 | BA31: =[1]Tapis!$BW130 -> 0 | BC31: =SUM(AM31:BA31) -> 0
A32: manuel | B32: couetttes | C32: 42 | D32: 00:15:00 | E32: 50 | F32: =IF(D32=0,0,$T$7/D32) -> 4 | G32: =F32*$O$7 -> 90.88 | M32: =IF($L$30=0,0,D32/$L$30) -> 00:15:00 | N32: =E32 -> 50 | O32: =IF(M32=0,0,$T$7/M32) -> 4 | P32: =O32*$O$7 -> 90.88 | Q32: =IF($BC$30=0,0,BC32/$BC$30) -> 0 | AM32: ='[1]PP v1000'!$BW131 -> 0 | AN32: =[1]PP!$BW131 -> 0 | AO32: =[1]GP!$BW131 -> 0 | AP32: =[1]Mixte!$BW131 -> 0 | AQ32: =[1]PE!$BW131 -> 0 | AR32: ='[1]Pliage main'!$BW131 -> 0 | AS32: =[1]Plat7!$BW131 -> 0 | AT32: =[1]Plat8!$BW131 -> 0 | AU32: =[1]Plat9!$BW131 -> 0 | AV32: =[1]Plat10!$BW131 -> 0 | AW32: =[1]VT1!$BS130 -> 0 | AX32: =[1]VT2!$BS130 -> 0 | AY32: =[1]VT3!$BS130 -> 0 | AZ32: =[1]Bobines!$BW131 -> 0 | BA32: =[1]Tapis!$BW131 -> 0 | BC32: =SUM(AM32:BA32) -> 0 | BQ32: Taux d'utilisation
B33: bavoirs, chmal | C33: 43 | D33: 00:25:00 | E33: 50 | F33: =IF(D33=0,0,$T$7/D33) -> 2.4 | G33: =F33*$O$7 -> 54.528 | M33: =IF($L$30=0,0,D33/$L$30) -> 00:25:00 | N33: =E33 -> 50 | O33: =IF(M33=0,0,$T$7/M33) -> 2.4 | P33: =O33*$O$7 -> 54.528 | Q33: =IF($BC$30=0,0,BC33/$BC$30) -> 0 | AM33: ='[1]PP v1000'!$BW132 -> 0 | AN33: =[1]PP!$BW132 -> 0 | AO33: =[1]GP!$BW132 -> 0 | AP33: =[1]Mixte!$BW132 -> 0 | AQ33: =[1]PE!$BW132 -> 0 | AR33: ='[1]Pliage main'!$BW132 -> 0 | AS33: =[1]Plat7!$BW132 -> 0 | AT33: =[1]Plat8!$BW132 -> 0 | AU33: =[1]Plat9!$BW132 -> 0 | AV33: =[1]Plat10!$BW132 -> 0 | AW33: =[1]VT1!$BS131 -> 0 | AX33: =[1]VT2!$BS131 -> 0 | AY33: =[1]VT3!$BS131 -> 0 | AZ33: =[1]Bobines!$BW132 -> 0 | BA33: =[1]Tapis!$BW132 -> 0 | BC33: =SUM(AM33:BA33) -> 0 | BR33: =VLOOKUP(BX4,BB12:BM69,11,FALSE) -> 
B34: DH, eponges, mops | C34: 44 | D34: 00:35:00 | E34: 50 | F34: =IF(D34=0,0,$T$7/D34) -> 1.714285714 | G34: =F34*$O$7 -> 38.94857143 | M34: =IF($L$30=0,0,D34/$L$30) -> 00:35:00 | N34: =E34 -> 50 | O34: =IF(M34=0,0,$T$7/M34) -> 1.714285714 | P34: =O34*$O$7 -> 38.94857143 | Q34: =IF($BC$30=0,0,BC34/$BC$30) -> 0 | AM34: ='[1]PP v1000'!$BW133 -> 0 | AN34: =[1]PP!$BW133 -> 0 | AO34: =[1]GP!$BW133 -> 0 | AP34: =[1]Mixte!$BW133 -> 0 | AQ34: =[1]PE!$BW133 -> 0 | AR34: ='[1]Pliage main'!$BW133 -> 0 | AS34: =[1]Plat7!$BW133 -> 0 | AT34: =[1]Plat8!$BW133 -> 0 | AU34: =[1]Plat9!$BW133 -> 0 | AV34: =[1]Plat10!$BW133 -> 0 | AW34: =[1]VT1!$BS132 -> 0 | AX34: =[1]VT2!$BS132 -> 0 | AY34: =[1]VT3!$BS132 -> 0 | AZ34: =[1]Bobines!$BW133 -> 0 | BA34: =[1]Tapis!$BW133 -> 0 | BC34: =SUM(AM34:BA34) -> 0
C35: 45 | F35: =IF(D35=0,0,$T$7/D35) -> 0 | G35: =F35*$O$7 -> 0 | M35: =IF($L$30=0,0,D35/$L$30) -> 00:00:00 | N35: =E35 -> 0 | O35: =IF(M35=0,0,$T$7/M35) -> 0 | P35: =O35*$O$7 -> 0 | Q35: =IF($BC$30=0,0,BC35/$BC$30) -> 0 | AM35: ='[1]PP v1000'!$BW134 -> 0 | AN35: =[1]PP!$BW134 -> 0 | AO35: =[1]GP!$BW134 -> 0 | AP35: =[1]Mixte!$BW134 -> 0 | AQ35: =[1]PE!$BW134 -> 0 | AR35: ='[1]Pliage main'!$BW134 -> 0 | AS35: =[1]Plat7!$BW134 -> 0 | AT35: =[1]Plat8!$BW134 -> 0 | AU35: =[1]Plat9!$BW134 -> 0 | AV35: =[1]Plat10!$BW134 -> 0 | AW35: =[1]VT1!$BS133 -> 0 | AX35: =[1]VT2!$BS133 -> 0 | AY35: =[1]VT3!$BS133 -> 0 | AZ35: =[1]Bobines!$BW134 -> 0 | BA35: =[1]Tapis!$BW134 -> 0 | BC35: =SUM(AM35:BA35) -> 0 | BT35: Taux de marche
A36: Séchoir 7 | B36: 5 | D36: =SUMPRODUCT(D37:D41,$Q$37:$Q$41) -> 00:27:00 | E36: =SUMPRODUCT(E37:E41,$Q$37:$Q$41) -> 100 | F36: =SUMPRODUCT(F37:F41,$Q$37:$Q$41) -> 2.222222222 | G36: =SUMPRODUCT(G37:G41,$Q$37:$Q$41) -> 50.48888889 | L36: =(1-I36)*(1-J36)*(1-K36) -> 1 | M36: =SUMPRODUCT(M37:M41,$Q$37:$Q$41) -> 00:27:00 | N36: =SUMPRODUCT(N37:N41,$Q$37:$Q$41) -> 100 | O36: =SUMPRODUCT(O37:O41,$Q$37:$Q$41) -> 2.222222222 | P36: =SUMPRODUCT(P37:P41,$Q$37:$Q$41) -> 50.48888889 | Q36: =SUM(Q37:Q41) -> 1 | S36: ='[1]PP v1000'!$BW$103 -> 0 | T36: =[1]PP!$BW$103 -> 0 | U36: =[1]GP!$BW$103 -> 0 | V36: =[1]Mixte!$BW$103 -> 0 | W36: =[1]PE!$BW$103 -> 0.9845150199 | X36: ='[1]Pliage main'!$BW$103 -> 0 | Y36: =[1]Plat7!$BW$103 -> 0 | Z36: =[1]Plat8!$BW$103 -> 0 | AA36: =[1]Plat9!$BW$103 -> 0 | AB36: =[1]Plat10!$BW$103 -> 0 | AC36: =[1]VT1!$BS$102 -> 0 | AD36: =[1]VT2!$BS$102 -> 0 | AE36: =[1]VT3!$BS$102 -> 0 | AF36: =[1]Bobines!$BW$103 -> 0 | AG36: =[1]Tapis!$BW$103 -> 0 | AH36: =SUM(S36:AG36) -> 0.9845150199 | AJ36: =O36*AH36 -> 2.187811155 | AK36: =P36*AH36 -> 49.70706945 | BB36: =B36 -> 5 | BC36: =SUM(BC37:BC41) -> 111.8409063 | BE36: =IF(BC36=0,0,$L$2-BC36) -> 1.759093743 | BG36: =BC36*I36 -> 0 | BH36: =(BC36-BG36)*(1-(1-J36)*(1-K36)) -> 0 | BJ36: =BC36-SUM(BG36:BH36) -> 111.8409063 | BL36: =IF($L$2=0,"",($L$2-BC36)/$L$2) -> 0.01548498013 | BM36: =IF(O36=0,"",O36/F36) -> 1 | BT36: =VLOOKUP(BX4,BB12:BM69,12,FALSE) -> 
A37: Gaz | B37: Eponges | C37: 51 | D37: 00:29:00 | E37: 100 | F37: =IF(D37=0,0,$T$7/D37) -> 2.068965517 | G37: =F37*$O$7 -> 47.00689655 | M37: =IF($L$36=0,0,D37/$L$36) -> 00:29:00 | N37: =E37 -> 100 | O37: =IF(M37=0,0,$T$7/M37) -> 2.068965517 | P37: =O37*$O$7 -> 47.00689655 | Q37: =IF($BC$36=0,0,BC37/$BC$36) -> 0 | AM37: ='[1]PP v1000'!$BW136 -> 0 | AN37: =[1]PP!$BW136 -> 0 | AO37: =[1]GP!$BW136 -> 0 | AP37: =[1]Mixte!$BW136 -> 0 | AQ37: =[1]PE!$BW136 -> 0 | AR37: ='[1]Pliage main'!$BW136 -> 0 | AS37: =[1]Plat7!$BW136 -> 0 | AT37: =[1]Plat8!$BW136 -> 0 | AU37: =[1]Plat9!$BW136 -> 0 | AV37: =[1]Plat10!$BW136 -> 0 | AW37: =[1]VT1!$BS135 -> 0 | AX37: =[1]VT2!$BS135 -> 0 | AY37: =[1]VT3!$BS135 -> 0 | AZ37: =[1]Bobines!$BW136 -> 0 | BA37: =[1]Tapis!$BW136 -> 0 | BC37: =SUM(AM37:BA37) -> 0
C38: 52 | D38: 00:20:00 | E38: 100 | F38: =IF(D38=0,0,$T$7/D38) -> 3 | G38: =F38*$O$7 -> 68.16 | M38: =IF($L$36=0,0,D38/$L$36) -> 00:20:00 | N38: =E38 -> 100 | O38: =IF(M38=0,0,$T$7/M38) -> 3 | P38: =O38*$O$7 -> 68.16 | Q38: =IF($BC$36=0,0,BC38/$BC$36) -> 0 | AM38: ='[1]PP v1000'!$BW137 -> 0 | AN38: =[1]PP!$BW137 -> 0 | AO38: =[1]GP!$BW137 -> 0 | AP38: =[1]Mixte!$BW137 -> 0 | AQ38: =[1]PE!$BW137 -> 0 | AR38: ='[1]Pliage main'!$BW137 -> 0 | AS38: =[1]Plat7!$BW137 -> 0 | AT38: =[1]Plat8!$BW137 -> 0 | AU38: =[1]Plat9!$BW137 -> 0 | AV38: =[1]Plat10!$BW137 -> 0 | AW38: =[1]VT1!$BS136 -> 0 | AX38: =[1]VT2!$BS136 -> 0 | AY38: =[1]VT3!$BS136 -> 0 | AZ38: =[1]Bobines!$BW137 -> 0 | BA38: =[1]Tapis!$BW137 -> 0 | BC38: =SUM(AM38:BA38) -> 0
B39: DH | C39: 53 | D39: 00:23:00 | E39: 100 | F39: =IF(D39=0,0,$T$7/D39) -> 2.608695652 | G39: =F39*$O$7 -> 59.26956522 | M39: =IF($L$36=0,0,D39/$L$36) -> 00:23:00 | N39: =E39 -> 100 | O39: =IF(M39=0,0,$T$7/M39) -> 2.608695652 | P39: =O39*$O$7 -> 59.26956522 | Q39: =IF($BC$36=0,0,BC39/$BC$36) -> 0 | AM39: ='[1]PP v1000'!$BW138 -> 0 | AN39: =[1]PP!$BW138 -> 0 | AO39: =[1]GP!$BW138 -> 0 | AP39: =[1]Mixte!$BW138 -> 0 | AQ39: =[1]PE!$BW138 -> 0 | AR39: ='[1]Pliage main'!$BW138 -> 0 | AS39: =[1]Plat7!$BW138 -> 0 | AT39: =[1]Plat8!$BW138 -> 0 | AU39: =[1]Plat9!$BW138 -> 0 | AV39: =[1]Plat10!$BW138 -> 0 | AW39: =[1]VT1!$BS137 -> 0 | AX39: =[1]VT2!$BS137 -> 0 | AY39: =[1]VT3!$BS137 -> 0 | AZ39: =[1]Bobines!$BW138 -> 0 | BA39: =[1]Tapis!$BW138 -> 0 | BC39: =SUM(AM39:BA39) -> 0
C40: 54 | D40: 00:27:00 | E40: 100 | F40: =IF(D40=0,0,$T$7/D40) -> 2.222222222 | G40: =F40*$O$7 -> 50.48888889 | M40: =IF($L$36=0,0,D40/$L$36) -> 00:27:00 | N40: =E40 -> 100 | O40: =IF(M40=0,0,$T$7/M40) -> 2.222222222 | P40: =O40*$O$7 -> 50.48888889 | Q40: =IF($BC$36=0,0,BC40/$BC$36) -> 1 | AM40: ='[1]PP v1000'!$BW139 -> 0 | AN40: =[1]PP!$BW139 -> 0 | AO40: =[1]GP!$BW139 -> 0 | AP40: =[1]Mixte!$BW139 -> 0 | AQ40: =[1]PE!$BW139 -> 111.8409063 | AR40: ='[1]Pliage main'!$BW139 -> 0 | AS40: =[1]Plat7!$BW139 -> 0 | AT40: =[1]Plat8!$BW139 -> 0 | AU40: =[1]Plat9!$BW139 -> 0 | AV40: =[1]Plat10!$BW139 -> 0 | AW40: =[1]VT1!$BS138 -> 0 | AX40: =[1]VT2!$BS138 -> 0 | AY40: =[1]VT3!$BS138 -> 0 | AZ40: =[1]Bobines!$BW139 -> 0 | BA40: =[1]Tapis!$BW139 -> 0 | BC40: =SUM(AM40:BA40) -> 111.8409063
C41: 55 | F41: =IF(D41=0,0,$T$7/D41) -> 0 | G41: =F41*$O$7 -> 0 | M41: =IF($L$36=0,0,D41/$L$36) -> 00:00:00 | N41: =E41 -> 0 | O41: =IF(M41=0,0,$T$7/M41) -> 0 | P41: =O41*$O$7 -> 0 | Q41: =IF($BC$36=0,0,BC41/$BC$36) -> 0 | AM41: ='[1]PP v1000'!$BW140 -> 0 | AN41: =[1]PP!$BW140 -> 0 | AO41: =[1]GP!$BW140 -> 0 | AP41: =[1]Mixte!$BW140 -> 0 | AQ41: =[1]PE!$BW140 -> 0 | AR41: ='[1]Pliage main'!$BW140 -> 0 | AS41: =[1]Plat7!$BW140 -> 0 | AT41: =[1]Plat8!$BW140 -> 0 | AU41: =[1]Plat9!$BW140 -> 0 | AV41: =[1]Plat10!$BW140 -> 0 | AW41: =[1]VT1!$BS139 -> 0 | AX41: =[1]VT2!$BS139 -> 0 | AY41: =[1]VT3!$BS139 -> 0 | AZ41: =[1]Bobines!$BW140 -> 0 | BA41: =[1]Tapis!$BW140 -> 0 | BC41: =SUM(AM41:BA41) -> 0
B42: 6 | D42: =SUMPRODUCT(D43:D47,$Q$43:$Q$47) -> 00:00:00 | E42: =SUMPRODUCT(E43:E47,$Q$43:$Q$47) -> 0 | F42: =SUMPRODUCT(F43:F47,$Q$43:$Q$47) -> 0 | G42: =SUMPRODUCT(G43:G47,$Q$43:$Q$47) -> 0 | L42: =(1-I42)*(1-J42)*(1-K42) -> 1 | M42: =SUMPRODUCT(M43:M47,$Q$43:$Q$47) -> 00:00:00 | N42: =SUMPRODUCT(N43:N47,$Q$43:$Q$47) -> 00:00:00 | O42: =SUMPRODUCT(O43:O47,$Q$43:$Q$47) -> 00:00:00 | P42: =SUMPRODUCT(P43:P47,$Q$43:$Q$47) -> 0 | Q42: =SUM(Q43:Q47) -> 0 | S42: ='[1]PP v1000'!$BW$104 -> 0 | T42: =[1]PP!$BW$104 -> 0 | U42: =[1]GP!$BW$104 -> 0 | V42: =[1]Mixte!$BW$104 -> 0 | W42: =[1]PE!$BW$104 -> 0 | X42: ='[1]Pliage main'!$BW$104 -> 0 | Y42: =[1]Plat7!$BW$104 -> 0 | Z42: =[1]Plat8!$BW$104 -> 0 | AA42: =[1]Plat9!$BW$104 -> 0 | AB42: =[1]Plat10!$BW$104 -> 0 | AC42: =[1]VT1!$BS$103 -> 0 | AD42: =[1]VT2!$BS$103 -> 0 | AE42: =[1]VT3!$BS$103 -> 0 | AF42: =[1]Bobines!$BW$104 -> 0 | AG42: =[1]Tapis!$BW$104 -> 0 | AH42: =SUM(S42:AG42) -> 0 | AJ42: =O42*AH42 -> 0 | AK42: =P42*AH42 -> 0 | BB42: =B42 -> 6 | BC42: =SUM(BC43:BC47) -> 0 | BE42: =IF(BC42=0,0,$L$2-BC42) -> 0 | BG42: =BC42*I42 -> 0 | BH42: =(BC42-BG42)*(1-(1-J42)*(1-K42)) -> 0 | BJ42: =BC42-SUM(BG42:BH42) -> 0 | BL42: =IF($L$2=0,"",($L$2-BC42)/$L$2) -> 1 | BM42: =IF(O42=0,"",F42/O42) ->  | BT42: =VLOOKUP(BX4,BB12:BM69,14,FALSE) -> 
C43: 61 | F43: =IF(D43=0,0,$T$7/D43) -> 0 | G43: =F43*$O$7 -> 0 | M43: =IF($L$42=0,0,D43/$L$42) -> 00:00:00 | N43: =E43 -> 0 | O43: =IF(M43=0,0,$T$7/M43) -> 0 | P43: =O43*$O$7 -> 0 | Q43: =IF($BC$42=0,0,BC43/$BC$42) -> 0 | AM43: ='[1]PP v1000'!$BW142 -> 0 | AN43: =[1]PP!$BW142 -> 0 | AO43: =[1]GP!$BW142 -> 0 | AP43: =[1]Mixte!$BW142 -> 0 | AQ43: =[1]PE!$BW142 -> 0 | AR43: ='[1]Pliage main'!$BW142 -> 0 | AS43: =[1]Plat7!$BW142 -> 0 | AT43: =[1]Plat8!$BW142 -> 0 | AU43: =[1]Plat9!$BW142 -> 0 | AV43: =[1]Plat10!$BW142 -> 0 | AW43: =[1]VT1!$BS141 -> 0 | AX43: =[1]VT2!$BS141 -> 0 | AY43: =[1]VT3!$BS141 -> 0 | AZ43: =[1]Bobines!$BW142 -> 0 | BA43: =[1]Tapis!$BW142 -> 0 | BC43: =SUM(AM43:BA43) -> 0
C44: 62 | F44: =IF(D44=0,0,$T$7/D44) -> 0 | G44: =F44*$O$7 -> 0 | M44: =IF($L$42=0,0,D44/$L$42) -> 00:00:00 | N44: =E44 -> 0 | O44: =IF(M44=0,0,$T$7/M44) -> 0 | P44: =O44*$O$7 -> 0 | Q44: =IF($BC$42=0,0,BC44/$BC$42) -> 0 | AM44: ='[1]PP v1000'!$BW143 -> 0 | AN44: =[1]PP!$BW143 -> 0 | AO44: =[1]GP!$BW143 -> 0 | AP44: =[1]Mixte!$BW143 -> 0 | AQ44: =[1]PE!$BW143 -> 0 | AR44: ='[1]Pliage main'!$BW143 -> 0 | AS44: =[1]Plat7!$BW143 -> 0 | AT44: =[1]Plat8!$BW143 -> 0 | AU44: =[1]Plat9!$BW143 -> 0 | AV44: =[1]Plat10!$BW143 -> 0 | AW44: =[1]VT1!$BS142 -> 0 | AX44: =[1]VT2!$BS142 -> 0 | AY44: =[1]VT3!$BS142 -> 0 | AZ44: =[1]Bobines!$BW143 -> 0 | BA44: =[1]Tapis!$BW143 -> 0 | BC44: =SUM(AM44:BA44) -> 0
C45: 63 | F45: =IF(D45=0,0,$T$7/D45) -> 0 | G45: =F45*$O$7 -> 0 | M45: =IF($L$42=0,0,D45/$L$42) -> 00:00:00 | N45: =E45 -> 0 | O45: =IF(M45=0,0,$T$7/M45) -> 0 | P45: =O45*$O$7 -> 0 | Q45: =IF($BC$42=0,0,BC45/$BC$42) -> 0 | AM45: ='[1]PP v1000'!$BW144 -> 0 | AN45: =[1]PP!$BW144 -> 0 | AO45: =[1]GP!$BW144 -> 0 | AP45: =[1]Mixte!$BW144 -> 0 | AQ45: =[1]PE!$BW144 -> 0 | AR45: ='[1]Pliage main'!$BW144 -> 0 | AS45: =[1]Plat7!$BW144 -> 0 | AT45: =[1]Plat8!$BW144 -> 0 | AU45: =[1]Plat9!$BW144 -> 0 | AV45: =[1]Plat10!$BW144 -> 0 | AW45: =[1]VT1!$BS143 -> 0 | AX45: =[1]VT2!$BS143 -> 0 | AY45: =[1]VT3!$BS143 -> 0 | AZ45: =[1]Bobines!$BW144 -> 0 | BA45: =[1]Tapis!$BW144 -> 0 | BC45: =SUM(AM45:BA45) -> 0
C46: 64 | F46: =IF(D46=0,0,$T$7/D46) -> 0 | G46: =F46*$O$7 -> 0 | M46: =IF($L$42=0,0,D46/$L$42) -> 00:00:00 | N46: =E46 -> 0 | O46: =IF(M46=0,0,$T$7/M46) -> 0 | P46: =O46*$O$7 -> 0 | Q46: =IF($BC$42=0,0,BC46/$BC$42) -> 0 | AM46: ='[1]PP v1000'!$BW145 -> 0 | AN46: =[1]PP!$BW145 -> 0 | AO46: =[1]GP!$BW145 -> 0 | AP46: =[1]Mixte!$BW145 -> 0 | AQ46: =[1]PE!$BW145 -> 0 | AR46: ='[1]Pliage main'!$BW145 -> 0 | AS46: =[1]Plat7!$BW145 -> 0 | AT46: =[1]Plat8!$BW145 -> 0 | AU46: =[1]Plat9!$BW145 -> 0 | AV46: =[1]Plat10!$BW145 -> 0 | AW46: =[1]VT1!$BS144 -> 0 | AX46: =[1]VT2!$BS144 -> 0 | AY46: =[1]VT3!$BS144 -> 0 | AZ46: =[1]Bobines!$BW145 -> 0 | BA46: =[1]Tapis!$BW145 -> 0 | BC46: =SUM(AM46:BA46) -> 0
C47: 65 | F47: =IF(D47=0,0,$T$7/D47) -> 0 | G47: =F47*$O$7 -> 0 | M47: =IF($L$42=0,0,D47/$L$42) -> 00:00:00 | N47: =E47 -> 0 | O47: =IF(M47=0,0,$T$7/M47) -> 0 | P47: =O47*$O$7 -> 0 | Q47: =IF($BC$42=0,0,BC47/$BC$42) -> 0 | AM47: ='[1]PP v1000'!$BW146 -> 0 | AN47: =[1]PP!$BW146 -> 0 | AO47: =[1]GP!$BW146 -> 0 | AP47: =[1]Mixte!$BW146 -> 0 | AQ47: =[1]PE!$BW146 -> 0 | AR47: ='[1]Pliage main'!$BW146 -> 0 | AS47: =[1]Plat7!$BW146 -> 0 | AT47: =[1]Plat8!$BW146 -> 0 | AU47: =[1]Plat9!$BW146 -> 0 | AV47: =[1]Plat10!$BW146 -> 0 | AW47: =[1]VT1!$BS145 -> 0 | AX47: =[1]VT2!$BS145 -> 0 | AY47: =[1]VT3!$BS145 -> 0 | AZ47: =[1]Bobines!$BW146 -> 0 | BA47: =[1]Tapis!$BW146 -> 0 | BC47: =SUM(AM47:BA47) -> 0 | BT47: =VLOOKUP(BX4,BB12:BM69,13,FALSE) -> 
B48: 7 | D48: =SUMPRODUCT(D49:D53,$Q$49:$Q$53) -> 00:00:00 | E48: =SUMPRODUCT(E49:E53,$Q$49:$Q$53) -> 0 | F48: =SUMPRODUCT(F49:F53,$Q$49:$Q$53) -> 0 | G48: =SUMPRODUCT(G49:G53,$Q$49:$Q$53) -> 0 | L48: =(1-I48)*(1-J48)*(1-K48) -> 1 | M48: =SUMPRODUCT(M49:M53,$Q$49:$Q$53) -> 00:00:00 | N48: =SUMPRODUCT(N49:N53,$Q$49:$Q$53) -> 00:00:00 | O48: =SUMPRODUCT(O49:O53,$Q$49:$Q$53) -> 00:00:00 | P48: =SUMPRODUCT(P49:P53,$Q$49:$Q$53) -> 0 | Q48: =SUM(Q49:Q53) -> 0 | S48: ='[1]PP v1000'!$BW$105 -> 0 | T48: =[1]PP!$BW$105 -> 0 | U48: =[1]GP!$BW$105 -> 0 | V48: =[1]Mixte!$BW$105 -> 0 | W48: =[1]PE!$BW$105 -> 0 | X48: ='[1]Pliage main'!$BW$105 -> 0 | Y48: =[1]Plat7!$BW$105 -> 0 | Z48: =[1]Plat8!$BW$105 -> 0 | AA48: =[1]Plat9!$BW$105 -> 0 | AB48: =[1]Plat10!$BW$105 -> 0 | AC48: =[1]VT1!$BS$104 -> 0 | AD48: =[1]VT2!$BS$104 -> 0 | AE48: =[1]VT3!$BS$104 -> 0 | AF48: =[1]Bobines!$BW$105 -> 0 | AG48: =[1]Tapis!$BW$105 -> 0 | AH48: =SUM(S48:AG48) -> 0 | AJ48: =O48*AH48 -> 0 | AK48: =P48*AH48 -> 0 | BB48: =B48 -> 7 | BC48: =SUM(BC49:BC53) -> 0 | BE48: =IF(BC48=0,0,$L$2-BC48) -> 0 | BG48: =BC48*I48 -> 0 | BH48: =(BC48-BG48)*(1-(1-J48)*(1-K48)) -> 0 | BJ48: =BC48-SUM(BG48:BH48) -> 0 | BL48: =IF($L$2=0,"",($L$2-BC48)/$L$2) -> 1 | BM48: =IF(O48=0,"",F48/O48) -> 
C49: 71 | F49: =IF(D49=0,0,$T$7/D49) -> 0 | G49: =F49*$O$7 -> 0 | M49: =IF($L$48=0,0,D49/$L$48) -> 00:00:00 | N49: =E49 -> 0 | O49: =IF(M49=0,0,$T$7/M49) -> 0 | P49: =O49*$O$7 -> 0 | Q49: =IF($BC$48=0,0,BC49/$BC$48) -> 0 | AM49: ='[1]PP v1000'!$BW148 -> 0 | AN49: =[1]PP!$BW148 -> 0 | AO49: =[1]GP!$BW148 -> 0 | AP49: =[1]Mixte!$BW148 -> 0 | AQ49: =[1]PE!$BW148 -> 0 | AR49: ='[1]Pliage main'!$BW148 -> 0 | AS49: =[1]Plat7!$BW148 -> 0 | AT49: =[1]Plat8!$BW148 -> 0 | AU49: =[1]Plat9!$BW148 -> 0 | AV49: =[1]Plat10!$BW148 -> 0 | AW49: =[1]VT1!$BS147 -> 0 | AX49: =[1]VT2!$BS147 -> 0 | AY49: =[1]VT3!$BS147 -> 0 | AZ49: =[1]Bobines!$BW148 -> 0 | BA49: =[1]Tapis!$BW148 -> 0 | BC49: =SUM(AM49:BA49) -> 0
C50: 72 | F50: =IF(D50=0,0,$T$7/D50) -> 0 | G50: =F50*$O$7 -> 0 | M50: =IF($L$48=0,0,D50/$L$48) -> 00:00:00 | N50: =E50 -> 0 | O50: =IF(M50=0,0,$T$7/M50) -> 0 | P50: =O50*$O$7 -> 0 | Q50: =IF($BC$48=0,0,BC50/$BC$48) -> 0 | AM50: ='[1]PP v1000'!$BW149 -> 0 | AN50: =[1]PP!$BW149 -> 0 | AO50: =[1]GP!$BW149 -> 0 | AP50: =[1]Mixte!$BW149 -> 0 | AQ50: =[1]PE!$BW149 -> 0 | AR50: ='[1]Pliage main'!$BW149 -> 0 | AS50: =[1]Plat7!$BW149 -> 0 | AT50: =[1]Plat8!$BW149 -> 0 | AU50: =[1]Plat9!$BW149 -> 0 | AV50: =[1]Plat10!$BW149 -> 0 | AW50: =[1]VT1!$BS148 -> 0 | AX50: =[1]VT2!$BS148 -> 0 | AY50: =[1]VT3!$BS148 -> 0 | AZ50: =[1]Bobines!$BW149 -> 0 | BA50: =[1]Tapis!$BW149 -> 0 | BC50: =SUM(AM50:BA50) -> 0
C51: 73 | F51: =IF(D51=0,0,$T$7/D51) -> 0 | G51: =F51*$O$7 -> 0 | M51: =IF($L$48=0,0,D51/$L$48) -> 00:00:00 | N51: =E51 -> 0 | O51: =IF(M51=0,0,$T$7/M51) -> 0 | P51: =O51*$O$7 -> 0 | Q51: =IF($BC$48=0,0,BC51/$BC$48) -> 0 | AM51: ='[1]PP v1000'!$BW150 -> 0 | AN51: =[1]PP!$BW150 -> 0 | AO51: =[1]GP!$BW150 -> 0 | AP51: =[1]Mixte!$BW150 -> 0 | AQ51: =[1]PE!$BW150 -> 0 | AR51: ='[1]Pliage main'!$BW150 -> 0 | AS51: =[1]Plat7!$BW150 -> 0 | AT51: =[1]Plat8!$BW150 -> 0 | AU51: =[1]Plat9!$BW150 -> 0 | AV51: =[1]Plat10!$BW150 -> 0 | AW51: =[1]VT1!$BS149 -> 0 | AX51: =[1]VT2!$BS149 -> 0 | AY51: =[1]VT3!$BS149 -> 0 | AZ51: =[1]Bobines!$BW150 -> 0 | BA51: =[1]Tapis!$BW150 -> 0 | BC51: =SUM(AM51:BA51) -> 0
C52: 74 | F52: =IF(D52=0,0,$T$7/D52) -> 0 | G52: =F52*$O$7 -> 0 | M52: =IF($L$48=0,0,D52/$L$48) -> 00:00:00 | N52: =E52 -> 0 | O52: =IF(M52=0,0,$T$7/M52) -> 0 | P52: =O52*$O$7 -> 0 | Q52: =IF($BC$48=0,0,BC52/$BC$48) -> 0 | AM52: ='[1]PP v1000'!$BW151 -> 0 | AN52: =[1]PP!$BW151 -> 0 | AO52: =[1]GP!$BW151 -> 0 | AP52: =[1]Mixte!$BW151 -> 0 | AQ52: =[1]PE!$BW151 -> 0 | AR52: ='[1]Pliage main'!$BW151 -> 0 | AS52: =[1]Plat7!$BW151 -> 0 | AT52: =[1]Plat8!$BW151 -> 0 | AU52: =[1]Plat9!$BW151 -> 0 | AV52: =[1]Plat10!$BW151 -> 0 | AW52: =[1]VT1!$BS150 -> 0 | AX52: =[1]VT2!$BS150 -> 0 | AY52: =[1]VT3!$BS150 -> 0 | AZ52: =[1]Bobines!$BW151 -> 0 | BA52: =[1]Tapis!$BW151 -> 0 | BC52: =SUM(AM52:BA52) -> 0
C53: 75 | F53: =IF(D53=0,0,$T$7/D53) -> 0 | G53: =F53*$O$7 -> 0 | M53: =IF($L$48=0,0,D53/$L$48) -> 00:00:00 | N53: =E53 -> 0 | O53: =IF(M53=0,0,$T$7/M53) -> 0 | P53: =O53*$O$7 -> 0 | Q53: =IF($BC$48=0,0,BC53/$BC$48) -> 0 | AM53: ='[1]PP v1000'!$BW152 -> 0 | AN53: =[1]PP!$BW152 -> 0 | AO53: =[1]GP!$BW152 -> 0 | AP53: =[1]Mixte!$BW152 -> 0 | AQ53: =[1]PE!$BW152 -> 0 | AR53: ='[1]Pliage main'!$BW152 -> 0 | AS53: =[1]Plat7!$BW152 -> 0 | AT53: =[1]Plat8!$BW152 -> 0 | AU53: =[1]Plat9!$BW152 -> 0 | AV53: =[1]Plat10!$BW152 -> 0 | AW53: =[1]VT1!$BS151 -> 0 | AX53: =[1]VT2!$BS151 -> 0 | AY53: =[1]VT3!$BS151 -> 0 | AZ53: =[1]Bobines!$BW152 -> 0 | BA53: =[1]Tapis!$BW152 -> 0 | BC53: =SUM(AM53:BA53) -> 0
B54: 8 | D54: =SUMPRODUCT(D55:D59,$Q$55:$Q$59) -> 00:00:00 | E54: =SUMPRODUCT(E55:E59,$Q$55:$Q$59) -> 0 | F54: =SUMPRODUCT(F55:F59,$Q$55:$Q$59) -> 0 | G54: =SUMPRODUCT(G55:G59,$Q$55:$Q$59) -> 0 | L54: =(1-I54)*(1-J54)*(1-K54) -> 1 | M54: =SUMPRODUCT(M55:M59,$Q$55:$Q$59) -> 00:00:00 | N54: =SUMPRODUCT(N55:N59,$Q$55:$Q$59) -> 00:00:00 | O54: =SUMPRODUCT(O55:O59,$Q$55:$Q$59) -> 00:00:00 | P54: =SUMPRODUCT(P55:P59,$Q$55:$Q$59) -> 0 | Q54: =SUM(Q55:Q59) -> 0 | S54: ='[1]PP v1000'!$BW$106 -> 0 | T54: =[1]PP!$BW$106 -> 0 | U54: =[1]GP!$BW$106 -> 0 | V54: =[1]Mixte!$BW$106 -> 0 | W54: =[1]PE!$BW$106 -> 0 | X54: ='[1]Pliage main'!$BW$106 -> 0 | Y54: =[1]Plat7!$BW$106 -> 0 | Z54: =[1]Plat8!$BW$106 -> 0 | AA54: =[1]Plat9!$BW$106 -> 0 | AB54: =[1]Plat10!$BW$106 -> 0 | AC54: =[1]VT1!$BS$105 -> 0 | AD54: =[1]VT2!$BS$105 -> 0 | AE54: =[1]VT3!$BS$105 -> 0 | AF54: =[1]Bobines!$BW$106 -> 0 | AG54: =[1]Tapis!$BW$106 -> 0 | AH54: =SUM(S54:AG54) -> 0 | AJ54: =O54*AH54 -> 0 | AK54: =P54*AH54 -> 0 | BB54: =B54 -> 8 | BC54: =SUM(BC55:BC59) -> 0 | BE54: =IF(BC54=0,0,$L$2-BC54) -> 0 | BG54: =BC54*I54 -> 0 | BH54: =(BC54-BG54)*(1-(1-J54)*(1-K54)) -> 0 | BJ54: =BC54-SUM(BG54:BH54) -> 0 | BL54: =IF($L$2=0,"",($L$2-BC54)/$L$2) -> 1 | BM54: =IF(O54=0,"",F54/O54) -> 
C55: 81 | F55: =IF(D55=0,0,$T$7/D55) -> 0 | G55: =F55*$O$7 -> 0 | M55: =IF($L$54=0,0,D55/$L$54) -> 00:00:00 | N55: =E55 -> 0 | O55: =IF(M55=0,0,$T$7/M55) -> 0 | P55: =O55*$O$7 -> 0 | Q55: =IF($BC$54=0,0,BC55/$BC$54) -> 0 | AM55: ='[1]PP v1000'!$BW154 -> 0 | AN55: =[1]PP!$BW154 -> 0 | AO55: =[1]GP!$BW154 -> 0 | AP55: =[1]Mixte!$BW154 -> 0 | AQ55: =[1]PE!$BW154 -> 0 | AR55: ='[1]Pliage main'!$BW154 -> 0 | AS55: =[1]Plat7!$BW154 -> 0 | AT55: =[1]Plat8!$BW154 -> 0 | AU55: =[1]Plat9!$BW154 -> 0 | AV55: =[1]Plat10!$BW154 -> 0 | AW55: =[1]VT1!$BS153 -> 0 | AX55: =[1]VT2!$BS153 -> 0 | AY55: =[1]VT3!$BS153 -> 0 | AZ55: =[1]Bobines!$BW154 -> 0 | BA55: =[1]Tapis!$BW154 -> 0 | BC55: =SUM(AM55:BA55) -> 0
C56: 82 | F56: =IF(D56=0,0,$T$7/D56) -> 0 | G56: =F56*$O$7 -> 0 | M56: =IF($L$54=0,0,D56/$L$54) -> 00:00:00 | N56: =E56 -> 0 | O56: =IF(M56=0,0,$T$7/M56) -> 0 | P56: =O56*$O$7 -> 0 | Q56: =IF($BC$54=0,0,BC56/$BC$54) -> 0 | AM56: ='[1]PP v1000'!$BW155 -> 0 | AN56: =[1]PP!$BW155 -> 0 | AO56: =[1]GP!$BW155 -> 0 | AP56: =[1]Mixte!$BW155 -> 0 | AQ56: =[1]PE!$BW155 -> 0 | AR56: ='[1]Pliage main'!$BW155 -> 0 | AS56: =[1]Plat7!$BW155 -> 0 | AT56: =[1]Plat8!$BW155 -> 0 | AU56: =[1]Plat9!$BW155 -> 0 | AV56: =[1]Plat10!$BW155 -> 0 | AW56: =[1]VT1!$BS154 -> 0 | AX56: =[1]VT2!$BS154 -> 0 | AY56: =[1]VT3!$BS154 -> 0 | AZ56: =[1]Bobines!$BW155 -> 0 | BA56: =[1]Tapis!$BW155 -> 0 | BC56: =SUM(AM56:BA56) -> 0
C57: 83 | F57: =IF(D57=0,0,$T$7/D57) -> 0 | G57: =F57*$O$7 -> 0 | M57: =IF($L$54=0,0,D57/$L$54) -> 00:00:00 | N57: =E57 -> 0 | O57: =IF(M57=0,0,$T$7/M57) -> 0 | P57: =O57*$O$7 -> 0 | Q57: =IF($BC$54=0,0,BC57/$BC$54) -> 0 | AM57: ='[1]PP v1000'!$BW156 -> 0 | AN57: =[1]PP!$BW156 -> 0 | AO57: =[1]GP!$BW156 -> 0 | AP57: =[1]Mixte!$BW156 -> 0 | AQ57: =[1]PE!$BW156 -> 0 | AR57: ='[1]Pliage main'!$BW156 -> 0 | AS57: =[1]Plat7!$BW156 -> 0 | AT57: =[1]Plat8!$BW156 -> 0 | AU57: =[1]Plat9!$BW156 -> 0 | AV57: =[1]Plat10!$BW156 -> 0 | AW57: =[1]VT1!$BS155 -> 0 | AX57: =[1]VT2!$BS155 -> 0 | AY57: =[1]VT3!$BS155 -> 0 | AZ57: =[1]Bobines!$BW156 -> 0 | BA57: =[1]Tapis!$BW156 -> 0 | BC57: =SUM(AM57:BA57) -> 0
C58: 84 | F58: =IF(D58=0,0,$T$7/D58) -> 0 | G58: =F58*$O$7 -> 0 | M58: =IF($L$54=0,0,D58/$L$54) -> 00:00:00 | N58: =E58 -> 0 | O58: =IF(M58=0,0,$T$7/M58) -> 0 | P58: =O58*$O$7 -> 0 | Q58: =IF($BC$54=0,0,BC58/$BC$54) -> 0 | AM58: ='[1]PP v1000'!$BW157 -> 0 | AN58: =[1]PP!$BW157 -> 0 | AO58: =[1]GP!$BW157 -> 0 | AP58: =[1]Mixte!$BW157 -> 0 | AQ58: =[1]PE!$BW157 -> 0 | AR58: ='[1]Pliage main'!$BW157 -> 0 | AS58: =[1]Plat7!$BW157 -> 0 | AT58: =[1]Plat8!$BW157 -> 0 | AU58: =[1]Plat9!$BW157 -> 0 | AV58: =[1]Plat10!$BW157 -> 0 | AW58: =[1]VT1!$BS156 -> 0 | AX58: =[1]VT2!$BS156 -> 0 | AY58: =[1]VT3!$BS156 -> 0 | AZ58: =[1]Bobines!$BW157 -> 0 | BA58: =[1]Tapis!$BW157 -> 0 | BC58: =SUM(AM58:BA58) -> 0
C59: 85 | F59: =IF(D59=0,0,$T$7/D59) -> 0 | G59: =F59*$O$7 -> 0 | M59: =IF($L$54=0,0,D59/$L$54) -> 00:00:00 | N59: =E59 -> 0 | O59: =IF(M59=0,0,$T$7/M59) -> 0 | P59: =O59*$O$7 -> 0 | Q59: =IF($BC$54=0,0,BC59/$BC$54) -> 0 | AM59: ='[1]PP v1000'!$BW158 -> 0 | AN59: =[1]PP!$BW158 -> 0 | AO59: =[1]GP!$BW158 -> 0 | AP59: =[1]Mixte!$BW158 -> 0 | AQ59: =[1]PE!$BW158 -> 0 | AR59: ='[1]Pliage main'!$BW158 -> 0 | AS59: =[1]Plat7!$BW158 -> 0 | AT59: =[1]Plat8!$BW158 -> 0 | AU59: =[1]Plat9!$BW158 -> 0 | AV59: =[1]Plat10!$BW158 -> 0 | AW59: =[1]VT1!$BS157 -> 0 | AX59: =[1]VT2!$BS157 -> 0 | AY59: =[1]VT3!$BS157 -> 0 | AZ59: =[1]Bobines!$BW158 -> 0 | BA59: =[1]Tapis!$BW158 -> 0 | BC59: =SUM(AM59:BA59) -> 0
B60: 9 | D60: =SUMPRODUCT(D61:D65,$Q$61:$Q$65) -> 00:00:00 | E60: =SUMPRODUCT(E61:E65,$Q$61:$Q$65) -> 0 | F60: =SUMPRODUCT(F61:F65,$Q$61:$Q$65) -> 0 | G60: =SUMPRODUCT(G61:G65,$Q$61:$Q$65) -> 0 | L60: =(1-I60)*(1-J60)*(1-K60) -> 1 | M60: =SUMPRODUCT(M61:M65,$Q$61:$Q$65) -> 00:00:00 | N60: =SUMPRODUCT(N61:N65,$Q$61:$Q$65) -> 00:00:00 | O60: =SUMPRODUCT(O61:O65,$Q$61:$Q$65) -> 00:00:00 | P60: =SUMPRODUCT(P61:P65,$Q$61:$Q$65) -> 0 | Q60: =SUM(Q61:Q65) -> 0 | S60: ='[1]PP v1000'!$BW$107 -> 0 | T60: =[1]PP!$BW$107 -> 0 | U60: =[1]GP!$BW$107 -> 0 | V60: =[1]Mixte!$BW$107 -> 0 | W60: =[1]PE!$BW$107 -> 0 | X60: ='[1]Pliage main'!$BW$107 -> 0 | Y60: =[1]Plat7!$BW$107 -> 0 | Z60: =[1]Plat8!$BW$107 -> 0 | AA60: =[1]Plat9!$BW$107 -> 0 | AB60: =[1]Plat10!$BW$107 -> 0 | AC60: =[1]VT1!$BS$106 -> 0 | AD60: =[1]VT2!$BS$106 -> 0 | AE60: =[1]VT3!$BS$106 -> 0 | AF60: =[1]Bobines!$BW$107 -> 0 | AG60: =[1]Tapis!$BW$107 -> 0 | AH60: =SUM(S60:AG60) -> 0 | AJ60: =O60*AH60 -> 0 | AK60: =P60*AH60 -> 0 | BB60: =B60 -> 9 | BC60: =SUM(BC61:BC65) -> 0 | BE60: =IF(BC60=0,0,$L$2-BC60) -> 0 | BG60: =BC60*I60 -> 0 | BH60: =(BC60-BG60)*(1-(1-J60)*(1-K60)) -> 0 | BJ60: =BC60-SUM(BG60:BH60) -> 0 | BL60: =IF($L$2=0,"",($L$2-BC60)/$L$2) -> 1 | BM60: =IF(O60=0,"",F60/O60) -> 
C61: 91 | F61: =IF(D61=0,0,$T$7/D61) -> 0 | G61: =F61*$O$7 -> 0 | M61: =IF($L$60=0,0,D61/$L$60) -> 00:00:00 | N61: =E61 -> 0 | O61: =IF(M61=0,0,$T$7/M61) -> 0 | P61: =O61*$O$7 -> 0 | Q61: =IF($BC$60=0,0,BC61/$BC$60) -> 0 | AM61: ='[1]PP v1000'!$BW160 -> 0 | AN61: =[1]PP!$BW160 -> 0 | AO61: =[1]GP!$BW160 -> 0 | AP61: =[1]Mixte!$BW160 -> 0 | AQ61: =[1]PE!$BW160 -> 0 | AR61: ='[1]Pliage main'!$BW160 -> 0 | AS61: =[1]Plat7!$BW160 -> 0 | AT61: =[1]Plat8!$BW160 -> 0 | AU61: =[1]Plat9!$BW160 -> 0 | AV61: =[1]Plat10!$BW160 -> 0 | AW61: =[1]VT1!$BS159 -> 0 | AX61: =[1]VT2!$BS159 -> 0 | AY61: =[1]VT3!$BS159 -> 0 | AZ61: =[1]Bobines!$BW160 -> 0 | BA61: =[1]Tapis!$BW160 -> 0 | BC61: =SUM(AM61:BA61) -> 0
C62: 92 | F62: =IF(D62=0,0,$T$7/D62) -> 0 | G62: =F62*$O$7 -> 0 | M62: =IF($L$60=0,0,D62/$L$60) -> 00:00:00 | N62: =E62 -> 0 | O62: =IF(M62=0,0,$T$7/M62) -> 0 | P62: =O62*$O$7 -> 0 | Q62: =IF($BC$60=0,0,BC62/$BC$60) -> 0 | AM62: ='[1]PP v1000'!$BW161 -> 0 | AN62: =[1]PP!$BW161 -> 0 | AO62: =[1]GP!$BW161 -> 0 | AP62: =[1]Mixte!$BW161 -> 0 | AQ62: =[1]PE!$BW161 -> 0 | AR62: ='[1]Pliage main'!$BW161 -> 0 | AS62: =[1]Plat7!$BW161 -> 0 | AT62: =[1]Plat8!$BW161 -> 0 | AU62: =[1]Plat9!$BW161 -> 0 | AV62: =[1]Plat10!$BW161 -> 0 | AW62: =[1]VT1!$BS160 -> 0 | AX62: =[1]VT2!$BS160 -> 0 | AY62: =[1]VT3!$BS160 -> 0 | AZ62: =[1]Bobines!$BW161 -> 0 | BA62: =[1]Tapis!$BW161 -> 0 | BC62: =SUM(AM62:BA62) -> 0
C63: 93 | F63: =IF(D63=0,0,$T$7/D63) -> 0 | G63: =F63*$O$7 -> 0 | M63: =IF($L$60=0,0,D63/$L$60) -> 00:00:00 | N63: =E63 -> 0 | O63: =IF(M63=0,0,$T$7/M63) -> 0 | P63: =O63*$O$7 -> 0 | Q63: =IF($BC$60=0,0,BC63/$BC$60) -> 0 | AM63: ='[1]PP v1000'!$BW162 -> 0 | AN63: =[1]PP!$BW162 -> 0 | AO63: =[1]GP!$BW162 -> 0 | AP63: =[1]Mixte!$BW162 -> 0 | AQ63: =[1]PE!$BW162 -> 0 | AR63: ='[1]Pliage main'!$BW162 -> 0 | AS63: =[1]Plat7!$BW162 -> 0 | AT63: =[1]Plat8!$BW162 -> 0 | AU63: =[1]Plat9!$BW162 -> 0 | AV63: =[1]Plat10!$BW162 -> 0 | AW63: =[1]VT1!$BS161 -> 0 | AX63: =[1]VT2!$BS161 -> 0 | AY63: =[1]VT3!$BS161 -> 0 | AZ63: =[1]Bobines!$BW162 -> 0 | BA63: =[1]Tapis!$BW162 -> 0 | BC63: =SUM(AM63:BA63) -> 0
C64: 94 | F64: =IF(D64=0,0,$T$7/D64) -> 0 | G64: =F64*$O$7 -> 0 | M64: =IF($L$60=0,0,D64/$L$60) -> 00:00:00 | N64: =E64 -> 0 | O64: =IF(M64=0,0,$T$7/M64) -> 0 | P64: =O64*$O$7 -> 0 | Q64: =IF($BC$60=0,0,BC64/$BC$60) -> 0 | AM64: ='[1]PP v1000'!$BW163 -> 0 | AN64: =[1]PP!$BW163 -> 0 | AO64: =[1]GP!$BW163 -> 0 | AP64: =[1]Mixte!$BW163 -> 0 | AQ64: =[1]PE!$BW163 -> 0 | AR64: ='[1]Pliage main'!$BW163 -> 0 | AS64: =[1]Plat7!$BW163 -> 0 | AT64: =[1]Plat8!$BW163 -> 0 | AU64: =[1]Plat9!$BW163 -> 0 | AV64: =[1]Plat10!$BW163 -> 0 | AW64: =[1]VT1!$BS162 -> 0 | AX64: =[1]VT2!$BS162 -> 0 | AY64: =[1]VT3!$BS162 -> 0 | AZ64: =[1]Bobines!$BW163 -> 0 | BA64: =[1]Tapis!$BW163 -> 0 | BC64: =SUM(AM64:BA64) -> 0
C65: 95 | F65: =IF(D65=0,0,$T$7/D65) -> 0 | G65: =F65*$O$7 -> 0 | M65: =IF($L$60=0,0,D65/$L$60) -> 00:00:00 | N65: =E65 -> 0 | O65: =IF(M65=0,0,$T$7/M65) -> 0 | P65: =O65*$O$7 -> 0 | Q65: =IF($BC$60=0,0,BC65/$BC$60) -> 0 | AM65: ='[1]PP v1000'!$BW164 -> 0 | AN65: =[1]PP!$BW164 -> 0 | AO65: =[1]GP!$BW164 -> 0 | AP65: =[1]Mixte!$BW164 -> 0 | AQ65: =[1]PE!$BW164 -> 0 | AR65: ='[1]Pliage main'!$BW164 -> 0 | AS65: =[1]Plat7!$BW164 -> 0 | AT65: =[1]Plat8!$BW164 -> 0 | AU65: =[1]Plat9!$BW164 -> 0 | AV65: =[1]Plat10!$BW164 -> 0 | AW65: =[1]VT1!$BS163 -> 0 | AX65: =[1]VT2!$BS163 -> 0 | AY65: =[1]VT3!$BS163 -> 0 | AZ65: =[1]Bobines!$BW164 -> 0 | BA65: =[1]Tapis!$BW164 -> 0 | BC65: =SUM(AM65:BA65) -> 0
B66: 10 | D66: =SUMPRODUCT(D67:D71,$Q$67:$Q$71) -> 00:00:00 | E66: =SUMPRODUCT(E67:E71,$Q$67:$Q$71) -> 0 | F66: =SUMPRODUCT(F67:F71,$Q$67:$Q$71) -> 0 | G66: =SUMPRODUCT(G67:G71,$Q$67:$Q$71) -> 0 | L66: =(1-I66)*(1-J66)*(1-K66) -> 1 | M66: =SUMPRODUCT(M67:M71,$Q$67:$Q$71) -> 00:00:00 | N66: =SUMPRODUCT(N67:N71,$Q$67:$Q$71) -> 00:00:00 | O66: =SUMPRODUCT(O67:O71,$Q$67:$Q$71) -> 00:00:00 | P66: =SUMPRODUCT(P67:P71,$Q$67:$Q$71) -> 0 | Q66: =SUM(Q67:Q71) -> 0 | S66: ='[1]PP v1000'!$BW$108 -> 0 | T66: =[1]PP!$BW$108 -> 0 | U66: =[1]GP!$BW$108 -> 0 | V66: =[1]Mixte!$BW$108 -> 0 | W66: =[1]PE!$BW$108 -> 0 | X66: ='[1]Pliage main'!$BW$108 -> 0 | Y66: =[1]Plat7!$BW$108 -> 0 | Z66: =[1]Plat8!$BW$108 -> 0 | AA66: =[1]Plat9!$BW$108 -> 0 | AB66: =[1]Plat10!$BW$108 -> 0 | AC66: =[1]VT1!$BS$107 -> 0 | AD66: =[1]VT2!$BS$107 -> 0 | AE66: =[1]VT3!$BS$107 -> 0 | AF66: =[1]Bobines!$BW$108 -> 0 | AG66: =[1]Tapis!$BW$108 -> 0 | AH66: =SUM(S66:AG66) -> 0 | AJ66: =O66*AH66 -> 0 | AK66: =P66*AH66 -> 0 | BB66: =B66 -> 10 | BC66: =SUM(BC67:BC71) -> 0 | BE66: =IF(BC66=0,0,$L$2-BC66) -> 0 | BG66: =BC66*I66 -> 0 | BH66: =(BC66-BG66)*(1-(1-J66)*(1-K66)) -> 0 | BJ66: =BC66-SUM(BG66:BH66) -> 0 | BL66: =IF($L$2=0,"",($L$2-BC66)/$L$2) -> 1 | BM66: =IF(O66=0,"",F66/O66) -> 
C67: 101 | F67: =IF(D67=0,0,$T$7/D67) -> 0 | G67: =F67*$O$7 -> 0 | M67: =IF($L$66=0,0,D67/$L$66) -> 00:00:00 | N67: =E67 -> 0 | O67: =IF(M67=0,0,$T$7/M67) -> 0 | P67: =O67*$O$7 -> 0 | Q67: =IF($BC$66=0,0,BC67/$BC$66) -> 0 | AM67: ='[1]PP v1000'!$BW166 -> 0 | AN67: =[1]PP!$BW166 -> 0 | AO67: =[1]GP!$BW166 -> 0 | AP67: =[1]Mixte!$BW166 -> 0 | AQ67: =[1]PE!$BW166 -> 0 | AR67: ='[1]Pliage main'!$BW166 -> 0 | AS67: =[1]Plat7!$BW166 -> 0 | AT67: =[1]Plat8!$BW166 -> 0 | AU67: =[1]Plat9!$BW166 -> 0 | AV67: =[1]Plat10!$BW166 -> 0 | AW67: =[1]VT1!$BS165 -> 0 | AX67: =[1]VT2!$BS165 -> 0 | AY67: =[1]VT3!$BS165 -> 0 | AZ67: =[1]Bobines!$BW166 -> 0 | BA67: =[1]Tapis!$BW166 -> 0 | BC67: =SUM(AM67:BA67) -> 0
C68: 102 | F68: =IF(D68=0,0,$T$7/D68) -> 0 | G68: =F68*$O$7 -> 0 | M68: =IF($L$66=0,0,D68/$L$66) -> 00:00:00 | N68: =E68 -> 0 | O68: =IF(M68=0,0,$T$7/M68) -> 0 | P68: =O68*$O$7 -> 0 | Q68: =IF($BC$66=0,0,BC68/$BC$66) -> 0 | AM68: ='[1]PP v1000'!$BW167 -> 0 | AN68: =[1]PP!$BW167 -> 0 | AO68: =[1]GP!$BW167 -> 0 | AP68: =[1]Mixte!$BW167 -> 0 | AQ68: =[1]PE!$BW167 -> 0 | AR68: ='[1]Pliage main'!$BW167 -> 0 | AS68: =[1]Plat7!$BW167 -> 0 | AT68: =[1]Plat8!$BW167 -> 0 | AU68: =[1]Plat9!$BW167 -> 0 | AV68: =[1]Plat10!$BW167 -> 0 | AW68: =[1]VT1!$BS166 -> 0 | AX68: =[1]VT2!$BS166 -> 0 | AY68: =[1]VT3!$BS166 -> 0 | AZ68: =[1]Bobines!$BW167 -> 0 | BA68: =[1]Tapis!$BW167 -> 0 | BC68: =SUM(AM68:BA68) -> 0
C69: 103 | F69: =IF(D69=0,0,$T$7/D69) -> 0 | G69: =F69*$O$7 -> 0 | M69: =IF($L$66=0,0,D69/$L$66) -> 00:00:00 | N69: =E69 -> 0 | O69: =IF(M69=0,0,$T$7/M69) -> 0 | P69: =O69*$O$7 -> 0 | Q69: =IF($BC$66=0,0,BC69/$BC$66) -> 0 | AM69: ='[1]PP v1000'!$BW168 -> 0 | AN69: =[1]PP!$BW168 -> 0 | AO69: =[1]GP!$BW168 -> 0 | AP69: =[1]Mixte!$BW168 -> 0 | AQ69: =[1]PE!$BW168 -> 0 | AR69: ='[1]Pliage main'!$BW168 -> 0 | AS69: =[1]Plat7!$BW168 -> 0 | AT69: =[1]Plat8!$BW168 -> 0 | AU69: =[1]Plat9!$BW168 -> 0 | AV69: =[1]Plat10!$BW168 -> 0 | AW69: =[1]VT1!$BS167 -> 0 | AX69: =[1]VT2!$BS167 -> 0 | AY69: =[1]VT3!$BS167 -> 0 | AZ69: =[1]Bobines!$BW168 -> 0 | BA69: =[1]Tapis!$BW168 -> 0 | BC69: =SUM(AM69:BA69) -> 0
C70: 104 | F70: =IF(D70=0,0,$T$7/D70) -> 0 | G70: =F70*$O$7 -> 0 | M70: =IF($L$66=0,0,D70/$L$66) -> 00:00:00 | N70: =E70 -> 0 | O70: =IF(M70=0,0,$T$7/M70) -> 0 | P70: =O70*$O$7 -> 0 | Q70: =IF($BC$66=0,0,BC70/$BC$66) -> 0 | AM70: ='[1]PP v1000'!$BW169 -> 0 | AN70: =[1]PP!$BW169 -> 0 | AO70: =[1]GP!$BW169 -> 0 | AP70: =[1]Mixte!$BW169 -> 0 | AQ70: =[1]PE!$BW169 -> 0 | AR70: ='[1]Pliage main'!$BW169 -> 0 | AS70: =[1]Plat7!$BW169 -> 0 | AT70: =[1]Plat8!$BW169 -> 0 | AU70: =[1]Plat9!$BW169 -> 0 | AV70: =[1]Plat10!$BW169 -> 0 | AW70: =[1]VT1!$BS168 -> 0 | AX70: =[1]VT2!$BS168 -> 0 | AY70: =[1]VT3!$BS168 -> 0 | AZ70: =[1]Bobines!$BW169 -> 0 | BA70: =[1]Tapis!$BW169 -> 0 | BC70: =SUM(AM70:BA70) -> 0
C71: 105 | F71: =IF(D71=0,0,$T$7/D71) -> 0 | G71: =F71*$O$7 -> 0 | M71: =IF($L$66=0,0,D71/$L$66) -> 00:00:00 | N71: =E71 -> 0 | O71: =IF(M71=0,0,$T$7/M71) -> 0 | P71: =O71*$O$7 -> 0 | Q71: =IF($BC$66=0,0,BC71/$BC$66) -> 0 | AM71: ='[1]PP v1000'!$BW170 -> 0 | AN71: =[1]PP!$BW170 -> 0 | AO71: =[1]GP!$BW170 -> 0 | AP71: =[1]Mixte!$BW170 -> 0 | AQ71: =[1]PE!$BW170 -> 0 | AR71: ='[1]Pliage main'!$BW170 -> 0 | AS71: =[1]Plat7!$BW170 -> 0 | AT71: =[1]Plat8!$BW170 -> 0 | AU71: =[1]Plat9!$BW170 -> 0 | AV71: =[1]Plat10!$BW170 -> 0 | AW71: =[1]VT1!$BS169 -> 0 | AX71: =[1]VT2!$BS169 -> 0 | AY71: =[1]VT3!$BS169 -> 0 | AZ71: =[1]Bobines!$BW170 -> 0 | BA71: =[1]Tapis!$BW170 -> 0 | BC71: =SUM(AM71:BA71) -> 0
A75: =A12 -> Séchoir 2 | B75: 1 | C75: 11 | D75: référence pour les listes déroulantes dans les onglets de finition
A76: =A18 -> Séchoir 3 & 4 | B76: 2 | C76: 12
A77: =A24 -> Séchoir 5 | B77: 3 | C77: 13
A78: =A30 -> Séchoir 6 | B78: 4 | C78: 14
A79: =A36 -> Séchoir 7 | B79: 5 | C79: 15
A80: =A42 -> 0 | B80: 6 | C80: 21
A81: =A48 -> 0 | B81: 7 | C81: 22
A82: =A54 -> 0 | B82: 8 | C82: 23
A83: =A60 -> 0 | B83: 9 | C83: 24
A84: =A66 -> 0 | B84: 10 | C84: 25
C85: 31
C86: 32
C87: 33
C88: 34
C89: 35
C90: 41
C91: 42
C92: 43
C93: 44
C94: 45
C95: 51
C96: 52
C97: 53
C98: 54
C99: 55
C100: 61
C101: 62
C102: 63
C103: 64
C104: 65
C105: 71
C106: 72
C107: 73
C108: 74
C109: 75
C110: 81
C111: 82
C112: 83
C113: 84
C114: 85
C115: 91
C116: 92
C117: 93
C118: 94
C119: 95
C120: 101
C121: 102
C122: 103
C123: 104
C124: 105

Sheet Lavage
BW1: SYNTHESE DES PERFORMANCES | CF1: code equipement
E2: Ouverture USINE hebdo (yc pause) | L2: =[1]Paramètres!J4 -> 113.6 | M2: h
E3: Ouverture USINE hebdo (ss pause) | L3: =[1]Paramètres!J6 -> 105 | M3: h | V3: 2'20 | BW3: Milnor 270 x 2 | CF3: =VLOOKUP(BW3,B13:C79,2,FALSE) -> 
V4: 4'36 | CD4: 0
E5: Ouverture LAVOIR hebdo (ss pause) | L5: =L2 -> 113.6 | M5: h
E7: Nbre de jours | G7: =[1]Paramètres!J5 -> 5 | J7: Ouverture quotidienne Equipement | P7: =IF(G7=0,0,L5/G7) -> 22.72 | Q7: h | S7: 1 heure | T7: 01:00:00 | W7: =AVERAGE(R16:R24) -> 01:22:27.016 | BY7: Temps disponible (h)
CA8: Temps liés aux aléas programmés (h)
E9: Attention: l'ajout/suppression de colonnes avant la colonne S => modification manuelle des formules des colonnes (BI à BL) et (AW à AZ), des onglets de finition | BY9: =VLOOKUP(CF3,BJ13:BP70,4,FALSE) ->  | CE9: Taux de chargement réel de l'unité de lavage (passe ou machine) = | CG9: =VLOOKUP($CF$3,C:W,17,FALSE) -> 
C10: INFO TUNNELS | I10: CAPACITE NOMINALE | N10: CAPACITE REELLE | Y10: BESOIN (en nb de passes) | AT10: BESOIN (en heures) de l'équipement | BM10: Temps de disponibilité de l'équipement (h) | BO10: Temps de non production (h) | BR10: Temps de production conforme (h) | BT10: Taux de disponibilité | BU10: TRG | CA10: =VLOOKUP(CF3,BJ13:BP70,6,FALSE) ->  | CB10: Temps liés aux aléas non programmés (h)
N11: Aléas | R11: Temps de cycle réel | S11: Taux de chargmt de l'unité de lavage (%) | T11: Unité lavage (kg) | U11: passe / heure | V11: passe / jour | W11: Répartition des prg (sur laveuse) | BO11: lié aux aléas programmés | BP11: lié aux aléas non programmés (yc avec transfert)
C12: Code Equipemt de lavage | D12: Code Programme | E12: Temps de contact XX:XX:XX | F12: Nombre de compartiments | G12: Temps de cycle Théorique | I12: Temps de cycle Ecolab XX:XX:XX | J12: Unité lavage (kg) | K12: passe / heure | L12: passe / jour | N12: Programmés (%) | O12: Pannes (%) | P12: Organisation (%) | Q12: Total | Y12: ='[1]Qtité Famille'!$E$5 -> plat1 | Z12: ='[1]Qtité Famille'!$F$5 -> plat2 | AA12: ='[1]Qtité Famille'!$G$5 -> plat3 | AB12: ='[1]Qtité Famille'!$H$5 -> plat4 | AC12: ='[1]Qtité Famille'!$I$5 -> plat5 | AD12: ='[1]Qtité Famille'!$J$5 -> plat6 | AE12: ='[1]Qtité Famille'!$K$5 -> plat7 | AF12: ='[1]Qtité Famille'!$L$5 -> plat8 | AG12: ='[1]Qtité Famille'!$M$5 -> plat9 | AH12: ='[1]Qtité Famille'!$N$5 -> plat10 | AI12: ='[1]Qtité Famille'!$O$5 -> VT1 | AJ12: ='[1]Qtité Famille'!$P$5 -> VT2 | AK12: ='[1]Qtité Famille'!$Q$5 -> VT3 | AL12: ='[1]Qtité Famille'!$R$5 -> bobines | AM12: ='[1]Qtité Famille'!$S$5 -> tapis | AN12: ='[1]Qtité Famille'!$T$5 -> Contaminé | AO12: Besoin total | AQ12: passe / heure | AR12: passe / jour | AT12: ='[1]Qtité Famille'!$E$5 -> plat1 | AU12: ='[1]Qtité Famille'!$F$5 -> plat2 | AV12: ='[1]Qtité Famille'!$G$5 -> plat3 | AW12: ='[1]Qtité Famille'!$H$5 -> plat4 | AX12: ='[1]Qtité Famille'!$I$5 -> plat5 | AY12: ='[1]Qtité Famille'!$J$5 -> plat6 | AZ12: ='[1]Qtité Famille'!$K$5 -> plat7 | BA12: ='[1]Qtité Famille'!$L$5 -> plat8 | BB12: ='[1]Qtité Famille'!$M$5 -> plat9 | BC12: ='[1]Qtité Famille'!$N$5 -> plat10 | BD12: ='[1]Qtité Famille'!$O$5 -> VT1 | BE12: ='[1]Qtité Famille'!$P$5 -> VT2 | BF12: ='[1]Qtité Famille'!$Q$5 -> VT3 | BG12: ='[1]Qtité Famille'!$R$5 -> bobines | BH12: ='[1]Qtité Famille'!$S$5 -> tapis | BI12: ='[1]Qtité Famille'!$T$5 -> Contaminé | BJ12: Rappel code equpmt | BK12: Besoin total | CB12: =VLOOKUP(CF3,BJ13:BP70,7,FALSE) -> 
A13: Tunnels de lavage | B13: Tunnel LP | C13: 1 | E13: 00:28:30 | F13: 18 | G13: =IF(F13=0,0,E13/F13) -> 00:01:35 | I13: 00:01:35 | J13: 50 | K13: =IF(I13="","",$T$7/I13) -> 37.89473684 | L13: =IF(K13="","",K13*$P$7) -> 860.9684211 | P13: 0.31 | Q13: =(1-N13)*(1-O13)*(1-P13) -> 0.69 | R13: =IF(I13="","",I13/Q13) -> 00:02:17.681 | S13: 1.05 | T13: =J13*S13 -> 52.5 | U13: =IF(I13=0,0,$T$7/R13) -> 26.14736842 | V13: =U13*$P$7 -> 594.0682105 | Y13: ='[1]PP v1000'!$BL99 -> 0 | Z13: =[1]PP!$BL99 -> 0.08485089236 | AA13: =[1]GP!$BL99 -> 0.4896418292 | AB13: =[1]Mixte!$BL99 -> 0.1479216582 | AC13: =[1]PE!$BL99 -> 0.1593758606 | AD13: ='[1]Pliage main'!$BL99 -> 0.06148261656 | AE13: =[1]Plat7!$BL99 -> 0 | AF13: =[1]Plat8!$BL99 -> 0 | AG13: =[1]Plat9!$BL99 -> 0 | AH13: =[1]Plat10!$BL99 -> 0 | AI13: =[1]VT1!$BH98 -> 0 | AJ13: =[1]VT2!$BH98 -> 0 | AK13: =[1]VT3!$BH98 -> 0 | AL13: =[1]Bobines!$BL99 -> 0 | AM13: =[1]Tapis!$BL99 -> 0 | AN13: =[1]Contaminé!I13 -> 0 | AO13: =SUM(Y13:AN13) -> 0.9432728569 | AQ13: =U13*AO13 -> 24.66410291 | AR13: =V13*AO13 -> 560.3684181 | AT13: ='[1]PP v1000'!$BP111 -> 0 | AU13: =[1]PP!$BP111 -> 9.639061372 | AV13: =[1]GP!$BP111 -> 55.62331179 | AW13: =[1]Mixte!$BP111 -> 16.80390037 | AX13: =[1]PE!$BP111 -> 18.10509776 | AY13: ='[1]Pliage main'!$BP111 -> 6.984425242 | AZ13: =[1]Plat7!$BP111 -> 0 | BA13: =[1]Plat8!$BP111 -> 0 | BB13: =[1]Plat9!$BP111 -> 0 | BC13: =[1]Plat10!$BP111 -> 0 | BD13: =[1]VT1!$BL110 -> 0 | BE13: =[1]VT2!$BL110 -> 0 | BF13: =[1]VT3!$BL110 -> 0 | BG13: =[1]Bobines!$BP111 -> 0 | BH13: =[1]Tapis!$BP111 -> 0 | BI13: =[1]Contaminé!I25 -> 0 | BJ13: =C13 -> 1 | BK13: =SUM(AT13:BI13) -> 107.1557965 | BM13: =IF(BK13=0,0,$L$2-BK13) -> 6.444203461 | BO13: =BK13*(1-(1-N13)*S13) -> -5.357789827 | BP13: =(BK13-BO13)*(1-(1-O13)*(1-P13)) -> 34.87921177 | BR13: =BK13-SUM(BO13:BP13) -> 77.63437459 | BT13: =IF($L$2=0,"",($L$2-BK13)/$L$2) -> 0.05672714315 | BU13: =IF(K13="","",U13/K13) -> 0.69
B14: Tunnel VT | C14: 2 | E14: 00:39:00 | F14: 13 | G14: =IF(F14=0,0,E14/F14) -> 00:03:00 | I14: 00:03:00 | J14: 45 | K14: =IF(I14="","",$T$7/I14) -> 20 | L14: =IF(K14="","",K14*$P$7) -> 454.4 | N14: 0.15 | O14: 0.1 | P14: 0.15 | Q14: =(1-N14)*(1-O14)*(1-P14) -> 0.65025 | R14: =IF(I14="","",I14/Q14) -> 00:04:36.817 | S14: 0.95 | T14: =J14*S14 -> 42.75 | U14: =IF(I14=0,0,$T$7/R14) -> 13.005 | V14: =U14*$P$7 -> 295.4736 | Y14: ='[1]PP v1000'!$BL100 -> 0 | Z14: =[1]PP!$BL100 -> 0 | AA14: =[1]GP!$BL100 -> 0 | AB14: =[1]Mixte!$BL100 -> 0.06579123612 | AC14: =[1]PE!$BL100 -> 0.03429345426 | AD14: ='[1]Pliage main'!$BL100 ->  | AE14: =[1]Plat7!$BL100 -> 0 | AF14: =[1]Plat8!$BL100 -> 0 | AG14: =[1]Plat9!$BL100 -> 0 | AH14: =[1]Plat10!$BL100 -> 0 | AI14: =[1]VT1!$BH99 -> 0 | AJ14: =[1]VT2!$BH99 -> 0 | AK14: =[1]VT3!$BH99 -> 0 | AL14: =[1]Bobines!$BL100 -> 0 | AM14: =[1]Tapis!$BL100 -> 0 | AN14: =[1]Contaminé!I14 -> 0 | AO14: =SUM(Y14:AN14) ->  | AQ14: =U14*AO14 ->  | AR14: =V14*AO14 ->  | AT14: ='[1]PP v1000'!$BP112 -> 0 | AU14: =[1]PP!$BP112 -> 0 | AV14: =[1]GP!$BP112 -> 0 | AW14: =[1]Mixte!$BP112 -> 7.473884423 | AX14: =[1]PE!$BP112 -> 3.895736404 | AY14: ='[1]Pliage main'!$BP112 ->  | AZ14: =[1]Plat7!$BP112 -> 0 | BA14: =[1]Plat8!$BP112 -> 0 | BB14: =[1]Plat9!$BP112 -> 0 | BC14: =[1]Plat10!$BP112 -> 0 | BD14: =[1]VT1!$BL111 -> 0 | BE14: =[1]VT2!$BL111 -> 0 | BF14: =[1]VT3!$BL111 -> 0 | BG14: =[1]Bobines!$BP112 -> 0 | BH14: =[1]Tapis!$BP112 -> 0 | BI14: =[1]Contaminé!I26 -> 0 | BJ14: =C14 -> 2 | BK14: =SUM(AT14:BI14) ->  | BM14: =IF(BK14=0,0,$L$2-BK14) ->  | BO14: =BK14*(1-(1-N14)*S14) ->  | BP14: =(BK14-BO14)*(1-(1-O14)*(1-P14)) ->  | BR14: =BK14-SUM(BO14:BP14) ->  | BT14: =IF($L$2=0,"",($L$2-BK14)/$L$2) ->  | BU14: =IF(K14="","",U14/K14) -> 0.65025
C15: 3 | G15: =IF(F15=0,0,E15/F15) -> 00:00:00 | K15: =IF(I15="","",$T$7/I15) ->  | L15: =IF(K15="","",K15*$P$7) ->  | Q15: =(1-N15)*(1-O15)*(1-P15) -> 1 | R15: =IF(I15="","",I15/Q15) ->  | T15: =J15*S15 -> 0 | U15: =IF(I15=0,0,$T$7/R15) -> 0 | V15: =U15*$P$7 -> 0 | Y15: ='[1]PP v1000'!$BL101 -> 0 | Z15: =[1]PP!$BL101 -> 0 | AA15: =[1]GP!$BL101 -> 0 | AB15: =[1]Mixte!$BL101 -> 0 | AC15: =[1]PE!$BL101 -> 0 | AD15: ='[1]Pliage main'!$BL101 -> 0 | AE15: =[1]Plat7!$BL101 -> 0 | AF15: =[1]Plat8!$BL101 -> 0 | AG15: =[1]Plat9!$BL101 -> 0 | AH15: =[1]Plat10!$BL101 -> 0 | AI15: =[1]VT1!$BH100 -> 0 | AJ15: =[1]VT2!$BH100 -> 0 | AK15: =[1]VT3!$BH100 -> 0 | AL15: =[1]Bobines!$BL101 -> 0 | AM15: =[1]Tapis!$BL101 -> 0 | AN15: =[1]Contaminé!I15 -> 0 | AO15: =SUM(Y15:AN15) -> 0 | AQ15: =U15*AO15 -> 0 | AR15: =V15*AO15 -> 0 | AT15: ='[1]PP v1000'!$BP113 -> 0 | AU15: =[1]PP!$BP113 -> 0 | AV15: =[1]GP!$BP113 -> 0 | AW15: =[1]Mixte!$BP113 -> 0 | AX15: =[1]PE!$BP113 -> 0 | AY15: ='[1]Pliage main'!$BP113 -> 0 | AZ15: =[1]Plat7!$BP113 -> 0 | BA15: =[1]Plat8!$BP113 -> 0 | BB15: =[1]Plat9!$BP113 -> 0 | BC15: =[1]Plat10!$BP113 -> 0 | BD15: =[1]VT1!$BL112 -> 0 | BE15: =[1]VT2!$BL112 -> 0 | BF15: =[1]VT3!$BL112 -> 0 | BG15: =[1]Bobines!$BP113 -> 0 | BH15: =[1]Tapis!$BP113 -> 0 | BI15: =[1]Contaminé!I27 -> 0 | BJ15: =C15 -> 3 | BK15: 0 | BM15: =IF(BK15=0,0,$L$2-BK15) -> 0 | BO15: =BK15*(1-(1-N15)*S15) -> 0 | BP15: =(BK15-BO15)*(1-(1-O15)*(1-P15)) -> 0 | BR15: =BK15-SUM(BO15:BP15) -> 0 | BT15: =IF($L$2=0,"",($L$2-BK15)/$L$2) -> 1 | BU15: =IF(K15="","",U15/K15) ->  | BY15: =$S$3-$CI$87-$CJ$87-BI87 -> 0
A16: Laveuses-Essoreuses | B16: 1 & 17 (sanitaire) | C16: 4 | I16: =SUMPRODUCT(I17:I24,W17:W24) -> 01:12:03.140 | J16: 1170 | K16: =SUMPRODUCT(K17:K24,W17:W24) -> 0.8482961646 | L16: =SUMPRODUCT(L17:L24,$W$17:$W$24) -> 19.27328886 | Q16: =(1-N16)*(1-O16)*(1-P16) -> 1 | R16: =SUMPRODUCT(R17:R24,$W$17:$W$24) -> 01:12:03.140 | S16: =SUMPRODUCT(S17:S24,$W$17:$W$24) -> 0.8099545102 | T16: =SUMPRODUCT(T17:T24,W17:W24) -> 947.6467769 | U16: =SUMPRODUCT(U17:U24,W17:W24) -> 0.8482961646 | V16: =SUMPRODUCT(V17:V24,W17:W24) -> 19.27328886 | W16: =SUM(W17:W24) -> 1 | Y16: ='[1]PP v1000'!$BL102 -> 0 | Z16: =[1]PP!$BL102 -> 0.0006069695864 | AA16: =[1]GP!$BL102 -> 0 | AB16: =[1]Mixte!$BL102 -> 0.01359695323 | AC16: =[1]PE!$BL102 -> 0.0005799166396 | AD16: ='[1]Pliage main'!$BL102 -> 0.1765946777 | AE16: =[1]Plat7!$BL102 -> 0 | AF16: =[1]Plat8!$BL102 -> 0 | AG16: =[1]Plat9!$BL102 -> 0 | AH16: =[1]Plat10!$BL102 -> 0 | AI16: =[1]VT1!$BH101 -> 0 | AJ16: =[1]VT2!$BH101 -> 0 | AK16: =[1]VT3!$BH101 -> 0 | AL16: =[1]Bobines!$BL102 -> 0.286179727 | AM16: =[1]Tapis!$BL102 -> 0.3228023521 | AN16: =[1]Contaminé!I16 -> 0 | AO16: =SUM(Y16:AN16) -> 0.8003605962 | AQ16: =U16*AO16 -> 0.6789428241 | AR16: =V16*AO16 -> 15.42558096 | BJ16: =C16 -> 4 | BK16: =SUM(BK17:BK24) -> 90.92096373 | BM16: =IF(BK16=0,0,$L$2-BK16) -> 22.67903627 | BO16: =BK16*(1-(1-N16)*S16) -> 17.27911909 | BP16: =(BK16-BO16)*(1-(1-O16)*(1-P16)) -> 0 | BR16: =BK16-SUM(BO16:BP16) -> 73.64184464 | BT16: =IF($L$2=0,"",($L$2-BK16)/$L$2) -> 0.1996394038 | BU16: =IF(K16=0,"",U16/K16) -> 1 | BX16: Temps d'ouverture usine | BY16: =L5 -> 113.6
B17: 3x300 kg | D17: 41 | F17: 5 | I17: 03:00:00 | J17: =$J$16 -> 1170 | K17: =IF(I17=0,0,$T$7/I17) -> 0.3333333333 | L17: =K17*$P$7 -> 7.573333333 | R17: =IF(I17="","",I17/$Q$16) -> 03:00:00 | S17: 0.9 | T17: =$J$16*S17 -> 1053 | U17: =IF(I17=0,0,$T$7/R17) -> 0.3333333333 | V17: =U17*$P$7 -> 7.573333333 | W17: =IF($BK$16=0,0,BK17/$BK$16) -> 0 | AT17: ='[1]PP v1000'!$BP115 -> 0 | AU17: =[1]PP!$BP115 -> 0 | AV17: =[1]GP!$BP115 -> 0 | AW17: =[1]Mixte!$BP115 -> 0 | AX17: =[1]PE!$BP115 -> 0 | AY17: ='[1]Pliage main'!$BP115 -> 0 | AZ17: =[1]Plat7!$BP115 -> 0 | BA17: =[1]Plat8!$BP115 -> 0 | BB17: =[1]Plat9!$BP115 -> 0 | BC17: =[1]Plat10!$BP115 -> 0 | BD17: =[1]VT1!$BL114 -> 0 | BE17: =[1]VT2!$BL114 -> 0 | BF17: =[1]VT3!$BL114 -> 0 | BG17: =[1]Bobines!$BP115 -> 0 | BH17: =[1]Tapis!$BP115 -> 0 | BI17: =[1]Contaminé!I29 -> 0 | BK17: 0 | BX17: Temps d'ouverture machine | BY17: =VLOOKUP(CF3,BJ13:BP70,2,FALSE) -> 
B18: 1x270 kg | D18: 42 | F18: 6 | G18: tapis | I18: 01:10:00 | J18: =$J$16 -> 1170 | K18: 0.8571428571 | L18: 19.47428571 | R18: =IF(I18="","",I18/$Q$16) -> 01:10:00 | S18: 0.95 | T18: =$J$16*S18 -> 1111.5 | U18: 0.8571428571 | V18: 19.47428571 | W18: =IF($BK$16=0,0,BK18/$BK$16) -> 0.403321145 | AT18: ='[1]PP v1000'!$BP116 -> 0 | AU18: =[1]PP!$BP116 -> 0 | AV18: =[1]GP!$BP116 -> 0 | AW18: =[1]Mixte!$BP116 -> 0 | AX18: =[1]PE!$BP116 -> 0 | AY18: ='[1]Pliage main'!$BP116 -> 0 | AZ18: =[1]Plat7!$BP116 -> 0 | BA18: =[1]Plat8!$BP116 -> 0 | BB18: =[1]Plat9!$BP116 -> 0 | BC18: =[1]Plat10!$BP116 -> 0 | BD18: =[1]VT1!$BL115 -> 0 | BE18: =[1]VT2!$BL115 -> 0 | BF18: =[1]VT3!$BL115 -> 0 | BG18: =[1]Bobines!$BP116 -> 0 | BH18: =[1]Tapis!$BP116 -> 36.6703472 | BI18: =[1]Contaminé!I30 -> 0 | BK18: 36.6703472 | BX18: Temps d'utilisation | BY18: =BY17-VLOOKUP($CF$3,$BJ$13:$BP$70,6,FALSE) -> 
D19: 43 | F19: 8 | I19: 00:50:00 | J19: 1170 | K19: 1.2 | L19: 27.264 | R19: 00:50:00 | S19: 0.33 | T19: 386.1 | U19: 1.2 | V19: 27.264 | W19: =IF($BK$16=0,0,BK19/$BK$16) -> 0.01774690419 | AT19: ='[1]PP v1000'!$BP117 -> 0 | AU19: =[1]PP!$BP117 -> 0.06895174501 | AV19: =[1]GP!$BP117 -> 0 | AW19: =[1]Mixte!$BP117 -> 1.544613887 | AX19: =[1]PE!$BP117 -> 0 | AY19: ='[1]Pliage main'!$BP117 -> 0 | AZ19: =[1]Plat7!$BP117 -> 0 | BA19: =[1]Plat8!$BP117 -> 0 | BB19: =[1]Plat9!$BP117 -> 0 | BC19: =[1]Plat10!$BP117 -> 0 | BD19: =[1]VT1!$BL116 -> 0 | BE19: =[1]VT2!$BL116 -> 0 | BF19: =[1]VT3!$BL116 -> 0 | BG19: =[1]Bobines!$BP117 -> 0 | BH19: =[1]Tapis!$BP117 -> 0 | BI19: =[1]Contaminé!I31 -> 0 | BK19: 1.613565632 | BX19: Temps de marche | BY19: =BY18-VLOOKUP($CF$3,$BJ$13:$BP$70,7,FALSE) -> 
D20: 44 | F20: 9 | I20: 01:10:00 | J20: 1170 | K20: 0.8571428571 | L20: 19.47428571 | R20: 01:10:00 | S20: 0.9 | T20: 1053 | U20: 0.8571428571 | V20: 19.47428571 | W20: 0.0007245692033 | AT20: ='[1]PP v1000'!$BP118 -> 0 | AU20: =[1]PP!$BP118 -> 0 | AV20: =[1]GP!$BP118 -> 0 | AW20: =[1]Mixte!$BP118 -> 0 | AX20: =[1]PE!$BP118 -> 0.06587853026 | AY20: ='[1]Pliage main'!$BP118 -> 0 | AZ20: =[1]Plat7!$BP118 -> 0 | BA20: =[1]Plat8!$BP118 -> 0 | BB20: =[1]Plat9!$BP118 -> 0 | BC20: =[1]Plat10!$BP118 -> 0 | BD20: =[1]VT1!$BL117 -> 0 | BE20: =[1]VT2!$BL117 -> 0 | BF20: =[1]VT3!$BL117 -> 0 | BG20: =[1]Bobines!$BP118 -> 0 | BH20: =[1]Tapis!$BP118 -> 0 | BI20: =[1]Contaminé!I32 -> 0 | BK20: 0.06587853026
D21: 45 | F21: 13 | G21: couettes | I21: 01:00:00 | J21: 1170 | K21: 1 | L21: 22.72 | R21: 01:00:00 | S21: 0.33 | T21: 386.1 | U21: 1 | V21: 22.72 | W21: 0.1531905478 | AT21: ='[1]PP v1000'!$BP119 -> 0 | AU21: =[1]PP!$BP119 -> 0 | AV21: =[1]GP!$BP119 -> 0 | AW21: =[1]Mixte!$BP119 -> 0 | AX21: =[1]PE!$BP119 -> 0 | AY21: ='[1]Pliage main'!$BP119 -> 13.92823224 | AZ21: =[1]Plat7!$BP119 -> 0 | BA21: =[1]Plat8!$BP119 -> 0 | BB21: =[1]Plat9!$BP119 -> 0 | BC21: =[1]Plat10!$BP119 -> 0 | BD21: =[1]VT1!$BL118 -> 0 | BE21: =[1]VT2!$BL118 -> 0 | BF21: =[1]VT3!$BL118 -> 0 | BG21: =[1]Bobines!$BP119 -> 0 | BH21: =[1]Tapis!$BP119 -> 0 | BI21: =[1]Contaminé!I33 -> 0 | BK21: 13.92823224
D22: 46 | F22: 14 | I22: 01:30:00 | J22: 1170 | K22: 0.6666666667 | L22: 15.14666667 | R22: 01:30:00 | S22: 0.9 | T22: 1053 | U22: 0.6666666667 | V22: 15.14666667 | W22: 0.06745334515 | AT22: ='[1]PP v1000'!$BP120 -> 0 | AU22: =[1]PP!$BP120 -> 0 | AV22: =[1]GP!$BP120 -> 0 | AW22: =[1]Mixte!$BP120 -> 0 | AX22: =[1]PE!$BP120 -> 0 | AY22: ='[1]Pliage main'!$BP120 -> 6.132923148 | AZ22: =[1]Plat7!$BP120 -> 0 | BA22: =[1]Plat8!$BP120 -> 0 | BB22: =[1]Plat9!$BP120 -> 0 | BC22: =[1]Plat10!$BP120 -> 0 | BD22: =[1]VT1!$BL119 -> 0 | BE22: =[1]VT2!$BL119 -> 0 | BF22: =[1]VT3!$BL119 -> 0 | BG22: =[1]Bobines!$BP120 -> 0 | BH22: =[1]Tapis!$BP120 -> 0 | BI22: =[1]Contaminé!I34 -> 0 | BK22: 6.132923148
D23: 47 | F23: 20 | G23: bob blanches | I23: 01:25:00 | J23: 1170 | K23: 0.7058823529 | L23: 16.03764706 | R23: 01:25:00 | S23: 1 | T23: 1170 | U23: 0.7058823529 | V23: 16.03764706 | W23: 0.2188962078 | AT23: ='[1]PP v1000'!$BP121 -> 0 | AU23: =[1]PP!$BP121 -> 0 | AV23: =[1]GP!$BP121 -> 0 | AW23: =[1]Mixte!$BP121 -> 0 | AX23: =[1]PE!$BP121 -> 0 | AY23: ='[1]Pliage main'!$BP121 -> 0 | AZ23: =[1]Plat7!$BP121 -> 0 | BA23: =[1]Plat8!$BP121 -> 0 | BB23: =[1]Plat9!$BP121 -> 0 | BC23: =[1]Plat10!$BP121 -> 0 | BD23: =[1]VT1!$BL120 -> 0 | BE23: =[1]VT2!$BL120 -> 0 | BF23: =[1]VT3!$BL120 -> 0 | BG23: =[1]Bobines!$BP121 -> 19.90225417 | BH23: =[1]Tapis!$BP121 -> 0 | BI23: =[1]Contaminé!I35 -> 0 | BK23: 19.90225417
D24: 48 | F24: 21 | G24: bob bleues | I24: 01:05:00 | J24: 1170 | K24: 0.9230769231 | L24: 20.97230769 | R24: 01:05:00 | S24: 0.65 | T24: 760.5 | U24: 0.9230769231 | V24: 20.97230769 | W24: 0.1386672809 | AT24: ='[1]PP v1000'!$BP122 -> 0 | AU24: =[1]PP!$BP122 -> 0 | AV24: =[1]GP!$BP122 -> 0 | AW24: =[1]Mixte!$BP122 -> 0 | AX24: =[1]PE!$BP122 -> 0 | AY24: ='[1]Pliage main'!$BP122 -> 0 | AZ24: =[1]Plat7!$BP122 -> 0 | BA24: =[1]Plat8!$BP122 -> 0 | BB24: =[1]Plat9!$BP122 -> 0 | BC24: =[1]Plat10!$BP122 -> 0 | BD24: =[1]VT1!$BL121 -> 0 | BE24: =[1]VT2!$BL121 -> 0 | BF24: =[1]VT3!$BL121 -> 0 | BG24: =[1]Bobines!$BP122 -> 12.60776282 | BH24: =[1]Tapis!$BP122 -> 0 | BI24: =[1]Contaminé!I36 -> 0 | BK24: 12.60776282
B25: 6 & 7 & 9 (VT + restau) | C25: 5 | I25: =SUMPRODUCT(I26:I33,W26:W33) -> 01:06:21.565 | J25: 335 | K25: =SUMPRODUCT(K26:K33,W26:W33) -> 1.034130819 | L25: =SUMPRODUCT(L26:L33,$W$26:$W$33) -> 23.4954522 | Q25: =(1-N25)*(1-O25)*(1-P25) -> 1 | R25: =SUMPRODUCT(R26:R33,$W$26:$W$33) -> 01:06:21.565 | S25: =SUMPRODUCT(S26:S33,$W$26:$W$33) -> 0.7500379645 | T25: =SUMPRODUCT(T26:T33,W26:W33) -> 251.2627181 | U25: =SUMPRODUCT(U26:U33,W26:W33) -> 1.034130819 | V25: =SUMPRODUCT(V26:V33,W26:W33) -> 23.4954522 | W25: =SUM(W26:W33) -> 1 | Y25: ='[1]PP v1000'!$BL103 -> 0 | Z25: =[1]PP!$BL103 -> 0.07239129349 | AA25: =[1]GP!$BL103 -> 0 | AB25: =[1]Mixte!$BL103 -> 0.07238409956 | AC25: =[1]PE!$BL103 -> 0 | AD25: ='[1]Pliage main'!$BL103 -> 0.06653499601 | AE25: =[1]Plat7!$BL103 -> 0 | AF25: =[1]Plat8!$BL103 -> 0 | AG25: =[1]Plat9!$BL103 -> 0 | AH25: =[1]Plat10!$BL103 -> 0 | AI25: =[1]VT1!$BH102 -> 0 | AJ25: =[1]VT2!$BH102 -> 0 | AK25: =[1]VT3!$BH102 -> 0 | AL25: =[1]Bobines!$BL103 -> 0 | AM25: =[1]Tapis!$BL103 -> 0 | AN25: =[1]Contaminé!I17 -> 0 | AO25: =SUM(Y25:AN25) -> 0.2113103891 | AQ25: =U25*AO25 -> 0.2185225856 | AR25: =V25*AO25 -> 4.964833146 | BJ25: =C25 -> 5 | BK25: =SUM(BK26:BK33) -> 32.0048602 | BM25: =IF(BK25=0,0,$L$2-BK25) -> 81.5951398 | BO25: =BK25*(1-(1-N25)*S25) -> 8 | BP25: =(BK25-BO25)*(1-(1-O25)*(1-P25)) -> 0 | BT25: =IF($L$2=0,"",($L$2-BK25)/$L$2) -> 0.7182670757 | BU25: =IF(K25=0,"",U25/K25) -> 1
B26: 1x100 kg | D26: 51 | F26: 15 | I26: 00:45:00 | J26: =$J$25 -> 335 | K26: =IF(I26=0,0,$T$7/I26) -> 1.333333333 | L26: =K26*$P$7 -> 30.29333333 | R26: =IF(I26="","",I26/$Q$25) -> 00:45:00 | S26: 0.85 | T26: =$J$25*S26 -> 284.75 | U26: =IF(I26=0,0,$T$7/R26) -> 1.333333333 | V26: =U26*$P$7 -> 30.29333333 | W26: =IF($BK$25=0,0,BK26/$BK$25) -> 0 | AT26: ='[1]PP v1000'!$BP124 -> 0 | AU26: =[1]PP!$BP124 -> 0 | AV26: =[1]GP!$BP124 -> 0 | AW26: =[1]Mixte!$BP124 -> 0 | AX26: =[1]PE!$BP124 -> 0 | AY26: ='[1]Pliage main'!$BP124 -> 0 | AZ26: =[1]Plat7!$BP124 -> 0 | BA26: =[1]Plat8!$BP124 -> 0 | BB26: =[1]Plat9!$BP124 -> 0 | BC26: =[1]Plat10!$BP124 -> 0 | BD26: =[1]VT1!$BL123 -> 0 | BE26: =[1]VT2!$BL123 -> 0 | BF26: =[1]VT3!$BL123 -> 0 | BG26: =[1]Bobines!$BP124 -> 0 | BH26: =[1]Tapis!$BP124 -> 0 | BI26: =[1]Contaminé!I38 -> 0 | BK26: =SUM(AT26:BI26) -> 0
B27: 1x55 kg | D27: 52 | F27: 25 | I27: 01:04:00 | J27: =$J$25 -> 335 | K27: 0.9375 | L27: 21.3 | R27: 01:04:00 | S27: 1 | T27: =$J$25*S27 -> 335 | U27: 0.9375 | V27: =U27*$P$7 -> 21.3 | W27: =IF($BK$25=0,0,BK27/$BK$25) -> 0.5007795352 | AT27: ='[1]PP v1000'!$BP125 -> 0 | AU27: =[1]PP!$BP125 -> 8.22365094 | AV27: =[1]GP!$BP125 -> 0 | AW27: =[1]Mixte!$BP125 -> 7.803728072 | AX27: =[1]PE!$BP125 -> 0 | AY27: ='[1]Pliage main'!$BP125 -> 0 | AZ27: =[1]Plat7!$BP125 -> 0 | BA27: =[1]Plat8!$BP125 -> 0 | BB27: =[1]Plat9!$BP125 -> 0 | BC27: =[1]Plat10!$BP125 -> 0 | BD27: =[1]VT1!$BL124 -> 0 | BE27: =[1]VT2!$BL124 -> 0 | BF27: =[1]VT3!$BL124 -> 0 | BG27: =[1]Bobines!$BP125 -> 0 | BH27: =[1]Tapis!$BP125 -> 0 | BI27: =[1]Contaminé!I39 -> 0 | BK27: 16.02737901
B28: 1x180 kg | D28: 53 | F28: 26 | I28: 00:43:00 | J28: 335 | K28: 1.395348837 | L28: 31.70232558 | R28: 00:43:00 | S28: 1 | T28: 335 | U28: 1.395348837 | V28: 31.70232558 | W28: 0 | AT28: ='[1]PP v1000'!$BP126 -> 0 | AU28: =[1]PP!$BP126 -> 0 | AV28: =[1]GP!$BP126 -> 0 | AW28: =[1]Mixte!$BP126 -> 0 | AX28: =[1]PE!$BP126 -> 0 | AY28: ='[1]Pliage main'!$BP126 -> 0 | AZ28: =[1]Plat7!$BP126 -> 0 | BA28: =[1]Plat8!$BP126 -> 0 | BB28: =[1]Plat9!$BP126 -> 0 | BC28: =[1]Plat10!$BP126 -> 0 | BD28: =[1]VT1!$BL125 -> 0 | BE28: =[1]VT2!$BL125 -> 0 | BF28: =[1]VT3!$BL125 -> 0 | BG28: =[1]Bobines!$BP126 -> 0 | BH28: =[1]Tapis!$BP126 -> 0 | BI28: =[1]Contaminé!I40 -> 0 | BK28: 0
D29: 54 | F29: 27 | I29: 01:20:00 | J29: 335 | K29: 0.75 | L29: 17.04 | R29: 01:20:00 | S29: 1 | T29: 335 | U29: 0.75 | V29: 17.04 | W29: 0.0130950623 | AT29: ='[1]PP v1000'!$BP127 -> 0 | AU29: =[1]PP!$BP127 -> 0 | AV29: =[1]GP!$BP127 -> 0 | AW29: =[1]Mixte!$BP127 -> 0.4191056382 | AX29: =[1]PE!$BP127 -> 0 | AY29: ='[1]Pliage main'!$BP127 -> 0 | AZ29: =[1]Plat7!$BP127 -> 0 | BA29: =[1]Plat8!$BP127 -> 0 | BB29: =[1]Plat9!$BP127 -> 0 | BC29: =[1]Plat10!$BP127 -> 0 | BD29: =[1]VT1!$BL126 -> 0 | BE29: =[1]VT2!$BL126 -> 0 | BF29: =[1]VT3!$BL126 -> 0 | BG29: =[1]Bobines!$BP127 -> 0 | BH29: =[1]Tapis!$BP127 -> 0 | BI29: =[1]Contaminé!I41 -> 0 | BK29: 0.4191056382
D30: 55 | F30: 28 | I30: 00:32:00 | J30: 335 | K30: 1.875 | L30: 42.6 | R30: 00:32:00 | S30: 0.8 | T30: 268 | U30: 1.875 | V30: 42.6 | W30: 0 | AT30: ='[1]PP v1000'!$BP128 -> 0 | AU30: =[1]PP!$BP128 -> 0 | AV30: =[1]GP!$BP128 -> 0 | AW30: =[1]Mixte!$BP128 -> 0 | AX30: =[1]PE!$BP128 -> 0 | AY30: ='[1]Pliage main'!$BP128 -> 0 | AZ30: =[1]Plat7!$BP128 -> 0 | BA30: =[1]Plat8!$BP128 -> 0 | BB30: =[1]Plat9!$BP128 -> 0 | BC30: =[1]Plat10!$BP128 -> 0 | BD30: =[1]VT1!$BL127 -> 0 | BE30: =[1]VT2!$BL127 -> 0 | BF30: =[1]VT3!$BL127 -> 0 | BG30: =[1]Bobines!$BP128 -> 0 | BH30: =[1]Tapis!$BP128 -> 0 | BI30: =[1]Contaminé!I42 -> 0 | BK30: 0
D31: 56 | F31: 29 | I31: 00:35:00 | J31: 335 | K31: 1.714285714 | L31: 38.94857143 | R31: 00:35:00 | S31: 1 | T31: 335 | U31: 1.714285714 | V31: 38.94857143 | W31: 0.2361633671 | AT31: ='[1]PP v1000'!$BP129 -> 0 | AU31: =[1]PP!$BP129 -> 0 | AV31: =[1]GP!$BP129 -> 0 | AW31: =[1]Mixte!$BP129 -> 0 | AX31: =[1]PE!$BP129 -> 0 | AY31: ='[1]Pliage main'!$BP129 -> 7.558375547 | AZ31: =[1]Plat7!$BP129 -> 0 | BA31: =[1]Plat8!$BP129 -> 0 | BB31: =[1]Plat9!$BP129 -> 0 | BC31: =[1]Plat10!$BP129 -> 0 | BD31: =[1]VT1!$BL128 -> 0 | BE31: =[1]VT2!$BL128 -> 0 | BF31: =[1]VT3!$BL128 -> 0 | BG31: =[1]Bobines!$BP129 -> 0 | BH31: =[1]Tapis!$BP129 -> 0 | BI31: =[1]Contaminé!I43 -> 0 | BK31: 7.558375547
D32: 57 | F32: 24 | I32: 00:27:00 | J32: 335 | K32: 2.222222222 | L32: 50.48888889 | R32: 00:27:00 | S32: 1 | T32: 335 | U32: 2.222222222 | V32: 50.48888889 | W32: 0 | AT32: ='[1]PP v1000'!$BP130 -> 0 | AU32: =[1]PP!$BP130 -> 0 | AV32: =[1]GP!$BP130 -> 0 | AW32: =[1]Mixte!$BP130 -> 0 | AX32: =[1]PE!$BP130 -> 0 | AY32: ='[1]Pliage main'!$BP130 -> 0 | AZ32: =[1]Plat7!$BP130 -> 0 | BA32: =[1]Plat8!$BP130 -> 0 | BB32: =[1]Plat9!$BP130 -> 0 | BC32: =[1]Plat10!$BP130 -> 0 | BD32: =[1]VT1!$BL129 -> 0 | BE32: =[1]VT2!$BL129 -> 0 | BF32: =[1]VT3!$BL129 -> 0 | BG32: =[1]Bobines!$BP130 -> 0 | BH32: =[1]Tapis!$BP130 -> 0 | BI32: =[1]Contaminé!I44 -> 0 | BK32: 0
D33: 58 | F33: 0 | G33: contaminé | I33: 01:40:00 | J33: 335 | K33: 0.6 | L33: 13.632 | R33: 01:40:00 | T33: 0 | U33: 0.6 | V33: 13.632 | W33: 0.2499620355 | AT33: ='[1]PP v1000'!$BP131 -> 0 | AU33: =[1]PP!$BP131 -> 0 | AV33: =[1]GP!$BP131 -> 0 | AW33: =[1]Mixte!$BP131 -> 0 | AX33: =[1]PE!$BP131 -> 0 | AY33: ='[1]Pliage main'!$BP131 -> 0 | AZ33: =[1]Plat7!$BP131 -> 0 | BA33: =[1]Plat8!$BP131 -> 0 | BB33: =[1]Plat9!$BP131 -> 0 | BC33: =[1]Plat10!$BP131 -> 0 | BD33: =[1]VT1!$BL130 -> 0 | BE33: =[1]VT2!$BL130 -> 0 | BF33: =[1]VT3!$BL130 -> 0 | BG33: =[1]Bobines!$BP131 -> 0 | BH33: =[1]Tapis!$BP131 -> 0 | BI33: =[1]Contaminé!I45 -> 0 | BK33: 8
C34: 6 | I34: =SUMPRODUCT(I35:I42,W35:W42) -> 00:00:00 | K34: =SUMPRODUCT(K35:K42,W35:W42) -> 0 | L34: =SUMPRODUCT(L35:L42,$W$35:$W$42) -> 0 | Q34: =(1-N34)*(1-O34)*(1-P34) -> 1 | R34: =SUMPRODUCT(R35:R42,$W$35:$W$42) -> 00:00:00 | S34: =SUMPRODUCT(S35:S42,$W$35:$W$42) -> 0 | T34: =SUMPRODUCT(T35:T42,W35:W42) -> 0 | U34: =SUMPRODUCT(U35:U42,W35:W42) -> 0 | V34: =SUMPRODUCT(V35:V42,W35:W42) -> 0 | W34: =SUM(W35:W42) -> 0 | Y34: ='[1]PP v1000'!$BL104 -> 0 | Z34: =[1]PP!$BL104 -> 0 | AA34: =[1]GP!$BL104 -> 0 | AB34: =[1]Mixte!$BL104 -> 0 | AC34: =[1]PE!$BL104 -> 0 | AD34: ='[1]Pliage main'!$BL104 -> 0 | AE34: =[1]Plat7!$BL104 -> 0 | AF34: =[1]Plat8!$BL104 -> 0 | AG34: =[1]Plat9!$BL104 -> 0 | AH34: =[1]Plat10!$BL104 -> 0 | AI34: =[1]VT1!$BH103 -> 0 | AJ34: =[1]VT2!$BH103 -> 0 | AK34: =[1]VT3!$BH103 -> 0 | AL34: =[1]Bobines!$BL104 -> 0 | AM34: =[1]Tapis!$BL104 -> 0 | AN34: =[1]Contaminé!I18 -> 0 | AO34: =SUM(Y34:AN34) -> 0 | AQ34: =U34*AO34 -> 0 | AR34: =V34*AO34 -> 0 | BJ34: =C34 -> 6 | BK34: =SUM(BK35:BK42) -> 0 | BM34: =IF(BK34=0,0,$L$2-BK34) -> 0 | BO34: =BK34*(1-(1-N34)*S34) -> 0 | BP34: =(BK34-BO34)*(1-(1-O34)*(1-P34)) -> 0 | BR34: =BK34-SUM(BO34:BP34) -> 0 | BT34: =IF($L$2=0,"",($L$2-BK34)/$L$2) -> 1 | BU34: =IF(K34=0,"",U34/K34) ->  | BY34: Taux d'utilisation | CB34: Taux de marche
D35: 61 | F35: 0 | J35: =$J$34 -> 0 | K35: =IF(I35=0,0,$T$7/I35) -> 0 | L35: =K35*$P$7 -> 0 | R35: =IF(I35="","",I35/$Q$34) ->  | T35: =$J$34*S35 -> 0 | U35: =IF(I35=0,0,$T$7/R35) -> 0 | V35: =U35*$P$7 -> 0 | W35: =IF($BK$34=0,0,BK35/$BK$34) -> 0 | AT35: ='[1]PP v1000'!$BP133 -> 0 | AU35: =[1]PP!$BP133 -> 0 | AV35: =[1]GP!$BP133 -> 0 | AW35: =[1]Mixte!$BP133 -> 0 | AX35: =[1]PE!$BP133 -> 0 | AY35: ='[1]Pliage main'!$BP133 -> 0 | AZ35: =[1]Plat7!$BP133 -> 0 | BA35: =[1]Plat8!$BP133 -> 0 | BB35: =[1]Plat9!$BP133 -> 0 | BC35: =[1]Plat10!$BP133 -> 0 | BD35: =[1]VT1!$BL132 -> 0 | BE35: =[1]VT2!$BL132 -> 0 | BF35: =[1]VT3!$BL132 -> 0 | BG35: =[1]Bobines!$BP133 -> 0 | BH35: =[1]Tapis!$BP133 -> 0 | BI35: =[1]Contaminé!I47 -> 0 | BK35: 0 | BZ35: =VLOOKUP(CF3,BJ13:BU70,11,FALSE) ->  | CB35: =VLOOKUP(CF3,BJ13:BU70,12,FALSE) -> 
D36: 62 | F36: 0 | J36: =$J$34 -> 0 | K36: 0 | L36: 0 | R36: =IF(I36="","",I36/$Q$34) ->  | T36: =$J$34*S36 -> 0 | U36: 0 | V36: 0 | W36: =IF($BK$34=0,0,BK36/$BK$34) -> 0 | AT36: ='[1]PP v1000'!$BP134 -> 0 | AU36: =[1]PP!$BP134 -> 0 | AV36: =[1]GP!$BP134 -> 0 | AW36: =[1]Mixte!$BP134 -> 0 | AX36: =[1]PE!$BP134 -> 0 | AY36: ='[1]Pliage main'!$BP134 -> 0 | AZ36: =[1]Plat7!$BP134 -> 0 | BA36: =[1]Plat8!$BP134 -> 0 | BB36: =[1]Plat9!$BP134 -> 0 | BC36: =[1]Plat10!$BP134 -> 0 | BD36: =[1]VT1!$BL133 -> 0 | BE36: =[1]VT2!$BL133 -> 0 | BF36: =[1]VT3!$BL133 -> 0 | BG36: =[1]Bobines!$BP134 -> 0 | BH36: =[1]Tapis!$BP134 -> 0 | BI36: =[1]Contaminé!I48 -> 0 | BK36: 0
D37: 63 | F37: 0 | J37: 0 | K37: 0 | L37: 0 | T37: 0 | U37: 0 | V37: 0 | W37: 0 | AT37: ='[1]PP v1000'!$BP135 -> 0 | AU37: =[1]PP!$BP135 -> 0 | AV37: =[1]GP!$BP135 -> 0 | AW37: =[1]Mixte!$BP135 -> 0 | AX37: =[1]PE!$BP135 -> 0 | AY37: ='[1]Pliage main'!$BP135 -> 0 | AZ37: =[1]Plat7!$BP135 -> 0 | BA37: =[1]Plat8!$BP135 -> 0 | BB37: =[1]Plat9!$BP135 -> 0 | BC37: =[1]Plat10!$BP135 -> 0 | BD37: =[1]VT1!$BL134 -> 0 | BE37: =[1]VT2!$BL134 -> 0 | BF37: =[1]VT3!$BL134 -> 0 | BG37: =[1]Bobines!$BP135 -> 0 | BH37: =[1]Tapis!$BP135 -> 0 | BI37: =[1]Contaminé!I49 -> 0 | BK37: 0
D38: 64 | F38: 0 | J38: 0 | K38: 0 | L38: 0 | T38: 0 | U38: 0 | V38: 0 | W38: 0 | AT38: ='[1]PP v1000'!$BP136 -> 0 | AU38: =[1]PP!$BP136 -> 0 | AV38: =[1]GP!$BP136 -> 0 | AW38: =[1]Mixte!$BP136 -> 0 | AX38: =[1]PE!$BP136 -> 0 | AY38: ='[1]Pliage main'!$BP136 -> 0 | AZ38: =[1]Plat7!$BP136 -> 0 | BA38: =[1]Plat8!$BP136 -> 0 | BB38: =[1]Plat9!$BP136 -> 0 | BC38: =[1]Plat10!$BP136 -> 0 | BD38: =[1]VT1!$BL135 -> 0 | BE38: =[1]VT2!$BL135 -> 0 | BF38: =[1]VT3!$BL135 -> 0 | BG38: =[1]Bobines!$BP136 -> 0 | BH38: =[1]Tapis!$BP136 -> 0 | BI38: =[1]Contaminé!I50 -> 0 | BK38: 0
D39: 65 | J39: 0 | K39: 0 | L39: 0 | T39: 0 | U39: 0 | V39: 0 | W39: 0 | AT39: ='[1]PP v1000'!$BP137 -> 0 | AU39: =[1]PP!$BP137 -> 0 | AV39: =[1]GP!$BP137 -> 0 | AW39: =[1]Mixte!$BP137 -> 0 | AX39: =[1]PE!$BP137 -> 0 | AY39: ='[1]Pliage main'!$BP137 -> 0 | AZ39: =[1]Plat7!$BP137 -> 0 | BA39: =[1]Plat8!$BP137 -> 0 | BB39: =[1]Plat9!$BP137 -> 0 | BC39: =[1]Plat10!$BP137 -> 0 | BD39: =[1]VT1!$BL136 -> 0 | BE39: =[1]VT2!$BL136 -> 0 | BF39: =[1]VT3!$BL136 -> 0 | BG39: =[1]Bobines!$BP137 -> 0 | BH39: =[1]Tapis!$BP137 -> 0 | BI39: =[1]Contaminé!I51 -> 0 | BK39: 0
D40: 66 | J40: 0 | K40: 0 | L40: 0 | T40: 0 | U40: 0 | V40: 0 | W40: 0 | AT40: ='[1]PP v1000'!$BP138 -> 0 | AU40: =[1]PP!$BP138 -> 0 | AV40: =[1]GP!$BP138 -> 0 | AW40: =[1]Mixte!$BP138 -> 0 | AX40: =[1]PE!$BP138 -> 0 | AY40: ='[1]Pliage main'!$BP138 -> 0 | AZ40: =[1]Plat7!$BP138 -> 0 | BA40: =[1]Plat8!$BP138 -> 0 | BB40: =[1]Plat9!$BP138 -> 0 | BC40: =[1]Plat10!$BP138 -> 0 | BD40: =[1]VT1!$BL137 -> 0 | BE40: =[1]VT2!$BL137 -> 0 | BF40: =[1]VT3!$BL137 -> 0 | BG40: =[1]Bobines!$BP138 -> 0 | BH40: =[1]Tapis!$BP138 -> 0 | BI40: =[1]Contaminé!I52 -> 0 | BK40: 0 | CB40: =VLOOKUP(CF3,BJ13:BU70,12,FALSE) -> 
D41: 67 | F41: 0 | J41: 0 | K41: 0 | L41: 0 | T41: 0 | U41: 0 | V41: 0 | W41: 0 | AT41: ='[1]PP v1000'!$BP139 -> 0 | AU41: =[1]PP!$BP139 -> 0 | AV41: =[1]GP!$BP139 -> 0 | AW41: =[1]Mixte!$BP139 -> 0 | AX41: =[1]PE!$BP139 -> 0 | AY41: ='[1]Pliage main'!$BP139 -> 0 | AZ41: =[1]Plat7!$BP139 -> 0 | BA41: =[1]Plat8!$BP139 -> 0 | BB41: =[1]Plat9!$BP139 -> 0 | BC41: =[1]Plat10!$BP139 -> 0 | BD41: =[1]VT1!$BL138 -> 0 | BE41: =[1]VT2!$BL138 -> 0 | BF41: =[1]VT3!$BL138 -> 0 | BG41: =[1]Bobines!$BP139 -> 0 | BH41: =[1]Tapis!$BP139 -> 0 | BI41: =[1]Contaminé!I53 -> 0 | BK41: 0
D42: 68 | F42: 0 | J42: 0 | K42: 0 | L42: 0 | T42: 0 | U42: 0 | V42: 0 | W42: 0 | AT42: ='[1]PP v1000'!$BP140 -> 0 | AU42: =[1]PP!$BP140 -> 0 | AV42: =[1]GP!$BP140 -> 0 | AW42: =[1]Mixte!$BP140 -> 0 | AX42: =[1]PE!$BP140 -> 0 | AY42: ='[1]Pliage main'!$BP140 -> 0 | AZ42: =[1]Plat7!$BP140 -> 0 | BA42: =[1]Plat8!$BP140 -> 0 | BB42: =[1]Plat9!$BP140 -> 0 | BC42: =[1]Plat10!$BP140 -> 0 | BD42: =[1]VT1!$BL139 -> 0 | BE42: =[1]VT2!$BL139 -> 0 | BF42: =[1]VT3!$BL139 -> 0 | BG42: =[1]Bobines!$BP140 -> 0 | BH42: =[1]Tapis!$BP140 -> 0 | BI42: =[1]Contaminé!I54 -> 0 | BK42: 0
C43: 7 | I43: =SUMPRODUCT(I44:I51,$W$44:$W$51) -> 00:00:00 | K43: =SUMPRODUCT(K44:K51,$W$44:$W$51) -> 0 | L43: =SUMPRODUCT(L44:L51,$W$44:$W$51) -> 0 | Q43: =(1-N43)*(1-O43)*(1-P43) -> 1 | R43: =SUMPRODUCT(R44:R51,$W$44:$W$51) -> 00:00:00 | S43: =SUMPRODUCT(S44:S51,$W$44:$W$51) -> 0 | T43: =SUMPRODUCT(T44:T51,$W$44:$W$51) -> 0 | U43: =SUMPRODUCT(U44:U51,$W$44:$W$51) -> 0 | V43: =SUMPRODUCT(V44:V51,$W$44:$W$51) -> 0 | W43: =SUM(W44:W51) -> 0 | Y43: ='[1]PP v1000'!$BL105 -> 0 | Z43: =[1]PP!$BL105 -> 0 | AA43: =[1]GP!$BL105 -> 0 | AB43: =[1]Mixte!$BL105 -> 0 | AC43: =[1]PE!$BL105 -> 0 | AD43: ='[1]Pliage main'!$BL105 -> 0 | AE43: =[1]Plat7!$BL105 -> 0 | AF43: =[1]Plat8!$BL105 -> 0 | AG43: =[1]Plat9!$BL105 -> 0 | AH43: =[1]Plat10!$BL105 -> 0 | AI43: =[1]VT1!$BH104 -> 0 | AJ43: =[1]VT2!$BH104 -> 0 | AK43: =[1]VT3!$BH104 -> 0 | AL43: =[1]Bobines!$BL105 -> 0 | AM43: =[1]Tapis!$BL105 -> 0 | AN43: =[1]Contaminé!I19 -> 0 | AO43: =SUM(Y43:AN43) -> 0 | AQ43: =U43*AO43 -> 0 | AR43: =V43*AO43 -> 0 | BJ43: =C43 -> 7 | BK43: =SUM(BK44:BK51) -> 0 | BM43: =IF(BK43=0,0,$L$2-BK43) -> 0 | BO43: =BK43*(1-(1-N43)*S43) -> 0 | BP43: =(BK43-BO43)*(1-(1-O43)*(1-P43)) -> 0 | BR43: =BK43-SUM(BO43:BP43) -> 0 | BT43: =IF($L$2=0,"",($L$2-BK43)/$L$2) -> 1 | BU43: =IF(K43=0,"",U43/K43) -> 
D44: 71 | J44: =$J$43 -> 0 | K44: =IF(I44=0,0,$T$7/I44) -> 0 | L44: =K44*$P$7 -> 0 | R44: =IF(I44="","",I44/$Q$43) ->  | T44: =$J$43*S44 -> 0 | U44: =IF(I44=0,0,$T$7/R44) -> 0 | V44: =U44*$P$7 -> 0 | W44: =IF($BK$43=0,0,BK44/$BK$43) -> 0 | AT44: ='[1]PP v1000'!$BP142 -> 0 | AU44: =[1]PP!$BP142 -> 0 | AV44: =[1]GP!$BP142 -> 0 | AW44: =[1]Mixte!$BP142 -> 0 | AX44: =[1]PE!$BP142 -> 0 | AY44: ='[1]Pliage main'!$BP142 -> 0 | AZ44: =[1]Plat7!$BP142 -> 0 | BA44: =[1]Plat8!$BP142 -> 0 | BB44: =[1]Plat9!$BP142 -> 0 | BC44: =[1]Plat10!$BP142 -> 0 | BD44: =[1]VT1!$BL141 -> 0 | BE44: =[1]VT2!$BL141 -> 0 | BF44: =[1]VT3!$BL141 -> 0 | BG44: =[1]Bobines!$BP142 -> 0 | BH44: =[1]Tapis!$BP142 -> 0 | BI44: =[1]Contaminé!I56 -> 0 | BK44: 0
D45: 72 | J45: =$J$43 -> 0 | K45: 0 | L45: 0 | R45: =IF(I45="","",I45/$Q$43) ->  | T45: =$J$43*S45 -> 0 | U45: 0 | V45: 0 | W45: =IF($BK$43=0,0,BK45/$BK$43) -> 0 | AT45: ='[1]PP v1000'!$BP143 -> 0 | AU45: =[1]PP!$BP143 -> 0 | AV45: =[1]GP!$BP143 -> 0 | AW45: =[1]Mixte!$BP143 -> 0 | AX45: =[1]PE!$BP143 -> 0 | AY45: ='[1]Pliage main'!$BP143 -> 0 | AZ45: =[1]Plat7!$BP143 -> 0 | BA45: =[1]Plat8!$BP143 -> 0 | BB45: =[1]Plat9!$BP143 -> 0 | BC45: =[1]Plat10!$BP143 -> 0 | BD45: =[1]VT1!$BL142 -> 0 | BE45: =[1]VT2!$BL142 -> 0 | BF45: =[1]VT3!$BL142 -> 0 | BG45: =[1]Bobines!$BP143 -> 0 | BH45: =[1]Tapis!$BP143 -> 0 | BI45: =[1]Contaminé!I57 -> 0 | BK45: 0 | CA45: =VLOOKUP(CF3,BJ13:BU70,11,FALSE) -> 
D46: 73 | J46: 0 | K46: 0 | L46: 0 | T46: 0 | U46: 0 | V46: 0 | W46: 0 | AT46: ='[1]PP v1000'!$BP144 -> 0 | AU46: =[1]PP!$BP144 -> 0 | AV46: =[1]GP!$BP144 -> 0 | AW46: =[1]Mixte!$BP144 -> 0 | AX46: =[1]PE!$BP144 -> 0 | AY46: ='[1]Pliage main'!$BP144 -> 0 | AZ46: =[1]Plat7!$BP144 -> 0 | BA46: =[1]Plat8!$BP144 -> 0 | BB46: =[1]Plat9!$BP144 -> 0 | BC46: =[1]Plat10!$BP144 -> 0 | BD46: =[1]VT1!$BL143 -> 0 | BE46: =[1]VT2!$BL143 -> 0 | BF46: =[1]VT3!$BL143 -> 0 | BG46: =[1]Bobines!$BP144 -> 0 | BH46: =[1]Tapis!$BP144 -> 0 | BI46: =[1]Contaminé!I58 -> 0 | BK46: 0
D47: 74 | J47: 0 | K47: 0 | L47: 0 | T47: 0 | U47: 0 | V47: 0 | W47: 0 | AT47: ='[1]PP v1000'!$BP145 -> 0 | AU47: =[1]PP!$BP145 -> 0 | AV47: =[1]GP!$BP145 -> 0 | AW47: =[1]Mixte!$BP145 -> 0 | AX47: =[1]PE!$BP145 -> 0 | AY47: ='[1]Pliage main'!$BP145 -> 0 | AZ47: =[1]Plat7!$BP145 -> 0 | BA47: =[1]Plat8!$BP145 -> 0 | BB47: =[1]Plat9!$BP145 -> 0 | BC47: =[1]Plat10!$BP145 -> 0 | BD47: =[1]VT1!$BL144 -> 0 | BE47: =[1]VT2!$BL144 -> 0 | BF47: =[1]VT3!$BL144 -> 0 | BG47: =[1]Bobines!$BP145 -> 0 | BH47: =[1]Tapis!$BP145 -> 0 | BI47: =[1]Contaminé!I59 -> 0 | BK47: 0
D48: 75 | J48: 0 | K48: 0 | L48: 0 | T48: 0 | U48: 0 | V48: 0 | W48: 0 | AT48: ='[1]PP v1000'!$BP146 -> 0 | AU48: =[1]PP!$BP146 -> 0 | AV48: =[1]GP!$BP146 -> 0 | AW48: =[1]Mixte!$BP146 -> 0 | AX48: =[1]PE!$BP146 -> 0 | AY48: ='[1]Pliage main'!$BP146 -> 0 | AZ48: =[1]Plat7!$BP146 -> 0 | BA48: =[1]Plat8!$BP146 -> 0 | BB48: =[1]Plat9!$BP146 -> 0 | BC48: =[1]Plat10!$BP146 -> 0 | BD48: =[1]VT1!$BL145 -> 0 | BE48: =[1]VT2!$BL145 -> 0 | BF48: =[1]VT3!$BL145 -> 0 | BG48: =[1]Bobines!$BP146 -> 0 | BH48: =[1]Tapis!$BP146 -> 0 | BI48: =[1]Contaminé!I60 -> 0 | BK48: 0
D49: 76 | J49: 0 | K49: 0 | L49: 0 | T49: 0 | U49: 0 | V49: 0 | W49: 0 | AT49: ='[1]PP v1000'!$BP147 -> 0 | AU49: =[1]PP!$BP147 -> 0 | AV49: =[1]GP!$BP147 -> 0 | AW49: =[1]Mixte!$BP147 -> 0 | AX49: =[1]PE!$BP147 -> 0 | AY49: ='[1]Pliage main'!$BP147 -> 0 | AZ49: =[1]Plat7!$BP147 -> 0 | BA49: =[1]Plat8!$BP147 -> 0 | BB49: =[1]Plat9!$BP147 -> 0 | BC49: =[1]Plat10!$BP147 -> 0 | BD49: =[1]VT1!$BL146 -> 0 | BE49: =[1]VT2!$BL146 -> 0 | BF49: =[1]VT3!$BL146 -> 0 | BG49: =[1]Bobines!$BP147 -> 0 | BH49: =[1]Tapis!$BP147 -> 0 | BI49: =[1]Contaminé!I61 -> 0 | BK49: 0
D50: 77 | J50: 0 | K50: 0 | L50: 0 | T50: 0 | U50: 0 | V50: 0 | W50: 0 | AT50: ='[1]PP v1000'!$BP148 -> 0 | AU50: =[1]PP!$BP148 -> 0 | AV50: =[1]GP!$BP148 -> 0 | AW50: =[1]Mixte!$BP148 -> 0 | AX50: =[1]PE!$BP148 -> 0 | AY50: ='[1]Pliage main'!$BP148 -> 0 | AZ50: =[1]Plat7!$BP148 -> 0 | BA50: =[1]Plat8!$BP148 -> 0 | BB50: =[1]Plat9!$BP148 -> 0 | BC50: =[1]Plat10!$BP148 -> 0 | BD50: =[1]VT1!$BL147 -> 0 | BE50: =[1]VT2!$BL147 -> 0 | BF50: =[1]VT3!$BL147 -> 0 | BG50: =[1]Bobines!$BP148 -> 0 | BH50: =[1]Tapis!$BP148 -> 0 | BI50: =[1]Contaminé!I62 -> 0 | BK50: 0
D51: 78 | J51: 0 | K51: 0 | L51: 0 | T51: 0 | U51: 0 | V51: 0 | W51: 0 | AT51: ='[1]PP v1000'!$BP149 -> 0 | AU51: =[1]PP!$BP149 -> 0 | AV51: =[1]GP!$BP149 -> 0 | AW51: =[1]Mixte!$BP149 -> 0 | AX51: =[1]PE!$BP149 -> 0 | AY51: ='[1]Pliage main'!$BP149 -> 0 | AZ51: =[1]Plat7!$BP149 -> 0 | BA51: =[1]Plat8!$BP149 -> 0 | BB51: =[1]Plat9!$BP149 -> 0 | BC51: =[1]Plat10!$BP149 -> 0 | BD51: =[1]VT1!$BL148 -> 0 | BE51: =[1]VT2!$BL148 -> 0 | BF51: =[1]VT3!$BL148 -> 0 | BG51: =[1]Bobines!$BP149 -> 0 | BH51: =[1]Tapis!$BP149 -> 0 | BI51: =[1]Contaminé!I63 -> 0 | BK51: 0
C52: 8 | I52: =SUMPRODUCT(I53:I60,$W$53:$W$60) -> 00:00:00 | K52: =SUMPRODUCT(K53:K60,$W$53:$W$60) -> 0 | L52: =SUMPRODUCT(L53:L60,$W$53:$W$60) -> 0 | Q52: =(1-N52)*(1-O52)*(1-P52) -> 1 | R52: =SUMPRODUCT(R53:R60,$W$53:$W$60) -> 00:00:00 | S52: =SUMPRODUCT(S53:S60,$W$53:$W$60) -> 0 | T52: =SUMPRODUCT(T53:T60,$W$53:$W$60) -> 0 | U52: =SUMPRODUCT(U53:U60,$W$53:$W$60) -> 0 | V52: =SUMPRODUCT(V53:V60,$W$53:$W$60) -> 0 | W52: =SUM(W53:W60) -> 0 | Y52: ='[1]PP v1000'!$BL106 -> 0 | Z52: =[1]PP!$BL106 -> 0 | AA52: =[1]GP!$BL106 -> 0 | AB52: =[1]Mixte!$BL106 -> 0 | AC52: =[1]PE!$BL106 -> 0 | AD52: ='[1]Pliage main'!$BL106 -> 0 | AE52: =[1]Plat7!$BL106 -> 0 | AF52: =[1]Plat8!$BL106 -> 0 | AG52: =[1]Plat9!$BL106 -> 0 | AH52: =[1]Plat10!$BL106 -> 0 | AI52: =[1]VT1!$BH105 -> 0 | AJ52: =[1]VT2!$BH105 -> 0 | AK52: =[1]VT3!$BH105 -> 0 | AL52: =[1]Bobines!$BL106 -> 0 | AM52: =[1]Tapis!$BL106 -> 0 | AN52: =[1]Contaminé!I20 -> 0 | AO52: =SUM(Y52:AN52) -> 0 | AQ52: =U52*AO52 -> 0 | AR52: =V52*AO52 -> 0 | BJ52: =C52 -> 8 | BK52: =SUM(BK53:BK60) -> 0 | BM52: =IF(BK52=0,0,$L$2-BK52) -> 0 | BO52: =BK52*(1-(1-N52)*S52) -> 0 | BP52: =(BK52-BO52)*(1-(1-O52)*(1-P52)) -> 0 | BR52: =BK52-SUM(BO52:BP52) -> 0 | BT52: =IF($L$2=0,"",($L$2-BK52)/$L$2) -> 1 | BU52: =IF(K52=0,"",U52/K52) -> 
D53: 81 | F53: 0 | J53: =$J$52 -> 0 | K53: =IF(I53=0,0,$T$7/I53) -> 0 | L53: =K53*$P$7 -> 0 | R53: =IF(I53="","",I53/$Q$52) ->  | T53: =$J$52*S53 -> 0 | U53: =IF(I53=0,0,$T$7/R53) -> 0 | V53: =U53*$P$7 -> 0 | W53: =IF($BK$52=0,0,BK53/$BK$52) -> 0 | AT53: ='[1]PP v1000'!$BP151 -> 0 | AU53: =[1]PP!$BP151 -> 0 | AV53: =[1]GP!$BP151 -> 0 | AW53: =[1]Mixte!$BP151 -> 0 | AX53: =[1]PE!$BP151 -> 0 | AY53: ='[1]Pliage main'!$BP151 -> 0 | AZ53: =[1]Plat7!$BP151 -> 0 | BA53: =[1]Plat8!$BP151 -> 0 | BB53: =[1]Plat9!$BP151 -> 0 | BC53: =[1]Plat10!$BP151 -> 0 | BD53: =[1]VT1!$BL150 -> 0 | BE53: =[1]VT2!$BL150 -> 0 | BF53: =[1]VT3!$BL150 -> 0 | BG53: =[1]Bobines!$BP151 -> 0 | BH53: =[1]Tapis!$BP151 -> 0 | BI53: =[1]Contaminé!I65 -> 0 | BK53: 0
D54: 82 | F54: =$F$52 -> 0 | J54: =$J$52 -> 0 | K54: 0 | L54: 0 | R54: =IF(I54="","",I54/$Q$52) ->  | T54: =$J$52*S54 -> 0 | U54: 0 | V54: 0 | W54: =IF($BK$52=0,0,BK54/$BK$52) -> 0 | AT54: ='[1]PP v1000'!$BP152 -> 0 | AU54: =[1]PP!$BP152 -> 0 | AV54: =[1]GP!$BP152 -> 0 | AW54: =[1]Mixte!$BP152 -> 0 | AX54: =[1]PE!$BP152 -> 0 | AY54: ='[1]Pliage main'!$BP152 -> 0 | AZ54: =[1]Plat7!$BP152 -> 0 | BA54: =[1]Plat8!$BP152 -> 0 | BB54: =[1]Plat9!$BP152 -> 0 | BC54: =[1]Plat10!$BP152 -> 0 | BD54: =[1]VT1!$BL151 -> 0 | BE54: =[1]VT2!$BL151 -> 0 | BF54: =[1]VT3!$BL151 -> 0 | BG54: =[1]Bobines!$BP152 -> 0 | BH54: =[1]Tapis!$BP152 -> 0 | BI54: =[1]Contaminé!I66 -> 0 | BK54: 0
D55: 83 | F55: 0 | J55: 0 | K55: 0 | L55: 0 | T55: 0 | U55: 0 | V55: 0 | W55: 0 | AT55: ='[1]PP v1000'!$BP153 -> 0 | AU55: =[1]PP!$BP153 -> 0 | AV55: =[1]GP!$BP153 -> 0 | AW55: =[1]Mixte!$BP153 -> 0 | AX55: =[1]PE!$BP153 -> 0 | AY55: ='[1]Pliage main'!$BP153 -> 0 | AZ55: =[1]Plat7!$BP153 -> 0 | BA55: =[1]Plat8!$BP153 -> 0 | BB55: =[1]Plat9!$BP153 -> 0 | BC55: =[1]Plat10!$BP153 -> 0 | BD55: =[1]VT1!$BL152 -> 0 | BE55: =[1]VT2!$BL152 -> 0 | BF55: =[1]VT3!$BL152 -> 0 | BG55: =[1]Bobines!$BP153 -> 0 | BH55: =[1]Tapis!$BP153 -> 0 | BI55: =[1]Contaminé!I67 -> 0 | BK55: 0
D56: 84 | F56: 0 | J56: 0 | K56: 0 | L56: 0 | T56: 0 | U56: 0 | V56: 0 | W56: 0 | AT56: ='[1]PP v1000'!$BP154 -> 0 | AU56: =[1]PP!$BP154 -> 0 | AV56: =[1]GP!$BP154 -> 0 | AW56: =[1]Mixte!$BP154 -> 0 | AX56: =[1]PE!$BP154 -> 0 | AY56: ='[1]Pliage main'!$BP154 -> 0 | AZ56: =[1]Plat7!$BP154 -> 0 | BA56: =[1]Plat8!$BP154 -> 0 | BB56: =[1]Plat9!$BP154 -> 0 | BC56: =[1]Plat10!$BP154 -> 0 | BD56: =[1]VT1!$BL153 -> 0 | BE56: =[1]VT2!$BL153 -> 0 | BF56: =[1]VT3!$BL153 -> 0 | BG56: =[1]Bobines!$BP154 -> 0 | BH56: =[1]Tapis!$BP154 -> 0 | BI56: =[1]Contaminé!I68 -> 0 | BK56: 0
D57: 85 | F57: 0 | J57: 0 | K57: 0 | L57: 0 | T57: 0 | U57: 0 | V57: 0 | W57: 0 | AT57: ='[1]PP v1000'!$BP155 -> 0 | AU57: =[1]PP!$BP155 -> 0 | AV57: =[1]GP!$BP155 -> 0 | AW57: =[1]Mixte!$BP155 -> 0 | AX57: =[1]PE!$BP155 -> 0 | AY57: ='[1]Pliage main'!$BP155 -> 0 | AZ57: =[1]Plat7!$BP155 -> 0 | BA57: =[1]Plat8!$BP155 -> 0 | BB57: =[1]Plat9!$BP155 -> 0 | BC57: =[1]Plat10!$BP155 -> 0 | BD57: =[1]VT1!$BL154 -> 0 | BE57: =[1]VT2!$BL154 -> 0 | BF57: =[1]VT3!$BL154 -> 0 | BG57: =[1]Bobines!$BP155 -> 0 | BH57: =[1]Tapis!$BP155 -> 0 | BI57: =[1]Contaminé!I69 -> 0 | BK57: 0
D58: 86 | F58: 0 | J58: 0 | K58: 0 | L58: 0 | T58: 0 | U58: 0 | V58: 0 | W58: 0 | AT58: ='[1]PP v1000'!$BP156 -> 0 | AU58: =[1]PP!$BP156 -> 0 | AV58: =[1]GP!$BP156 -> 0 | AW58: =[1]Mixte!$BP156 -> 0 | AX58: =[1]PE!$BP156 -> 0 | AY58: ='[1]Pliage main'!$BP156 -> 0 | AZ58: =[1]Plat7!$BP156 -> 0 | BA58: =[1]Plat8!$BP156 -> 0 | BB58: =[1]Plat9!$BP156 -> 0 | BC58: =[1]Plat10!$BP156 -> 0 | BD58: =[1]VT1!$BL155 -> 0 | BE58: =[1]VT2!$BL155 -> 0 | BF58: =[1]VT3!$BL155 -> 0 | BG58: =[1]Bobines!$BP156 -> 0 | BH58: =[1]Tapis!$BP156 -> 0 | BI58: =[1]Contaminé!I70 -> 0 | BK58: 0
D59: 87 | F59: 0 | J59: 0 | K59: 0 | L59: 0 | T59: 0 | U59: 0 | V59: 0 | W59: 0 | AT59: ='[1]PP v1000'!$BP157 -> 0 | AU59: =[1]PP!$BP157 -> 0 | AV59: =[1]GP!$BP157 -> 0 | AW59: =[1]Mixte!$BP157 -> 0 | AX59: =[1]PE!$BP157 -> 0 | AY59: ='[1]Pliage main'!$BP157 -> 0 | AZ59: =[1]Plat7!$BP157 -> 0 | BA59: =[1]Plat8!$BP157 -> 0 | BB59: =[1]Plat9!$BP157 -> 0 | BC59: =[1]Plat10!$BP157 -> 0 | BD59: =[1]VT1!$BL156 -> 0 | BE59: =[1]VT2!$BL156 -> 0 | BF59: =[1]VT3!$BL156 -> 0 | BG59: =[1]Bobines!$BP157 -> 0 | BH59: =[1]Tapis!$BP157 -> 0 | BI59: =[1]Contaminé!I71 -> 0 | BK59: 0
D60: 88 | F60: 0 | J60: 0 | K60: 0 | L60: 0 | T60: 0 | U60: 0 | V60: 0 | W60: 0 | AT60: ='[1]PP v1000'!$BP158 -> 0 | AU60: =[1]PP!$BP158 -> 0 | AV60: =[1]GP!$BP158 -> 0 | AW60: =[1]Mixte!$BP158 -> 0 | AX60: =[1]PE!$BP158 -> 0 | AY60: ='[1]Pliage main'!$BP158 -> 0 | AZ60: =[1]Plat7!$BP158 -> 0 | BA60: =[1]Plat8!$BP158 -> 0 | BB60: =[1]Plat9!$BP158 -> 0 | BC60: =[1]Plat10!$BP158 -> 0 | BD60: =[1]VT1!$BL157 -> 0 | BE60: =[1]VT2!$BL157 -> 0 | BF60: =[1]VT3!$BL157 -> 0 | BG60: =[1]Bobines!$BP158 -> 0 | BH60: =[1]Tapis!$BP158 -> 0 | BI60: =[1]Contaminé!I72 -> 0 | BK60: 0
C61: 9 | I61: =SUMPRODUCT(I62:I69,$W$62:$W$69) -> 00:00:00 | K61: =SUMPRODUCT(K62:K69,$W$62:$W$69) -> 0 | L61: =SUMPRODUCT(L62:L69,$W$62:$W$69) -> 0 | Q61: =(1-N61)*(1-O61)*(1-P61) -> 1 | R61: =SUMPRODUCT(R62:R69,$W$62:$W$69) -> 00:00:00 | S61: =SUMPRODUCT(S62:S69,$W$62:$W$69) -> 0 | T61: =SUMPRODUCT(T62:T69,$W$62:$W$69) -> 0 | U61: =SUMPRODUCT(U62:U69,$W$62:$W$69) -> 0 | V61: =SUMPRODUCT(V62:V69,$W$62:$W$69) -> 0 | W61: =SUM(W62:W69) -> 0 | Y61: ='[1]PP v1000'!$BL107 -> 0 | Z61: =[1]PP!$BL107 -> 0 | AA61: =[1]GP!$BL107 -> 0 | AB61: =[1]Mixte!$BL107 -> 0 | AC61: =[1]PE!$BL107 -> 0 | AD61: ='[1]Pliage main'!$BL107 -> 0 | AE61: =[1]Plat7!$BL107 -> 0 | AF61: =[1]Plat8!$BL107 -> 0 | AG61: =[1]Plat9!$BL107 -> 0 | AH61: =[1]Plat10!$BL107 -> 0 | AI61: =[1]VT1!$BH106 -> 0 | AJ61: =[1]VT2!$BH106 -> 0 | AK61: =[1]VT3!$BH106 -> 0 | AL61: =[1]Bobines!$BL107 -> 0 | AM61: =[1]Tapis!$BL107 -> 0 | AN61: =[1]Contaminé!I21 -> 0 | AO61: =SUM(Y61:AN61) -> 0 | AQ61: =U61*AO61 -> 0 | AR61: =V61*AO61 -> 0 | BJ61: =C61 -> 9 | BK61: =SUM(BK62:BK69) -> 0 | BM61: =IF(BK61=0,0,$L$2-BK61) -> 0 | BO61: =BK61*(1-(1-N61)*S61) -> 0 | BP61: =(BK61-BO61)*(1-(1-O61)*(1-P61)) -> 0 | BR61: =BK61-SUM(BO61:BP61) -> 0 | BT61: =IF($L$2=0,"",($L$2-BK61)/$L$2) -> 1 | BU61: =IF(K61=0,"",U61/K61) -> 
D62: 91 | F62: =$F$61 -> 0 | J62: =$J$61 -> 0 | K62: =IF(I62=0,0,$T$7/I62) -> 0 | L62: =K62*$P$7 -> 0 | R62: =IF(I62="","",I62/$Q$61) ->  | T62: =$J$61*S62 -> 0 | U62: =IF(I62=0,0,$T$7/R62) -> 0 | V62: =U62*$P$7 -> 0 | W62: =IF($BK$61=0,0,BK62/$BK$61) -> 0 | AT62: ='[1]PP v1000'!$BP160 -> 0 | AU62: =[1]PP!$BP160 -> 0 | AV62: =[1]GP!$BP160 -> 0 | AW62: =[1]Mixte!$BP160 -> 0 | AX62: =[1]PE!$BP160 -> 0 | AY62: ='[1]Pliage main'!$BP160 -> 0 | AZ62: =[1]Plat7!$BP160 -> 0 | BA62: =[1]Plat8!$BP160 -> 0 | BB62: =[1]Plat9!$BP160 -> 0 | BC62: =[1]Plat10!$BP160 -> 0 | BD62: =[1]VT1!$BL159 -> 0 | BE62: =[1]VT2!$BL159 -> 0 | BF62: =[1]VT3!$BL159 -> 0 | BG62: =[1]Bobines!$BP160 -> 0 | BH62: =[1]Tapis!$BP160 -> 0 | BI62: =[1]Contaminé!I74 -> 0 | BK62: 0
D63: 92 | F63: =$F$61 -> 0 | J63: =$J$61 -> 0 | K63: 0 | L63: 0 | R63: =IF(I63="","",I63/$Q$61) ->  | T63: =$J$61*S63 -> 0 | U63: 0 | V63: 0 | W63: =IF($BK$61=0,0,BK63/$BK$61) -> 0 | AT63: ='[1]PP v1000'!$BP161 -> 0 | AU63: =[1]PP!$BP161 -> 0 | AV63: =[1]GP!$BP161 -> 0 | AW63: =[1]Mixte!$BP161 -> 0 | AX63: =[1]PE!$BP161 -> 0 | AY63: ='[1]Pliage main'!$BP161 -> 0 | AZ63: =[1]Plat7!$BP161 -> 0 | BA63: =[1]Plat8!$BP161 -> 0 | BB63: =[1]Plat9!$BP161 -> 0 | BC63: =[1]Plat10!$BP161 -> 0 | BD63: =[1]VT1!$BL160 -> 0 | BE63: =[1]VT2!$BL160 -> 0 | BF63: =[1]VT3!$BL160 -> 0 | BG63: =[1]Bobines!$BP161 -> 0 | BH63: =[1]Tapis!$BP161 -> 0 | BI63: =[1]Contaminé!I75 -> 0 | BK63: 0
D64: 93 | F64: 0 | J64: 0 | K64: 0 | L64: 0 | T64: 0 | U64: 0 | V64: 0 | W64: 0 | AT64: ='[1]PP v1000'!$BP162 -> 0 | AU64: =[1]PP!$BP162 -> 0 | AV64: =[1]GP!$BP162 -> 0 | AW64: =[1]Mixte!$BP162 -> 0 | AX64: =[1]PE!$BP162 -> 0 | AY64: ='[1]Pliage main'!$BP162 -> 0 | AZ64: =[1]Plat7!$BP162 -> 0 | BA64: =[1]Plat8!$BP162 -> 0 | BB64: =[1]Plat9!$BP162 -> 0 | BC64: =[1]Plat10!$BP162 -> 0 | BD64: =[1]VT1!$BL161 -> 0 | BE64: =[1]VT2!$BL161 -> 0 | BF64: =[1]VT3!$BL161 -> 0 | BG64: =[1]Bobines!$BP162 -> 0 | BH64: =[1]Tapis!$BP162 -> 0 | BI64: =[1]Contaminé!I76 -> 0 | BK64: 0
D65: 94 | F65: 0 | J65: 0 | K65: 0 | L65: 0 | T65: 0 | U65: 0 | V65: 0 | W65: 0 | AT65: ='[1]PP v1000'!$BP163 -> 0 | AU65: =[1]PP!$BP163 -> 0 | AV65: =[1]GP!$BP163 -> 0 | AW65: =[1]Mixte!$BP163 -> 0 | AX65: =[1]PE!$BP163 -> 0 | AY65: ='[1]Pliage main'!$BP163 -> 0 | AZ65: =[1]Plat7!$BP163 -> 0 | BA65: =[1]Plat8!$BP163 -> 0 | BB65: =[1]Plat9!$BP163 -> 0 | BC65: =[1]Plat10!$BP163 -> 0 | BD65: =[1]VT1!$BL162 -> 0 | BE65: =[1]VT2!$BL162 -> 0 | BF65: =[1]VT3!$BL162 -> 0 | BG65: =[1]Bobines!$BP163 -> 0 | BH65: =[1]Tapis!$BP163 -> 0 | BI65: =[1]Contaminé!I77 -> 0 | BK65: 0
D66: 95 | F66: 0 | J66: 0 | K66: 0 | L66: 0 | T66: 0 | U66: 0 | V66: 0 | W66: 0 | AT66: ='[1]PP v1000'!$BP164 -> 0 | AU66: =[1]PP!$BP164 -> 0 | AV66: =[1]GP!$BP164 -> 0 | AW66: =[1]Mixte!$BP164 -> 0 | AX66: =[1]PE!$BP164 -> 0 | AY66: ='[1]Pliage main'!$BP164 -> 0 | AZ66: =[1]Plat7!$BP164 -> 0 | BA66: =[1]Plat8!$BP164 -> 0 | BB66: =[1]Plat9!$BP164 -> 0 | BC66: =[1]Plat10!$BP164 -> 0 | BD66: =[1]VT1!$BL163 -> 0 | BE66: =[1]VT2!$BL163 -> 0 | BF66: =[1]VT3!$BL163 -> 0 | BG66: =[1]Bobines!$BP164 -> 0 | BH66: =[1]Tapis!$BP164 -> 0 | BI66: =[1]Contaminé!I78 -> 0 | BK66: 0
D67: 96 | F67: 0 | J67: 0 | K67: 0 | L67: 0 | T67: 0 | U67: 0 | V67: 0 | W67: 0 | AT67: ='[1]PP v1000'!$BP165 -> 0 | AU67: =[1]PP!$BP165 -> 0 | AV67: =[1]GP!$BP165 -> 0 | AW67: =[1]Mixte!$BP165 -> 0 | AX67: =[1]PE!$BP165 -> 0 | AY67: ='[1]Pliage main'!$BP165 -> 0 | AZ67: =[1]Plat7!$BP165 -> 0 | BA67: =[1]Plat8!$BP165 -> 0 | BB67: =[1]Plat9!$BP165 -> 0 | BC67: =[1]Plat10!$BP165 -> 0 | BD67: =[1]VT1!$BL164 -> 0 | BE67: =[1]VT2!$BL164 -> 0 | BF67: =[1]VT3!$BL164 -> 0 | BG67: =[1]Bobines!$BP165 -> 0 | BH67: =[1]Tapis!$BP165 -> 0 | BI67: =[1]Contaminé!I79 -> 0 | BK67: 0
D68: 97 | F68: 0 | J68: 0 | K68: 0 | L68: 0 | T68: 0 | U68: 0 | V68: 0 | W68: 0 | AT68: ='[1]PP v1000'!$BP166 -> 0 | AU68: =[1]PP!$BP166 -> 0 | AV68: =[1]GP!$BP166 -> 0 | AW68: =[1]Mixte!$BP166 -> 0 | AX68: =[1]PE!$BP166 -> 0 | AY68: ='[1]Pliage main'!$BP166 -> 0 | AZ68: =[1]Plat7!$BP166 -> 0 | BA68: =[1]Plat8!$BP166 -> 0 | BB68: =[1]Plat9!$BP166 -> 0 | BC68: =[1]Plat10!$BP166 -> 0 | BD68: =[1]VT1!$BL165 -> 0 | BE68: =[1]VT2!$BL165 -> 0 | BF68: =[1]VT3!$BL165 -> 0 | BG68: =[1]Bobines!$BP166 -> 0 | BH68: =[1]Tapis!$BP166 -> 0 | BI68: =[1]Contaminé!I80 -> 0 | BK68: 0
D69: 98 | F69: 0 | J69: 0 | K69: 0 | L69: 0 | T69: 0 | U69: 0 | V69: 0 | W69: 0 | AT69: ='[1]PP v1000'!$BP167 -> 0 | AU69: =[1]PP!$BP167 -> 0 | AV69: =[1]GP!$BP167 -> 0 | AW69: =[1]Mixte!$BP167 -> 0 | AX69: =[1]PE!$BP167 -> 0 | AY69: ='[1]Pliage main'!$BP167 -> 0 | AZ69: =[1]Plat7!$BP167 -> 0 | BA69: =[1]Plat8!$BP167 -> 0 | BB69: =[1]Plat9!$BP167 -> 0 | BC69: =[1]Plat10!$BP167 -> 0 | BD69: =[1]VT1!$BL166 -> 0 | BE69: =[1]VT2!$BL166 -> 0 | BF69: =[1]VT3!$BL166 -> 0 | BG69: =[1]Bobines!$BP167 -> 0 | BH69: =[1]Tapis!$BP167 -> 0 | BI69: =[1]Contaminé!I81 -> 0 | BK69: 0
C70: 10 | I70: =SUMPRODUCT(I71:I78,$W$71:$W$78) -> 00:00:00 | K70: =SUMPRODUCT(K71:K78,$W$71:$W$78) -> 0 | L70: =SUMPRODUCT(L71:L78,$W$71:$W$78) -> 0 | Q70: =(1-N70)*(1-O70)*(1-P70) -> 1 | R70: =SUMPRODUCT(R71:R78,$W$71:$W$78) -> 00:00:00 | S70: =SUMPRODUCT(S71:S78,$W$71:$W$78) -> 0 | T70: =SUMPRODUCT(T71:T78,$W$71:$W$78) -> 0 | U70: =SUMPRODUCT(U71:U78,$W$71:$W$78) -> 0 | V70: =SUMPRODUCT(V71:V78,$W$71:$W$78) -> 0 | W70: =SUM(W71:W78) -> 0 | Y70: ='[1]PP v1000'!$BL108 -> 0 | Z70: =[1]PP!$BL108 -> 0 | AA70: =[1]GP!$BL108 -> 0 | AB70: =[1]Mixte!$BL108 -> 0 | AC70: =[1]PE!$BL108 -> 0 | AD70: ='[1]Pliage main'!$BL108 -> 0 | AE70: =[1]Plat7!$BL108 -> 0 | AF70: =[1]Plat8!$BL108 -> 0 | AG70: =[1]Plat9!$BL108 -> 0 | AH70: =[1]Plat10!$BL108 -> 0 | AI70: =[1]VT1!$BH107 -> 0 | AJ70: =[1]VT2!$BH107 -> 0 | AK70: =[1]VT3!$BH107 -> 0 | AL70: =[1]Bobines!$BL108 -> 0 | AM70: =[1]Tapis!$BL108 -> 0 | AN70: =[1]Contaminé!I22 -> 0 | AO70: =SUM(Y70:AN70) -> 0 | AQ70: =U70*AO70 -> 0 | AR70: =V70*AO70 -> 0 | BJ70: =C70 -> 10 | BK70: =SUM(BK71:BK78) -> 0 | BM70: =IF(BK70=0,0,$L$2-BK70) -> 0 | BO70: =BK70*(1-(1-N70)*S70) -> 0 | BP70: =(BK70-BO70)*(1-(1-O70)*(1-P70)) -> 0 | BR70: =BK70-SUM(BO70:BP70) -> 0 | BT70: =IF($L$2=0,"",($L$2-BK70)/$L$2) -> 1 | BU70: =IF(K70=0,"",U70/K70) -> 
D71: 101 | F71: =$F$70 -> 0 | J71: =$J$70 -> 0 | K71: =IF(I71=0,0,$T$7/I71) -> 0 | L71: =K71*$P$7 -> 0 | R71: =IF(I71="","",I71/$Q$70) ->  | T71: =$J$70*S71 -> 0 | U71: =IF(I71=0,0,$T$7/R71) -> 0 | V71: =U71*$P$7 -> 0 | W71: =IF($BK$70=0,0,BK71/$BK$70) -> 0 | AT71: ='[1]PP v1000'!$BP169 -> 0 | AU71: =[1]PP!$BP169 -> 0 | AV71: =[1]GP!$BP169 -> 0 | AW71: =[1]Mixte!$BP169 -> 0 | AX71: =[1]PE!$BP169 -> 0 | AY71: ='[1]Pliage main'!$BP169 -> 0 | AZ71: =[1]Plat7!$BP169 -> 0 | BA71: =[1]Plat8!$BP169 -> 0 | BB71: =[1]Plat9!$BP169 -> 0 | BC71: =[1]Plat10!$BP169 -> 0 | BD71: =[1]VT1!$BL168 -> 0 | BE71: =[1]VT2!$BL168 -> 0 | BF71: =[1]VT3!$BL168 -> 0 | BG71: =[1]Bobines!$BP169 -> 0 | BH71: =[1]Tapis!$BP169 -> 0 | BI71: =[1]Contaminé!I83 -> 0 | BK71: 0
D72: 102 | F72: =$F$70 -> 0 | J72: =$J$70 -> 0 | K72: 0 | L72: 0 | R72: =IF(I72="","",I72/$Q$70) ->  | T72: =$J$70*S72 -> 0 | U72: 0 | V72: 0 | W72: =IF($BK$70=0,0,BK72/$BK$70) -> 0 | AT72: ='[1]PP v1000'!$BP170 -> 0 | AU72: =[1]PP!$BP170 -> 0 | AV72: =[1]GP!$BP170 -> 0 | AW72: =[1]Mixte!$BP170 -> 0 | AX72: =[1]PE!$BP170 -> 0 | AY72: ='[1]Pliage main'!$BP170 -> 0 | AZ72: =[1]Plat7!$BP170 -> 0 | BA72: =[1]Plat8!$BP170 -> 0 | BB72: =[1]Plat9!$BP170 -> 0 | BC72: =[1]Plat10!$BP170 -> 0 | BD72: =[1]VT1!$BL169 -> 0 | BE72: =[1]VT2!$BL169 -> 0 | BF72: =[1]VT3!$BL169 -> 0 | BG72: =[1]Bobines!$BP170 -> 0 | BH72: =[1]Tapis!$BP170 -> 0 | BI72: =[1]Contaminé!I84 -> 0 | BK72: 0
D73: 103 | F73: 0 | J73: 0 | K73: 0 | L73: 0 | T73: 0 | U73: 0 | V73: 0 | W73: 0 | AT73: ='[1]PP v1000'!$BP171 -> 0 | AU73: =[1]PP!$BP171 -> 0 | AV73: =[1]GP!$BP171 -> 0 | AW73: =[1]Mixte!$BP171 -> 0 | AX73: =[1]PE!$BP171 -> 0 | AY73: ='[1]Pliage main'!$BP171 -> 0 | AZ73: =[1]Plat7!$BP171 -> 0 | BA73: =[1]Plat8!$BP171 -> 0 | BB73: =[1]Plat9!$BP171 -> 0 | BC73: =[1]Plat10!$BP171 -> 0 | BD73: =[1]VT1!$BL170 -> 0 | BE73: =[1]VT2!$BL170 -> 0 | BF73: =[1]VT3!$BL170 -> 0 | BG73: =[1]Bobines!$BP171 -> 0 | BH73: =[1]Tapis!$BP171 -> 0 | BI73: =[1]Contaminé!I85 -> 0 | BK73: 0
D74: 104 | F74: 0 | J74: 0 | K74: 0 | L74: 0 | T74: 0 | U74: 0 | V74: 0 | W74: 0 | AT74: ='[1]PP v1000'!$BP172 -> 0 | AU74: =[1]PP!$BP172 -> 0 | AV74: =[1]GP!$BP172 -> 0 | AW74: =[1]Mixte!$BP172 -> 0 | AX74: =[1]PE!$BP172 -> 0 | AY74: ='[1]Pliage main'!$BP172 -> 0 | AZ74: =[1]Plat7!$BP172 -> 0 | BA74: =[1]Plat8!$BP172 -> 0 | BB74: =[1]Plat9!$BP172 -> 0 | BC74: =[1]Plat10!$BP172 -> 0 | BD74: =[1]VT1!$BL171 -> 0 | BE74: =[1]VT2!$BL171 -> 0 | BF74: =[1]VT3!$BL171 -> 0 | BG74: =[1]Bobines!$BP172 -> 0 | BH74: =[1]Tapis!$BP172 -> 0 | BI74: =[1]Contaminé!I86 -> 0 | BK74: 0
D75: 105 | F75: 0 | J75: 0 | K75: 0 | L75: 0 | T75: 0 | U75: 0 | V75: 0 | W75: 0 | AT75: ='[1]PP v1000'!$BP173 -> 0 | AU75: =[1]PP!$BP173 -> 0 | AV75: =[1]GP!$BP173 -> 0 | AW75: =[1]Mixte!$BP173 -> 0 | AX75: =[1]PE!$BP173 -> 0 | AY75: ='[1]Pliage main'!$BP173 -> 0 | AZ75: =[1]Plat7!$BP173 -> 0 | BA75: =[1]Plat8!$BP173 -> 0 | BB75: =[1]Plat9!$BP173 -> 0 | BC75: =[1]Plat10!$BP173 -> 0 | BD75: =[1]VT1!$BL172 -> 0 | BE75: =[1]VT2!$BL172 -> 0 | BF75: =[1]VT3!$BL172 -> 0 | BG75: =[1]Bobines!$BP173 -> 0 | BH75: =[1]Tapis!$BP173 -> 0 | BI75: =[1]Contaminé!I87 -> 0 | BK75: 0
D76: 106 | F76: 0 | J76: 0 | K76: 0 | L76: 0 | T76: 0 | U76: 0 | V76: 0 | W76: 0 | AT76: ='[1]PP v1000'!$BP174 -> 0 | AU76: =[1]PP!$BP174 -> 0 | AV76: =[1]GP!$BP174 -> 0 | AW76: =[1]Mixte!$BP174 -> 0 | AX76: =[1]PE!$BP174 -> 0 | AY76: ='[1]Pliage main'!$BP174 -> 0 | AZ76: =[1]Plat7!$BP174 -> 0 | BA76: =[1]Plat8!$BP174 -> 0 | BB76: =[1]Plat9!$BP174 -> 0 | BC76: =[1]Plat10!$BP174 -> 0 | BD76: =[1]VT1!$BL173 -> 0 | BE76: =[1]VT2!$BL173 -> 0 | BF76: =[1]VT3!$BL173 -> 0 | BG76: =[1]Bobines!$BP174 -> 0 | BH76: =[1]Tapis!$BP174 -> 0 | BI76: =[1]Contaminé!I88 -> 0 | BK76: 0
D77: 107 | F77: 0 | J77: 0 | K77: 0 | L77: 0 | T77: 0 | U77: 0 | V77: 0 | W77: 0 | AT77: ='[1]PP v1000'!$BP175 -> 0 | AU77: =[1]PP!$BP175 -> 0 | AV77: =[1]GP!$BP175 -> 0 | AW77: =[1]Mixte!$BP175 -> 0 | AX77: =[1]PE!$BP175 -> 0 | AY77: ='[1]Pliage main'!$BP175 -> 0 | AZ77: =[1]Plat7!$BP175 -> 0 | BA77: =[1]Plat8!$BP175 -> 0 | BB77: =[1]Plat9!$BP175 -> 0 | BC77: =[1]Plat10!$BP175 -> 0 | BD77: =[1]VT1!$BL174 -> 0 | BE77: =[1]VT2!$BL174 -> 0 | BF77: =[1]VT3!$BL174 -> 0 | BG77: =[1]Bobines!$BP175 -> 0 | BH77: =[1]Tapis!$BP175 -> 0 | BI77: =[1]Contaminé!I89 -> 0 | BK77: 0
D78: 108 | F78: 0 | J78: 0 | K78: 0 | L78: 0 | T78: 0 | U78: 0 | V78: 0 | W78: 0 | AT78: ='[1]PP v1000'!$BP176 -> 0 | AU78: =[1]PP!$BP176 -> 0 | AV78: =[1]GP!$BP176 -> 0 | AW78: =[1]Mixte!$BP176 -> 0 | AX78: =[1]PE!$BP176 -> 0 | AY78: ='[1]Pliage main'!$BP176 -> 0 | AZ78: =[1]Plat7!$BP176 -> 0 | BA78: =[1]Plat8!$BP176 -> 0 | BB78: =[1]Plat9!$BP176 -> 0 | BC78: =[1]Plat10!$BP176 -> 0 | BD78: =[1]VT1!$BL175 -> 0 | BE78: =[1]VT2!$BL175 -> 0 | BF78: =[1]VT3!$BL175 -> 0 | BG78: =[1]Bobines!$BP176 -> 0 | BH78: =[1]Tapis!$BP176 -> 0 | BI78: =[1]Contaminé!I90 -> 0 | BK78: 0
BM79: =BM70+BM61+BM52+BM43+BM34+BM25+BM16+BM15+BM14+BM13 -> 
A81: référence pour les listes déroulantes dans les onglets de finition | B81: =B13 -> Tunnel LP | C81: 1 | D81: 41
B82: =B14 -> Tunnel VT | C82: 2 | D82: 42
B83: =B15 -> 0 | C83: 3 | D83: 43
B84: =B16 -> 1 & 17 (sanitaire) | C84: 4 | D84: 44
B85: =B25 -> 6 & 7 & 9 (VT + restau) | C85: 5 | D85: 45
B86: =B34 -> 0 | C86: 6 | D86: 46
B87: =B43 -> 0 | C87: 7 | D87: 47
B88: =B52 -> 0 | C88: 8 | D88: 48
B89: =B61 -> 0 | C89: 9 | D89: 51
B90: =B70 -> 0 | C90: 10 | D90: 52
D91: 53
D92: 54
D93: 55
D94: 56
D95: 57
D96: 58
D97: 61
D98: 62
D99: 63
D100: 64
D101: 65
D102: 66
D103: 67
D104: 68
D105: 71
D106: 72
D107: 73
D108: 74
D109: 75
D110: 76
D111: 77
D112: 78
D113: 81
D114: 82
D115: 83
D116: 84
D117: 85
D118: 86
D119: 87
D120: 88
D121: 91
D122: 92
D123: 93
D124: 94
D125: 95
D126: 96
D127: 97
D128: 98
D129: 101
D130: 102
D131: 103
D132: 104
D133: 105
D134: 106
D135: 107
D136: 108

Sheet PP v1000
I1: Equipement de finition | P1: =[1]Paramètres!M4 -> Calandre 1 - petit plat 2 voies 1000 | AD1: Tonnage Lavage | AG1: Tonnage séchage | DE1: SYNTHESE DES PERFORMANCES
AC2: 1 | AD2: =SUMIF($AY$12:$AY$34,AC2,$AV$12:$AV$34) -> 0 | AF2: 1 | AG2: =SUMIF($BU$12:$BU$27,AF2,$AX$15:$AX$27) -> 0 | DE2: =P1 -> Calandre 1 - petit plat 2 voies 1000
I3: Ouverture USINE hebdo (yc pause) | T3: =[1]Paramètres!J4 -> 113.6 | U3: h | W3: Taux de dispo | Y3: TRG | AC3: 2 | AD3: =SUMIF($AY$12:$AY$34,AC3,$AV$12:$AV$34) -> 0 | AF3: 2 | AG3: =SUMIF($BU$12:$BU$27,AF3,$AX$15:$AX$27) -> 0 | CN3: Taux d'utilisation | CO3: Taux de marche | CP3: Taux d'efficacité | CQ3: Taux de produits conformes | CR3: TRS | CS3: TRG hors aléas programmés | CU3: COÛT
I4: Ouverture USINE hebdo (ss pause) | T4: =[1]Paramètres!J6 -> 105 | U4: h | AC4: 4 | AD4: =SUMIF($AY$12:$AY$34,AC4,$AV$12:$AV$34) -> 0 | AF4: 3 | AG4: =SUMIF($BU$12:$BU$27,AF4,$AX$15:$AX$27) -> 0 | CN4: =IF(T3=0,"",(T3-CN88-CL88)/T3) -> 0 | CO4: =IF(OR(T6=0,CN88=0),0,(T6-CN88-CO88)/(T6-CN88)) -> 0 | CP4: =IF(OR(T6=0,CN88=0,CO88=0),"",(T6-CN88-CO88-CP88)/(T6-CN88-CO88)) ->  | CQ4: =IF(OR(T6=0,CN88=0,CO88=0,CP88=0),0,(T6-CN88-CO88-CP88-CQ88)/(T6-CN88-CO88-CP88)) -> 0 | CR4: =IF(OR(CR88=0,T6=""),"",CR88/T6) ->  | CS4: =+IF(OR(T6=0,CN88=0),"",CR88/(T6-CN88)) -> 
W5: =IF(C88=0,"",((T3-AH88)/T3)) ->  | Y5: =IF(AG88=0,"",SUMPRODUCT(N12:N87,$Q12:$Q87)/SUMPRODUCT(V12:V87,$AG12:$AG87)) ->  | AC5: 5 | AD5: =SUMIF($AY$12:$AY$34,AC5,$AV$12:$AV$34) -> 0 | AF5: 4 | AG5: =SUMIF($BU$12:$BU$27,AF5,$AX$15:$AX$27) -> 0
I6: Ouverture EQUIPEMENT hebdo (ss pause) | T6: =AG88 -> 0 | U6: h | AF6: 5 | AG6: =SUMIF($BU$12:$BU$27,AF6,$AX$15:$AX$27) -> 0 | CU6: Taux horaire moyen: | CX6: € | DB6: Charges: | DG6: Temps disponible (h) | DH6: Tps liés aux aléas programmés (h) | DI6: Temps liés aux aléas non programmés (h) | DJ6: Temps liés aux micro-arrêts & écarts de cadence (h) | DK6: Temps liés aux pertes qualité (h)
C8: Etude du besoin | K8: Configuration fiche de poste | T8: Configuration réelle | AN8: Commentaires | AQ8: Lavage | BJ8: RECO (si autre équipement de lavage) | BU8: Séchage | CF8: Configuration réelle (yc aléas avec transfert non programmés) | CL8: Temps de disponibilité de l'équipement (h) | CN8: Temps de non production (h) | CR8: Temps Prod conforme du 1er coup | CU8: Config fiche de poste | CZ8: Config réelle
C9: Besoin livré (pièces) | D9: Production non conforme (%) | G9: Total production conforme | H9: Besoin Equipemt de finition (pièces) | I9: Proportion de la famille par rapport au mix article sur plat1 | K9: Cadence standard groupe (p/h/poste eng) | M9: Aux condit. d'utilisat. (p/h eng) | N9: Nbre de postes | Q9: Nbre d'heures Equipement d'eng | T9: Cadence réelle (p/h/posteeng) | V9: Nbre de postes | Y9: Aléas | AG9: Besoin h équipement engagement (hors transfert) | AI9: Besoin h cumulées équipement engagement (hors transfert) | AK9: Besoin en heures homme (eng+réc) | AL9: Nbre de pièces restantes | CN9: lié aux aléas programmés | CO9: lié aux aléas non programmés (yc avec transfert) | CP9: lié aux écarts de cadence | CQ9: lié aux pertes qualité | CU9: € | CW9: cts €/p. | CZ9: € | DB9: cts €/p.
N10: Eng | P10: Réc | V10: Eng | X10: Réc | Y10: Programmés | Z10: Pannes | AA10: Organisationnel | AB10: Ecart de cadence | AC10: Gain potentiel lié à l'optimisation | AD10: pr le calcul du gain potentiel à l'optimisation globale | AF10: Total | AI10: cumul | AR10: Poids unitaire (kg) | AS10: Besoin livré (kg) | AT10: Ecart livré/lavé (%) | AU10: Poids unitaire "à laver" (kg) | AV10: Besoin lavé (hors reco) (kg) | AW10: Reco effectué sur le même équipement de lavage (oui/non) | AX10: Besoin lavé (avec reco si même équipemt lavage) (kg) | AY10: Code Equipement de lavage | AZ10: Programme de lavage (Lav-Ess) Vide si code 1,2,3 | BA10: Passe (kg) | BC10: Performance (passe / h) | BE10: Nbre de pièces par passe | BF10: Besoin lavé réel (Nbre de passes) | BG10: Besoin (en h) | BJ10: Besoin Reco (kg) | BK10: Code Equipement de lavage | BL10: Programme de lavage | BM10: Passe (kg) | BO10: Performance (passe / h) | BQ10: Besoin Reco Réel (Nbre de passe) | BR10: Besoin (h) | BU10: Code Equipement de séchage | BV10: Programme de séchage | BW10: Unité de séchage (kg) | BY10: Performance (Unité de séchage/h) | CA10: Nbre de pièces par unité de séchage | CB10: Besoin séchage (Nbre d'unité de séchage) | CC10: Besoin(h) | CF10: Non programmés (avec transfert) | CH10: Total (yc avec transfert non prog) | CI10: Cadence "Equipmt" (p/h produite) (1) | CJ10: Nb h ouverture eqpmt (h) (yc aléas ac transfert non prog) | DG10: =+CL88 -> 113.6 | DH10: =+CN88 -> 0 | DI10: =+CO88 -> 0 | DJ10: =+CP88 -> 0 | DK10: =+CQ88 -> 0
A11: Famille | D11: Reco | E11: Pliage | F11: Couture/Réforme | K11: (1) aux standard groupe | L11: (2) A capa équipmt max | N11: (1) aux condit. d'utilisat | O11: (2) à capa équipmt max | Q11: (1) aux condit. d'utilisat | R11: (2) à capa équipmt max | T11: (1) aux condit. d'utilisat | U11: (2) à capa équipmt max | V11: (1) aux condit. d'utilisat | W11: (2) à capa équipmt max | AD11: temps si à l'objectif | AE11: temps si au standard | AG11: utilisé | AH11: (2) à capa équipmt max | AI11: utilisé | AJ11: (2) à capa équipmt max | AP11: Besoin finition | AQ11: =B11 -> 0 | BA11: Nominale | BB11: Réelle | BC11: Nominale | BD11: Réelle | BG11: Nominal | BH11: Réel | BM11: Nominale | BN11: Réelle | BO11: Nominale | BP11: Réelle | BR11: Nominal | BS11: Réel | BW11: Nominale | BX11: Réelle | BY11: Nominale | BZ11: Réelle | CC11: Nominale | CD11: Réelle | CF11: Pannes | CG11: Organisationnel | CU11: (1) | CV11: (2) "à capa équipmt max" | CW11: (1) | CX11: (2) "à capa équipmt max" | CZ11: (1) | DA11: (2) "à capa équipmt max" | DB11: (1) | DC11: (2) "à capa équipmt max"
B12: 1 | C12: =IF($A12="",0,VLOOKUP($A12,'[1]Qtité Famille'!$A$6:$C$120,3,FALSE)) -> 0 | G12: =IF(A12="",0,(1-D12)*(1-E12)*(1-F12)) -> 0 | H12: =IF(A12="",0,C12/G12) -> 0 | I12: =IF(A12="","",H12/$H$88) ->  | K12: 390 | L12: 390 | M12: 390 | N12: =V12 -> 1 | O12: =W12 -> 1 | P12: =X12 -> 0 | Q12: =IF(OR(C12=0,V12=0),0,C12/($K12*$N12)) -> 0 | R12: =IF(C12=0,0,IF(L12=0,0,C12/($L12*$O12))) -> 0 | T12: =IF(OR(AG12=0,V12=0),0,H12/(AG12*V12)) -> 0 | U12: =L12*AF12 -> 390 | V12: 1 | W12: 1 | AC12: =(IF(OR(K12=0,C12=0),0,((C12/M12)-(C12/K12))/(C12/M12))) -> 0 | AD12: =IF(M12=0,0,C12/M12) -> 0 | AE12: =IF(K12=0,0,C12/K12) -> 0 | AF12: =(1-Y12)*(1-Z12)*(1-AA12)*(1-AB12)*(1-AC12) -> 1 | AG12: =Q12/((1-Y12)*(1-Z12)*(1-AA12)*(1-AB12)*(1-AC12)*(1-D12)*(1-E12)*(1-F12)) -> 0 | AH12: =R12/((1-Y12)*(1-Z12)*(1-AA12)*(1-AB12)*(1-AC12)*(1-D12)*(1-E12)*(1-F12)) -> 0 | AI12: =AG12 -> 0 | AJ12: =AH12 -> 0 | AK12: =AG12*(V12+X12) -> 0 | AL12: =IF(AI12<$T$3,0,(AI12-$T$3)*$T12*V12) -> 0 | AP12: =H12*AR12 -> 0 | AQ12: 1 | AR12: =IF(A12=0,0,VLOOKUP(A12,Paramètre_famille,2,FALSE))/1000 -> 0 | AS12: =C12*AR12 -> 0 | AT12: 0.05 | AU12: =AR12*(1+AT12) -> 0 | AV12: =(C12-AL12*G12)*AU12 -> 0 | AW12: oui | AX12: =IF(AW12="oui",AV12+C12*(100%-G12)*AU12,AV12) -> 0 | AY12: 5 | AZ12: 52 | BA12: =IF($A12="",0,IF($AY12=1,[1]Lavage!$J$13,IF($AY12=2,[1]Lavage!$J$14,IF($AY12=3,[1]Lavage!$J$15,VLOOKUP($AZ12,[1]Lavage!$D$16:$U$78,7,FALSE))))) -> 0 | BB12: =IF($A12="",0,IF($AY12=1,[1]Lavage!$T$13,IF($AY12=2,[1]Lavage!$T$14,IF($AY12=3,[1]Lavage!$T$15,VLOOKUP($AZ12,[1]Lavage!$D$16:$U$78,17,FALSE))))) -> 0 | BC12: =IF($A12="",0,IF($AY12=1,[1]Lavage!$K$13,IF($AY12=2,[1]Lavage!$K$14,IF($AY12=3,[1]Lavage!$K$15,VLOOKUP($AZ12,[1]Lavage!$D$16:$U$78,8,FALSE))))) -> 0 | BD12: =IF($A12="",0,IF($AY12=1,[1]Lavage!$U$13,IF($AY12=2,[1]Lavage!$U$14,IF($AY12=3,[1]Lavage!$U$15,VLOOKUP($AZ12,[1]Lavage!$D$16:$U$78,18,FALSE))))) -> 0 | BE12: =IF(AU12=0,0,BB12/AU12) -> 0 | BF12: =IF(BB12=0,0,AX12/BB12) -> 0 | BG12: =IF(BA12=0,0,AX12/BA12/BC12) -> 0 | BH12: =IF(BB12=0,0,AX12/BB12/BD12) -> 0 | BJ12: =IF(AW12="non",C12*(100%-G12)*AU12,0) -> 0 | BM12: =IF($BJ12=0,0,IF($BK12=1,[1]Lavage!$J$13,IF($BK12=2,[1]Lavage!$J$14,IF($BK12=3,[1]Lavage!$J$15,VLOOKUP($BL12,[1]Lavage!$D$16:$U$78,7,FALSE))))) -> 0 | BN12: =IF($BJ12=0,0,IF($BK12=1,[1]Lavage!$T$13,IF($BK12=2,[1]Lavage!$T$14,IF($BK12=3,[1]Lavage!$T$15,VLOOKUP($BL12,[1]Lavage!$D$16:$U$78,17,FALSE))))) -> 0 | BO12: =IF($BJ12=0,0,IF($BK12=1,[1]Lavage!$K$13,IF($BK12=2,[1]Lavage!$K$14,IF($BK12=3,[1]Lavage!$K$15,VLOOKUP($BL12,[1]Lavage!$D$16:$U$78,8,FALSE))))) -> 0 | BP12: =IF($BJ12=0,0,IF($BK12=1,[1]Lavage!$U$13,IF($BK12=2,[1]Lavage!$U$14,IF($BK12=3,[1]Lavage!$U$15,VLOOKUP($BL12,[1]Lavage!$D$16:$U$78,18,FALSE))))) -> 0 | BQ12: =IF(BN12=0,0,BJ12/BN12) -> 0 | BR12: =IF(BM12=0,0,IF(BO12=0,0,BJ12/BM12/BO12)) -> 0 | BS12: =IF(BN12=0,0,IF(BP12=0,0,BJ12/BN12/BP12)) -> 0 | BU12: 2 | BV12: 21 | BW12: =IF($BV12="",0,VLOOKUP($BV12,[1]Séchage!$C$13:$O$71,3,FALSE)) -> 100 | BX12: =IF($BV12="",0,VLOOKUP($BV12,[1]Séchage!$C$13:$O$71,12,FALSE)) -> 100 | BY12: =IF($BV12="",0,VLOOKUP($BV12,[1]Séchage!$C$13:$O$71,4,FALSE)) -> 5 | BZ12: =IF($BV12="",0,VLOOKUP($BV12,[1]Séchage!$C$13:$O$71,13,FALSE)) -> 5 | CA12: =IF(AU12=0,0,BX12/AU12) -> 0 | CB12: =IF(BX12=0,0,(AX12+BJ12)/BX12) -> 0 | CC12: =IF(BW12=0,0,(AX12+BJ12)/BW12/BY12) -> 0 | CD12: =IF(BW12=0,0,(AX12+BJ12)/BX12/BZ12) -> 0 | CH12: =AF12*(1-CF12)*(1-CG12) -> 1 | CI12: =K12*CH12 -> 390 | CJ12: =IF(H12=0,0,H12/(CI12*V12)) -> 0 | CN12: =IF($T12=0,0,CJ12*Y12) -> 0 | CO12: =IF($T12=0,0,(CJ12-CN12)*(1-(1-Z12)*(1-AA12)*(1-CF12)*(1-CG12))) -> 0 | CP12: =IF($T12=0,0,(CJ12-CN12-CO12)*AB12) -> 0 | CQ12: =IF($T12=0,0,(CJ12-CN12-CO12-CP12)*(1-G12)) -> 0 | CR12: =CJ12-SUM(CN12:CQ12) -> 0 | CU12: =Q12*(P12+N12)*$CW$6*(1+$DC$6) -> 0 | CV12: =R12*(P12+O12)*$CW$6*(1+$DC$6) -> 0 | CW12: =IF(Q12=0,0,100*CU12/(H12)) -> 0 | CX12: =IF(R12=0,0,100*CV12/(H12)) -> 0 | CZ12: =AK12*$CW$6*(1+$DC$6) -> 0 | DA12: =AH12*(W12+X12)*$CW$6*(1+$DC$6) -> 0 | DB12: =IF(AG12=0,0,100*CZ12/(H12)) -> 0 | DC12: =IF(AH12=0,0,100*DA12/(H12)) -> 0 | DG12: Temps d'ouverture usine | DH12: =T3 -> 113.6
B13: 2 | C13: =IF($A13="",0,VLOOKUP($A13,'[1]Qtité Famille'!$A$6:$C$120,3,FALSE)) -> 0 | G13: 0 | H13: 0 | K13: 400 | L13: 400 | M13: 400 | N13: 1 | O13: 1 | P13: 0 | Q13: 0 | R13: 0 | T13: 0 | U13: 400 | V13: 1 | W13: 1 | AC13: 0 | AD13: 0 | AE13: 0 | AF13: 1 | AG13: 0 | AH13: 0 | AI13: =IF(H13=0,0,AI12+AG13) -> 0 | AJ13: =AJ12+AH13 -> 0 | AK13: 0 | AL13: 0 | AP13: 0 | AQ13: 2 | AR13: 0 | AS13: 0 | AT13: 0.05 | AU13: 0 | AV13: 0 | AW13: oui | AX13: 0 | AY13: 1 | BA13: =IF($A13="",0,IF($AY13=1,[1]Lavage!$J$13,IF($AY13=2,[1]Lavage!$J$14,IF($AY13=3,[1]Lavage!$J$15,VLOOKUP($AZ13,[1]Lavage!$D$16:$U$78,7,FALSE))))) -> 0 | BB13: =IF($A13="",0,IF($AY13=1,[1]Lavage!$T$13,IF($AY13=2,[1]Lavage!$T$14,IF($AY13=3,[1]Lavage!$T$15,VLOOKUP($AZ13,[1]Lavage!$D$16:$U$78,17,FALSE))))) -> 0 | BC13: =IF($A13="",0,IF($AY13=1,[1]Lavage!$K$13,IF($AY13=2,[1]Lavage!$K$14,IF($AY13=3,[1]Lavage!$K$15,VLOOKUP($AZ13,[1]Lavage!$D$16:$U$78,8,FALSE))))) -> 0 | BD13: =IF($A13="",0,IF($AY13=1,[1]Lavage!$U$13,IF($AY13=2,[1]Lavage!$U$14,IF($AY13=3,[1]Lavage!$U$15,VLOOKUP($AZ13,[1]Lavage!$D$16:$U$78,18,FALSE))))) -> 0 | BE13: 0 | BF13: 0 | BG13: 0 | BH13: 0 | BJ13: 0 | BM13: =IF($BJ13=0,0,IF($BK13=1,[1]Lavage!$J$13,IF($BK13=2,[1]Lavage!$J$14,IF($BK13=3,[1]Lavage!$J$15,VLOOKUP($BL13,[1]Lavage!$D$16:$U$78,7,FALSE))))) -> 0 | BN13: =IF($BJ13=0,0,IF($BK13=1,[1]Lavage!$T$13,IF($BK13=2,[1]Lavage!$T$14,IF($BK13=3,[1]Lavage!$T$15,VLOOKUP($BL13,[1]Lavage!$D$16:$U$78,17,FALSE))))) -> 0 | BO13: =IF($BJ13=0,0,IF($BK13=1,[1]Lavage!$K$13,IF($BK13=2,[1]Lavage!$K$14,IF($BK13=3,[1]Lavage!$K$15,VLOOKUP($BL13,[1]Lavage!$D$16:$U$78,8,FALSE))))) -> 0 | BP13: =IF($BJ13=0,0,IF($BK13=1,[1]Lavage!$U$13,IF($BK13=2,[1]Lavage!$U$14,IF($BK13=3,[1]Lavage!$U$15,VLOOKUP($BL13,[1]Lavage!$D$16:$U$78,18,FALSE))))) -> 0 | BQ13: 0 | BR13: 0 | BS13: 0 | BU13: 2 | BV13: 21 | BW13: =IF($BV13="",0,VLOOKUP($BV13,[1]Séchage!$C$13:$O$71,3,FALSE)) -> 100 | BX13: =IF($BV13="",0,VLOOKUP($BV13,[1]Séchage!$C$13:$O$71,12,FALSE)) -> 100 | BY13: =IF($BV13="",0,VLOOKUP($BV13,[1]Séchage!$C$13:$O$71,4,FALSE)) -> 5 | BZ13: =IF($BV13="",0,VLOOKUP($BV13,[1]Séchage!$C$13:$O$71,13,FALSE)) -> 5 | CA13: 0 | CB13: 0 | CC13: 0 | CD13: 0 | CH13: 1 | CI13: 400 | CJ13: 0 | CN13: 0 | CO13: 0 | CP13: 0 | CQ13: 0 | CR13: 0 | CU13: 0 | CV13: 0 | CW13: 0 | CX13: 0 | CZ13: 0 | DA13: 0 | DB13: 0 | DC13: 0 | DG13: Temps d'ouverture machine | DH13: =T6 -> 0
B14: 3 | C14: =IF($A14="",0,VLOOKUP($A14,'[1]Qtité Famille'!$A$6:$C$120,3,FALSE)) -> 0 | G14: 0 | H14: 0 | K14: 250 | L14: 250 | M14: 250 | N14: 1 | O14: 1 | P14: 0 | Q14: 0 | R14: 0 | T14: 0 | U14: 250 | V14: 1 | W14: 1 | AC14: 0 | AD14: 0 | AE14: 0 | AF14: 1 | AG14: 0 | AH14: 0 | AI14: 0 | AJ14: 0 | AK14: 0 | AL14: 0 | AP14: 0 | AQ14: 3 | AR14: 0 | AS14: 0 | AT14: 0.05 | AU14: 0 | AV14: 0 | AW14: oui | AX14: 0 | AY14: 1 | BA14: =IF($A14="",0,IF($AY14=1,[1]Lavage!$J$13,IF($AY14=2,[1]Lavage!$J$14,IF($AY14=3,[1]Lavage!$J$15,VLOOKUP($AZ14,[1]Lavage!$D$16:$U$78,7,FALSE))))) -> 0 | BB14: =IF($A14="",0,IF($AY14=1,[1]Lavage!$T$13,IF($AY14=2,[1]Lavage!$T$14,IF($AY14=3,[1]Lavage!$T$15,VLOOKUP($AZ14,[1]Lavage!$D$16:$U$78,17,FALSE))))) -> 0 | BC14: =IF($A14="",0,IF($AY14=1,[1]Lavage!$K$13,IF($AY14=2,[1]Lavage!$K$14,IF($AY14=3,[1]Lavage!$K$15,VLOOKUP($AZ14,[1]Lavage!$D$16:$U$78,8,FALSE))))) -> 0 | BD14: =IF($A14="",0,IF($AY14=1,[1]Lavage!$U$13,IF($AY14=2,[1]Lavage!$U$14,IF($AY14=3,[1]Lavage!$U$15,VLOOKUP($AZ14,[1]Lavage!$D$16:$U$78,18,FALSE))))) -> 0 | BE14: 0 | BF14: 0 | BG14: 0 | BH14: 0 | BJ14: 0 | BM14: =IF($BJ14=0,0,IF($BK14=1,[1]Lavage!$J$13,IF($BK14=2,[1]Lavage!$J$14,IF($BK14=3,[1]Lavage!$J$15,VLOOKUP($BL14,[1]Lavage!$D$16:$U$78,7,FALSE))))) -> 0 | BN14: =IF($BJ14=0,0,IF($BK14=1,[1]Lavage!$T$13,IF($BK14=2,[1]Lavage!$T$14,IF($BK14=3,[1]Lavage!$T$15,VLOOKUP($BL14,[1]Lavage!$D$16:$U$78,17,FALSE))))) -> 0 | BO14: =IF($BJ14=0,0,IF($BK14=1,[1]Lavage!$K$13,IF($BK14=2,[1]Lavage!$K$14,IF($BK14=3,[1]Lavage!$K$15,VLOOKUP($BL14,[1]Lavage!$D$16:$U$78,8,FALSE))))) -> 0 | BP14: =IF($BJ14=0,0,IF($BK14=1,[1]Lavage!$U$13,IF($BK14=2,[1]Lavage!$U$14,IF($BK14=3,[1]Lavage!$U$15,VLOOKUP($BL14,[1]Lavage!$D$16:$U$78,18,FALSE))))) -> 0 | BQ14: 0 | BR14: 0 | BS14: 0 | BU14: 2 | BV14: 22 | BW14: =IF($BV14="",0,VLOOKUP($BV14,[1]Séchage!$C$13:$O$71,3,FALSE)) -> 100 | BX14: =IF($BV14="",0,VLOOKUP($BV14,[1]Séchage!$C$13:$O$71,12,FALSE)) -> 100 | BY14: =IF($BV14="",0,VLOOKUP($BV14,[1]Séchage!$C$13:$O$71,4,FALSE)) -> 4.615384615 | BZ14: =IF($BV14="",0,VLOOKUP($BV14,[1]Séchage!$C$13:$O$71,13,FALSE)) -> 4.615384615 | CA14: 0 | CB14: 0 | CC14: 0 | CD14: 0 | CH14: 1 | CI14: 250 | CJ14: 0 | CN14: 0 | CO14: 0 | CP14: 0 | CQ14: 0 | CR14: 0 | CU14: 0 | CV14: 0 | CW14: 0 | CX14: 0 | CZ14: 0 | DA14: 0 | DB14: 0 | DC14: 0 | DG14: Temps d'utilisation | DH14: =T6-CN88 -> 0
B15: 4 | C15: =IF($A15="",0,VLOOKUP($A15,'[1]Qtité Famille'!$A$6:$C$120,3,FALSE)) -> 0 | G15: 0 | H15: 0 | N15: 0 | O15: 0 | P15: 0 | Q15: 0 | R15: 0 | T15: 0 | U15: 0 | AC15: 0 | AD15: 0 | AE15: 0 | AF15: 1 | AG15: 0 | AH15: 0 | AI15: 0 | AJ15: 0 | AK15: 0 | AL15: 0 | AP15: 0 | AQ15: 4 | AR15: 0 | AS15: 0 | AU15: 0 | AV15: 0 | AX15: 0 | BA15: =IF($A15="",0,IF($AY15=1,[1]Lavage!$J$13,IF($AY15=2,[1]Lavage!$J$14,IF($AY15=3,[1]Lavage!$J$15,VLOOKUP($AZ15,[1]Lavage!$D$16:$U$78,7,FALSE))))) -> 0 | BB15: =IF($A15="",0,IF($AY15=1,[1]Lavage!$T$13,IF($AY15=2,[1]Lavage!$T$14,IF($AY15=3,[1]Lavage!$T$15,VLOOKUP($AZ15,[1]Lavage!$D$16:$U$78,17,FALSE))))) -> 0 | BC15: =IF($A15="",0,IF($AY15=1,[1]Lavage!$K$13,IF($AY15=2,[1]Lavage!$K$14,IF($AY15=3,[1]Lavage!$K$15,VLOOKUP($AZ15,[1]Lavage!$D$16:$U$78,8,FALSE))))) -> 0 | BD15: =IF($A15="",0,IF($AY15=1,[1]Lavage!$U$13,IF($AY15=2,[1]Lavage!$U$14,IF($AY15=3,[1]Lavage!$U$15,VLOOKUP($AZ15,[1]Lavage!$D$16:$U$78,18,FALSE))))) -> 0 | BE15: 0 | BF15: 0 | BG15: 0 | BH15: 0 | BJ15: 0 | BM15: =IF($BJ15=0,0,IF($BK15=1,[1]Lavage!$J$13,IF($BK15=2,[1]Lavage!$J$14,IF($BK15=3,[1]Lavage!$J$15,VLOOKUP($BL15,[1]Lavage!$D$16:$U$78,7,FALSE))))) -> 0 | BN15: =IF($BJ15=0,0,IF($BK15=1,[1]Lavage!$T$13,IF($BK15=2,[1]Lavage!$T$14,IF($BK15=3,[1]Lavage!$T$15,VLOOKUP($BL15,[1]Lavage!$D$16:$U$78,17,FALSE))))) -> 0 | BO15: =IF($BJ15=0,0,IF($BK15=1,[1]Lavage!$K$13,IF($BK15=2,[1]Lavage!$K$14,IF($BK15=3,[1]Lavage!$K$15,VLOOKUP($BL15,[1]Lavage!$D$16:$U$78,8,FALSE))))) -> 0 | BP15: =IF($BJ15=0,0,IF($BK15=1,[1]Lavage!$U$13,IF($BK15=2,[1]Lavage!$U$14,IF($BK15=3,[1]Lavage!$U$15,VLOOKUP($BL15,[1]Lavage!$D$16:$U$78,18,FALSE))))) -> 0 | BQ15: 0 | BR15: 0 | BS15: 0 | BW15: =IF($BV15="",0,VLOOKUP($BV15,[1]Séchage!$C$13:$O$71,3,FALSE)) -> 0 | BX15: =IF($BV15="",0,VLOOKUP($BV15,[1]Séchage!$C$13:$O$71,12,FALSE)) -> 0 | BY15: =IF($BV15="",0,VLOOKUP($BV15,[1]Séchage!$C$13:$O$71,4,FALSE)) -> 0 | BZ15: =IF($BV15="",0,VLOOKUP($BV15,[1]Séchage!$C$13:$O$71,13,FALSE)) -> 0 | CA15: 0 | CB15: 0 | CC15: 0 | CD15: 0 | CF15: 0 | CH15: 1 | CI15: 0 | CJ15: 0 | CN15: 0 | CO15: 0 | CP15: 0 | CQ15: 0 | CR15: 0 | CU15: 0 | CV15: 0 | CW15: 0 | CX15: 0 | CZ15: 0 | DA15: 0 | DB15: 0 | DC15: 0 | DG15: Temps de marche | DH15: =$T$6-$CN$88-$CO$88 -> 0
B16: 5 | C16: =IF($A16="",0,VLOOKUP($A16,'[1]Qtité Famille'!$A$6:$C$120,3,FALSE)) -> 0 | G16: 0 | H16: 0 | N16: 0 | O16: 0 | P16: 0 | Q16: 0 | R16: 0 | T16: 0 | U16: 0 | AC16: 0 | AD16: 0 | AE16: 0 | AF16: 1 | AG16: 0 | AH16: 0 | AI16: 0 | AJ16: 0 | AK16: 0 | AL16: 0 | AP16: 0 | AQ16: 5 | AR16: 0 | AS16: 0 | AU16: 0 | AV16: 0 | AX16: 0 | BA16: =IF($A16="",0,IF($AY16=1,[1]Lavage!$J$13,IF($AY16=2,[1]Lavage!$J$14,IF($AY16=3,[1]Lavage!$J$15,VLOOKUP($AZ16,[1]Lavage!$D$16:$U$78,7,FALSE))))) -> 0 | BB16: =IF($A16="",0,IF($AY16=1,[1]Lavage!$T$13,IF($AY16=2,[1]Lavage!$T$14,IF($AY16=3,[1]Lavage!$T$15,VLOOKUP($AZ16,[1]Lavage!$D$16:$U$78,17,FALSE))))) -> 0 | BC16: =IF($A16="",0,IF($AY16=1,[1]Lavage!$K$13,IF($AY16=2,[1]Lavage!$K$14,IF($AY16=3,[1]Lavage!$K$15,VLOOKUP($AZ16,[1]Lavage!$D$16:$U$78,8,FALSE))))) -> 0 | BD16: =IF($A16="",0,IF($AY16=1,[1]Lavage!$U$13,IF($AY16=2,[1]Lavage!$U$14,IF($AY16=3,[1]Lavage!$U$15,VLOOKUP($AZ16,[1]Lavage!$D$16:$U$78,18,FALSE))))) -> 0 | BE16: 0 | BF16: 0 | BG16: 0 | BH16: 0 | BJ16: 0 | BM16: =IF($BJ16=0,0,IF($BK16=1,[1]Lavage!$J$13,IF($BK16=2,[1]Lavage!$J$14,IF($BK16=3,[1]Lavage!$J$15,VLOOKUP($BL16,[1]Lavage!$D$16:$U$78,7,FALSE))))) -> 0 | BN16: =IF($BJ16=0,0,IF($BK16=1,[1]Lavage!$T$13,IF($BK16=2,[1]Lavage!$T$14,IF($BK16=3,[1]Lavage!$T$15,VLOOKUP($BL16,[1]Lavage!$D$16:$U$78,17,FALSE))))) -> 0 | BO16: =IF($BJ16=0,0,IF($BK16=1,[1]Lavage!$K$13,IF($BK16=2,[1]Lavage!$K$14,IF($BK16=3,[1]Lavage!$K$15,VLOOKUP($BL16,[1]Lavage!$D$16:$U$78,8,FALSE))))) -> 0 | BP16: =IF($BJ16=0,0,IF($BK16=1,[1]Lavage!$U$13,IF($BK16=2,[1]Lavage!$U$14,IF($BK16=3,[1]Lavage!$U$15,VLOOKUP($BL16,[1]Lavage!$D$16:$U$78,18,FALSE))))) -> 0 | BQ16: 0 | BR16: 0 | BS16: 0 | BW16: =IF($BV16="",0,VLOOKUP($BV16,[1]Séchage!$C$13:$O$71,3,FALSE)) -> 0 | BX16: =IF($BV16="",0,VLOOKUP($BV16,[1]Séchage!$C$13:$O$71,12,FALSE)) -> 0 | BY16: =IF($BV16="",0,VLOOKUP($BV16,[1]Séchage!$C$13:$O$71,4,FALSE)) -> 0 | BZ16: =IF($BV16="",0,VLOOKUP($BV16,[1]Séchage!$C$13:$O$71,13,FALSE)) -> 0 | CA16: 0 | CB16: 0 | CC16: 0 | CD16: 0 | CF16: 0 | CH16: 1 | CI16: 0 | CJ16: 0 | CN16: 0 | CO16: 0 | CP16: 0 | CQ16: 0 | CR16: 0 | CU16: 0 | CV16: 0 | CW16: 0 | CX16: 0 | CZ16: 0 | DA16: 0 | DB16: 0 | DC16: 0 | DG16: Temps de marche efficace | DH16: =$T$6-$CN$88-$CO$88-CP88 -> 0
B17: 6 | C17: =IF($A17="",0,VLOOKUP($A17,'[1]Qtité Famille'!$A$6:$C$120,3,FALSE)) -> 0 | G17: 0 | H17: 0 | N17: 0 | O17: 0 | P17: 0 | Q17: 0 | R17: 0 | T17: 0 | U17: 0 | AC17: 0 | AD17: 0 | AE17: 0 | AF17: 1 | AG17: 0 | AH17: 0 | AI17: 0 | AJ17: 0 | AK17: 0 | AL17: 0 | AP17: 0 | AQ17: 6 | AR17: 0 | AS17: 0 | AU17: 0 | AV17: 0 | AX17: 0 | BA17: =IF($A17="",0,IF($AY17=1,[1]Lavage!$J$13,IF($AY17=2,[1]Lavage!$J$14,IF($AY17=3,[1]Lavage!$J$15,VLOOKUP($AZ17,[1]Lavage!$D$16:$U$78,7,FALSE))))) -> 0 | BB17: =IF($A17="",0,IF($AY17=1,[1]Lavage!$T$13,IF($AY17=2,[1]Lavage!$T$14,IF($AY17=3,[1]Lavage!$T$15,VLOOKUP($AZ17,[1]Lavage!$D$16:$U$78,17,FALSE))))) -> 0 | BC17: =IF($A17="",0,IF($AY17=1,[1]Lavage!$K$13,IF($AY17=2,[1]Lavage!$K$14,IF($AY17=3,[1]Lavage!$K$15,VLOOKUP($AZ17,[1]Lavage!$D$16:$U$78,8,FALSE))))) -> 0 | BD17: =IF($A17="",0,IF($AY17=1,[1]Lavage!$U$13,IF($AY17=2,[1]Lavage!$U$14,IF($AY17=3,[1]Lavage!$U$15,VLOOKUP($AZ17,[1]Lavage!$D$16:$U$78,18,FALSE))))) -> 0 | BE17: 0 | BF17: 0 | BG17: 0 | BH17: 0 | BJ17: 0 | BM17: =IF($BJ17=0,0,IF($BK17=1,[1]Lavage!$J$13,IF($BK17=2,[1]Lavage!$J$14,IF($BK17=3,[1]Lavage!$J$15,VLOOKUP($BL17,[1]Lavage!$D$16:$U$78,7,FALSE))))) -> 0 | BN17: =IF($BJ17=0,0,IF($BK17=1,[1]Lavage!$T$13,IF($BK17=2,[1]Lavage!$T$14,IF($BK17=3,[1]Lavage!$T$15,VLOOKUP($BL17,[1]Lavage!$D$16:$U$78,17,FALSE))))) -> 0 | BO17: =IF($BJ17=0,0,IF($BK17=1,[1]Lavage!$K$13,IF($BK17=2,[1]Lavage!$K$14,IF($BK17=3,[1]Lavage!$K$15,VLOOKUP($BL17,[1]Lavage!$D$16:$U$78,8,FALSE))))) -> 0 | BP17: =IF($BJ17=0,0,IF($BK17=1,[1]Lavage!$U$13,IF($BK17=2,[1]Lavage!$U$14,IF($BK17=3,[1]Lavage!$U$15,VLOOKUP($BL17,[1]Lavage!$D$16:$U$78,18,FALSE))))) -> 0 | BQ17: 0 | BR17: 0 | BS17: 0 | BW17: =IF($BV17="",0,VLOOKUP($BV17,[1]Séchage!$C$13:$O$71,3,FALSE)) -> 0 | BX17: =IF($BV17="",0,VLOOKUP($BV17,[1]Séchage!$C$13:$O$71,12,FALSE)) -> 0 | BY17: =IF($BV17="",0,VLOOKUP($BV17,[1]Séchage!$C$13:$O$71,4,FALSE)) -> 0 | BZ17: =IF($BV17="",0,VLOOKUP($BV17,[1]Séchage!$C$13:$O$71,13,FALSE)) -> 0 | CA17: 0 | CB17: 0 | CC17: 0 | CD17: 0 | CH17: 1 | CI17: 0 | CJ17: 0 | CN17: 0 | CO17: 0 | CP17: 0 | CQ17: 0 | CR17: 0 | CU17: 0 | CV17: 0 | CW17: 0 | CX17: 0 | CZ17: 0 | DA17: 0 | DB17: 0 | DC17: 0 | DG17: Temps de production "conforme" | DH17: =$T$6-$CN$88-$CO$88-CP88-CQ88 -> 0
B18: 7 | C18: =IF($A18="",0,VLOOKUP($A18,'[1]Qtité Famille'!$A$6:$C$120,3,FALSE)) -> 0 | G18: 0 | H18: 0 | N18: 0 | O18: 0 | P18: 0 | Q18: 0 | R18: 0 | T18: 0 | U18: 0 | AC18: 0 | AD18: 0 | AE18: 0 | AF18: 1 | AG18: 0 | AH18: 0 | AI18: 0 | AJ18: 0 | AK18: 0 | AL18: 0 | AP18: 0 | AQ18: 7 | AR18: 0 | AS18: 0 | AU18: 0 | AV18: 0 | AX18: 0 | BA18: =IF($A18="",0,IF($AY18=1,[1]Lavage!$J$13,IF($AY18=2,[1]Lavage!$J$14,IF($AY18=3,[1]Lavage!$J$15,VLOOKUP($AZ18,[1]Lavage!$D$16:$U$78,7,FALSE))))) -> 0 | BB18: =IF($A18="",0,IF($AY18=1,[1]Lavage!$T$13,IF($AY18=2,[1]Lavage!$T$14,IF($AY18=3,[1]Lavage!$T$15,VLOOKUP($AZ18,[1]Lavage!$D$16:$U$78,17,FALSE))))) -> 0 | BC18: =IF($A18="",0,IF($AY18=1,[1]Lavage!$K$13,IF($AY18=2,[1]Lavage!$K$14,IF($AY18=3,[1]Lavage!$K$15,VLOOKUP($AZ18,[1]Lavage!$D$16:$U$78,8,FALSE))))) -> 0 | BD18: =IF($A18="",0,IF($AY18=1,[1]Lavage!$U$13,IF($AY18=2,[1]Lavage!$U$14,IF($AY18=3,[1]Lavage!$U$15,VLOOKUP($AZ18,[1]Lavage!$D$16:$U$78,18,FALSE))))) -> 0 | BE18: 0 | BF18: 0 | BG18: 0 | BH18: 0 | BJ18: 0 | BM18: =IF($BJ18=0,0,IF($BK18=1,[1]Lavage!$J$13,IF($BK18=2,[1]Lavage!$J$14,IF($BK18=3,[1]Lavage!$J$15,VLOOKUP($BL18,[1]Lavage!$D$16:$U$78,7,FALSE))))) -> 0 | BN18: =IF($BJ18=0,0,IF($BK18=1,[1]Lavage!$T$13,IF($BK18=2,[1]Lavage!$T$14,IF($BK18=3,[1]Lavage!$T$15,VLOOKUP($BL18,[1]Lavage!$D$16:$U$78,17,FALSE))))) -> 0 | BO18: =IF($BJ18=0,0,IF($BK18=1,[1]Lavage!$K$13,IF($BK18=2,[1]Lavage!$K$14,IF($BK18=3,[1]Lavage!$K$15,VLOOKUP($BL18,[1]Lavage!$D$16:$U$78,8,FALSE))))) -> 0 | BP18: =IF($BJ18=0,0,IF($BK18=1,[1]Lavage!$U$13,IF($BK18=2,[1]Lavage!$U$14,IF($BK18=3,[1]Lavage!$U$15,VLOOKUP($BL18,[1]Lavage!$D$16:$U$78,18,FALSE))))) -> 0 | BQ18: 0 | BR18: 0 | BS18: 0 | BW18: =IF($BV18="",0,VLOOKUP($BV18,[1]Séchage!$C$13:$O$71,3,FALSE)) -> 0 | BX18: =IF($BV18="",0,VLOOKUP($BV18,[1]Séchage!$C$13:$O$71,12,FALSE)) -> 0 | BY18: =IF($BV18="",0,VLOOKUP($BV18,[1]Séchage!$C$13:$O$71,4,FALSE)) -> 0 | BZ18: =IF($BV18="",0,VLOOKUP($BV18,[1]Séchage!$C$13:$O$71,13,FALSE)) -> 0 | CA18: 0 | CB18: 0 | CC18: 0 | CD18: 0 | CH18: 1 | CI18: 0 | CJ18: 0 | CN18: 0 | CO18: 0 | CP18: 0 | CQ18: 0 | CR18: 0 | CU18: 0 | CV18: 0 | CW18: 0 | CX18: 0 | CZ18: 0 | DA18: 0 | DB18: 0 | DC18: 0
B19: 8 | C19: =IF($A19="",0,VLOOKUP($A19,'[1]Qtité Famille'!$A$6:$C$120,3,FALSE)) -> 0 | G19: 0 | H19: 0 | N19: 0 | O19: 0 | P19: 0 | Q19: 0 | R19: 0 | T19: 0 | U19: 0 | AC19: 0 | AD19: 0 | AE19: 0 | AF19: 1 | AG19: 0 | AH19: 0 | AI19: 0 | AJ19: 0 | AK19: 0 | AL19: 0 | AP19: 0 | AQ19: 8 | AR19: 0 | AS19: 0 | AU19: 0 | AV19: 0 | AX19: 0 | BA19: =IF($A19="",0,IF($AY19=1,[1]Lavage!$J$13,IF($AY19=2,[1]Lavage!$J$14,IF($AY19=3,[1]Lavage!$J$15,VLOOKUP($AZ19,[1]Lavage!$D$16:$U$78,7,FALSE))))) -> 0 | BB19: =IF($A19="",0,IF($AY19=1,[1]Lavage!$T$13,IF($AY19=2,[1]Lavage!$T$14,IF($AY19=3,[1]Lavage!$T$15,VLOOKUP($AZ19,[1]Lavage!$D$16:$U$78,17,FALSE))))) -> 0 | BC19: =IF($A19="",0,IF($AY19=1,[1]Lavage!$K$13,IF($AY19=2,[1]Lavage!$K$14,IF($AY19=3,[1]Lavage!$K$15,VLOOKUP($AZ19,[1]Lavage!$D$16:$U$78,8,FALSE))))) -> 0 | BD19: =IF($A19="",0,IF($AY19=1,[1]Lavage!$U$13,IF($AY19=2,[1]Lavage!$U$14,IF($AY19=3,[1]Lavage!$U$15,VLOOKUP($AZ19,[1]Lavage!$D$16:$U$78,18,FALSE))))) -> 0 | BE19: 0 | BF19: 0 | BG19: 0 | BH19: 0 | BJ19: 0 | BM19: =IF($BJ19=0,0,IF($BK19=1,[1]Lavage!$J$13,IF($BK19=2,[1]Lavage!$J$14,IF($BK19=3,[1]Lavage!$J$15,VLOOKUP($BL19,[1]Lavage!$D$16:$U$78,7,FALSE))))) -> 0 | BN19: =IF($BJ19=0,0,IF($BK19=1,[1]Lavage!$T$13,IF($BK19=2,[1]Lavage!$T$14,IF($BK19=3,[1]Lavage!$T$15,VLOOKUP($BL19,[1]Lavage!$D$16:$U$78,17,FALSE))))) -> 0 | BO19: =IF($BJ19=0,0,IF($BK19=1,[1]Lavage!$K$13,IF($BK19=2,[1]Lavage!$K$14,IF($BK19=3,[1]Lavage!$K$15,VLOOKUP($BL19,[1]Lavage!$D$16:$U$78,8,FALSE))))) -> 0 | BP19: =IF($BJ19=0,0,IF($BK19=1,[1]Lavage!$U$13,IF($BK19=2,[1]Lavage!$U$14,IF($BK19=3,[1]Lavage!$U$15,VLOOKUP($BL19,[1]Lavage!$D$16:$U$78,18,FALSE))))) -> 0 | BQ19: 0 | BR19: 0 | BS19: 0 | BW19: =IF($BV19="",0,VLOOKUP($BV19,[1]Séchage!$C$13:$O$71,3,FALSE)) -> 0 | BX19: =IF($BV19="",0,VLOOKUP($BV19,[1]Séchage!$C$13:$O$71,12,FALSE)) -> 0 | BY19: =IF($BV19="",0,VLOOKUP($BV19,[1]Séchage!$C$13:$O$71,4,FALSE)) -> 0 | BZ19: =IF($BV19="",0,VLOOKUP($BV19,[1]Séchage!$C$13:$O$71,13,FALSE)) -> 0 | CA19: 0 | CB19: 0 | CC19: 0 | CD19: 0 | CH19: 1 | CI19: 0 | CJ19: 0 | CN19: 0 | CO19: 0 | CP19: 0 | CQ19: 0 | CR19: 0 | CU19: 0 | CV19: 0 | CW19: 0 | CX19: 0 | CZ19: 0 | DA19: 0 | DB19: 0 | DC19: 0
B20: 9 | C20: =IF($A20="",0,VLOOKUP($A20,'[1]Qtité Famille'!$A$6:$C$120,3,FALSE)) -> 0 | G20: 0 | H20: 0 | N20: 0 | O20: 0 | P20: 0 | Q20: 0 | R20: 0 | T20: 0 | U20: 0 | AC20: 0 | AD20: 0 | AE20: 0 | AF20: 1 | AG20: 0 | AH20: 0 | AI20: 0 | AJ20: 0 | AK20: 0 | AL20: 0 | AP20: 0 | AQ20: 9 | AR20: 0 | AS20: 0 | AU20: 0 | AV20: 0 | AX20: 0 | BA20: =IF($A20="",0,IF($AY20=1,[1]Lavage!$J$13,IF($AY20=2,[1]Lavage!$J$14,IF($AY20=3,[1]Lavage!$J$15,VLOOKUP($AZ20,[1]Lavage!$D$16:$U$78,7,FALSE))))) -> 0 | BB20: =IF($A20="",0,IF($AY20=1,[1]Lavage!$T$13,IF($AY20=2,[1]Lavage!$T$14,IF($AY20=3,[1]Lavage!$T$15,VLOOKUP($AZ20,[1]Lavage!$D$16:$U$78,17,FALSE))))) -> 0 | BC20: =IF($A20="",0,IF($AY20=1,[1]Lavage!$K$13,IF($AY20=2,[1]Lavage!$K$14,IF($AY20=3,[1]Lavage!$K$15,VLOOKUP($AZ20,[1]Lavage!$D$16:$U$78,8,FALSE))))) -> 0 | BD20: =IF($A20="",0,IF($AY20=1,[1]Lavage!$U$13,IF($AY20=2,[1]Lavage!$U$14,IF($AY20=3,[1]Lavage!$U$15,VLOOKUP($AZ20,[1]Lavage!$D$16:$U$78,18,FALSE))))) -> 0 | BE20: 0 | BF20: 0 | BG20: 0 | BH20: 0 | BJ20: 0 | BM20: =IF($BJ20=0,0,IF($BK20=1,[1]Lavage!$J$13,IF($BK20=2,[1]Lavage!$J$14,IF($BK20=3,[1]Lavage!$J$15,VLOOKUP($BL20,[1]Lavage!$D$16:$U$78,7,FALSE))))) -> 0 | BN20: =IF($BJ20=0,0,IF($BK20=1,[1]Lavage!$T$13,IF($BK20=2,[1]Lavage!$T$14,IF($BK20=3,[1]Lavage!$T$15,VLOOKUP($BL20,[1]Lavage!$D$16:$U$78,17,FALSE))))) -> 0 | BO20: =IF($BJ20=0,0,IF($BK20=1,[1]Lavage!$K$13,IF($BK20=2,[1]Lavage!$K$14,IF($BK20=3,[1]Lavage!$K$15,VLOOKUP($BL20,[1]Lavage!$D$16:$U$78,8,FALSE))))) -> 0 | BP20: =IF($BJ20=0,0,IF($BK20=1,[1]Lavage!$U$13,IF($BK20=2,[1]Lavage!$U$14,IF($BK20=3,[1]Lavage!$U$15,VLOOKUP($BL20,[1]Lavage!$D$16:$U$78,18,FALSE))))) -> 0 | BQ20: 0 | BR20: 0 | BS20: 0 | BW20: =IF($BV20="",0,VLOOKUP($BV20,[1]Séchage!$C$13:$O$71,3,FALSE)) -> 0 | BX20: =IF($BV20="",0,VLOOKUP($BV20,[1]Séchage!$C$13:$O$71,12,FALSE)) -> 0 | BY20: =IF($BV20="",0,VLOOKUP($BV20,[1]Séchage!$C$13:$O$71,4,FALSE)) -> 0 | BZ20: =IF($BV20="",0,VLOOKUP($BV20,[1]Séchage!$C$13:$O$71,13,FALSE)) -> 0 | CA20: 0 | CB20: 0 | CC20: 0 | CD20: 0 | CH20: 1 | CI20: 0 | CJ20: 0 | CN20: 0 | CO20: 0 | CP20: 0 | CQ20: 0 | CR20: 0 | CU20: 0 | CV20: 0 | CW20: 0 | CX20: 0 | CZ20: 0 | DA20: 0 | DB20: 0 | DC20: 0
B21: 10 | C21: =IF($A21="",0,VLOOKUP($A21,'[1]Qtité Famille'!$A$6:$C$120,3,FALSE)) -> 0 | G21: 0 | H21: 0 | N21: 0 | O21: 0 | P21: 0 | Q21: 0 | R21: 0 | T21: 0 | U21: 0 | AC21: 0 | AD21: 0 | AE21: 0 | AF21: 1 | AG21: 0 | AH21: 0 | AI21: 0 | AJ21: 0 | AK21: 0 | AL21: 0 | AP21: 0 | AQ21: 10 | AR21: 0 | AS21: 0 | AU21: 0 | AV21: 0 | AX21: 0 | BA21: =IF($A21="",0,IF($AY21=1,[1]Lavage!$J$13,IF($AY21=2,[1]Lavage!$J$14,IF($AY21=3,[1]Lavage!$J$15,VLOOKUP($AZ21,[1]Lavage!$D$16:$U$78,7,FALSE))))) -> 0 | BB21: =IF($A21="",0,IF($AY21=1,[1]Lavage!$T$13,IF($AY21=2,[1]Lavage!$T$14,IF($AY21=3,[1]Lavage!$T$15,VLOOKUP($AZ21,[1]Lavage!$D$16:$U$78,17,FALSE))))) -> 0 | BC21: =IF($A21="",0,IF($AY21=1,[1]Lavage!$K$13,IF($AY21=2,[1]Lavage!$K$14,IF($AY21=3,[1]Lavage!$K$15,VLOOKUP($AZ21,[1]Lavage!$D$16:$U$78,8,FALSE))))) -> 0 | BD21: =IF($A21="",0,IF($AY21=1,[1]Lavage!$U$13,IF($AY21=2,[1]Lavage!$U$14,IF($AY21=3,[1]Lavage!$U$15,VLOOKUP($AZ21,[1]Lavage!$D$16:$U$78,18,FALSE))))) -> 0 | BE21: 0 | BF21: 0 | BG21: 0 | BH21: 0 | BJ21: 0 | BM21: =IF($BJ21=0,0,IF($BK21=1,[1]Lavage!$J$13,IF($BK21=2,[1]Lavage!$J$14,IF($BK21=3,[1]Lavage!$J$15,VLOOKUP($BL21,[1]Lavage!$D$16:$U$78,7,FALSE))))) -> 0 | BN21: =IF($BJ21=0,0,IF($BK21=1,[1]Lavage!$T$13,IF($BK21=2,[1]Lavage!$T$14,IF($BK21=3,[1]Lavage!$T$15,VLOOKUP($BL21,[1]Lavage!$D$16:$U$78,17,FALSE))))) -> 0 | BO21: =IF($BJ21=0,0,IF($BK21=1,[1]Lavage!$K$13,IF($BK21=2,[1]Lavage!$K$14,IF($BK21=3,[1]Lavage!$K$15,VLOOKUP($BL21,[1]Lavage!$D$16:$U$78,8,FALSE))))) -> 0 | BP21: =IF($BJ21=0,0,IF($BK21=1,[1]Lavage!$U$13,IF($BK21=2,[1]Lavage!$U$14,IF($BK21=3,[1]Lavage!$U$15,VLOOKUP($BL21,[1]Lavage!$D$16:$U$78,18,FALSE))))) -> 0 | BQ21: 0 | BR21: 0 | BS21: 0 | BW21: =IF($BV21="",0,VLOOKUP($BV21,[1]Séchage!$C$13:$O$71,3,FALSE)) -> 0 | BX21: =IF($BV21="",0,VLOOKUP($BV21,[1]Séchage!$C$13:$O$71,12,FALSE)) -> 0 | BY21: =IF($BV21="",0,VLOOKUP($BV21,[1]Séchage!$C$13:$O$71,4,FALSE)) -> 0 | BZ21: =IF($BV21="",0,VLOOKUP($BV21,[1]Séchage!$C$13:$O$71,13,FALSE)) -> 0 | CA21: 0 | CB21: 0 | CC21: 0 | CD21: 0 | CH21: 1 | CI21: 0 | CJ21: 0 | CN21: 0 | CO21: 0 | CP21: 0 | CQ21: 0 | CR21: 0 | CU21: 0 | CV21: 0 | CW21: 0 | CX21: 0 | CZ21: 0 | DA21: 0 | DB21: 0 | DC21: 0
B22: 11 | C22: =IF($A22="",0,VLOOKUP($A22,'[1]Qtité Famille'!$A$6:$C$120,3,FALSE)) -> 0 | G22: 0 | H22: 0 | N22: 0 | O22: 0 | P22: 0 | Q22: 0 | R22: 0 | T22: 0 | U22: 0 | AC22: 0 | AD22: 0 | AE22: 0 | AF22: 1 | AG22: 0 | AH22: 0 | AI22: 0 | AJ22: 0 | AK22: 0 | AL22: 0 | AP22: 0 | AQ22: 11 | AR22: 0 | AS22: 0 | AU22: 0 | AV22: 0 | AX22: 0 | BA22: =IF($A22="",0,IF($AY22=1,[1]Lavage!$J$13,IF($AY22=2,[1]Lavage!$J$14,IF($AY22=3,[1]Lavage!$J$15,VLOOKUP($AZ22,[1]Lavage!$D$16:$U$78,7,FALSE))))) -> 0 | BB22: =IF($A22="",0,IF($AY22=1,[1]Lavage!$T$13,IF($AY22=2,[1]Lavage!$T$14,IF($AY22=3,[1]Lavage!$T$15,VLOOKUP($AZ22,[1]Lavage!$D$16:$U$78,17,FALSE))))) -> 0 | BC22: =IF($A22="",0,IF($AY22=1,[1]Lavage!$K$13,IF($AY22=2,[1]Lavage!$K$14,IF($AY22=3,[1]Lavage!$K$15,VLOOKUP($AZ22,[1]Lavage!$D$16:$U$78,8,FALSE))))) -> 0 | BD22: =IF($A22="",0,IF($AY22=1,[1]Lavage!$U$13,IF($AY22=2,[1]Lavage!$U$14,IF($AY22=3,[1]Lavage!$U$15,VLOOKUP($AZ22,[1]Lavage!$D$16:$U$78,18,FALSE))))) -> 0 | BE22: 0 | BF22: 0 | BG22: 0 | BH22: 0 | BJ22: 0 | BM22: =IF($BJ22=0,0,IF($BK22=1,[1]Lavage!$J$13,IF($BK22=2,[1]Lavage!$J$14,IF($BK22=3,[1]Lavage!$J$15,VLOOKUP($BL22,[1]Lavage!$D$16:$U$78,7,FALSE))))) -> 0 | BN22: =IF($BJ22=0,0,IF($BK22=1,[1]Lavage!$T$13,IF($BK22=2,[1]Lavage!$T$14,IF($BK22=3,[1]Lavage!$T$15,VLOOKUP($BL22,[1]Lavage!$D$16:$U$78,17,FALSE))))) -> 0 | BO22: =IF($BJ22=0,0,IF($BK22=1,[1]Lavage!$K$13,IF($BK22=2,[1]Lavage!$K$14,IF($BK22=3,[1]Lavage!$K$15,VLOOKUP($BL22,[1]Lavage!$D$16:$U$78,8,FALSE))))) -> 0 | BP22: =IF($BJ22=0,0,IF($BK22=1,[1]Lavage!$U$13,IF($BK22=2,[1]Lavage!$U$14,IF($BK22=3,[1]Lavage!$U$15,VLOOKUP($BL22,[1]Lavage!$D$16:$U$78,18,FALSE))))) -> 0 | BQ22: 0 | BR22: 0 | BS22: 0 | BW22: =IF($BV22="",0,VLOOKUP($BV22,[1]Séchage!$C$13:$O$71,3,FALSE)) -> 0 | BX22: =IF($BV22="",0,VLOOKUP($BV22,[1]Séchage!$C$13:$O$71,12,FALSE)) -> 0 | BY22: =IF($BV22="",0,VLOOKUP($BV22,[1]Séchage!$C$13:$O$71,4,FALSE)) -> 0 | BZ22: =IF($BV22="",0,VLOOKUP($BV22,[1]Séchage!$C$13:$O$71,13,FALSE)) -> 0 | CA22: 0 | CB22: 0 | CC22: 0 | CD22: 0 | CH22: 1 | CI22: 0 | CJ22: 0 | CN22: 0 | CO22: 0 | CP22: 0 | CQ22: 0 | CR22: 0 | CU22: 0 | CV22: 0 | CW22: 0 | CX22: 0 | CZ22: 0 | DA22: 0 | DB22: 0 | DC22: 0
B23: 12 | C23: =IF($A23="",0,VLOOKUP($A23,'[1]Qtité Famille'!$A$6:$C$120,3,FALSE)) -> 0 | G23: 0 | H23: 0 | N23: 0 | O23: 0 | P23: 0 | Q23: 0 | R23: 0 | T23: 0 | U23: 0 | AC23: 0 | AD23: 0 | AE23: 0 | AF23: 1 | AG23: 0 | AH23: 0 | AI23: 0 | AJ23: 0 | AK23: 0 | AL23: 0 | AP23: 0 | AQ23: 12 | AR23: 0 | AS23: 0 | AU23: 0 | AV23: 0 | AX23: 0 | BA23: =IF($A23="",0,IF($AY23=1,[1]Lavage!$J$13,IF($AY23=2,[1]Lavage!$J$14,IF($AY23=3,[1]Lavage!$J$15,VLOOKUP($AZ23,[1]Lavage!$D$16:$U$78,7,FALSE))))) -> 0 | BB23: =IF($A23="",0,IF($AY23=1,[1]Lavage!$T$13,IF($AY23=2,[1]Lavage!$T$14,IF($AY23=3,[1]Lavage!$T$15,VLOOKUP($AZ23,[1]Lavage!$D$16:$U$78,17,FALSE))))) -> 0 | BC23: =IF($A23="",0,IF($AY23=1,[1]Lavage!$K$13,IF($AY23=2,[1]Lavage!$K$14,IF($AY23=3,[1]Lavage!$K$15,VLOOKUP($AZ23,[1]Lavage!$D$16:$U$78,8,FALSE))))) -> 0 | BD23: =IF($A23="",0,IF($AY23=1,[1]Lavage!$U$13,IF($AY23=2,[1]Lavage!$U$14,IF($AY23=3,[1]Lavage!$U$15,VLOOKUP($AZ23,[1]Lavage!$D$16:$U$78,18,FALSE))))) -> 0 | BE23: 0 | BF23: 0 | BG23: 0 | BH23: 0 | BJ23: 0 | BM23: =IF($BJ23=0,0,IF($BK23=1,[1]Lavage!$J$13,IF($BK23=2,[1]Lavage!$J$14,IF($BK23=3,[1]Lavage!$J$15,VLOOKUP($BL23,[1]Lavage!$D$16:$U$78,7,FALSE))))) -> 0 | BN23: =IF($BJ23=0,0,IF($BK23=1,[1]Lavage!$T$13,IF($BK23=2,[1]Lavage!$T$14,IF($BK23=3,[1]Lavage!$T$15,VLOOKUP($BL23,[1]Lavage!$D$16:$U$78,17,FALSE))))) -> 0 | BO23: =IF($BJ23=0,0,IF($BK23=1,[1]Lavage!$K$13,IF($BK23=2,[1]Lavage!$K$14,IF($BK23=3,[1]Lavage!$K$15,VLOOKUP($BL23,[1]Lavage!$D$16:$U$78,8,FALSE))))) -> 0 | BP23: =IF($BJ23=0,0,IF($BK23=1,[1]Lavage!$U$13,IF($BK23=2,[1]Lavage!$U$14,IF($BK23=3,[1]Lavage!$U$15,VLOOKUP($BL23,[1]Lavage!$D$16:$U$78,18,FALSE))))) -> 0 | BQ23: 0 | BR23: 0 | BS23: 0 | BW23: =IF($BV23="",0,VLOOKUP($BV23,[1]Séchage!$C$13:$O$71,3,FALSE)) -> 0 | BX23: =IF($BV23="",0,VLOOKUP($BV23,[1]Séchage!$C$13:$O$71,12,FALSE)) -> 0 | BY23: =IF($BV23="",0,VLOOKUP($BV23,[1]Séchage!$C$13:$O$71,4,FALSE)) -> 0 | BZ23: =IF($BV23="",0,VLOOKUP($BV23,[1]Séchage!$C$13:$O$71,13,FALSE)) -> 0 | CA23: 0 | CB23: 0 | CC23: 0 | CD23: 0 | CH23: 1 | CI23: 0 | CJ23: 0 | CN23: 0 | CO23: 0 | CP23: 0 | CQ23: 0 | CR23: 0 | CU23: 0 | CV23: 0 | CW23: 0 | CX23: 0 | CZ23: 0 | DA23: 0 | DB23: 0 | DC23: 0
B24: 13 | C24: =IF($A24="",0,VLOOKUP($A24,'[1]Qtité Famille'!$A$6:$C$120,3,FALSE)) -> 0 | G24: 0 | H24: 0 | N24: 0 | O24: 0 | P24: 0 | Q24: 0 | R24: 0 | T24: 0 | U24: 0 | AC24: 0 | AD24: 0 | AE24: 0 | AF24: 1 | AG24: 0 | AH24: 0 | AI24: 0 | AJ24: 0 | AK24: 0 | AL24: 0 | AP24: 0 | AQ24: 13 | AR24: 0 | AS24: 0 | AU24: 0 | AV24: 0 | AX24: 0 | BA24: =IF($A24="",0,IF($AY24=1,[1]Lavage!$J$13,IF($AY24=2,[1]Lavage!$J$14,IF($AY24=3,[1]Lavage!$J$15,VLOOKUP($AZ24,[1]Lavage!$D$16:$U$78,7,FALSE))))) -> 0 | BB24: =IF($A24="",0,IF($AY24=1,[1]Lavage!$T$13,IF($AY24=2,[1]Lavage!$T$14,IF($AY24=3,[1]Lavage!$T$15,VLOOKUP($AZ24,[1]Lavage!$D$16:$U$78,17,FALSE))))) -> 0 | BC24: =IF($A24="",0,IF($AY24=1,[1]Lavage!$K$13,IF($AY24=2,[1]Lavage!$K$14,IF($AY24=3,[1]Lavage!$K$15,VLOOKUP($AZ24,[1]Lavage!$D$16:$U$78,8,FALSE))))) -> 0 | BD24: =IF($A24="",0,IF($AY24=1,[1]Lavage!$U$13,IF($AY24=2,[1]Lavage!$U$14,IF($AY24=3,[1]Lavage!$U$15,VLOOKUP($AZ24,[1]Lavage!$D$16:$U$78,18,FALSE))))) -> 0 | BE24: 0 | BF24: 0 | BG24: 0 | BH24: 0 | BJ24: 0 | BM24: =IF($BJ24=0,0,IF($BK24=1,[1]Lavage!$J$13,IF($BK24=2,[1]Lavage!$J$14,IF($BK24=3,[1]Lavage!$J$15,VLOOKUP($BL24,[1]Lavage!$D$16:$U$78,7,FALSE))))) -> 0 | BN24: =IF($BJ24=0,0,IF($BK24=1,[1]Lavage!$T$13,IF($BK24=2,[1]Lavage!$T$14,IF($BK24=3,[1]Lavage!$T$15,VLOOKUP($BL24,[1]Lavage!$D$16:$U$78,17,FALSE))))) -> 0 | BO24: =IF($BJ24=0,0,IF($BK24=1,[1]Lavage!$K$13,IF($BK24=2,[1]Lavage!$K$14,IF($BK24=3,[1]Lavage!$K$15,VLOOKUP($BL24,[1]Lavage!$D$16:$U$78,8,FALSE))))) -> 0 | BP24: =IF($BJ24=0,0,IF($BK24=1,[1]Lavage!$U$13,IF($BK24=2,[1]Lavage!$U$14,IF($BK24=3,[1]Lavage!$U$15,VLOOKUP($BL24,[1]Lavage!$D$16:$U$78,18,FALSE))))) -> 0 | BQ24: 0 | BR24: 0 | BS24: 0 | BW24: =IF($BV24="",0,VLOOKUP($BV24,[1]Séchage!$C$13:$O$71,3,FALSE)) -> 0 | BX24: =IF($BV24="",0,VLOOKUP($BV24,[1]Séchage!$C$13:$O$71,12,FALSE)) -> 0 | BY24: =IF($BV24="",0,VLOOKUP($BV24,[1]Séchage!$C$13:$O$71,4,FALSE)) -> 0 | BZ24: =IF($BV24="",0,VLOOKUP($BV24,[1]Séchage!$C$13:$O$71,13,FALSE)) -> 0 | CA24: 0 | CB24: 0 | CC24: 0 | CD24: 0 | CH24: 1 | CI24: 0 | CJ24: 0 | CN24: 0 | CO24: 0 | CP24: 0 | CQ24: 0 | CR24: 0 | CU24: 0 | CV24: 0 | CW24: 0 | CX24: 0 | CZ24: 0 | DA24: 0 | DB24: 0 | DC24: 0
B25: 14 | C25: =IF($A25="",0,VLOOKUP($A25,'[1]Qtité Famille'!$A$6:$C$120,3,FALSE)) -> 0 | G25: 0 | H25: 0 | N25: 0 | O25: 0 | P25: 0 | Q25: 0 | R25: 0 | T25: 0 | U25: 0 | AC25: 0 | AD25: 0 | AE25: 0 | AF25: 1 | AG25: 0 | AH25: 0 | AI25: 0 | AJ25: 0 | AK25: 0 | AL25: 0 | AP25: 0 | AQ25: 14 | AR25: 0 | AS25: 0 | AU25: 0 | AV25: 0 | AX25: 0 | BA25: =IF($A25="",0,IF($AY25=1,[1]Lavage!$J$13,IF($AY25=2,[1]Lavage!$J$14,IF($AY25=3,[1]Lavage!$J$15,VLOOKUP($AZ25,[1]Lavage!$D$16:$U$78,7,FALSE))))) -> 0 | BB25: =IF($A25="",0,IF($AY25=1,[1]Lavage!$T$13,IF($AY25=2,[1]Lavage!$T$14,IF($AY25=3,[1]Lavage!$T$15,VLOOKUP($AZ25,[1]Lavage!$D$16:$U$78,17,FALSE))))) -> 0 | BC25: =IF($A25="",0,IF($AY25=1,[1]Lavage!$K$13,IF($AY25=2,[1]Lavage!$K$14,IF($AY25=3,[1]Lavage!$K$15,VLOOKUP($AZ25,[1]Lavage!$D$16:$U$78,8,FALSE))))) -> 0 | BD25: =IF($A25="",0,IF($AY25=1,[1]Lavage!$U$13,IF($AY25=2,[1]Lavage!$U$14,IF($AY25=3,[1]Lavage!$U$15,VLOOKUP($AZ25,[1]Lavage!$D$16:$U$78,18,FALSE))))) -> 0 | BE25: 0 | BF25: 0 | BG25: 0 | BH25: 0 | BJ25: 0 | BM25: =IF($BJ25=0,0,IF($BK25=1,[1]Lavage!$J$13,IF($BK25=2,[1]Lavage!$J$14,IF($BK25=3,[1]Lavage!$J$15,VLOOKUP($BL25,[1]Lavage!$D$16:$U$78,7,FALSE))))) -> 0 | BN25: =IF($BJ25=0,0,IF($BK25=1,[1]Lavage!$T$13,IF($BK25=2,[1]Lavage!$T$14,IF($BK25=3,[1]Lavage!$T$15,VLOOKUP($BL25,[1]Lavage!$D$16:$U$78,17,FALSE))))) -> 0 | BO25: =IF($BJ25=0,0,IF($BK25=1,[1]Lavage!$K$13,IF($BK25=2,[1]Lavage!$K$14,IF($BK25=3,[1]Lavage!$K$15,VLOOKUP($BL25,[1]Lavage!$D$16:$U$78,8,FALSE))))) -> 0 | BP25: =IF($BJ25=0,0,IF($BK25=1,[1]Lavage!$U$13,IF($BK25=2,[1]Lavage!$U$14,IF($BK25=3,[1]Lavage!$U$15,VLOOKUP($BL25,[1]Lavage!$D$16:$U$78,18,FALSE))))) -> 0 | BQ25: 0 | BR25: 0 | BS25: 0 | BW25: =IF($BV25="",0,VLOOKUP($BV25,[1]Séchage!$C$13:$O$71,3,FALSE)) -> 0 | BX25: =IF($BV25="",0,VLOOKUP($BV25,[1]Séchage!$C$13:$O$71,12,FALSE)) -> 0 | BY25: =IF($BV25="",0,VLOOKUP($BV25,[1]Séchage!$C$13:$O$71,4,FALSE)) -> 0 | BZ25: =IF($BV25="",0,VLOOKUP($BV25,[1]Séchage!$C$13:$O$71,13,FALSE)) -> 0 | CA25: 0 | CB25: 0 | CC25: 0 | CD25: 0 | CH25: 1 | CI25: 0 | CJ25: 0 | CN25: 0 | CO25: 0 | CP25: 0 | CQ25: 0 | CR25: 0 | CU25: 0 | CV25: 0 | CW25: 0 | CX25: 0 | CZ25: 0 | DA25: 0 | DB25: 0 | DC25: 0
B26: 15 | C26: =IF($A26="",0,VLOOKUP($A26,'[1]Qtité Famille'!$A$6:$C$120,3,FALSE)) -> 0 | G26: 0 | H26: 0 | N26: 0 | O26: 0 | P26: 0 | Q26: 0 | R26: 0 | T26: 0 | U26: 0 | AC26: 0 | AD26: 0 | AE26: 0 | AF26: 1 | AG26: 0 | AH26: 0 | AI26: 0 | AJ26: 0 | AK26: 0 | AL26: 0 | AP26: 0 | AQ26: 15 | AR26: 0 | AS26: 0 | AU26: 0 | AV26: 0 | AX26: 0 | BA26: =IF($A26="",0,IF($AY26=1,[1]Lavage!$J$13,IF($AY26=2,[1]Lavage!$J$14,IF($AY26=3,[1]Lavage!$J$15,VLOOKUP($AZ26,[1]Lavage!$D$16:$U$78,7,FALSE))))) -> 0 | BB26: =IF($A26="",0,IF($AY26=1,[1]Lavage!$T$13,IF($AY26=2,[1]Lavage!$T$14,IF($AY26=3,[1]Lavage!$T$15,VLOOKUP($AZ26,[1]Lavage!$D$16:$U$78,17,FALSE))))) -> 0 | BC26: =IF($A26="",0,IF($AY26=1,[1]Lavage!$K$13,IF($AY26=2,[1]Lavage!$K$14,IF($AY26=3,[1]Lavage!$K$15,VLOOKUP($AZ26,[1]Lavage!$D$16:$U$78,8,FALSE))))) -> 0 | BD26: =IF($A26="",0,IF($AY26=1,[1]Lavage!$U$13,IF($AY26=2,[1]Lavage!$U$14,IF($AY26=3,[1]Lavage!$U$15,VLOOKUP($AZ26,[1]Lavage!$D$16:$U$78,18,FALSE))))) -> 0 | BE26: 0 | BF26: 0 | BG26: 0 | BH26: 0 | BJ26: 0 | BM26: =IF($BJ26=0,0,IF($BK26=1,[1]Lavage!$J$13,IF($BK26=2,[1]Lavage!$J$14,IF($BK26=3,[1]Lavage!$J$15,VLOOKUP($BL26,[1]Lavage!$D$16:$U$78,7,FALSE))))) -> 0 | BN26: =IF($BJ26=0,0,IF($BK26=1,[1]Lavage!$T$13,IF($BK26=2,[1]Lavage!$T$14,IF($BK26=3,[1]Lavage!$T$15,VLOOKUP($BL26,[1]Lavage!$D$16:$U$78,17,FALSE))))) -> 0 | BO26: =IF($BJ26=0,0,IF($BK26=1,[1]Lavage!$K$13,IF($BK26=2,[1]Lavage!$K$14,IF($BK26=3,[1]Lavage!$K$15,VLOOKUP($BL26,[1]Lavage!$D$16:$U$78,8,FALSE))))) -> 0 | BP26: =IF($BJ26=0,0,IF($BK26=1,[1]Lavage!$U$13,IF($BK26=2,[1]Lavage!$U$14,IF($BK26=3,[1]Lavage!$U$15,VLOOKUP($BL26,[1]Lavage!$D$16:$U$78,18,FALSE))))) -> 0 | BQ26: 0 | BR26: 0 | BS26: 0 | BW26: =IF($BV26="",0,VLOOKUP($BV26,[1]Séchage!$C$13:$O$71,3,FALSE)) -> 0 | BX26: =IF($BV26="",0,VLOOKUP($BV26,[1]Séchage!$C$13:$O$71,12,FALSE)) -> 0 | BY26: =IF($BV26="",0,VLOOKUP($BV26,[1]Séchage!$C$13:$O$71,4,FALSE)) -> 0 | BZ26: =IF($BV26="",0,VLOOKUP($BV26,[1]Séchage!$C$13:$O$71,13,FALSE)) -> 0 | CA26: 0 | CB26: 0 | CC26: 0 | CD26: 0 | CH26: 1 | CI26: 0 | CJ26: 0 | CN26: 0 | CO26: 0 | CP26: 0 | CQ26: 0 | CR26: 0 | CU26: 0 | CV26: 0 | CW26: 0 | CX26: 0 | CZ26: 0 | DA26: 0 | DB26: 0 | DC26: 0
B27: 16 | C27: =IF($A27="",0,VLOOKUP($A27,'[1]Qtité Famille'!$A$6:$C$120,3,FALSE)) -> 0 | G27: 0 | H27: 0 | N27: 0 | O27: 0 | P27: 0 | Q27: 0 | R27: 0 | T27: 0 | U27: 0 | AC27: 0 | AD27: 0 | AE27: 0 | AF27: 1 | AG27: 0 | AH27: 0 | AI27: 0 | AJ27: 0 | AK27: 0 | AL27: 0 | AP27: 0 | AQ27: 16 | AR27: 0 | AS27: 0 | AU27: 0 | AV27: 0 | AX27: 0 | BA27: =IF($A27="",0,IF($AY27=1,[1]Lavage!$J$13,IF($AY27=2,[1]Lavage!$J$14,IF($AY27=3,[1]Lavage!$J$15,VLOOKUP($AZ27,[1]Lavage!$D$16:$U$78,7,FALSE))))) -> 0 | BB27: =IF($A27="",0,IF($AY27=1,[1]Lavage!$T$13,IF($AY27=2,[1]Lavage!$T$14,IF($AY27=3,[1]Lavage!$T$15,VLOOKUP($AZ27,[1]Lavage!$D$16:$U$78,17,FALSE))))) -> 0 | BC27: =IF($A27="",0,IF($AY27=1,[1]Lavage!$K$13,IF($AY27=2,[1]Lavage!$K$14,IF($AY27=3,[1]Lavage!$K$15,VLOOKUP($AZ27,[1]Lavage!$D$16:$U$78,8,FALSE))))) -> 0 | BD27: =IF($A27="",0,IF($AY27=1,[1]Lavage!$U$13,IF($AY27=2,[1]Lavage!$U$14,IF($AY27=3,[1]Lavage!$U$15,VLOOKUP($AZ27,[1]Lavage!$D$16:$U$78,18,FALSE))))) -> 0 | BE27: 0 | BF27: 0 | BG27: 0 | BH27: 0 | BJ27: 0 | BM27: =IF($BJ27=0,0,IF($BK27=1,[1]Lavage!$J$13,IF($BK27=2,[1]Lavage!$J$14,IF($BK27=3,[1]Lavage!$J$15,VLOOKUP($BL27,[1]Lavage!$D$16:$U$78,7,FALSE))))) -> 0 | BN27: =IF($BJ27=0,0,IF($BK27=1,[1]Lavage!$T$13,IF($BK27=2,[1]Lavage!$T$14,IF($BK27=3,[1]Lavage!$T$15,VLOOKUP($BL27,[1]Lavage!$D$16:$U$78,17,FALSE))))) -> 0 | BO27: =IF($BJ27=0,0,IF($BK27=1,[1]Lavage!$K$13,IF($BK27=2,[1]Lavage!$K$14,IF($BK27=3,[1]Lavage!$K$15,VLOOKUP($BL27,[1]Lavage!$D$16:$U$78,8,FALSE))))) -> 0 | BP27: =IF($BJ27=0,0,IF($BK27=1,[1]Lavage!$U$13,IF($BK27=2,[1]Lavage!$U$14,IF($BK27=3,[1]Lavage!$U$15,VLOOKUP($BL27,[1]Lavage!$D$16:$U$78,18,FALSE))))) -> 0 | BQ27: 0 | BR27: 0 | BS27: 0 | BW27: =IF($BV27="",0,VLOOKUP($BV27,[1]Séchage!$C$13:$O$71,3,FALSE)) -> 0 | BX27: =IF($BV27="",0,VLOOKUP($BV27,[1]Séchage!$C$13:$O$71,12,FALSE)) -> 0 | BY27: =IF($BV27="",0,VLOOKUP($BV27,[1]Séchage!$C$13:$O$71,4,FALSE)) -> 0 | BZ27: =IF($BV27="",0,VLOOKUP($BV27,[1]Séchage!$C$13:$O$71,13,FALSE)) -> 0 | CA27: 0 | CB27: 0 | CC27: 0 | CD27: 0 | CH27: 1 | CI27: 0 | CJ27: 0 | CN27: 0 | CO27: 0 | CP27: 0 | CQ27: 0 | CR27: 0 | CU27: 0 | CV27: 0 | CW27: 0 | CX27: 0 | CZ27: 0 | DA27: 0 | DB27: 0 | DC27: 0
B28: 17 | C28: =IF($A28="",0,VLOOKUP($A28,'[1]Qtité Famille'!$A$6:$C$120,3,FALSE)) -> 0 | G28: 0 | H28: 0 | N28: 0 | O28: 0 | P28: 0 | Q28: 0 | R28: 0 | T28: 0 | U28: 0 | AC28: 0 | AD28: 0 | AE28: 0 | AF28: 1 | AG28: 0 | AH28: 0 | AI28: 0 | AJ28: 0 | AK28: 0 | AL28: 0 | AP28: 0 | AQ28: 17 | AR28: 0 | AS28: 0 | AU28: 0 | AV28: 0 | AX28: 0 | BA28: =IF($A28="",0,IF($AY28=1,[1]Lavage!$J$13,IF($AY28=2,[1]Lavage!$J$14,IF($AY28=3,[1]Lavage!$J$15,VLOOKUP($AZ28,[1]Lavage!$D$16:$U$78,7,FALSE))))) -> 0 | BB28: =IF($A28="",0,IF($AY28=1,[1]Lavage!$T$13,IF($AY28=2,[1]Lavage!$T$14,IF($AY28=3,[1]Lavage!$T$15,VLOOKUP($AZ28,[1]Lavage!$D$16:$U$78,17,FALSE))))) -> 0 | BC28: =IF($A28="",0,IF($AY28=1,[1]Lavage!$K$13,IF($AY28=2,[1]Lavage!$K$14,IF($AY28=3,[1]Lavage!$K$15,VLOOKUP($AZ28,[1]Lavage!$D$16:$U$78,8,FALSE))))) -> 0 | BD28: =IF($A28="",0,IF($AY28=1,[1]Lavage!$U$13,IF($AY28=2,[1]Lavage!$U$14,IF($AY28=3,[1]Lavage!$U$15,VLOOKUP($AZ28,[1]Lavage!$D$16:$U$78,18,FALSE))))) -> 0 | BE28: 0 | BF28: 0 | BG28: 0 | BH28: 0 | BJ28: 0 | BM28: =IF($BJ28=0,0,IF($BK28=1,[1]Lavage!$J$13,IF($BK28=2,[1]Lavage!$J$14,IF($BK28=3,[1]Lavage!$J$15,VLOOKUP($BL28,[1]Lavage!$D$16:$U$78,7,FALSE))))) -> 0 | BN28: =IF($BJ28=0,0,IF($BK28=1,[1]Lavage!$T$13,IF($BK28=2,[1]Lavage!$T$14,IF($BK28=3,[1]Lavage!$T$15,VLOOKUP($BL28,[1]Lavage!$D$16:$U$78,17,FALSE))))) -> 0 | BO28: =IF($BJ28=0,0,IF($BK28=1,[1]Lavage!$K$13,IF($BK28=2,[1]Lavage!$K$14,IF($BK28=3,[1]Lavage!$K$15,VLOOKUP($BL28,[1]Lavage!$D$16:$U$78,8,FALSE))))) -> 0 | BP28: =IF($BJ28=0,0,IF($BK28=1,[1]Lavage!$U$13,IF($BK28=2,[1]Lavage!$U$14,IF($BK28=3,[1]Lavage!$U$15,VLOOKUP($BL28,[1]Lavage!$D$16:$U$78,18,FALSE))))) -> 0 | BQ28: 0 | BR28: 0 | BS28: 0 | BW28: =IF($BV28="",0,VLOOKUP($BV28,[1]Séchage!$C$13:$O$71,3,FALSE)) -> 0 | BX28: =IF($BV28="",0,VLOOKUP($BV28,[1]Séchage!$C$13:$O$71,12,FALSE)) -> 0 | BY28: =IF($BV28="",0,VLOOKUP($BV28,[1]Séchage!$C$13:$O$71,4,FALSE)) -> 0 | BZ28: =IF($BV28="",0,VLOOKUP($BV28,[1]Séchage!$C$13:$O$71,13,FALSE)) -> 0 | CA28: 0 | CB28: 0 | CC28: 0 | CD28: 0 | CH28: 1 | CI28: 0 | CJ28: 0 | CN28: 0 | CO28: 0 | CP28: 0 | CQ28: 0 | CR28: 0 | CU28: 0 | CV28: 0 | CW28: 0 | CX28: 0 | CZ28: 0 | DA28: 0 | DB28: 0 | DC28: 0
B29: 18 | C29: =IF($A29="",0,VLOOKUP($A29,'[1]Qtité Famille'!$A$6:$C$120,3,FALSE)) -> 0 | G29: 0 | H29: 0 | N29: 0 | O29: 0 | P29: 0 | Q29: 0 | R29: 0 | T29: 0 | U29: 0 | AC29: 0 | AD29: 0 | AE29: 0 | AF29: 1 | AG29: 0 | AH29: 0 | AI29: 0 | AJ29: 0 | AK29: 0 | AL29: 0 | AP29: 0 | AQ29: 18 | AR29: 0 | AS29: 0 | AU29: 0 | AV29: 0 | AX29: 0 | BA29: =IF($A29="",0,IF($AY29=1,[1]Lavage!$J$13,IF($AY29=2,[1]Lavage!$J$14,IF($AY29=3,[1]Lavage!$J$15,VLOOKUP($AZ29,[1]Lavage!$D$16:$U$78,7,FALSE))))) -> 0 | BB29: =IF($A29="",0,IF($AY29=1,[1]Lavage!$T$13,IF($AY29=2,[1]Lavage!$T$14,IF($AY29=3,[1]Lavage!$T$15,VLOOKUP($AZ29,[1]Lavage!$D$16:$U$78,17,FALSE))))) -> 0 | BC29: =IF($A29="",0,IF($AY29=1,[1]Lavage!$K$13,IF($AY29=2,[1]Lavage!$K$14,IF($AY29=3,[1]Lavage!$K$15,VLOOKUP($AZ29,[1]Lavage!$D$16:$U$78,8,FALSE))))) -> 0 | BD29: =IF($A29="",0,IF($AY29=1,[1]Lavage!$U$13,IF($AY29=2,[1]Lavage!$U$14,IF($AY29=3,[1]Lavage!$U$15,VLOOKUP($AZ29,[1]Lavage!$D$16:$U$78,18,FALSE))))) -> 0 | BE29: 0 | BF29: 0 | BG29: 0 | BH29: 0 | BJ29: 0 | BM29: =IF($BJ29=0,0,IF($BK29=1,[1]Lavage!$J$13,IF($BK29=2,[1]Lavage!$J$14,IF($BK29=3,[1]Lavage!$J$15,VLOOKUP($BL29,[1]Lavage!$D$16:$U$78,7,FALSE))))) -> 0 | BN29: =IF($BJ29=0,0,IF($BK29=1,[1]Lavage!$T$13,IF($BK29=2,[1]Lavage!$T$14,IF($BK29=3,[1]Lavage!$T$15,VLOOKUP($BL29,[1]Lavage!$D$16:$U$78,17,FALSE))))) -> 0 | BO29: =IF($BJ29=0,0,IF($BK29=1,[1]Lavage!$K$13,IF($BK29=2,[1]Lavage!$K$14,IF($BK29=3,[1]Lavage!$K$15,VLOOKUP($BL29,[1]Lavage!$D$16:$U$78,8,FALSE))))) -> 0 | BP29: =IF($BJ29=0,0,IF($BK29=1,[1]Lavage!$U$13,IF($BK29=2,[1]Lavage!$U$14,IF($BK29=3,[1]Lavage!$U$15,VLOOKUP($BL29,[1]Lavage!$D$16:$U$78,18,FALSE))))) -> 0 | BQ29: 0 | BR29: 0 | BS29: 0 | BW29: =IF($BV29="",0,VLOOKUP($BV29,[1]Séchage!$C$13:$O$71,3,FALSE)) -> 0 | BX29: =IF($BV29="",0,VLOOKUP($BV29,[1]Séchage!$C$13:$O$71,12,FALSE)) -> 0 | BY29: =IF($BV29="",0,VLOOKUP($BV29,[1]Séchage!$C$13:$O$71,4,FALSE)) -> 0 | BZ29: =IF($BV29="",0,VLOOKUP($BV29,[1]Séchage!$C$13:$O$71,13,FALSE)) -> 0 | CA29: 0 | CB29: 0 | CC29: 0 | CD29: 0 | CH29: 1 | CI29: 0 | CJ29: 0 | CN29: 0 | CO29: 0 | CP29: 0 | CQ29: 0 | CR29: 0 | CU29: 0 | CV29: 0 | CW29: 0 | CX29: 0 | CZ29: 0 | DA29: 0 | DB29: 0 | DC29: 0
B30: 19 | C30: =IF($A30="",0,VLOOKUP($A30,'[1]Qtité Famille'!$A$6:$C$120,3,FALSE)) -> 0 | G30: 0 | H30: 0 | N30: 0 | O30: 0 | P30: 0 | Q30: 0 | R30: 0 | T30: 0 | U30: 0 | AC30: 0 | AD30: 0 | AE30: 0 | AF30: 1 | AG30: 0 | AH30: 0 | AI30: 0 | AJ30: 0 | AK30: 0 | AL30: 0 | AP30: 0 | AQ30: 19 | AR30: 0 | AS30: 0 | AU30: 0 | AV30: 0 | AX30: 0 | BA30: =IF($A30="",0,IF($AY30=1,[1]Lavage!$J$13,IF($AY30=2,[1]Lavage!$J$14,IF($AY30=3,[1]Lavage!$J$15,VLOOKUP($AZ30,[1]Lavage!$D$16:$U$78,7,FALSE))))) -> 0 | BB30: =IF($A30="",0,IF($AY30=1,[1]Lavage!$T$13,IF($AY30=2,[1]Lavage!$T$14,IF($AY30=3,[1]Lavage!$T$15,VLOOKUP($AZ30,[1]Lavage!$D$16:$U$78,17,FALSE))))) -> 0 | BC30: =IF($A30="",0,IF($AY30=1,[1]Lavage!$K$13,IF($AY30=2,[1]Lavage!$K$14,IF($AY30=3,[1]Lavage!$K$15,VLOOKUP($AZ30,[1]Lavage!$D$16:$U$78,8,FALSE))))) -> 0 | BD30: =IF($A30="",0,IF($AY30=1,[1]Lavage!$U$13,IF($AY30=2,[1]Lavage!$U$14,IF($AY30=3,[1]Lavage!$U$15,VLOOKUP($AZ30,[1]Lavage!$D$16:$U$78,18,FALSE))))) -> 0 | BE30: 0 | BF30: 0 | BG30: 0 | BH30: 0 | BJ30: 0 | BM30: =IF($BJ30=0,0,IF($BK30=1,[1]Lavage!$J$13,IF($BK30=2,[1]Lavage!$J$14,IF($BK30=3,[1]Lavage!$J$15,VLOOKUP($BL30,[1]Lavage!$D$16:$U$78,7,FALSE))))) -> 0 | BN30: =IF($BJ30=0,0,IF($BK30=1,[1]Lavage!$T$13,IF($BK30=2,[1]Lavage!$T$14,IF($BK30=3,[1]Lavage!$T$15,VLOOKUP($BL30,[1]Lavage!$D$16:$U$78,17,FALSE))))) -> 0 | BO30: =IF($BJ30=0,0,IF($BK30=1,[1]Lavage!$K$13,IF($BK30=2,[1]Lavage!$K$14,IF($BK30=3,[1]Lavage!$K$15,VLOOKUP($BL30,[1]Lavage!$D$16:$U$78,8,FALSE))))) -> 0 | BP30: =IF($BJ30=0,0,IF($BK30=1,[1]Lavage!$U$13,IF($BK30=2,[1]Lavage!$U$14,IF($BK30=3,[1]Lavage!$U$15,VLOOKUP($BL30,[1]Lavage!$D$16:$U$78,18,FALSE))))) -> 0 | BQ30: 0 | BR30: 0 | BS30: 0 | BW30: =IF($BV30="",0,VLOOKUP($BV30,[1]Séchage!$C$13:$O$71,3,FALSE)) -> 0 | BX30: =IF($BV30="",0,VLOOKUP($BV30,[1]Séchage!$C$13:$O$71,12,FALSE)) -> 0 | BY30: =IF($BV30="",0,VLOOKUP($BV30,[1]Séchage!$C$13:$O$71,4,FALSE)) -> 0 | BZ30: =IF($BV30="",0,VLOOKUP($BV30,[1]Séchage!$C$13:$O$71,13,FALSE)) -> 0 | CA30: 0 | CB30: 0 | CC30: 0 | CD30: 0 | CH30: 1 | CI30: 0 | CJ30: 0 | CN30: 0 | CO30: 0 | CP30: 0 | CQ30: 0 | CR30: 0 | CU30: 0 | CV30: 0 | CW30: 0 | CX30: 0 | CZ30: 0 | DA30: 0 | DB30: 0 | DC30: 0
B31: 20 | C31: =IF($A31="",0,VLOOKUP($A31,'[1]Qtité Famille'!$A$6:$C$120,3,FALSE)) -> 0 | G31: 0 | H31: 0 | N31: 0 | O31: 0 | P31: 0 | Q31: 0 | R31: 0 | T31: 0 | U31: 0 | AC31: 0 | AD31: 0 | AE31: 0 | AF31: 1 | AG31: 0 | AH31: 0 | AI31: 0 | AJ31: 0 | AK31: 0 | AL31: 0 | AP31: 0 | AQ31: 20 | AR31: 0 | AS31: 0 | AU31: 0 | AV31: 0 | AX31: 0 | BA31: =IF($A31="",0,IF($AY31=1,[1]Lavage!$J$13,IF($AY31=2,[1]Lavage!$J$14,IF($AY31=3,[1]Lavage!$J$15,VLOOKUP($AZ31,[1]Lavage!$D$16:$U$78,7,FALSE))))) -> 0 | BB31: =IF($A31="",0,IF($AY31=1,[1]Lavage!$T$13,IF($AY31=2,[1]Lavage!$T$14,IF($AY31=3,[1]Lavage!$T$15,VLOOKUP($AZ31,[1]Lavage!$D$16:$U$78,17,FALSE))))) -> 0 | BC31: =IF($A31="",0,IF($AY31=1,[1]Lavage!$K$13,IF($AY31=2,[1]Lavage!$K$14,IF($AY31=3,[1]Lavage!$K$15,VLOOKUP($AZ31,[1]Lavage!$D$16:$U$78,8,FALSE))))) -> 0 | BD31: =IF($A31="",0,IF($AY31=1,[1]Lavage!$U$13,IF($AY31=2,[1]Lavage!$U$14,IF($AY31=3,[1]Lavage!$U$15,VLOOKUP($AZ31,[1]Lavage!$D$16:$U$78,18,FALSE))))) -> 0 | BE31: 0 | BF31: 0 | BG31: 0 | BH31: 0 | BJ31: 0 | BM31: =IF($BJ31=0,0,IF($BK31=1,[1]Lavage!$J$13,IF($BK31=2,[1]Lavage!$J$14,IF($BK31=3,[1]Lavage!$J$15,VLOOKUP($BL31,[1]Lavage!$D$16:$U$78,7,FALSE))))) -> 0 | BN31: =IF($BJ31=0,0,IF($BK31=1,[1]Lavage!$T$13,IF($BK31=2,[1]Lavage!$T$14,IF($BK31=3,[1]Lavage!$T$15,VLOOKUP($BL31,[1]Lavage!$D$16:$U$78,17,FALSE))))) -> 0 | BO31: =IF($BJ31=0,0,IF($BK31=1,[1]Lavage!$K$13,IF($BK31=2,[1]Lavage!$K$14,IF($BK31=3,[1]Lavage!$K$15,VLOOKUP($BL31,[1]Lavage!$D$16:$U$78,8,FALSE))))) -> 0 | BP31: =IF($BJ31=0,0,IF($BK31=1,[1]Lavage!$U$13,IF($BK31=2,[1]Lavage!$U$14,IF($BK31=3,[1]Lavage!$U$15,VLOOKUP($BL31,[1]Lavage!$D$16:$U$78,18,FALSE))))) -> 0 | BQ31: 0 | BR31: 0 | BS31: 0 | BW31: =IF($BV31="",0,VLOOKUP($BV31,[1]Séchage!$C$13:$O$71,3,FALSE)) -> 0 | BX31: =IF($BV31="",0,VLOOKUP($BV31,[1]Séchage!$C$13:$O$71,12,FALSE)) -> 0 | BY31: =IF($BV31="",0,VLOOKUP($BV31,[1]Séchage!$C$13:$O$71,4,FALSE)) -> 0 | BZ31: =IF($BV31="",0,VLOOKUP($BV31,[1]Séchage!$C$13:$O$71,13,FALSE)) -> 0 | CA31: 0 | CB31: 0 | CC31: 0 | CD31: 0 | CH31: 1 | CI31: 0 | CJ31: 0 | CN31: 0 | CO31: 0 | CP31: 0 | CQ31: 0 | CR31: 0 | CU31: 0 | CV31: 0 | CW31: 0 | CX31: 0 | CZ31: 0 | DA31: 0 | DB31: 0 | DC31: 0
